Workbook

Sheet Contents
B1: =SheetHeader -> REGULATORY REPORTING STATEMENT
B2: =dms_TradingName -> United Energy
B3: =CONCATENATE(FRCP_y1," to ",FRCP_y5) -> 2016 to 2020
B4: CONTENTS - Revised Regulatory Proposal 6th January 2016
E7: 1. Business details | L7: 2. Expenditure | S7: 3. Economic benchmarking
E27: 4. Alternative control services | L27: 5. Network information | S27: 6. Service & quality
E34: 7. Other templates

Sheet Instructions
B1: =SheetHeader -> REGULATORY REPORTING STATEMENT
B2: =dms_TradingName -> United Energy
B3: =CONCATENATE(FRCP_y1," to ",FRCP_y5) -> 2016 to 2020
B4: INSTRUCTIONS
B6: INSTRUCTIONS FOR USE
B7: =CONCATENATE(dms_TradingName, " must fill out and submit the regulatory templates in this spreadsheet as part of its regulatory proposal.") -> United Energy must fill out and submit the regulatory templates in this spreadsheet as part of its regulatory proposal.
B8: Please ensure that tab 1.0 Business and other details is complete before populating data cells.

Sheet 1.0 Business & other details
B1: =(LOOKUP(dms_Model,J15:J22,K15:K31)) -> REGULATORY REPORTING STATEMENT | J1: Data is in this column used for data validation and database purposes.
B2: =dms_TradingName -> United Energy
B3: =CONCATENATE(FRCP_y1," to ",FRCP_y5) -> 2016 to 2020 | C3: =CONCATENATE(LEFT(FRCP_y1,4),"-",LEFT(FRCP_y5,2),RIGHT(FRCP_y5,2)) -> 2016-2020
B4: 1.0 BUSINESS & OTHER DETAILS
B7: Instructions
B8: Complete the following business details regulatory template before entering data or values in any other regulatory template. This regulatory template is linked to other cells within the spreadsheet and automatically generates column headings.
B10: TABLE 1.2.1 - SUBMISSION PARTICULARS INPUT SHEETS
B12: Entity details
B14: Trading name | C14: United Energy
B15: ACN / ABN | C15: =INDEX(dms_ABN_List,MATCH(dms_TradingName,dms_TradingName_List)) -> 70064651029 | J15: CA | K15: CATEGORY ANALYSIS
J16: CAM/Service change Backcast | K16: REGULATORY REPORTING STATEMENT
J17: CPI | K17: CPI
B18: Business address | C18: Address 1 | E18: 6 Nexus Court | J18: EB | K18: ECONOMIC BENCHMARKING
D19: Address 2 | J19: PTRM | K19: POST TAX REVENUE MODEL
C20: Suburb | E20: Mulgrave | J20: Reset | K20: REGULATORY REPORTING STATEMENT
D21: State | E21: Vic | G21: 3170 | J21: RFM | K21: ROLL FORWARD MODEL
J22: WACC | K22: WEIGHTED AVERAGE COST OF CAPITAL
B23: Postal address | C23: Address 1 | E23: PO Box 449
D24: Address 2
C25: Suburb | E25: Mount Waverley
D26: State | E26: Vic | F26: p/code | G26: 3149
J27: ActewAGL Distribution | K27: 76670568688
J28: Ausgrid | K28: 67505337385
B29: Contact name/s | C29: Mathew Abraham | F29: Stephanie McDougall | J29: AusNet (D) | K29: 91064651118
B30: Contact phone/s | C30: 03 8846 9758 | F30: 03 8846 9538 | J30: AusNet (T) | K30: 78079798173
B31: Contact email address/s | C31: mathew.abraham@ue.com.au | F31: stephanie.mcdougall@ue.com.au | J31: Citipower | K31: 76064651056
J32: Electranet | K32: 41094482416
B33: Regulatory control period details | J33: Endeavour Energy | K33: 59253130878
J34: Energex | K34: 40078849055
B35: Forthcoming regulatory control period | C35: =CONCATENATE(IF(dms_RPT="Calendar",G38+1,(LEFT(G38,4)+1&"-"&IF(MID(G38,6,2)<"09","0"&RIGHT(G38,1)+1,RIGHT(G38,2)+1)))) -> 2016 | D35: =CONCATENATE(IF(dms_RPT="Calendar",C35+1,(LEFT(C35,4)+1&"-"&IF(MID(C35,6,2)<"09","0"&RIGHT(C35,1)+1,RIGHT(C35,2)+1)))) -> 2017 | E35: =CONCATENATE(IF(dms_RPT="Calendar",D35+1,(LEFT(D35,4)+1&"-"&IF(MID(D35,6,2)<"09","0"&RIGHT(D35,1)+1,RIGHT(D35,2)+1)))) -> 2018 | F35: =CONCATENATE(IF(dms_RPT="Calendar",E35+1,(LEFT(E35,4)+1&"-"&IF(MID(E35,6,2)<"09","0"&RIGHT(E35,1)+1,RIGHT(E35,2)+1)))) -> 2019 | G35: =CONCATENATE(IF(dms_RPT="Calendar",F35+1,(LEFT(F35,4)+1&"-"&IF(MID(F35,6,2)<"09","0"&RIGHT(F35,1)+1,RIGHT(F35,2)+1)))) -> 2020 | J35: Ergon Energy | K35: 50087646062
J36: Essential Energy | K36: 37428185226
J37: Jemena Electricity | K37: 82064651083
B38: Current regulatory control period | C38: 2011 | D38: =CONCATENATE(IF(dms_RPT="Calendar",C38+1,(LEFT(C38,4)+1&"-"&IF(MID(C38,6,2)<"09","0"&RIGHT(C38,1)+1,RIGHT(C38,2)+1)))) -> 2012 | E38: =CONCATENATE(IF(dms_RPT="Calendar",D38+1,(LEFT(D38,4)+1&"-"&IF(MID(D38,6,2)<"09","0"&RIGHT(D38,1)+1,RIGHT(D38,2)+1)))) -> 2013 | F38: =CONCATENATE(IF(dms_RPT="Calendar",E38+1,(LEFT(E38,4)+1&"-"&IF(MID(E38,6,2)<"09","0"&RIGHT(E38,1)+1,RIGHT(E38,2)+1)))) -> 2014 | G38: =CONCATENATE(IF(dms_RPT="Calendar",F38+1,(LEFT(F38,4)+1&"-"&IF(MID(F38,6,2)<"09","0"&RIGHT(F38,1)+1,RIGHT(F38,2)+1)))) -> 2015 | J38: Powercor Australia | K38: 89064651109
J39: Powerlink | K39: 82078849233
J40: Qld,SA &ACT Gas Reset | K40: 22222222222
B41: Previous regulatory control period | C41: =CONCATENATE(IF(dms_RPT="Calendar",D41-1,(LEFT(D41,4)-1&"-"&IF(MID(D41,3,1)="0","0"&RIGHT(D41,2)-1,RIGHT(D41,2)-1)))) -> 2006 | D41: =CONCATENATE(IF(dms_RPT="Calendar",E41-1,(LEFT(E41,4)-1&"-"&IF(MID(E41,3,1)="0","0"&RIGHT(E41,2)-1,RIGHT(E41,2)-1)))) -> 2007 | E41: =CONCATENATE(IF(dms_RPT="Calendar",F41-1,(LEFT(F41,4)-1&"-"&IF(MID(F41,3,1)="0","0"&RIGHT(F41,2)-1,RIGHT(F41,2)-1)))) -> 2008 | F41: =CONCATENATE(IF(dms_RPT="Calendar",G41-1,(LEFT(G41,4)-1&"-"&IF(MID(G41,3,1)="0","0"&RIGHT(G41,2)-1,RIGHT(G41,2)-1)))) -> 2009 | G41: =CONCATENATE(IF(dms_RPT="Calendar",C38-1,(LEFT(C38,4)-1&"-"&IF(MID(C38,3,1)="0","0"&RIGHT(C38,2)-1,RIGHT(C38,2)-1)))) -> 2010 | J41: SA Power Networks | K41: 13332330749
J42: TasNetworks (D) | K42: 24167357299
J43: TasNetworks (T) | K43: 24167357299
B44: Sector | C44: Electricity | J44: TransGrid | K44: 19622755774
B45: Segment | C45: Distribution | J45: United Energy | K45: 70064651029
B46: Source | C46: Regulatory proposal | J46: Victorian DNSP Backcasting | K46: 33333333666
B47: Regulatory Year Ending | C47: =CONCATENATE(LEFT(G38, 2) &IF(G38>"2009-10",,"") &RIGHT(G38,2)) -> 2015 | J47: Victorian DNSP Reset | K47: 33333333333
B48: Reporting Period Type | C48: =IF(LEN(CRCP_y1)>4,"Financial","Calendar") -> Calendar
B49: Model or RIN Type | C49: Reset
B50: Security Classification | C50: Confidential
B51: Data quality (Actual, estimate, public, consolidated) | C51: Consolidated
B52: RIN response - version no. | C52: 1
B53: Amended RIN submission - amendment reason
B54: Template - version no. | C54: 1
B55: $ real (the last month before the FRCP_y1) | C55: =CONCATENATE(IF(C48="Financial","June ","December "),(IF(C48="Financial",LEFT(G38,2),LEFT(G38,2))&(RIGHT(G38,2)))) -> December 2015
B56: Previous $ real - End Year 5 | C56: =CONCATENATE(IF(C48="Financial","June ","December "),(IF(C48="Financial",LEFT(G41,2),LEFT(G38,2))&(RIGHT(G41,2)))) -> December 2010
B57: Previous $ real - Beginning Year 1 | C57: =CONCATENATE(IF(C48="Financial","July ","January "),(LEFT(C41,4))) -> January 2006
B58: EBSS - First application of scheme in forthcoming period? | C58: Yes

Sheet 2.1 Expenditure summary
C1: =SheetHeader -> REGULATORY REPORTING STATEMENT
C2: =dms_TradingName -> United Energy
C3: =FRCP_span -> 2016 to 2020
C4: 2.1 EXPENDITURE SUMMARY & RECONCILIATION
C8: TABLE 2.1.1 - STANDARD CONTROL SERVICES CAPEX
D10: =CONCATENATE("Forecast ($0's, real ", dms_DollarReal, ")") -> Forecast ($0's, real December 2015)
D11: =CRCP_y5 -> 2015 | E11: =FRCP -> 2016 | F11: 2017 | G11: 2018 | H11: 2019 | I11: 2020
A12: ED_EXP211_00001 | C12: Replacement expenditure | D12: =SUM('2.2 Repex'!E11:E167) -> 107549219.1 | E12: =SUM('2.2 Repex'!F11:F167) -> 113302961.2 | F12: =SUM('2.2 Repex'!G11:G167) -> 114376231.1 | G12: =SUM('2.2 Repex'!H11:H167) -> 119058471 | H12: =SUM('2.2 Repex'!I11:I167) -> 113641532.5 | I12: =SUM('2.2 Repex'!J11:J167) -> 103213330.1
A13: ED_EXP211_00002 | C13: Connections | D13: =SUM('2.5 Connections'!F67:F80) -> 61068528.14 | E13: =SUM('2.5 Connections'!G67:G80) -> 61726515.87 | F13: =SUM('2.5 Connections'!H67:H80) -> 63226251.15 | G13: =SUM('2.5 Connections'!I67:I80) -> 63180735.61 | H13: =SUM('2.5 Connections'!J67:J80) -> 63872602.74 | I13: =SUM('2.5 Connections'!K67:K80) -> 64823894.16
A14: ED_EXP211_00003 | C14: Augmentation Expenditure | D14: =SUM('2.3 Augex'!E168:E176) -> 21369000 | E14: =SUM('2.3 Augex'!F168:F176) -> 33834382.45 | F14: =SUM('2.3 Augex'!G168:G176) -> 30715736.28 | G14: =SUM('2.3 Augex'!H168:H176) -> 29494272.63 | H14: =SUM('2.3 Augex'!I168:I176) -> 19314397.81 | I14: =SUM('2.3 Augex'!J168:J176) -> 10966588.35
A15: ED_EXP211_00004 | C15: Non-network | D15: =SUMIF('2.6 Non-network'!$E$13:$E$48,'2.6 Non-network'!$E$14,'2.6 Non-network'!F13:F48) -> 27931333.18 | E15: =SUMIF('2.6 Non-network'!$E$13:$E$48,'2.6 Non-network'!$E$14,'2.6 Non-network'!G13:G48) -> 44902094.35 | F15: =SUMIF('2.6 Non-network'!$E$13:$E$48,'2.6 Non-network'!$E$14,'2.6 Non-network'!H13:H48) -> 52852905.74 | G15: =SUMIF('2.6 Non-network'!$E$13:$E$48,'2.6 Non-network'!$E$14,'2.6 Non-network'!I13:I48) -> 25723025.22 | H15: =SUMIF('2.6 Non-network'!$E$13:$E$48,'2.6 Non-network'!$E$14,'2.6 Non-network'!J13:J48) -> 26668197.09 | I15: =SUMIF('2.6 Non-network'!$E$13:$E$48,'2.6 Non-network'!$E$14,'2.6 Non-network'!K13:K48) -> 34174310.43
A16: ED_EXP211_00005 | C16: Capitalised network overheads | D16: 0 | E16: 0 | F16: 0 | G16: 0 | H16: 0 | I16: 0
A17: ED_EXP211_00006 | C17: Capitalised corporate overheads | D17: 0 | E17: 0 | F17: 0 | G17: 0 | H17: 0 | I17: 0
C18: TOTAL GROSS CAPEX (includes capcons) | D18: =SUM(D12:D17) -> 217918080.4 | E18: 253765953.8 | F18: 261171124.3 | G18: 237456504.5 | H18: 223496730.2 | I18: 213178123.1
A19: ED_EXP211_00024 | C19: capcons | D19: 12334099.32 | E19: 19195035.92 | F19: 27396514.71 | G19: 29506559.92 | H19: 29789036.72 | I19: 30166346.02
C21: TABLE 2.1.2 - STANDARD CONTROL SERVICES OPEX BY CATEGORY
D23: =CONCATENATE("Forecast ($0's, real ", dms_DollarReal, ")") -> Forecast ($0's, real December 2015)
D24: =CRCP_y5 -> 2015
A25: ED_EXP212_00001 | C25: Vegetation management | D25: ='2.16 Opex Summary'!M14 -> 11952607.69
A26: ED_EXP212_00002 | C26: Maintenance | D26: ='2.16 Opex Summary'!M15 -> 19305711.26
A27: ED_EXP212_00003 | C27: Emergency response | D27: ='2.16 Opex Summary'!M16 -> 14716251.82
A28: ED_EXP212_00004 | C28: Non-network | D28: ='2.16 Opex Summary'!M17 -> 22946805.75
A29: ED_EXP212_00005 | C29: Network overheads | D29: ='2.16 Opex Summary'!M18 -> 19511584.52
A30: ED_EXP212_00006 | C30: Corporate overheads | D30: ='2.16 Opex Summary'!M19 -> 37495429.89
C31: TOTAL OPEX | D31: =SUM(D25:D30) -> 125928390.9
C33: TABLE 2.1.3 - ALTERNATIVE CONTROL SERVICES CAPEX
D35: =CONCATENATE("Forecast ($0's, real ", dms_DollarReal, ")") -> Forecast ($0's, real December 2015)
D36: =CRCP_y5 -> 2015 | E36: =FRCP -> 2016 | F36: 2017 | G36: 2018 | H36: 2019 | I36: 2020
A37: ED_EXP213_00001 | C37: Connections | D37: 2432111.147 | E37: 2446467.278 | F37: 2967373.328 | G37: 3435542.499 | H37: 3455910.186 | I37: 3476611.77
A38: ED_EXP213_00002 | C38: Metering | D38: ='4.2 Metering'!O12+'4.2 Metering'!O30+'4.2 Metering'!O42+'4.2 Metering'!O44 -> 8618827.534 | E38: ='4.2 Metering'!P12+'4.2 Metering'!P30+'4.2 Metering'!P42+'4.2 Metering'!P44 -> 4305862.309 | F38: ='4.2 Metering'!Q12+'4.2 Metering'!Q30+'4.2 Metering'!Q42+'4.2 Metering'!Q44 -> 3952633.143 | G38: ='4.2 Metering'!R12+'4.2 Metering'!R30+'4.2 Metering'!R42+'4.2 Metering'!R44 -> 1020990.326 | H38: ='4.2 Metering'!S12+'4.2 Metering'!S30+'4.2 Metering'!S42+'4.2 Metering'!S44 -> 1048653.558 | I38: ='4.2 Metering'!T12+'4.2 Metering'!T30+'4.2 Metering'!T42+'4.2 Metering'!T44 -> 3399646.033
A39: ED_EXP213_00003 | C39: Public lighting | D39: 2125080.343 | E39: ='4.1 Public lighting'!G18 -> 3251474.256 | F39: ='4.1 Public lighting'!H18 -> 3276012.114 | G39: ='4.1 Public lighting'!I18 -> 3306666.008 | H39: ='4.1 Public lighting'!J18 -> 3342290.739 | I39: ='4.1 Public lighting'!K18 -> 3384423.305
A40: ED_EXP213_00004 | C40: Fee and quoted | D40: =SUM('4.3 Fee-based services'!E14:E24,'4.4 Quoted services.'!E12:E19)-('3.2 Operating expenditure'!L24-SUM('4.2 Metering'!O15:O20,'4.2 Metering'!O38:O41,'4.2 Metering'!O43,'4.2 Metering'!O45-'2.1 Expenditure summary'!D37)) -> 7617324.041 | E40: =SUM('4.3 Fee-based services'!F14:F24,'4.4 Quoted services.'!F12:F19)-('3.2 Operating expenditure'!M24-SUM('4.2 Metering'!P15:P20,'4.2 Metering'!P38:P41,'4.2 Metering'!P43,'4.2 Metering'!P45-'2.1 Expenditure summary'!E37)) -> 6934043.696 | F40: =SUM('4.3 Fee-based services'!G14:G24,'4.4 Quoted services.'!G12:G19)-('3.2 Operating expenditure'!N24-SUM('4.2 Metering'!Q15:Q20,'4.2 Metering'!Q38:Q41,'4.2 Metering'!Q43,'4.2 Metering'!Q45-'2.1 Expenditure summary'!F37)) -> 5435692.414 | G40: =SUM('4.3 Fee-based services'!H14:H24,'4.4 Quoted services.'!H12:H19)-('3.2 Operating expenditure'!O24-SUM('4.2 Metering'!R15:R20,'4.2 Metering'!R38:R41,'4.2 Metering'!R43,'4.2 Metering'!R45-'2.1 Expenditure summary'!G37)) -> 3978863.485 | H40: =SUM('4.3 Fee-based services'!I14:I24,'4.4 Quoted services.'!I12:I19)-('3.2 Operating expenditure'!P24-SUM('4.2 Metering'!S15:S20,'4.2 Metering'!S38:S41,'4.2 Metering'!S43,'4.2 Metering'!S45-'2.1 Expenditure summary'!H37)) -> 3978863.485 | I40: =SUM('4.3 Fee-based services'!J14:J24,'4.4 Quoted services.'!J12:J19)-('3.2 Operating expenditure'!Q24-SUM('4.2 Metering'!T15:T20,'4.2 Metering'!T38:T41,'4.2 Metering'!T43,'4.2 Metering'!T45-'2.1 Expenditure summary'!I37)) -> 3978863.485
C41: TOTAL CAPEX | D41: =SUM(D37:D40) -> 20793343.07 | E41: 16937847.54 | F41: 15631711 | G41: 11742062.32 | H41: 11825717.97 | I41: 14239544.59
C43: TABLE 2.1.4 - ALTERNATIVE CONTROL SERVICES OPEX
D45: =CONCATENATE("Forecast ($0's, real ", dms_DollarReal, ")") -> Forecast ($0's, real December 2015)
D46: =CRCP_y5 -> 2015 | E46: =FRCP -> 2016 | F46: 2017 | G46: 2018 | H46: 2019 | I46: 2020
A47: ED_EXP214_00001 | C47: Connections | D47: ='3.2 Operating expenditure'!L58 -> 1147666.438 | E47: ='3.2 Operating expenditure'!M58 -> 1176635.482 | F47: ='3.2 Operating expenditure'!N58 -> 1204377.594 | G47: ='3.2 Operating expenditure'!O58 -> 1230901.511 | H47: ='3.2 Operating expenditure'!P58 -> 1256268.143 | I47: ='3.2 Operating expenditure'!Q58 -> 1280590.734
A48: ED_EXP214_00002 | C48: Metering | D48: ='3.2 Operating expenditure'!L57 -> 25823194.62 | E48: ='3.2 Operating expenditure'!M57 -> 13163366.2 | F48: ='3.2 Operating expenditure'!N57 -> 13242122 | G48: ='3.2 Operating expenditure'!O57 -> 13188258.12 | H48: ='3.2 Operating expenditure'!P57 -> 13226012.4 | I48: ='3.2 Operating expenditure'!Q57 -> 13242845.58
A49: ED_EXP214_00003 | C49: Public lighting | D49: ='3.2 Operating expenditure'!L59 -> 3545401.893 | E49: ='3.2 Operating expenditure'!M59 -> 3517995.483 | F49: ='3.2 Operating expenditure'!N59 -> 3575470.384 | G49: ='3.2 Operating expenditure'!O59 -> 3632698.413 | H49: ='3.2 Operating expenditure'!P59 -> 3636161.111 | I49: ='3.2 Operating expenditure'!Q59 -> 3639436.314
A50: ED_EXP214_00004 | C50: Fee and quoted | D50: ='3.2 Operating expenditure'!L56 -> 4445734.912 | E50: ='3.2 Operating expenditure'!M56 -> 3626131.975 | F50: ='3.2 Operating expenditure'!N56 -> 3648911.261 | G50: ='3.2 Operating expenditure'!O56 -> 3672237.25 | H50: ='3.2 Operating expenditure'!P56 -> 3696123.063 | I50: ='3.2 Operating expenditure'!Q56 -> 3720582.135
C51: TOTAL OPEX | D51: =SUM(D47:D50) -> 34961997.86 | E51: 21484129.14 | F51: 21670881.24 | G51: 21724095.3 | H51: 21814564.72 | I51: 21883454.77
C53: TABLE 2.1.5 - DUAL FUNCTION ASSETS CAPEX
D55: =CONCATENATE("Forecast ($0's, real ", dms_DollarReal, ")") -> Forecast ($0's, real December 2015)
D56: =CRCP_y5 -> 2015 | E56: =FRCP -> 2016 | F56: 2017 | G56: 2018 | H56: 2019 | I56: 2020
A57: ED_EXP215_00001 | C57: Replacement expenditure | D57: 0 | E57: 0 | F57: 0 | G57: 0 | H57: 0 | I57: 0
A58: ED_EXP215_00002 | C58: Connections | D58: 0 | E58: 0 | F58: 0 | G58: 0 | H58: 0 | I58: 0
A59: ED_EXP215_00003 | C59: Augmentation Expenditure | D59: 0 | E59: 0 | F59: 0 | G59: 0 | H59: 0 | I59: 0
A60: ED_EXP215_00004 | C60: Non-network | D60: 0 | E60: 0 | F60: 0 | G60: 0 | H60: 0 | I60: 0
A61: ED_EXP215_00005 | C61: Capitalised network overheads | D61: 0 | E61: 0 | F61: 0 | G61: 0 | H61: 0 | I61: 0
A62: ED_EXP215_00006 | C62: Capitalised corporate overheads | D62: 0 | E62: 0 | F62: 0 | G62: 0 | H62: 0 | I62: 0
C63: TOTAL GROSS CAPEX (includes capcons) | D63: =SUM(D57:D62) -> 0 | E63: 0 | F63: 0 | G63: 0 | H63: 0 | I63: 0
A64: ED_EXP215_00023 | C64: capcons | D64: 0 | E64: 0 | F64: 0 | G64: 0 | H64: 0 | I64: 0
C66: TABLE 2.1.6 - DUAL FUNCTION ASSETS OPEX BY CATEGORY
D68: Forecast ($0's real June 2015)
D70: =CRCP_y5 -> 2015
A71: ED_EXP216_00001 | C71: Vegetation management
A72: ED_EXP216_00002 | C72: Maintenance
A73: ED_EXP216_00003 | C73: Emergency response
A74: ED_EXP216_00004 | C74: Non-network
A75: ED_EXP216_00005 | C75: network overheads
A76: ED_EXP216_00006 | C76: corporate overheads
A77: ED_EXP216_00006
A78: ED_EXP216_00006
A79: ED_EXP216_00006
A80: ED_EXP216_00006
A81: ED_EXP216_00006
A82: ED_EXP216_00006
A83: ED_EXP216_00006
A84: ED_EXP216_00006
A85: ED_EXP216_00006
A86: ED_EXP216_00006
A87: ED_EXP216_00006
A88: ED_EXP216_00006
A89: ED_EXP216_00006
A90: ED_EXP216_00006
A91: ED_EXP216_00006
A92: ED_EXP216_00007 | C92: balancing item
C93: TOTAL OPEX | D93: =SUM(D71:D92) -> 0

Sheet 2.2 Repex
C1: =SheetHeader -> REGULATORY REPORTING STATEMENT
C2: =dms_TradingName -> United Energy
C3: =FRCP_span -> 2016 to 2020
C4: 2.2 REPEX
C6: TABLE 2.2.1 - REPLACEMENT EXPENDITURE, VOLUMES AND ASSET FAILURES BY ASSET CATEGORY
E9: =CONCATENATE("EXPENDITURE ($0's, real ", dms_DollarReal,")") -> EXPENDITURE ($0's, real December 2015) | K9: ASSET REPLACEMENTS (0's) | Q9: ASSET FAILURES (0's)
C10: ASSET GROUP | D10: ASSET CATEGORY | E10: =CRCP_y5 -> 2015 | F10: =FRCP -> 2016 | G10: 2017 | H10: 2018 | I10: 2019 | J10: 2020 | K10: =CRCP_y5 -> 2015 | L10: =FRCP -> 2016 | M10: 2017 | N10: 2018 | O10: 2019 | P10: 2020 | Q10: =CRCP_y5 -> 2015 | R10: =FRCP -> 2016 | S10: 2017 | T10: 2018 | U10: 2019 | V10: 2020
A11: ED_REP221_00001 | C11: POLES BY: Highest operating voltage; Material type; Staking (if wood) | D11: Staking of a wooden pole | E11: ='REPEX Support'!F22+'REPEX Support'!F23+'REPEX Support'!F24+'REPEX Support'!F25 -> 1329400.956 | F11: ='REPEX Support'!G22+'REPEX Support'!G23+'REPEX Support'!G24+'REPEX Support'!G25 -> 1427273.204 | G11: ='REPEX Support'!H22+'REPEX Support'!H23+'REPEX Support'!H24+'REPEX Support'!H25 -> 1542392.633 | H11: ='REPEX Support'!I22+'REPEX Support'!I23+'REPEX Support'!I24+'REPEX Support'!I25 -> 1687617.851 | I11: ='REPEX Support'!J22+'REPEX Support'!J23+'REPEX Support'!J24+'REPEX Support'!J25 -> 1844552.084 | J11: ='REPEX Support'!K22+'REPEX Support'!K23+'REPEX Support'!K24+'REPEX Support'!K25 -> 1972425.147 | K11: ='REPEX Support'!L22+'REPEX Support'!L23+'REPEX Support'!L24+'REPEX Support'!L25 -> 928 | L11: ='REPEX Support'!M22+'REPEX Support'!M23+'REPEX Support'!M24+'REPEX Support'!M25 -> 1030 | M11: ='REPEX Support'!N22+'REPEX Support'!N23+'REPEX Support'!N24+'REPEX Support'!N25 -> 1133 | N11: ='REPEX Support'!O22+'REPEX Support'!O23+'REPEX Support'!O24+'REPEX Support'!O25 -> 1236 | O11: ='REPEX Support'!P22+'REPEX Support'!P23+'REPEX Support'!P24+'REPEX Support'!P25 -> 1338 | P11: ='REPEX Support'!Q22+'REPEX Support'!Q23+'REPEX Support'!Q24+'REPEX Support'!Q25 -> 1440 | Q11: 0 | R11: 0 | S11: 0 | T11: 0 | U11: 0 | V11: 0
A12: ED_REP221_00002 | D12: ˂ = 1 kV; Wood | E12: ='REPEX Support'!F4 -> 2275983.844 | F12: ='REPEX Support'!G4 -> 2477120.573 | G12: ='REPEX Support'!H4 -> 2540694.814 | H12: ='REPEX Support'!I4 -> 2612425.305 | I12: ='REPEX Support'!J4 -> 2692633.856 | J12: ='REPEX Support'!K4 -> 2774512.738 | K12: ='REPEX Support'!L4 -> 345 | L12: ='REPEX Support'!M4 -> 355 | M12: ='REPEX Support'!N4 -> 366 | N12: ='REPEX Support'!O4 -> 373 | O12: ='REPEX Support'!P4 -> 381 | P12: ='REPEX Support'!Q4 -> 390 | Q12: 3 | R12: 3 | S12: 3 | T12: 3 | U12: 3 | V12: 3
A13: ED_REP221_00003 | D13: > 1 kV & < = 11 kV; Wood | E13: ='REPEX Support'!F5 -> 824619.5079 | F13: ='REPEX Support'!G5 -> 629852.2628 | G13: ='REPEX Support'!H5 -> 614608.3818 | H13: ='REPEX Support'!I5 -> 600803.5724 | I13: ='REPEX Support'!J5 -> 600124.351 | J13: ='REPEX Support'!K5 -> 608733.6495 | K13: ='REPEX Support'!L5 -> 66 | L13: ='REPEX Support'!M5 -> 63 | M13: ='REPEX Support'!N5 -> 60 | N13: ='REPEX Support'!O5 -> 59 | O13: ='REPEX Support'!P5 -> 58 | P13: ='REPEX Support'!Q5 -> 58 | Q13: 1 | R13: 0 | S13: 0 | T13: 0 | U13: 0 | V13: 0
A14: ED_REP221_00004 | D14: ˃ 11 kV & < = 22 kV; Wood | E14: ='REPEX Support'!F6 -> 3171825.724 | F14: ='REPEX Support'!G6 -> 2421364.476 | G14: ='REPEX Support'!H6 -> 2364266.993 | H14: ='REPEX Support'!I6 -> 2313104.418 | I14: ='REPEX Support'!J6 -> 2312012.25 | J14: ='REPEX Support'!K6 -> 2345737.78 | K14: ='REPEX Support'!L6 -> 222 | L14: ='REPEX Support'!M6 -> 210 | M14: ='REPEX Support'!N6 -> 201 | N14: ='REPEX Support'!O6 -> 196 | O14: ='REPEX Support'!P6 -> 194 | P14: ='REPEX Support'!Q6 -> 195 | Q14: 3 | R14: 3 | S14: 3 | T14: 3 | U14: 3 | V14: 3
A15: ED_REP221_00005 | D15: > 22 kV & < = 66 kV; Wood | E15: ='REPEX Support'!F7 -> 582982.2901 | F15: ='REPEX Support'!G7 -> 419202.26 | G15: ='REPEX Support'!H7 -> 439111.5478 | H15: ='REPEX Support'!I7 -> 468018.4627 | I15: ='REPEX Support'!J7 -> 497897.9534 | J15: ='REPEX Support'!K7 -> 516177.6675 | K15: ='REPEX Support'!L7 -> 26 | L15: ='REPEX Support'!M7 -> 28 | M15: ='REPEX Support'!N7 -> 30 | N15: ='REPEX Support'!O7 -> 31 | O15: ='REPEX Support'!P7 -> 33 | P15: ='REPEX Support'!Q7 -> 34 | Q15: 0 | R15: 0 | S15: 0 | T15: 0 | U15: 0 | V15: 0
A16: ED_REP221_00006 | D16: > 66 kV & < = 132 kV; Wood | E16: 0 | F16: 0 | G16: 0 | H16: 0 | I16: 0 | J16: 0 | K16: 0 | L16: 0 | M16: 0 | N16: 0 | O16: 0 | P16: 0 | Q16: 0 | R16: 0 | S16: 0 | T16: 0 | U16: 0 | V16: 0
A17: ED_REP221_00007 | D17: > 132 kV; Wood | E17: 0 | F17: 0 | G17: 0 | H17: 0 | I17: 0 | J17: 0 | K17: 0 | L17: 0 | M17: 0 | N17: 0 | O17: 0 | P17: 0 | Q17: 0 | R17: 0 | S17: 0 | T17: 0 | U17: 0 | V17: 0
A18: ED_REP221_00008 | D18: ˂ = 1 kV; Concrete | E18: 0 | F18: 0 | G18: 0 | H18: 0 | I18: 0 | J18: 0 | K18: 0 | L18: 0 | M18: 0 | N18: 0 | O18: 0 | P18: 0 | Q18: 0 | R18: 0 | S18: 0 | T18: 0 | U18: 0 | V18: 0
A19: ED_REP221_00009 | D19: > 1 kV & < = 11 kV; Concrete | E19: 0 | F19: 0 | G19: 0 | H19: 0 | I19: 0 | J19: 0 | K19: 0 | L19: 0 | M19: 0 | N19: 0 | O19: 0 | P19: 0 | Q19: 0 | R19: 0 | S19: 0 | T19: 0 | U19: 0 | V19: 0
A20: ED_REP221_00010 | D20: ˃ 11 kV & < = 22 kV; Concrete | E20: 0 | F20: 0 | G20: 0 | H20: 0 | I20: 0 | J20: 0 | K20: 0 | L20: 0 | M20: 0 | N20: 0 | O20: 0 | P20: 0 | Q20: 0 | R20: 0 | S20: 0 | T20: 0 | U20: 0 | V20: 0
A21: ED_REP221_00011 | D21: > 22 kV & < = 66 kV; Concrete | E21: 0 | F21: 0 | G21: 0 | H21: 0 | I21: 0 | J21: 0 | K21: 0 | L21: 0 | M21: 0 | N21: 0 | O21: 0 | P21: 0 | Q21: 0 | R21: 0 | S21: 0 | T21: 0 | U21: 0 | V21: 0
A22: ED_REP221_00012 | D22: > 66 kV & < = 132 kV; Concrete | E22: 0 | F22: 0 | G22: 0 | H22: 0 | I22: 0 | J22: 0 | K22: 0 | L22: 0 | M22: 0 | N22: 0 | O22: 0 | P22: 0 | Q22: 0 | R22: 0 | S22: 0 | T22: 0 | U22: 0 | V22: 0
A23: ED_REP221_00013 | D23: > 132 kV; Concrete | E23: 0 | F23: 0 | G23: 0 | H23: 0 | I23: 0 | J23: 0 | K23: 0 | L23: 0 | M23: 0 | N23: 0 | O23: 0 | P23: 0 | Q23: 0 | R23: 0 | S23: 0 | T23: 0 | U23: 0 | V23: 0
A24: ED_REP221_00014 | D24: ˂ = 1 kV; Steel | E24: 0 | F24: 0 | G24: 0 | H24: 0 | I24: 0 | J24: 0 | K24: 0 | L24: 0 | M24: 0 | N24: 0 | O24: 0 | P24: 0 | Q24: 0 | R24: 0 | S24: 0 | T24: 0 | U24: 0 | V24: 0
A25: ED_REP221_00015 | D25: > 1 kV & < = 11 kV; Steel | E25: 0 | F25: 0 | G25: 0 | H25: 0 | I25: 0 | J25: 0 | K25: 0 | L25: 0 | M25: 0 | N25: 0 | O25: 0 | P25: 0 | Q25: 0 | R25: 0 | S25: 0 | T25: 0 | U25: 0 | V25: 0
A26: ED_REP221_00016 | D26: ˃ 11 kV & < = 22 kV; Steel | E26: 0 | F26: 0 | G26: 0 | H26: 0 | I26: 0 | J26: 0 | K26: 0 | L26: 0 | M26: 0 | N26: 0 | O26: 0 | P26: 0 | Q26: 0 | R26: 0 | S26: 0 | T26: 0 | U26: 0 | V26: 0
A27: ED_REP221_00017 | D27: > 22 kV & < = 66 kV; Steel | E27: 0 | F27: 0 | G27: 0 | H27: 0 | I27: 0 | J27: 0 | K27: 0 | L27: 0 | M27: 0 | N27: 0 | O27: 0 | P27: 0 | Q27: 0 | R27: 0 | S27: 0 | T27: 0 | U27: 0 | V27: 0
A28: ED_REP221_00018 | D28: > 66 kV & < = 132 kV; Steel | E28: 0 | F28: 0 | G28: 0 | H28: 0 | I28: 0 | J28: 0 | K28: 0 | L28: 0 | M28: 0 | N28: 0 | O28: 0 | P28: 0 | Q28: 0 | R28: 0 | S28: 0 | T28: 0 | U28: 0 | V28: 0
A29: ED_REP221_00019 | D29: > 132 kV; Steel | E29: 0 | F29: 0 | G29: 0 | H29: 0 | I29: 0 | J29: 0 | K29: 0 | L29: 0 | M29: 0 | N29: 0 | O29: 0 | P29: 0 | Q29: 0 | R29: 0 | S29: 0 | T29: 0 | U29: 0 | V29: 0
A30: ED_REP221_00020 | D30: Other | E30: 0 | F30: 0 | G30: 0 | H30: 0 | I30: 0 | J30: 0 | K30: 0 | L30: 0 | M30: 0 | N30: 0 | O30: 0 | P30: 0 | Q30: 0 | R30: 0 | S30: 0 | T30: 0 | U30: 0 | V30: 0
A31: ED_REP221_00033 | C31: POLE TOP STRUCTURES BY: Highest operating voltage | D31: ˂ = 1 kV | E31: ='REPEX Support'!F27 -> 13524523.71 | F31: ='REPEX Support'!G27 -> 6562183.583 | G31: ='REPEX Support'!H27 -> 5793349.033 | H31: ='REPEX Support'!I27 -> 6274377.179 | I31: ='REPEX Support'!J27 -> 6385864.927 | J31: ='REPEX Support'!K27 -> 6636970.661 | K31: ='REPEX Support'!L27 -> 4617 | L31: ='REPEX Support'!M27 -> 2702 | M31: ='REPEX Support'!N27 -> 2786 | N31: ='REPEX Support'!O27 -> 2867 | O31: ='REPEX Support'!P27 -> 2941 | P31: ='REPEX Support'!Q27 -> 3010 | Q31: 55 | R31: 32 | S31: 33 | T31: 34 | U31: 35 | V31: 36
A32: ED_REP221_00034 | D32: > 1 kV & < = 11 kV | E32: ='REPEX Support'!F28 -> 2696581.124 | F32: ='REPEX Support'!G28 -> 1371627.01 | G32: ='REPEX Support'!H28 -> 1385360.229 | H32: ='REPEX Support'!I28 -> 1544576.583 | I32: ='REPEX Support'!J28 -> 1522762.739 | J32: ='REPEX Support'!K28 -> 1538146.009 | K32: ='REPEX Support'!L28 -> 694 | L32: ='REPEX Support'!M28 -> 663 | M32: ='REPEX Support'!N28 -> 658 | N32: ='REPEX Support'!O28 -> 651 | O32: ='REPEX Support'!P28 -> 644 | P32: ='REPEX Support'!Q28 -> 636 | Q32: 16 | R32: 15 | S32: 15 | T32: 15 | U32: 15 | V32: 15
A33: ED_REP221_00035 | D33: ˃ 11 kV & < = 22 kV | E33: ='REPEX Support'!F29 -> 9496789.399 | F33: ='REPEX Support'!G29 -> 7312105.14 | G33: ='REPEX Support'!H29 -> 7334453.473 | H33: ='REPEX Support'!I29 -> 7252509.88 | I33: ='REPEX Support'!J29 -> 7190677.876 | J33: ='REPEX Support'!K29 -> 7112899.536 | K33: ='REPEX Support'!L29 -> 2762 | L33: ='REPEX Support'!M29 -> 2583 | M33: ='REPEX Support'!N29 -> 2601 | N33: ='REPEX Support'!O29 -> 2617 | O33: ='REPEX Support'!P29 -> 2628 | P33: ='REPEX Support'!Q29 -> 2636 | Q33: 126 | R33: 118 | S33: 119 | T33: 120 | U33: 120 | V33: 121
A34: ED_REP221_00036 | D34: > 22 kV & < = 66 kV | E34: ='REPEX Support'!F30 -> 867331.9932 | F34: ='REPEX Support'!G30 -> 676844.43 | G34: ='REPEX Support'!H30 -> 679185.4717 | H34: ='REPEX Support'!I30 -> 712182.9236 | I34: ='REPEX Support'!J30 -> 712835.3258 | J34: ='REPEX Support'!K30 -> 734003.5844 | K34: ='REPEX Support'!L30 -> 314 | L34: ='REPEX Support'!M30 -> 202 | M34: ='REPEX Support'!N30 -> 205 | N34: ='REPEX Support'!O30 -> 207 | O34: ='REPEX Support'!P30 -> 211 | P34: ='REPEX Support'!Q30 -> 212 | Q34: 6 | R34: 4 | S34: 4 | T34: 4 | U34: 4 | V34: 4
A35: ED_REP221_00037 | D35: > 66 kV & < = 132 kV | E35: ='REPEX Support'!F31 -> 0 | F35: ='REPEX Support'!G31 -> 0 | G35: ='REPEX Support'!H31 -> 0 | H35: ='REPEX Support'!I31 -> 0 | I35: ='REPEX Support'!J31 -> 0 | J35: ='REPEX Support'!K31 -> 0 | K35: ='REPEX Support'!L31 -> 0 | L35: ='REPEX Support'!M31 -> 0 | M35: ='REPEX Support'!N31 -> 0 | N35: ='REPEX Support'!O31 -> 0 | O35: ='REPEX Support'!P31 -> 0 | P35: ='REPEX Support'!Q31 -> 0 | Q35: 0 | R35: 0 | S35: 0 | T35: 0 | U35: 0 | V35: 0
A36: ED_REP221_00038 | D36: > 132 kV | E36: ='REPEX Support'!F32 -> 0 | F36: ='REPEX Support'!G32 -> 0 | G36: ='REPEX Support'!H32 -> 0 | H36: ='REPEX Support'!I32 -> 0 | I36: ='REPEX Support'!J32 -> 0 | J36: ='REPEX Support'!K32 -> 0 | K36: ='REPEX Support'!L32 -> 0 | L36: ='REPEX Support'!M32 -> 0 | M36: ='REPEX Support'!N32 -> 0 | N36: ='REPEX Support'!O32 -> 0 | O36: ='REPEX Support'!P32 -> 0 | P36: ='REPEX Support'!Q32 -> 0 | Q36: 0 | R36: 0 | S36: 0 | T36: 0 | U36: 0 | V36: 0
A37: ED_REP221_00039 | D37: Other | E37: ='REPEX Support'!F34 -> 1671455.85 | F37: ='REPEX Support'!G34 -> 2682397.651 | G37: ='REPEX Support'!H34 -> 3362955.466 | H37: ='REPEX Support'!I34 -> 4068345.716 | I37: ='REPEX Support'!J34 -> 4144018.026 | J37: ='REPEX Support'!K34 -> 4575977.417 | K37: ='REPEX Support'!L34 -> 460 | L37: ='REPEX Support'!M34 -> 888 | M37: ='REPEX Support'!N34 -> 1110 | N37: ='REPEX Support'!O34 -> 1336 | O37: ='REPEX Support'!P34 -> 1354 | P37: ='REPEX Support'!Q34 -> 1487 | Q37: 0 | R37: 0 | S37: 0 | T37: 0 | U37: 0 | V37: 0
A38: ED_REP221_00040 | C38: OVERHEAD CONDUCTORS BY: Highest operating voltage; Number of phases (at HV) | D38: ˂ = 1 kV | E38: ='REPEX Support'!F36 -> 31600.38577 | F38: ='REPEX Support'!G36 -> 61701.3854 | G38: ='REPEX Support'!H36 -> 86137.01132 | H38: ='REPEX Support'!I36 -> 86333.59312 | I38: ='REPEX Support'!J36 -> 62884.64654 | J38: ='REPEX Support'!K36 -> 42432.09833 | K38: ='REPEX Support'!L36 -> 195 | L38: ='REPEX Support'!M36 -> 408 | M38: ='REPEX Support'!N36 -> 629 | N38: ='REPEX Support'!O36 -> 651 | O38: ='REPEX Support'!P36 -> 461 | P38: ='REPEX Support'!Q36 -> 271 | Q38: 16 | R38: 16 | S38: 16 | T38: 16 | U38: 16 | V38: 16
A39: ED_REP221_00041 | D39: > 1 kV & < = 11 kV | E39: ='REPEX Support'!F37 -> 24981.51738 | F39: ='REPEX Support'!G37 -> 43960.51992 | G39: ='REPEX Support'!H37 -> 53121.35223 | H39: ='REPEX Support'!I37 -> 52476.53106 | I39: ='REPEX Support'!J37 -> 39310.11822 | J39: ='REPEX Support'!K37 -> 105271.8436 | K39: ='REPEX Support'!L37 -> 170 | L39: ='REPEX Support'!M37 -> 353 | M39: ='REPEX Support'!N37 -> 542 | N39: ='REPEX Support'!O37 -> 561 | O39: ='REPEX Support'!P37 -> 397 | P39: ='REPEX Support'!Q37 -> 254 | Q39: 3 | R39: 3 | S39: 3 | T39: 3 | U39: 3 | V39: 3
A40: ED_REP221_00042 | D40: ˃ 11 kV & < = 22 kV ; SWER | E40: ='REPEX Support'!F38 -> 0 | F40: ='REPEX Support'!G38 -> 0 | G40: ='REPEX Support'!H38 -> 0 | H40: ='REPEX Support'!I38 -> 0 | I40: ='REPEX Support'!J38 -> 0 | J40: ='REPEX Support'!K38 -> 0 | K40: ='REPEX Support'!L38 -> 0 | L40: ='REPEX Support'!M38 -> 0 | M40: ='REPEX Support'!N38 -> 0 | N40: ='REPEX Support'!O38 -> 0 | O40: ='REPEX Support'!P38 -> 0 | P40: ='REPEX Support'!Q38 -> 0 | Q40: 0 | R40: 0 | S40: 0 | T40: 0 | U40: 0 | V40: 0
A41: ED_REP221_00043 | D41: ˃ 11 kV & < = 22 kV ; Single-Phase | E41: ='REPEX Support'!F39 -> 15444.90486 | F41: ='REPEX Support'!G39 -> 30433.63066 | G41: ='REPEX Support'!H39 -> 42486.27437 | H41: ='REPEX Support'!I39 -> 42583.2365 | I41: ='REPEX Support'!J39 -> 31017.26314 | J41: ='REPEX Support'!K39 -> 20929.23522 | K41: ='REPEX Support'!L39 -> 96 | L41: ='REPEX Support'!M39 -> 201 | M41: ='REPEX Support'!N39 -> 310 | N41: ='REPEX Support'!O39 -> 321 | O41: ='REPEX Support'!P39 -> 227 | P41: ='REPEX Support'!Q39 -> 134 | Q41: 0 | R41: 0 | S41: 0 | T41: 0 | U41: 0 | V41: 0
A42: ED_REP221_00044 | D42: ˃ 11 kV & < = 22 kV ; Multiple-Phase | E42: ='REPEX Support'!F40 -> 322171.2475 | F42: ='REPEX Support'!G40 -> 614244.7593 | G42: ='REPEX Support'!H40 -> 836882.195 | H42: ='REPEX Support'!I40 -> 836876.99 | I42: ='REPEX Support'!J40 -> 612290.6613 | J42: ='REPEX Support'!K40 -> 610017.0603 | K42: ='REPEX Support'!L40 -> 3750 | L42: ='REPEX Support'!M40 -> 7600 | M42: ='REPEX Support'!N40 -> 9883 | N42: ='REPEX Support'!O40 -> 8447 | O42: ='REPEX Support'!P40 -> 4797 | P42: ='REPEX Support'!Q40 -> 2882 | Q42: 13 | R42: 13 | S42: 14 | T42: 14 | U42: 15 | V42: 15
A43: ED_REP221_00045 | D43: > 22 kV & < = 66 kV | E43: ='REPEX Support'!F41 -> 2481.487091 | F43: ='REPEX Support'!G41 -> 4889.681246 | G43: ='REPEX Support'!H41 -> 6826.14379 | H43: ='REPEX Support'!I41 -> 6841.722409 | I43: ='REPEX Support'!J41 -> 4983.451746 | J43: ='REPEX Support'!K41 -> 3362.638198 | K43: ='REPEX Support'!L41 -> 15 | L43: ='REPEX Support'!M41 -> 32 | M43: ='REPEX Support'!N41 -> 50 | N43: ='REPEX Support'!O41 -> 52 | O43: ='REPEX Support'!P41 -> 36 | P43: ='REPEX Support'!Q41 -> 21 | Q43: 0 | R43: 0 | S43: 0 | T43: 0 | U43: 0 | V43: 0
A44: ED_REP221_00046 | D44: > 66 kV & < = 132 kV | E44: ='REPEX Support'!F42 -> 0 | F44: ='REPEX Support'!G42 -> 0 | G44: ='REPEX Support'!H42 -> 0 | H44: ='REPEX Support'!I42 -> 0 | I44: ='REPEX Support'!J42 -> 0 | J44: ='REPEX Support'!K42 -> 0 | K44: ='REPEX Support'!L42 -> 0 | L44: ='REPEX Support'!M42 -> 0 | M44: ='REPEX Support'!N42 -> 0 | N44: ='REPEX Support'!O42 -> 0 | O44: ='REPEX Support'!P42 -> 0 | P44: ='REPEX Support'!Q42 -> 0 | Q44: 0 | R44: 0 | S44: 0 | T44: 0 | U44: 0 | V44: 0
A45: ED_REP221_00047 | D45: > 132 kV | E45: ='REPEX Support'!F43 -> 0 | F45: ='REPEX Support'!G43 -> 0 | G45: ='REPEX Support'!H43 -> 0 | H45: ='REPEX Support'!I43 -> 0 | I45: ='REPEX Support'!J43 -> 0 | J45: ='REPEX Support'!K43 -> 0 | K45: ='REPEX Support'!L43 -> 0 | L45: ='REPEX Support'!M43 -> 0 | M45: ='REPEX Support'!N43 -> 0 | N45: ='REPEX Support'!O43 -> 0 | O45: ='REPEX Support'!P43 -> 0 | P45: ='REPEX Support'!Q43 -> 0 | Q45: 0 | R45: 0 | S45: 0 | T45: 0 | U45: 0 | V45: 0
A46: ED_REP221_00048 | D46: Other | E46: ='REPEX Support'!F44+'REPEX Support'!F45+'REPEX Support'!F46+'REPEX Support'!F47+'REPEX Support'!F48+'REPEX Support'!F49+'REPEX Support'!F50+'REPEX Support'!F51 -> 5470602.965 | F46: ='REPEX Support'!G44+'REPEX Support'!G45+'REPEX Support'!G46+'REPEX Support'!G47+'REPEX Support'!G48+'REPEX Support'!G49+'REPEX Support'!G50+'REPEX Support'!G51 -> 7818286.006 | G46: ='REPEX Support'!H44+'REPEX Support'!H45+'REPEX Support'!H46+'REPEX Support'!H47+'REPEX Support'!H48+'REPEX Support'!H49+'REPEX Support'!H50+'REPEX Support'!H51 -> 7823928.672 | H46: ='REPEX Support'!I44+'REPEX Support'!I45+'REPEX Support'!I46+'REPEX Support'!I47+'REPEX Support'!I48+'REPEX Support'!I49+'REPEX Support'!I50+'REPEX Support'!I51 -> 9658857.496 | I46: ='REPEX Support'!J44+'REPEX Support'!J45+'REPEX Support'!J46+'REPEX Support'!J47+'REPEX Support'!J48+'REPEX Support'!J49+'REPEX Support'!J50+'REPEX Support'!J51 -> 8126662.247 | J46: ='REPEX Support'!K44+'REPEX Support'!K45+'REPEX Support'!K46+'REPEX Support'!K47+'REPEX Support'!K48+'REPEX Support'!K49+'REPEX Support'!K50+'REPEX Support'!K51 -> 9396208.676 | K46: ='REPEX Support'!L44+'REPEX Support'!L45+'REPEX Support'!L46+'REPEX Support'!L47+'REPEX Support'!L48+'REPEX Support'!L49+'REPEX Support'!L50+'REPEX Support'!L51 -> 14211.5 | L46: ='REPEX Support'!M44+'REPEX Support'!M45+'REPEX Support'!M46+'REPEX Support'!M47+'REPEX Support'!M48+'REPEX Support'!M49+'REPEX Support'!M50+'REPEX Support'!M51 -> 19954 | M46: ='REPEX Support'!N44+'REPEX Support'!N45+'REPEX Support'!N46+'REPEX Support'!N47+'REPEX Support'!N48+'REPEX Support'!N49+'REPEX Support'!N50+'REPEX Support'!N51 -> 17873.5 | N46: ='REPEX Support'!O44+'REPEX Support'!O45+'REPEX Support'!O46+'REPEX Support'!O47+'REPEX Support'!O48+'REPEX Support'!O49+'REPEX Support'!O50+'REPEX Support'!O51 -> 13006.5 | O46: ='REPEX Support'!P44+'REPEX Support'!P45+'REPEX Support'!P46+'REPEX Support'!P47+'REPEX Support'!P48+'REPEX Support'!P49+'REPEX Support'!P50+'REPEX Support'!P51 -> 17547 | P46: ='REPEX Support'!Q44+'REPEX Support'!Q45+'REPEX Support'!Q46+'REPEX Support'!Q47+'REPEX Support'!Q48+'REPEX Support'!Q49+'REPEX Support'!Q50+'REPEX Support'!Q51 -> 22040.5 | Q46: 0 | R46: 0 | S46: 0 | T46: 0 | U46: 0 | V46: 0
A47: ED_REP221_00049 | C47: UNDERGROUND CABLES BY: Highest operating voltage | D47: ˂ = 1 kV | E47: ='REPEX Support'!F52 -> 1086694.346 | F47: ='REPEX Support'!G52 -> 1178769.949 | G47: ='REPEX Support'!H52 -> 1221151.67 | H47: ='REPEX Support'!I52 -> 1265068.541 | I47: ='REPEX Support'!J52 -> 1315597.668 | J47: ='REPEX Support'!K52 -> 1372871.765 | K47: ='REPEX Support'!L52 -> 2928 | L47: ='REPEX Support'!M52 -> 3072 | M47: ='REPEX Support'!N52 -> 3220 | N47: ='REPEX Support'!O52 -> 3370 | O47: ='REPEX Support'!P52 -> 3414 | P47: ='REPEX Support'!Q52 -> 3370 | Q47: 52 | R47: 52 | S47: 52 | T47: 52 | U47: 52 | V47: 52
A48: ED_REP221_00050 | D48: > 1 kV & < = 11 kV | E48: ='REPEX Support'!F53 -> 673533.3602 | F48: ='REPEX Support'!G53 -> 531217.8955 | G48: ='REPEX Support'!H53 -> 555450.0468 | H48: ='REPEX Support'!I53 -> 580101.0408 | I48: ='REPEX Support'!J53 -> 605325.5477 | J48: ='REPEX Support'!K53 -> 635186.2806 | K48: ='REPEX Support'!L53 -> 466 | L48: ='REPEX Support'!M53 -> 488 | M48: ='REPEX Support'!N53 -> 510 | N48: ='REPEX Support'!O53 -> 533 | O48: ='REPEX Support'!P53 -> 556 | P48: ='REPEX Support'!Q53 -> 580 | Q48: 4 | R48: 5 | S48: 5 | T48: 6 | U48: 6 | V48: 7
A49: ED_REP221_00051 | D49: > 11 kV & < = 22 kV | E49: ='REPEX Support'!F54 -> 2813442.244 | F49: ='REPEX Support'!G54 -> 2339842.149 | G49: ='REPEX Support'!H54 -> 2451745.792 | H49: ='REPEX Support'!I54 -> 2563949.502 | I49: ='REPEX Support'!J54 -> 2683329.481 | J49: ='REPEX Support'!K54 -> 2822211.751 | K49: ='REPEX Support'!L54 -> 2254 | L49: ='REPEX Support'!M54 -> 2360 | M49: ='REPEX Support'!N54 -> 2472 | N49: ='REPEX Support'!O54 -> 2584 | O49: ='REPEX Support'!P54 -> 2697 | P49: ='REPEX Support'!Q54 -> 2812 | Q49: 13 | R49: 14 | S49: 15 | T49: 17 | U49: 19 | V49: 21
A50: ED_REP221_00052 | D50: > 22 kV & < = 33 kV | E50: ='REPEX Support'!F55 -> 0 | F50: ='REPEX Support'!G55 -> 0 | G50: ='REPEX Support'!H55 -> 0 | H50: ='REPEX Support'!I55 -> 0 | I50: ='REPEX Support'!J55 -> 0 | J50: ='REPEX Support'!K55 -> 0 | K50: ='REPEX Support'!L55 -> 0 | L50: ='REPEX Support'!M55 -> 0 | M50: ='REPEX Support'!N55 -> 0 | N50: ='REPEX Support'!O55 -> 0 | O50: ='REPEX Support'!P55 -> 0 | P50: ='REPEX Support'!Q55 -> 0 | Q50: 0 | R50: 0 | S50: 0 | T50: 0 | U50: 0 | V50: 0
A51: ED_REP221_00053 | D51: > 33 kV & < = 66 kV | E51: ='REPEX Support'!F56 -> 0 | F51: ='REPEX Support'!G56 -> 0 | G51: ='REPEX Support'!H56 -> 0 | H51: ='REPEX Support'!I56 -> 0 | I51: ='REPEX Support'!J56 -> 0 | J51: ='REPEX Support'!K56 -> 0 | K51: ='REPEX Support'!L56 -> 0 | L51: ='REPEX Support'!M56 -> 0 | M51: ='REPEX Support'!N56 -> 0 | N51: ='REPEX Support'!O56 -> 0 | O51: ='REPEX Support'!P56 -> 0 | P51: ='REPEX Support'!Q56 -> 0 | Q51: 0 | R51: 0 | S51: 0 | T51: 0 | U51: 0 | V51: 0
A52: ED_REP221_00054 | D52: > 66 kV & < = 132 kV | E52: ='REPEX Support'!F57 -> 0 | F52: ='REPEX Support'!G57 -> 0 | G52: ='REPEX Support'!H57 -> 0 | H52: ='REPEX Support'!I57 -> 0 | I52: ='REPEX Support'!J57 -> 0 | J52: ='REPEX Support'!K57 -> 0 | K52: ='REPEX Support'!L57 -> 0 | L52: ='REPEX Support'!M57 -> 0 | M52: ='REPEX Support'!N57 -> 0 | N52: ='REPEX Support'!O57 -> 0 | O52: ='REPEX Support'!P57 -> 0 | P52: ='REPEX Support'!Q57 -> 0 | Q52: 0 | R52: 0 | S52: 0 | T52: 0 | U52: 0 | V52: 0
A53: ED_REP221_00055 | D53: > 132 kV | E53: ='REPEX Support'!F58 -> 0 | F53: ='REPEX Support'!G58 -> 0 | G53: ='REPEX Support'!H58 -> 0 | H53: ='REPEX Support'!I58 -> 0 | I53: ='REPEX Support'!J58 -> 0 | J53: ='REPEX Support'!K58 -> 0 | K53: ='REPEX Support'!L58 -> 0 | L53: ='REPEX Support'!M58 -> 0 | M53: ='REPEX Support'!N58 -> 0 | N53: ='REPEX Support'!O58 -> 0 | O53: ='REPEX Support'!P58 -> 0 | P53: ='REPEX Support'!Q58 -> 0 | Q53: 0 | R53: 0 | S53: 0 | T53: 0 | U53: 0 | V53: 0
A54: ED_REP221_00056 | D54: Other | E54: ='REPEX Support'!F61+'REPEX Support'!F62+'REPEX Support'!F63+'REPEX Support'!F64 -> 5728479.796 | F54: ='REPEX Support'!G61+'REPEX Support'!G62+'REPEX Support'!G63+'REPEX Support'!G64 -> 4811252.348 | G54: ='REPEX Support'!H61+'REPEX Support'!H62+'REPEX Support'!H63+'REPEX Support'!H64 -> 4776454.312 | H54: ='REPEX Support'!I61+'REPEX Support'!I62+'REPEX Support'!I63+'REPEX Support'!I64 -> 4744266.959 | I54: ='REPEX Support'!J61+'REPEX Support'!J62+'REPEX Support'!J63+'REPEX Support'!J64 -> 4225987.797 | J54: ='REPEX Support'!K61+'REPEX Support'!K62+'REPEX Support'!K63+'REPEX Support'!K64 -> 2799489.018 | K54: ='REPEX Support'!L61+'REPEX Support'!L62+'REPEX Support'!L63+'REPEX Support'!L64 -> 946 | L54: ='REPEX Support'!M61+'REPEX Support'!M62+'REPEX Support'!M63+'REPEX Support'!M64 -> 905 | M54: ='REPEX Support'!N61+'REPEX Support'!N62+'REPEX Support'!N63+'REPEX Support'!N64 -> 889 | N54: ='REPEX Support'!O61+'REPEX Support'!O62+'REPEX Support'!O63+'REPEX Support'!O64 -> 873 | O54: ='REPEX Support'!P61+'REPEX Support'!P62+'REPEX Support'!P63+'REPEX Support'!P64 -> 805 | P54: ='REPEX Support'!Q61+'REPEX Support'!Q62+'REPEX Support'!Q63+'REPEX Support'!Q64 -> 670 | Q54: 50 | R54: 50 | S54: 50 | T54: 49 | U54: 49 | V54: 49
A55: ED_REP221_00057 | C55: SERVICE LINES BY: Connection voltage; Customer type; Connection complexity | D55: ˂ = 11 kV ; Residential ; Simple Type | E55: ='REPEX Support'!F66 -> 8854863.173 | F55: ='REPEX Support'!G66 -> 7654715.022 | G55: ='REPEX Support'!H66 -> 5588926.915 | H55: ='REPEX Support'!I66 -> 4794299.636 | I55: ='REPEX Support'!J66 -> 4877304.08 | J55: ='REPEX Support'!K66 -> 4987522.658 | K55: ='REPEX Support'!L66 -> 17406 | L55: ='REPEX Support'!M66 -> 17779 | M55: ='REPEX Support'!N66 -> 9384 | N55: ='REPEX Support'!O66 -> 9443 | O55: ='REPEX Support'!P66 -> 9512 | P55: ='REPEX Support'!Q66 -> 9595 | Q55: 648 | R55: 662 | S55: 349 | T55: 352 | U55: 354 | V55: 357
A56: ED_REP221_00058 | D56: ˂ = 11 kV ; Commercial & Industrial ; Simple Type | E56: ='REPEX Support'!F67 -> 242297.2895 | F56: ='REPEX Support'!G67 -> 212492.8754 | G56: ='REPEX Support'!H67 -> 155931.0753 | H56: ='REPEX Support'!I67 -> 134155.9593 | I56: ='REPEX Support'!J67 -> 136512.0483 | J56: ='REPEX Support'!K67 -> 139560.427 | K56: ='REPEX Support'!L67 -> 442 | L56: ='REPEX Support'!M67 -> 452 | M56: ='REPEX Support'!N67 -> 224 | N56: ='REPEX Support'!O67 -> 226 | O56: ='REPEX Support'!P67 -> 228 | P56: ='REPEX Support'!Q67 -> 230 | Q56: 18 | R56: 19 | S56: 9 | T56: 9 | U56: 10 | V56: 10
A57: ED_REP221_00059 | D57: ˂ = 11 kV ; Residential ; Complex Type | E57: ='REPEX Support'!F68 -> 1118326.13 | F57: ='REPEX Support'!G68 -> 1038198.348 | G57: ='REPEX Support'!H68 -> 836755.5829 | H57: ='REPEX Support'!I68 -> 759880.5181 | I57: ='REPEX Support'!J68 -> 770808.3078 | J57: ='REPEX Support'!K68 -> 785705.6367 | K57: ='REPEX Support'!L68 -> 2171 | L57: ='REPEX Support'!M68 -> 2206 | M57: ='REPEX Support'!N68 -> 1417 | N57: ='REPEX Support'!O68 -> 1423 | O57: ='REPEX Support'!P68 -> 1429 | P57: ='REPEX Support'!Q68 -> 1437 | Q57: 85 | R57: 86 | S57: 56 | T57: 56 | U57: 56 | V57: 56
A58: ED_REP221_00060 | D58: ˂ = 11 kV ; Commercial & Industrial ; Complex Type | E58: ='REPEX Support'!F69 -> 128281.6494 | F58: ='REPEX Support'!G69 -> 137541.4527 | G58: ='REPEX Support'!H69 -> 135118.5832 | H58: ='REPEX Support'!I69 -> 134479.3695 | I58: ='REPEX Support'!J69 -> 135772.4115 | J58: ='REPEX Support'!K69 -> 137729.4389 | K58: ='REPEX Support'!L69 -> 286 | L58: ='REPEX Support'!M69 -> 287 | M58: ='REPEX Support'!N69 -> 275 | N58: ='REPEX Support'!O69 -> 275 | O58: ='REPEX Support'!P69 -> 275 | P58: ='REPEX Support'!Q69 -> 275 | Q58: 11 | R58: 11 | S58: 10 | T58: 10 | U58: 10 | V58: 10
A59: ED_REP221_00061 | D59: ˂ = 11 kV ; Subdivision ; Complex Type | E59: ='REPEX Support'!F70 -> 0 | F59: ='REPEX Support'!G70 -> 0 | G59: ='REPEX Support'!H70 -> 0 | H59: ='REPEX Support'!I70 -> 0 | I59: ='REPEX Support'!J70 -> 0 | J59: ='REPEX Support'!K70 -> 0 | K59: ='REPEX Support'!L70 -> 0 | L59: ='REPEX Support'!M70 -> 0 | M59: ='REPEX Support'!N70 -> 0 | N59: ='REPEX Support'!O70 -> 0 | O59: ='REPEX Support'!P70 -> 0 | P59: ='REPEX Support'!Q70 -> 0 | Q59: 0 | R59: 0 | S59: 0 | T59: 0 | U59: 0 | V59: 0
A60: ED_REP221_00062 | D60: > 11 kV & < = 22 kV ; Commercial & Industrial | E60: ='REPEX Support'!F71 -> 0 | F60: ='REPEX Support'!G71 -> 0 | G60: ='REPEX Support'!H71 -> 0 | H60: ='REPEX Support'!I71 -> 0 | I60: ='REPEX Support'!J71 -> 0 | J60: ='REPEX Support'!K71 -> 0 | K60: ='REPEX Support'!L71 -> 0 | L60: ='REPEX Support'!M71 -> 0 | M60: ='REPEX Support'!N71 -> 0 | N60: ='REPEX Support'!O71 -> 0 | O60: ='REPEX Support'!P71 -> 0 | P60: ='REPEX Support'!Q71 -> 0 | Q60: 0 | R60: 0 | S60: 0 | T60: 0 | U60: 0 | V60: 0
A61: ED_REP221_00063 | D61: > 11 kV & < = 22 kV ; Subdivision | E61: ='REPEX Support'!F72 -> 0 | F61: ='REPEX Support'!G72 -> 0 | G61: ='REPEX Support'!H72 -> 0 | H61: ='REPEX Support'!I72 -> 0 | I61: ='REPEX Support'!J72 -> 0 | J61: ='REPEX Support'!K72 -> 0 | K61: ='REPEX Support'!L72 -> 0 | L61: ='REPEX Support'!M72 -> 0 | M61: ='REPEX Support'!N72 -> 0 | N61: ='REPEX Support'!O72 -> 0 | O61: ='REPEX Support'!P72 -> 0 | P61: ='REPEX Support'!Q72 -> 0 | Q61: 0 | R61: 0 | S61: 0 | T61: 0 | U61: 0 | V61: 0
A62: ED_REP221_00064 | D62: > 22 kV & < = 33 kV ; Commercial & Industrial | E62: ='REPEX Support'!F73 -> 0 | F62: ='REPEX Support'!G73 -> 0 | G62: ='REPEX Support'!H73 -> 0 | H62: ='REPEX Support'!I73 -> 0 | I62: ='REPEX Support'!J73 -> 0 | J62: ='REPEX Support'!K73 -> 0 | K62: ='REPEX Support'!L73 -> 0 | L62: ='REPEX Support'!M73 -> 0 | M62: ='REPEX Support'!N73 -> 0 | N62: ='REPEX Support'!O73 -> 0 | O62: ='REPEX Support'!P73 -> 0 | P62: ='REPEX Support'!Q73 -> 0 | Q62: 0 | R62: 0 | S62: 0 | T62: 0 | U62: 0 | V62: 0
A63: ED_REP221_00065 | D63: > 22 kV & < = 33 kV ; Subdivision | E63: ='REPEX Support'!F74 -> 0 | F63: ='REPEX Support'!G74 -> 0 | G63: ='REPEX Support'!H74 -> 0 | H63: ='REPEX Support'!I74 -> 0 | I63: ='REPEX Support'!J74 -> 0 | J63: ='REPEX Support'!K74 -> 0 | K63: ='REPEX Support'!L74 -> 0 | L63: ='REPEX Support'!M74 -> 0 | M63: ='REPEX Support'!N74 -> 0 | N63: ='REPEX Support'!O74 -> 0 | O63: ='REPEX Support'!P74 -> 0 | P63: ='REPEX Support'!Q74 -> 0 | Q63: 0 | R63: 0 | S63: 0 | T63: 0 | U63: 0 | V63: 0
A64: ED_REP221_00066 | D64: > 33 kV & < = 66 kV ; Commercial & Industrial | E64: ='REPEX Support'!F75 -> 0 | F64: ='REPEX Support'!G75 -> 0 | G64: ='REPEX Support'!H75 -> 0 | H64: ='REPEX Support'!I75 -> 0 | I64: ='REPEX Support'!J75 -> 0 | J64: ='REPEX Support'!K75 -> 0 | K64: ='REPEX Support'!L75 -> 0 | L64: ='REPEX Support'!M75 -> 0 | M64: ='REPEX Support'!N75 -> 0 | N64: ='REPEX Support'!O75 -> 0 | O64: ='REPEX Support'!P75 -> 0 | P64: ='REPEX Support'!Q75 -> 0 | Q64: 0 | R64: 0 | S64: 0 | T64: 0 | U64: 0 | V64: 0
A65: ED_REP221_00067 | D65: > 33 kV & < = 66 kV ; Subdivision | E65: ='REPEX Support'!F76 -> 0 | F65: ='REPEX Support'!G76 -> 0 | G65: ='REPEX Support'!H76 -> 0 | H65: ='REPEX Support'!I76 -> 0 | I65: ='REPEX Support'!J76 -> 0 | J65: ='REPEX Support'!K76 -> 0 | K65: ='REPEX Support'!L76 -> 0 | L65: ='REPEX Support'!M76 -> 0 | M65: ='REPEX Support'!N76 -> 0 | N65: ='REPEX Support'!O76 -> 0 | O65: ='REPEX Support'!P76 -> 0 | P65: ='REPEX Support'!Q76 -> 0 | Q65: 0 | R65: 0 | S65: 0 | T65: 0 | U65: 0 | V65: 0
A66: ED_REP221_00068 | D66: > 66 kV & < = 132 kV ; Commercial & Industrial | E66: ='REPEX Support'!F77 -> 0 | F66: ='REPEX Support'!G77 -> 0 | G66: ='REPEX Support'!H77 -> 0 | H66: ='REPEX Support'!I77 -> 0 | I66: ='REPEX Support'!J77 -> 0 | J66: ='REPEX Support'!K77 -> 0 | K66: ='REPEX Support'!L77 -> 0 | L66: ='REPEX Support'!M77 -> 0 | M66: ='REPEX Support'!N77 -> 0 | N66: ='REPEX Support'!O77 -> 0 | O66: ='REPEX Support'!P77 -> 0 | P66: ='REPEX Support'!Q77 -> 0 | Q66: 0 | R66: 0 | S66: 0 | T66: 0 | U66: 0 | V66: 0
A67: ED_REP221_00069 | D67: > 66 kV & < = 132 kV ; Subdivision | E67: ='REPEX Support'!F78 -> 0 | F67: ='REPEX Support'!G78 -> 0 | G67: ='REPEX Support'!H78 -> 0 | H67: ='REPEX Support'!I78 -> 0 | I67: ='REPEX Support'!J78 -> 0 | J67: ='REPEX Support'!K78 -> 0 | K67: ='REPEX Support'!L78 -> 0 | L67: ='REPEX Support'!M78 -> 0 | M67: ='REPEX Support'!N78 -> 0 | N67: ='REPEX Support'!O78 -> 0 | O67: ='REPEX Support'!P78 -> 0 | P67: ='REPEX Support'!Q78 -> 0 | Q67: 0 | R67: 0 | S67: 0 | T67: 0 | U67: 0 | V67: 0
A68: ED_REP221_00070 | D68: > 132 kV ; Commercial & Industrial | E68: ='REPEX Support'!F79 -> 0 | F68: ='REPEX Support'!G79 -> 0 | G68: ='REPEX Support'!H79 -> 0 | H68: ='REPEX Support'!I79 -> 0 | I68: ='REPEX Support'!J79 -> 0 | J68: ='REPEX Support'!K79 -> 0 | K68: ='REPEX Support'!L79 -> 0 | L68: ='REPEX Support'!M79 -> 0 | M68: ='REPEX Support'!N79 -> 0 | N68: ='REPEX Support'!O79 -> 0 | O68: ='REPEX Support'!P79 -> 0 | P68: ='REPEX Support'!Q79 -> 0 | Q68: 0 | R68: 0 | S68: 0 | T68: 0 | U68: 0 | V68: 0
A69: ED_REP221_00071 | D69: > 132 kV ; Subdivision | E69: ='REPEX Support'!F80 -> 0 | F69: ='REPEX Support'!G80 -> 0 | G69: ='REPEX Support'!H80 -> 0 | H69: ='REPEX Support'!I80 -> 0 | I69: ='REPEX Support'!J80 -> 0 | J69: ='REPEX Support'!K80 -> 0 | K69: ='REPEX Support'!L80 -> 0 | L69: ='REPEX Support'!M80 -> 0 | M69: ='REPEX Support'!N80 -> 0 | N69: ='REPEX Support'!O80 -> 0 | O69: ='REPEX Support'!P80 -> 0 | P69: ='REPEX Support'!Q80 -> 0 | Q69: 0 | R69: 0 | S69: 0 | T69: 0 | U69: 0 | V69: 0
A70: ED_REP221_00072 | D70: Other | E70: ='REPEX Support'!F81+'REPEX Support'!F82 -> 16879.47017 | F70: ='REPEX Support'!G81+'REPEX Support'!G82 -> 15717.29042 | G70: ='REPEX Support'!H81+'REPEX Support'!H82 -> 15779.58915 | H70: ='REPEX Support'!I81+'REPEX Support'!I82 -> 15841.5135 | I70: ='REPEX Support'!J81+'REPEX Support'!J82 -> 15993.8993 | J70: ='REPEX Support'!K81+'REPEX Support'!K82 -> 16225.26619 | K70: ='REPEX Support'!L81+'REPEX Support'!L82 -> 6 | L70: ='REPEX Support'!M81+'REPEX Support'!M82 -> 6 | M70: ='REPEX Support'!N81+'REPEX Support'!N82 -> 6 | N70: ='REPEX Support'!O81+'REPEX Support'!O82 -> 6 | O70: ='REPEX Support'!P81+'REPEX Support'!P82 -> 6 | P70: ='REPEX Support'!Q81+'REPEX Support'!Q82 -> 6 | Q70: 0 | R70: 0 | S70: 0 | T70: 0 | U70: 0 | V70: 0
A71: ED_REP221_00073 | C71: TRANSFORMERS BY: Mounting type; Highest operating voltage; Ampere rating; Number of phases (at LV) | D71: Pole Mounted ; < = 22kV ; < = 60 kVA ; Single Phase | E71: ='REPEX Support'!F83 -> 0 | F71: ='REPEX Support'!G83 -> 0 | G71: ='REPEX Support'!H83 -> 0 | H71: ='REPEX Support'!I83 -> 0 | I71: ='REPEX Support'!J83 -> 0 | J71: ='REPEX Support'!K83 -> 0 | K71: ='REPEX Support'!L83 -> 0 | L71: ='REPEX Support'!M83 -> 0 | M71: ='REPEX Support'!N83 -> 0 | N71: ='REPEX Support'!O83 -> 0 | O71: ='REPEX Support'!P83 -> 0 | P71: ='REPEX Support'!Q83 -> 0 | Q71: 3 | R71: 4 | S71: 4 | T71: 5 | U71: 5 | V71: 5
A72: ED_REP221_00074 | D72: Pole Mounted ; < = 22kV ; > 60 kVA and < = 600 kVA ; Single Phase | E72: ='REPEX Support'!F84 -> 0 | F72: ='REPEX Support'!G84 -> 0 | G72: ='REPEX Support'!H84 -> 0 | H72: ='REPEX Support'!I84 -> 0 | I72: ='REPEX Support'!J84 -> 0 | J72: ='REPEX Support'!K84 -> 0 | K72: ='REPEX Support'!L84 -> 0 | L72: ='REPEX Support'!M84 -> 0 | M72: ='REPEX Support'!N84 -> 0 | N72: ='REPEX Support'!O84 -> 0 | O72: ='REPEX Support'!P84 -> 0 | P72: ='REPEX Support'!Q84 -> 0 | Q72: 0 | R72: 0 | S72: 0 | T72: 0 | U72: 0 | V72: 0
A73: ED_REP221_00075 | D73: Pole Mounted ; < = 22kV ; > 600 kVA ; Single Phase | E73: ='REPEX Support'!F85 -> 0 | F73: ='REPEX Support'!G85 -> 0 | G73: ='REPEX Support'!H85 -> 0 | H73: ='REPEX Support'!I85 -> 0 | I73: ='REPEX Support'!J85 -> 0 | J73: ='REPEX Support'!K85 -> 0 | K73: ='REPEX Support'!L85 -> 0 | L73: ='REPEX Support'!M85 -> 0 | M73: ='REPEX Support'!N85 -> 0 | N73: ='REPEX Support'!O85 -> 0 | O73: ='REPEX Support'!P85 -> 0 | P73: ='REPEX Support'!Q85 -> 0 | Q73: 0 | R73: 0 | S73: 0 | T73: 0 | U73: 0 | V73: 0
A74: ED_REP221_00076 | D74: Pole Mounted ; < = 22kV ; < = 60 kVA ; Multiple Phase | E74: ='REPEX Support'!F86 -> 0 | F74: ='REPEX Support'!G86 -> 0 | G74: ='REPEX Support'!H86 -> 0 | H74: ='REPEX Support'!I86 -> 0 | I74: ='REPEX Support'!J86 -> 0 | J74: ='REPEX Support'!K86 -> 0 | K74: ='REPEX Support'!L86 -> 0 | L74: ='REPEX Support'!M86 -> 0 | M74: ='REPEX Support'!N86 -> 0 | N74: ='REPEX Support'!O86 -> 0 | O74: ='REPEX Support'!P86 -> 0 | P74: ='REPEX Support'!Q86 -> 0 | Q74: 2 | R74: 2 | S74: 2 | T74: 2 | U74: 3 | V74: 3
A75: ED_REP221_00077 | D75: Pole Mounted ; < = 22kV ; > 60 kVA and < = 600 kVA ; Multiple Phase | E75: ='REPEX Support'!F87 -> 0 | F75: ='REPEX Support'!G87 -> 0 | G75: ='REPEX Support'!H87 -> 0 | H75: ='REPEX Support'!I87 -> 0 | I75: ='REPEX Support'!J87 -> 0 | J75: ='REPEX Support'!K87 -> 0 | K75: ='REPEX Support'!L87 -> 0 | L75: ='REPEX Support'!M87 -> 0 | M75: ='REPEX Support'!N87 -> 0 | N75: ='REPEX Support'!O87 -> 0 | O75: ='REPEX Support'!P87 -> 0 | P75: ='REPEX Support'!Q87 -> 0 | Q75: 13 | R75: 14 | S75: 15 | T75: 17 | U75: 19 | V75: 20
A76: ED_REP221_00078 | D76: Pole Mounted ; < = 22kV ; > 600 kVA ; Multiple Phase | E76: ='REPEX Support'!F88 -> 0 | F76: ='REPEX Support'!G88 -> 0 | G76: ='REPEX Support'!H88 -> 0 | H76: ='REPEX Support'!I88 -> 0 | I76: ='REPEX Support'!J88 -> 0 | J76: ='REPEX Support'!K88 -> 0 | K76: ='REPEX Support'!L88 -> 0 | L76: ='REPEX Support'!M88 -> 0 | M76: ='REPEX Support'!N88 -> 0 | N76: ='REPEX Support'!O88 -> 0 | O76: ='REPEX Support'!P88 -> 0 | P76: ='REPEX Support'!Q88 -> 0 | Q76: 0 | R76: 0 | S76: 0 | T76: 0 | U76: 0 | V76: 0
A77: ED_REP221_00079 | D77: Kiosk Mounted ; < = 22kV ; < = 60 kVA ; Single Phase | E77: ='REPEX Support'!F89 -> 0 | F77: ='REPEX Support'!G89 -> 0 | G77: ='REPEX Support'!H89 -> 0 | H77: ='REPEX Support'!I89 -> 0 | I77: ='REPEX Support'!J89 -> 0 | J77: ='REPEX Support'!K89 -> 0 | K77: ='REPEX Support'!L89 -> 0 | L77: ='REPEX Support'!M89 -> 0 | M77: ='REPEX Support'!N89 -> 0 | N77: ='REPEX Support'!O89 -> 0 | O77: ='REPEX Support'!P89 -> 0 | P77: ='REPEX Support'!Q89 -> 0 | Q77: 0 | R77: 0 | S77: 0 | T77: 0 | U77: 0 | V77: 0
A78: ED_REP221_00080 | D78: Kiosk Mounted ; < = 22kV ; > 60 kVA and < = 600 kVA ; Single Phase | E78: ='REPEX Support'!F90 -> 0 | F78: ='REPEX Support'!G90 -> 0 | G78: ='REPEX Support'!H90 -> 0 | H78: ='REPEX Support'!I90 -> 0 | I78: ='REPEX Support'!J90 -> 0 | J78: ='REPEX Support'!K90 -> 0 | K78: ='REPEX Support'!L90 -> 0 | L78: ='REPEX Support'!M90 -> 0 | M78: ='REPEX Support'!N90 -> 0 | N78: ='REPEX Support'!O90 -> 0 | O78: ='REPEX Support'!P90 -> 0 | P78: ='REPEX Support'!Q90 -> 0 | Q78: 0 | R78: 0 | S78: 0 | T78: 0 | U78: 0 | V78: 0
A79: ED_REP221_00081 | D79: Kiosk Mounted ; < = 22kV ; > 600 kVA ; Single Phase | E79: ='REPEX Support'!F91 -> 0 | F79: ='REPEX Support'!G91 -> 0 | G79: ='REPEX Support'!H91 -> 0 | H79: ='REPEX Support'!I91 -> 0 | I79: ='REPEX Support'!J91 -> 0 | J79: ='REPEX Support'!K91 -> 0 | K79: ='REPEX Support'!L91 -> 0 | L79: ='REPEX Support'!M91 -> 0 | M79: ='REPEX Support'!N91 -> 0 | N79: ='REPEX Support'!O91 -> 0 | O79: ='REPEX Support'!P91 -> 0 | P79: ='REPEX Support'!Q91 -> 0 | Q79: 0 | R79: 0 | S79: 0 | T79: 0 | U79: 0 | V79: 0
A80: ED_REP221_00082 | D80: Kiosk Mounted ; < = 22kV ; < = 60 kVA ; Multiple Phase | E80: ='REPEX Support'!F92 -> 0 | F80: ='REPEX Support'!G92 -> 0 | G80: ='REPEX Support'!H92 -> 0 | H80: ='REPEX Support'!I92 -> 0 | I80: ='REPEX Support'!J92 -> 0 | J80: ='REPEX Support'!K92 -> 0 | K80: ='REPEX Support'!L92 -> 0 | L80: ='REPEX Support'!M92 -> 0 | M80: ='REPEX Support'!N92 -> 0 | N80: ='REPEX Support'!O92 -> 0 | O80: ='REPEX Support'!P92 -> 0 | P80: ='REPEX Support'!Q92 -> 0 | Q80: 0 | R80: 0 | S80: 0 | T80: 0 | U80: 0 | V80: 0
A81: ED_REP221_00083 | D81: Kiosk Mounted ; < = 22kV ; > 60 kVA and < = 600 kVA ; Multiple Phase | E81: ='REPEX Support'!F93 -> 0 | F81: ='REPEX Support'!G93 -> 0 | G81: ='REPEX Support'!H93 -> 0 | H81: ='REPEX Support'!I93 -> 0 | I81: ='REPEX Support'!J93 -> 0 | J81: ='REPEX Support'!K93 -> 0 | K81: ='REPEX Support'!L93 -> 0 | L81: ='REPEX Support'!M93 -> 0 | M81: ='REPEX Support'!N93 -> 0 | N81: ='REPEX Support'!O93 -> 0 | O81: ='REPEX Support'!P93 -> 0 | P81: ='REPEX Support'!Q93 -> 0 | Q81: 1 | R81: 1 | S81: 1 | T81: 2 | U81: 2 | V81: 2
A82: ED_REP221_00084 | D82: Kiosk Mounted ; < = 22kV ; > 600 kVA ; Multiple Phase | E82: ='REPEX Support'!F94 -> 0 | F82: ='REPEX Support'!G94 -> 0 | G82: ='REPEX Support'!H94 -> 0 | H82: ='REPEX Support'!I94 -> 0 | I82: ='REPEX Support'!J94 -> 0 | J82: ='REPEX Support'!K94 -> 0 | K82: ='REPEX Support'!L94 -> 0 | L82: ='REPEX Support'!M94 -> 0 | M82: ='REPEX Support'!N94 -> 0 | N82: ='REPEX Support'!O94 -> 0 | O82: ='REPEX Support'!P94 -> 0 | P82: ='REPEX Support'!Q94 -> 0 | Q82: 0 | R82: 0 | S82: 0 | T82: 0 | U82: 0 | V82: 0
A83: ED_REP221_00085 | D83: Ground Outdoor / Indoor Chamber Mounted; ˂ 22 kV ; < = 60 kVA ; Single Phase | E83: ='REPEX Support'!F95 -> 0 | F83: ='REPEX Support'!G95 -> 0 | G83: ='REPEX Support'!H95 -> 0 | H83: ='REPEX Support'!I95 -> 0 | I83: ='REPEX Support'!J95 -> 0 | J83: ='REPEX Support'!K95 -> 0 | K83: ='REPEX Support'!L95 -> 0 | L83: ='REPEX Support'!M95 -> 0 | M83: ='REPEX Support'!N95 -> 0 | N83: ='REPEX Support'!O95 -> 0 | O83: ='REPEX Support'!P95 -> 0 | P83: ='REPEX Support'!Q95 -> 0 | Q83: 0 | R83: 0 | S83: 0 | T83: 0 | U83: 0 | V83: 0
A84: ED_REP221_00086 | D84: Ground Outdoor / Indoor Chamber Mounted; ˂ 22 kV ; > 60 kVA and < = 600 kVA ; Single Phase | E84: ='REPEX Support'!F96 -> 0 | F84: ='REPEX Support'!G96 -> 0 | G84: ='REPEX Support'!H96 -> 0 | H84: ='REPEX Support'!I96 -> 0 | I84: ='REPEX Support'!J96 -> 0 | J84: ='REPEX Support'!K96 -> 0 | K84: ='REPEX Support'!L96 -> 0 | L84: ='REPEX Support'!M96 -> 0 | M84: ='REPEX Support'!N96 -> 0 | N84: ='REPEX Support'!O96 -> 0 | O84: ='REPEX Support'!P96 -> 0 | P84: ='REPEX Support'!Q96 -> 0 | Q84: 0 | R84: 0 | S84: 0 | T84: 0 | U84: 0 | V84: 0
A85: ED_REP221_00087 | D85: Ground Outdoor / Indoor Chamber Mounted; ˂ 22 kV ; > 600 kVA ; Single Phase | E85: ='REPEX Support'!F97 -> 0 | F85: ='REPEX Support'!G97 -> 0 | G85: ='REPEX Support'!H97 -> 0 | H85: ='REPEX Support'!I97 -> 0 | I85: ='REPEX Support'!J97 -> 0 | J85: ='REPEX Support'!K97 -> 0 | K85: ='REPEX Support'!L97 -> 0 | L85: ='REPEX Support'!M97 -> 0 | M85: ='REPEX Support'!N97 -> 0 | N85: ='REPEX Support'!O97 -> 0 | O85: ='REPEX Support'!P97 -> 0 | P85: ='REPEX Support'!Q97 -> 0 | Q85: 0 | R85: 0 | S85: 0 | T85: 0 | U85: 0 | V85: 0
A86: ED_REP221_00088 | D86: Ground Outdoor / Indoor Chamber Mounted; ˂ 22 kV ; < = 60 kVA ; Multiple Phase | E86: ='REPEX Support'!F98 -> 0 | F86: ='REPEX Support'!G98 -> 0 | G86: ='REPEX Support'!H98 -> 0 | H86: ='REPEX Support'!I98 -> 0 | I86: ='REPEX Support'!J98 -> 0 | J86: ='REPEX Support'!K98 -> 0 | K86: ='REPEX Support'!L98 -> 0 | L86: ='REPEX Support'!M98 -> 0 | M86: ='REPEX Support'!N98 -> 0 | N86: ='REPEX Support'!O98 -> 0 | O86: ='REPEX Support'!P98 -> 0 | P86: ='REPEX Support'!Q98 -> 0 | Q86: 0 | R86: 0 | S86: 0 | T86: 0 | U86: 0 | V86: 0
A87: ED_REP221_00089 | D87: Ground Outdoor / Indoor Chamber Mounted; ˂ 22 kV ; > 60 kVA and < = 600 kVA ; Multiple Phase | E87: ='REPEX Support'!F99 -> 0 | F87: ='REPEX Support'!G99 -> 0 | G87: ='REPEX Support'!H99 -> 0 | H87: ='REPEX Support'!I99 -> 0 | I87: ='REPEX Support'!J99 -> 0 | J87: ='REPEX Support'!K99 -> 0 | K87: ='REPEX Support'!L99 -> 0 | L87: ='REPEX Support'!M99 -> 0 | M87: ='REPEX Support'!N99 -> 0 | N87: ='REPEX Support'!O99 -> 0 | O87: ='REPEX Support'!P99 -> 0 | P87: ='REPEX Support'!Q99 -> 0 | Q87: 0 | R87: 0 | S87: 0 | T87: 0 | U87: 0 | V87: 0
A88: ED_REP221_00090 | D88: Ground Outdoor / Indoor Chamber Mounted; ˂ 22 kV ; > 600 kVA ; Multiple Phase | E88: ='REPEX Support'!F100 -> 0 | F88: ='REPEX Support'!G100 -> 0 | G88: ='REPEX Support'!H100 -> 0 | H88: ='REPEX Support'!I100 -> 0 | I88: ='REPEX Support'!J100 -> 0 | J88: ='REPEX Support'!K100 -> 0 | K88: ='REPEX Support'!L100 -> 0 | L88: ='REPEX Support'!M100 -> 0 | M88: ='REPEX Support'!N100 -> 0 | N88: ='REPEX Support'!O100 -> 0 | O88: ='REPEX Support'!P100 -> 0 | P88: ='REPEX Support'!Q100 -> 0 | Q88: 0 | R88: 0 | S88: 0 | T88: 0 | U88: 0 | V88: 0
A89: ED_REP221_00091 | D89: Ground Outdoor / Indoor Chamber Mounted; > = 22 kV & < = 33 kV ; < = 15 MVA | E89: ='REPEX Support'!F101 -> 1735276.588 | F89: ='REPEX Support'!G101 -> 1012049.485 | G89: ='REPEX Support'!H101 -> 1000780.458 | H89: ='REPEX Support'!I101 -> 999245.3833 | I89: ='REPEX Support'!J101 -> 1009464.091 | J89: ='REPEX Support'!K101 -> 0 | K89: ='REPEX Support'!L101 -> 1 | L89: ='REPEX Support'!M101 -> 0 | M89: ='REPEX Support'!N101 -> 1 | N89: ='REPEX Support'!O101 -> 0 | O89: ='REPEX Support'!P101 -> 1 | P89: ='REPEX Support'!Q101 -> 0 | Q89: 0 | R89: 0 | S89: 0 | T89: 0 | U89: 0 | V89: 0
A90: ED_REP221_00092 | D90: Ground Outdoor / Indoor Chamber Mounted; > = 22 kV & < = 33 kV ; > 15 MVA and < = 40 MVA | E90: ='REPEX Support'!F102 -> 0 | F90: ='REPEX Support'!G102 -> 0 | G90: ='REPEX Support'!H102 -> 0 | H90: ='REPEX Support'!I102 -> 0 | I90: ='REPEX Support'!J102 -> 0 | J90: ='REPEX Support'!K102 -> 0 | K90: ='REPEX Support'!L102 -> 0 | L90: ='REPEX Support'!M102 -> 0 | M90: ='REPEX Support'!N102 -> 0 | N90: ='REPEX Support'!O102 -> 0 | O90: ='REPEX Support'!P102 -> 0 | P90: ='REPEX Support'!Q102 -> 0 | Q90: 0 | R90: 0 | S90: 0 | T90: 0 | U90: 0 | V90: 0
A91: ED_REP221_00093 | D91: Ground Outdoor / Indoor Chamber Mounted; > = 22 kV & < = 33 kV ; > 40 MVA | E91: ='REPEX Support'!F103 -> 0 | F91: ='REPEX Support'!G103 -> 0 | G91: ='REPEX Support'!H103 -> 0 | H91: ='REPEX Support'!I103 -> 0 | I91: ='REPEX Support'!J103 -> 0 | J91: ='REPEX Support'!K103 -> 0 | K91: ='REPEX Support'!L103 -> 0 | L91: ='REPEX Support'!M103 -> 0 | M91: ='REPEX Support'!N103 -> 0 | N91: ='REPEX Support'!O103 -> 0 | O91: ='REPEX Support'!P103 -> 0 | P91: ='REPEX Support'!Q103 -> 0 | Q91: 0 | R91: 0 | S91: 0 | T91: 0 | U91: 0 | V91: 0
A92: ED_REP221_00094 | D92: Ground Outdoor / Indoor Chamber Mounted; > 33 kV & < = 66 kV ; < = 15 MVA | E92: ='REPEX Support'!F104 -> 0 | F92: ='REPEX Support'!G104 -> 0 | G92: ='REPEX Support'!H104 -> 0 | H92: ='REPEX Support'!I104 -> 0 | I92: ='REPEX Support'!J104 -> 0 | J92: ='REPEX Support'!K104 -> 0 | K92: ='REPEX Support'!L104 -> 0 | L92: ='REPEX Support'!M104 -> 0 | M92: ='REPEX Support'!N104 -> 0 | N92: ='REPEX Support'!O104 -> 0 | O92: ='REPEX Support'!P104 -> 0 | P92: ='REPEX Support'!Q104 -> 0 | Q92: 0 | R92: 0 | S92: 0 | T92: 0 | U92: 0 | V92: 0
A93: ED_REP221_00095 | D93: Ground Outdoor / Indoor Chamber Mounted; > 33 kV & < = 66 kV ; > 15 MVA and < = 40 MVA | E93: ='REPEX Support'!F105 -> 556007.5194 | F93: ='REPEX Support'!G105 -> 5327283.823 | G93: ='REPEX Support'!H105 -> 10725848.4 | H93: ='REPEX Support'!I105 -> 11424988.04 | I93: ='REPEX Support'!J105 -> 9170644.862 | J93: ='REPEX Support'!K105 -> 4808688.226 | K93: ='REPEX Support'!L105 -> 0 | L93: ='REPEX Support'!M105 -> 3 | M93: ='REPEX Support'!N105 -> 2 | N93: ='REPEX Support'!O105 -> 4 | O93: ='REPEX Support'!P105 -> 3 | P93: ='REPEX Support'!Q105 -> 3 | Q93: 0 | R93: 0 | S93: 0 | T93: 0 | U93: 0 | V93: 0
A94: ED_REP221_00096 | D94: Ground Outdoor / Indoor Chamber Mounted; > 33 kV & < = 66 kV ; > 40 MVA | E94: ='REPEX Support'!F106 -> 0 | F94: ='REPEX Support'!G106 -> 0 | G94: ='REPEX Support'!H106 -> 0 | H94: ='REPEX Support'!I106 -> 0 | I94: ='REPEX Support'!J106 -> 0 | J94: ='REPEX Support'!K106 -> 0 | K94: ='REPEX Support'!L106 -> 0 | L94: ='REPEX Support'!M106 -> 0 | M94: ='REPEX Support'!N106 -> 0 | N94: ='REPEX Support'!O106 -> 0 | O94: ='REPEX Support'!P106 -> 0 | P94: ='REPEX Support'!Q106 -> 0 | Q94: 0 | R94: 0 | S94: 0 | T94: 0 | U94: 0 | V94: 0
A95: ED_REP221_00097 | D95: Ground Outdoor / Indoor Chamber Mounted; > 66 kV & < = 132 kV ; < = 100 MVA | E95: ='REPEX Support'!F107 -> 0 | F95: ='REPEX Support'!G107 -> 0 | G95: ='REPEX Support'!H107 -> 0 | H95: ='REPEX Support'!I107 -> 0 | I95: ='REPEX Support'!J107 -> 0 | J95: ='REPEX Support'!K107 -> 0 | K95: ='REPEX Support'!L107 -> 0 | L95: ='REPEX Support'!M107 -> 0 | M95: ='REPEX Support'!N107 -> 0 | N95: ='REPEX Support'!O107 -> 0 | O95: ='REPEX Support'!P107 -> 0 | P95: ='REPEX Support'!Q107 -> 0 | Q95: 0 | R95: 0 | S95: 0 | T95: 0 | U95: 0 | V95: 0
A96: ED_REP221_00098 | D96: Ground Outdoor / Indoor Chamber Mounted; > 66 kV & < = 132 kV ; > 100 MVA | E96: ='REPEX Support'!F108 -> 0 | F96: ='REPEX Support'!G108 -> 0 | G96: ='REPEX Support'!H108 -> 0 | H96: ='REPEX Support'!I108 -> 0 | I96: ='REPEX Support'!J108 -> 0 | J96: ='REPEX Support'!K108 -> 0 | K96: ='REPEX Support'!L108 -> 0 | L96: ='REPEX Support'!M108 -> 0 | M96: ='REPEX Support'!N108 -> 0 | N96: ='REPEX Support'!O108 -> 0 | O96: ='REPEX Support'!P108 -> 0 | P96: ='REPEX Support'!Q108 -> 0 | Q96: 0 | R96: 0 | S96: 0 | T96: 0 | U96: 0 | V96: 0
A97: ED_REP221_00099 | D97: Ground Outdoor / Indoor Chamber Mounted; > 132 kV ; < = 100 MVA | E97: ='REPEX Support'!F109 -> 0 | F97: ='REPEX Support'!G109 -> 0 | G97: ='REPEX Support'!H109 -> 0 | H97: ='REPEX Support'!I109 -> 0 | I97: ='REPEX Support'!J109 -> 0 | J97: ='REPEX Support'!K109 -> 0 | K97: ='REPEX Support'!L109 -> 0 | L97: ='REPEX Support'!M109 -> 0 | M97: ='REPEX Support'!N109 -> 0 | N97: ='REPEX Support'!O109 -> 0 | O97: ='REPEX Support'!P109 -> 0 | P97: ='REPEX Support'!Q109 -> 0 | Q97: 0 | R97: 0 | S97: 0 | T97: 0 | U97: 0 | V97: 0
A98: ED_REP221_00100 | D98: Ground Outdoor / Indoor Chamber Mounted; > 132 kV ; > 100 MVA | E98: ='REPEX Support'!F110 -> 0 | F98: ='REPEX Support'!G110 -> 0 | G98: ='REPEX Support'!H110 -> 0 | H98: ='REPEX Support'!I110 -> 0 | I98: ='REPEX Support'!J110 -> 0 | J98: ='REPEX Support'!K110 -> 0 | K98: ='REPEX Support'!L110 -> 0 | L98: ='REPEX Support'!M110 -> 0 | M98: ='REPEX Support'!N110 -> 0 | N98: ='REPEX Support'!O110 -> 0 | O98: ='REPEX Support'!P110 -> 0 | P98: ='REPEX Support'!Q110 -> 0 | Q98: 0 | R98: 0 | S98: 0 | T98: 0 | U98: 0 | V98: 0
A99: ED_REP221_00101 | D99: Other | E99: =SUM('REPEX Support'!F111:F140) -> 4203603.422 | F99: =SUM('REPEX Support'!G111:G140) -> 4527599.715 | G99: =SUM('REPEX Support'!H111:H140) -> 4868825.816 | H99: =SUM('REPEX Support'!I111:I140) -> 5080045.961 | I99: =SUM('REPEX Support'!J111:J140) -> 4702848.015 | J99: =SUM('REPEX Support'!K111:K140) -> 4568622.148 | K99: =SUM('REPEX Support'!L111:L140) -> 164 | L99: =SUM('REPEX Support'!M111:M140) -> 180 | M99: =SUM('REPEX Support'!N111:N140) -> 188 | N99: =SUM('REPEX Support'!O111:O140) -> 199 | O99: =SUM('REPEX Support'!P111:P140) -> 206 | P99: =SUM('REPEX Support'!Q111:Q140) -> 213 | Q99: 0 | R99: 0 | S99: 0 | T99: 0 | U99: 0 | V99: 0
A100: ED_REP221_00102 | C100: SWITCHGEAR BY: Highest operating voltage; Switch function | D100: ˂ = 11 kV ; Fuse | E100: ='REPEX Support'!F141 -> 102249.4993 | F100: ='REPEX Support'!G141 -> 96958.95423 | G100: ='REPEX Support'!H141 -> 105637.9848 | H100: ='REPEX Support'!I141 -> 114487.3319 | I100: ='REPEX Support'!J141 -> 123776.6042 | J100: ='REPEX Support'!K141 -> 133939.929 | K100: ='REPEX Support'!L141 -> 34 | L100: ='REPEX Support'!M141 -> 37 | M100: ='REPEX Support'!N141 -> 40 | N100: ='REPEX Support'!O141 -> 43 | O100: ='REPEX Support'!P141 -> 47 | P100: ='REPEX Support'!Q141 -> 50 | Q100: 4 | R100: 4 | S100: 5 | T100: 5 | U100: 5 | V100: 6
A101: ED_REP221_00103 | D101: ˂ = 11 kV ; Switch | E101: ='REPEX Support'!F142 -> 251653.8127 | F101: ='REPEX Support'!G142 -> 325819.9797 | G101: ='REPEX Support'!H142 -> 412302.7213 | H101: ='REPEX Support'!I142 -> 319406.3855 | I101: ='REPEX Support'!J142 -> 322009.794 | J101: ='REPEX Support'!K142 -> 270733.2387 | K101: ='REPEX Support'!L142 -> 13 | L101: ='REPEX Support'!M142 -> 13 | M101: ='REPEX Support'!N142 -> 14 | N101: ='REPEX Support'!O142 -> 21 | O101: ='REPEX Support'!P142 -> 16 | P101: ='REPEX Support'!Q142 -> 17 | Q101: 221 | R101: 220 | S101: 220 | T101: 220 | U101: 219 | V101: 218
A102: ED_REP221_00104 | D102: ˂ = 11 kV ; Circuit Breaker | E102: ='REPEX Support'!F143 -> 474836.0269 | F102: ='REPEX Support'!G143 -> 657079.4378 | G102: ='REPEX Support'!H143 -> 2313961.506 | H102: ='REPEX Support'!I143 -> 3754411.669 | I102: ='REPEX Support'!J143 -> 3958839.374 | J102: ='REPEX Support'!K143 -> 2621806.403 | K102: ='REPEX Support'!L143 -> 0 | L102: ='REPEX Support'!M143 -> 7 | M102: ='REPEX Support'!N143 -> 13 | N102: ='REPEX Support'!O143 -> 12 | O102: ='REPEX Support'!P143 -> 17 | P102: ='REPEX Support'!Q143 -> 8 | Q102: 0 | R102: 0 | S102: 0 | T102: 0 | U102: 0 | V102: 0
A103: ED_REP221_00107 | D103: > 11 kV & < = 22 kV ; Switch | E103: ='REPEX Support'!F144 -> 2086312.249 | F103: ='REPEX Support'!G144 -> 2817776.495 | G103: ='REPEX Support'!H144 -> 3603117.684 | H103: ='REPEX Support'!I144 -> 2678625.298 | I103: ='REPEX Support'!J144 -> 2669932.824 | J103: ='REPEX Support'!K144 -> 2141589.995 | K103: ='REPEX Support'!L144 -> 102 | L103: ='REPEX Support'!M144 -> 106 | M103: ='REPEX Support'!N144 -> 108 | N103: ='REPEX Support'!O144 -> 170 | O103: ='REPEX Support'!P144 -> 129 | P103: ='REPEX Support'!Q144 -> 129 | Q103: 24 | R103: 26 | S103: 28 | T103: 34 | U103: 32 | V103: 33
A104: ED_REP221_00108 | D104: > 11 kV & < = 22 kV ; Circuit Breaker | E104: ='REPEX Support'!F145 -> 0 | F104: ='REPEX Support'!G145 -> 0 | G104: ='REPEX Support'!H145 -> 575101.8843 | H104: ='REPEX Support'!I145 -> 1444738.771 | I104: ='REPEX Support'!J145 -> 872322.1317 | J104: ='REPEX Support'!K145 -> 0 | K104: ='REPEX Support'!L145 -> 0 | L104: ='REPEX Support'!M145 -> 0 | M104: ='REPEX Support'!N145 -> 0 | N104: ='REPEX Support'!O145 -> 0 | O104: ='REPEX Support'!P145 -> 0 | P104: ='REPEX Support'!Q145 -> 0 | Q104: 0 | R104: 0 | S104: 1 | T104: 2 | U104: 3 | V104: 1
A105: ED_REP221_00111 | D105: > 22 kV & < = 33 kV ; Switch | E105: ='REPEX Support'!F146 -> 0 | F105: ='REPEX Support'!G146 -> 0 | G105: ='REPEX Support'!H146 -> 0 | H105: ='REPEX Support'!I146 -> 0 | I105: ='REPEX Support'!J146 -> 0 | J105: ='REPEX Support'!K146 -> 0 | K105: ='REPEX Support'!L146 -> 0 | L105: ='REPEX Support'!M146 -> 0 | M105: ='REPEX Support'!N146 -> 0 | N105: ='REPEX Support'!O146 -> 0 | O105: ='REPEX Support'!P146 -> 0 | P105: ='REPEX Support'!Q146 -> 0 | Q105: 0 | R105: 0 | S105: 0 | T105: 0 | U105: 0 | V105: 0
A106: ED_REP221_00112 | D106: > 22 kV & < = 33 kV ; Circuit Breaker | E106: ='REPEX Support'!F147 -> 0 | F106: ='REPEX Support'!G147 -> 0 | G106: ='REPEX Support'!H147 -> 0 | H106: ='REPEX Support'!I147 -> 0 | I106: ='REPEX Support'!J147 -> 0 | J106: ='REPEX Support'!K147 -> 0 | K106: ='REPEX Support'!L147 -> 0 | L106: ='REPEX Support'!M147 -> 0 | M106: ='REPEX Support'!N147 -> 0 | N106: ='REPEX Support'!O147 -> 0 | O106: ='REPEX Support'!P147 -> 0 | P106: ='REPEX Support'!Q147 -> 0 | Q106: 0 | R106: 0 | S106: 0 | T106: 0 | U106: 0 | V106: 0
A107: ED_REP221_00115 | D107: > 33 kV & < = 66 kV ; Switch | E107: ='REPEX Support'!F148 -> 0 | F107: ='REPEX Support'!G148 -> 0 | G107: ='REPEX Support'!H148 -> 0 | H107: ='REPEX Support'!I148 -> 0 | I107: ='REPEX Support'!J148 -> 0 | J107: ='REPEX Support'!K148 -> 0 | K107: ='REPEX Support'!L148 -> 0 | L107: ='REPEX Support'!M148 -> 0 | M107: ='REPEX Support'!N148 -> 0 | N107: ='REPEX Support'!O148 -> 0 | O107: ='REPEX Support'!P148 -> 0 | P107: ='REPEX Support'!Q148 -> 0 | Q107: 0 | R107: 1 | S107: 0 | T107: 1 | U107: 1 | V107: 1
A108: ED_REP221_00116 | D108: > 33 kV & < = 66 kV ; Circuit Breaker | E108: ='REPEX Support'!F149 -> 41322.36281 | F108: ='REPEX Support'!G149 -> 0 | G108: ='REPEX Support'!H149 -> 0 | H108: ='REPEX Support'!I149 -> 0 | I108: ='REPEX Support'!J149 -> 0 | J108: ='REPEX Support'!K149 -> 0 | K108: ='REPEX Support'!L149 -> 0 | L108: ='REPEX Support'!M149 -> 0 | M108: ='REPEX Support'!N149 -> 2 | N108: ='REPEX Support'!O149 -> 2 | O108: ='REPEX Support'!P149 -> 0 | P108: ='REPEX Support'!Q149 -> 0 | Q108: 0 | R108: 0 | S108: 0 | T108: 0 | U108: 0 | V108: 0
A109: ED_REP221_00118 | D109: > 66 kV & < = 132 kV ; Switch | E109: ='REPEX Support'!F150 -> 0 | F109: ='REPEX Support'!G150 -> 0 | G109: ='REPEX Support'!H150 -> 0 | H109: ='REPEX Support'!I150 -> 0 | I109: ='REPEX Support'!J150 -> 0 | J109: ='REPEX Support'!K150 -> 0 | K109: ='REPEX Support'!L150 -> 0 | L109: ='REPEX Support'!M150 -> 0 | M109: ='REPEX Support'!N150 -> 0 | N109: ='REPEX Support'!O150 -> 0 | O109: ='REPEX Support'!P150 -> 0 | P109: ='REPEX Support'!Q150 -> 0 | Q109: 0 | R109: 0 | S109: 0 | T109: 0 | U109: 0 | V109: 0
A110: ED_REP221_00119 | D110: > 66 kV & < = 132 kV ; Circuit Breaker | E110: ='REPEX Support'!F151 -> 0 | F110: ='REPEX Support'!G151 -> 0 | G110: ='REPEX Support'!H151 -> 0 | H110: ='REPEX Support'!I151 -> 0 | I110: ='REPEX Support'!J151 -> 0 | J110: ='REPEX Support'!K151 -> 0 | K110: ='REPEX Support'!L151 -> 0 | L110: ='REPEX Support'!M151 -> 0 | M110: ='REPEX Support'!N151 -> 0 | N110: ='REPEX Support'!O151 -> 0 | O110: ='REPEX Support'!P151 -> 0 | P110: ='REPEX Support'!Q151 -> 0 | Q110: 0 | R110: 0 | S110: 0 | T110: 0 | U110: 0 | V110: 0
A111: ED_REP221_00120 | D111: > 132 kV ; Switch | E111: ='REPEX Support'!F152 -> 0 | F111: ='REPEX Support'!G152 -> 0 | G111: ='REPEX Support'!H152 -> 0 | H111: ='REPEX Support'!I152 -> 0 | I111: ='REPEX Support'!J152 -> 0 | J111: ='REPEX Support'!K152 -> 0 | K111: ='REPEX Support'!L152 -> 0 | L111: ='REPEX Support'!M152 -> 0 | M111: ='REPEX Support'!N152 -> 0 | N111: ='REPEX Support'!O152 -> 0 | O111: ='REPEX Support'!P152 -> 0 | P111: ='REPEX Support'!Q152 -> 0 | Q111: 0 | R111: 0 | S111: 0 | T111: 0 | U111: 0 | V111: 0
A112: ED_REP221_00121 | D112: > 132 kV ; Circuit Breaker | E112: ='REPEX Support'!F153 -> 0 | F112: ='REPEX Support'!G153 -> 0 | G112: ='REPEX Support'!H153 -> 0 | H112: ='REPEX Support'!I153 -> 0 | I112: ='REPEX Support'!J153 -> 0 | J112: ='REPEX Support'!K153 -> 0 | K112: ='REPEX Support'!L153 -> 0 | L112: ='REPEX Support'!M153 -> 0 | M112: ='REPEX Support'!N153 -> 0 | N112: ='REPEX Support'!O153 -> 0 | O112: ='REPEX Support'!P153 -> 0 | P112: ='REPEX Support'!Q153 -> 0 | Q112: 0 | R112: 0 | S112: 0 | T112: 0 | U112: 0 | V112: 0
A113: ED_REP221_00122 | D113: Other | E113: =SUM('REPEX Support'!F154:F168) -> 6140160.67 | F113: =SUM('REPEX Support'!G154:G168) -> 6932706.363 | G113: =SUM('REPEX Support'!H154:H168) -> 9589357.151 | H113: =SUM('REPEX Support'!I154:I168) -> 9821075.245 | I113: =SUM('REPEX Support'!J154:J168) -> 11375436.86 | J113: =SUM('REPEX Support'!K154:K168) -> 10298290.1 | K113: =SUM('REPEX Support'!L154:L168) -> 2431 | L113: =SUM('REPEX Support'!M154:M168) -> 2427 | M113: =SUM('REPEX Support'!N154:N168) -> 2449 | N113: =SUM('REPEX Support'!O154:O168) -> 2477 | O113: =SUM('REPEX Support'!P154:P168) -> 2508 | P113: =SUM('REPEX Support'!Q154:Q168) -> 2522 | Q113: 2 | R113: 2 | S113: 2 | T113: 2 | U113: 2 | V113: 2
A114: ED_REP221_00123 | C114: PUBLIC LIGHTING BY: Asset type ; Lighting obligation | D114: Luminaires | E114: 0 | F114: 0 | G114: 0 | H114: 0 | I114: 0 | J114: 0 | K114: 0 | L114: 0 | M114: 0 | N114: 0 | O114: 0 | P114: 0 | Q114: 2546 | R114: 2546 | S114: 2546 | T114: 2546 | U114: 2546 | V114: 2546
A115: ED_REP221_00125 | D115: Brackets | E115: 0 | F115: 0 | G115: 0 | H115: 0 | I115: 0 | J115: 0 | K115: 0 | L115: 0 | M115: 0 | N115: 0 | O115: 0 | P115: 0 | Q115: 0 | R115: 0 | S115: 0 | T115: 0 | U115: 0 | V115: 0
A116: ED_REP221_00127 | D116: Lamps | E116: 0 | F116: 0 | G116: 0 | H116: 0 | I116: 0 | J116: 0 | K116: 0 | L116: 0 | M116: 0 | N116: 0 | O116: 0 | P116: 0 | Q116: 0 | R116: 0 | S116: 0 | T116: 0 | U116: 0 | V116: 0
A117: ED_REP221_00129 | D117: Poles / Columns | E117: 0 | F117: 0 | G117: 0 | H117: 0 | I117: 0 | J117: 0 | K117: 0 | L117: 0 | M117: 0 | N117: 0 | O117: 0 | P117: 0 | Q117: 0 | R117: 0 | S117: 0 | T117: 0 | U117: 0 | V117: 0
A118: ED_REP221_00131 | D118: Other | E118: 0 | F118: 0 | G118: 0 | H118: 0 | I118: 0 | J118: 0 | K118: 0 | L118: 0 | M118: 0 | N118: 0 | O118: 0 | P118: 0 | Q118: 0 | R118: 0 | S118: 0 | T118: 0 | U118: 0 | V118: 0
A119: ED_REP221_00132 | C119: SCADA, NETWORK CONTROL AND PROTECTION SYSTEMS BY: Function | D119: Field Devices | E119: ='REPEX Support'!F180 -> 0 | F119: ='REPEX Support'!G180 -> 0 | G119: ='REPEX Support'!H180 -> 0 | H119: ='REPEX Support'!I180 -> 0 | I119: ='REPEX Support'!J180 -> 0 | J119: ='REPEX Support'!K180 -> 0 | K119: ='REPEX Support'!L180 -> 0 | L119: ='REPEX Support'!M180 -> 0 | M119: ='REPEX Support'!N180 -> 0 | N119: ='REPEX Support'!O180 -> 0 | O119: ='REPEX Support'!P180 -> 0 | P119: ='REPEX Support'!Q180 -> 0 | Q119: 0 | R119: 0 | S119: 0 | T119: 0 | U119: 0 | V119: 0
A120: ED_REP221_00133 | D120: Local Network Wiring Assets | E120: ='REPEX Support'!F181 -> 0 | F120: ='REPEX Support'!G181 -> 0 | G120: ='REPEX Support'!H181 -> 0 | H120: ='REPEX Support'!I181 -> 0 | I120: ='REPEX Support'!J181 -> 0 | J120: ='REPEX Support'!K181 -> 0 | K120: ='REPEX Support'!L181 -> 0 | L120: ='REPEX Support'!M181 -> 0 | M120: ='REPEX Support'!N181 -> 0 | N120: ='REPEX Support'!O181 -> 0 | O120: ='REPEX Support'!P181 -> 0 | P120: ='REPEX Support'!Q181 -> 0 | Q120: 0 | R120: 0 | S120: 0 | T120: 0 | U120: 0 | V120: 0
A121: ED_REP221_00134 | D121: Communications Network Assets | E121: ='REPEX Support'!F182 -> 4399428.839 | F121: ='REPEX Support'!G182 -> 6481601.333 | G121: ='REPEX Support'!H182 -> 4413261.832 | H121: ='REPEX Support'!I182 -> 2296706.378 | I121: ='REPEX Support'!J182 -> 2364188.335 | J121: ='REPEX Support'!K182 -> 4089510.521 | K121: ='REPEX Support'!L182 -> 48 | L121: ='REPEX Support'!M182 -> 113 | M121: ='REPEX Support'!N182 -> 78 | N121: ='REPEX Support'!O182 -> 46 | O121: ='REPEX Support'!P182 -> 71 | P121: ='REPEX Support'!Q182 -> 47 | Q121: 0 | R121: 0 | S121: 0 | T121: 0 | U121: 0 | V121: 0
A122: ED_REP221_00135 | D122: Master Station Assets | E122: ='REPEX Support'!F183 -> 198756.5855 | F122: ='REPEX Support'!G183 -> 991490.5016 | G122: ='REPEX Support'!H183 -> 1142459.612 | H122: ='REPEX Support'!I183 -> 469939.2085 | I122: ='REPEX Support'!J183 -> 253344.4908 | J122: ='REPEX Support'!K183 -> 865550.0892 | K122: ='REPEX Support'!L183 -> 1 | L122: ='REPEX Support'!M183 -> 9 | M122: ='REPEX Support'!N183 -> 7 | N122: ='REPEX Support'!O183 -> 4 | O122: ='REPEX Support'!P183 -> 2 | P122: ='REPEX Support'!Q183 -> 4 | Q122: 0 | R122: 0 | S122: 0 | T122: 0 | U122: 0 | V122: 0
A123: ED_REP221_00136 | D123: Communications Site Infrastructure | E123: ='REPEX Support'!F184 -> 0 | F123: ='REPEX Support'!G184 -> 0 | G123: ='REPEX Support'!H184 -> 0 | H123: ='REPEX Support'!I184 -> 0 | I123: ='REPEX Support'!J184 -> 0 | J123: ='REPEX Support'!K184 -> 0 | K123: ='REPEX Support'!L184 -> 0 | L123: ='REPEX Support'!M184 -> 0 | M123: ='REPEX Support'!N184 -> 0 | N123: ='REPEX Support'!O184 -> 0 | O123: ='REPEX Support'!P184 -> 0 | P123: ='REPEX Support'!Q184 -> 0 | Q123: 0 | R123: 0 | S123: 0 | T123: 0 | U123: 0 | V123: 0
A124: ED_REP221_00137 | D124: Communications Linear Assets | E124: ='REPEX Support'!F185 -> 127092.2392 | F124: ='REPEX Support'!G185 -> 240565.0592 | G124: ='REPEX Support'!H185 -> 283322.0392 | H124: ='REPEX Support'!I185 -> 304933.5785 | I124: ='REPEX Support'!J185 -> 260053.492 | J124: ='REPEX Support'!K185 -> 189578.5167 | K124: ='REPEX Support'!L185 -> 6 | L124: ='REPEX Support'!M185 -> 19 | M124: ='REPEX Support'!N185 -> 17 | N124: ='REPEX Support'!O185 -> 18 | O124: ='REPEX Support'!P185 -> 3 | P124: ='REPEX Support'!Q185 -> 2 | Q124: 0 | R124: 0 | S124: 0 | T124: 0 | U124: 0 | V124: 0
A125: ED_REP221_00138 | D125: AFLC | E125: ='REPEX Support'!F186 -> 0 | F125: ='REPEX Support'!G186 -> 0 | G125: ='REPEX Support'!H186 -> 0 | H125: ='REPEX Support'!I186 -> 0 | I125: ='REPEX Support'!J186 -> 0 | J125: ='REPEX Support'!K186 -> 0 | K125: ='REPEX Support'!L186 -> 0 | L125: ='REPEX Support'!M186 -> 0 | M125: ='REPEX Support'!N186 -> 0 | N125: ='REPEX Support'!O186 -> 0 | O125: ='REPEX Support'!P186 -> 0 | P125: ='REPEX Support'!Q186 -> 0 | Q125: 0 | R125: 0 | S125: 0 | T125: 0 | U125: 0 | V125: 0
A126: ED_REP221_00139 | D126: Other | E126: =SUM('REPEX Support'!F187:F200) -> 2625100.638 | F126: =SUM('REPEX Support'!G187:G200) -> 1992819.374 | G126: =SUM('REPEX Support'!H187:H200) -> 1794224.133 | H126: =SUM('REPEX Support'!I187:I200) -> 1987890.777 | I126: =SUM('REPEX Support'!J187:J200) -> 1634157.64 | J126: =SUM('REPEX Support'!K187:K200) -> 1729005.5 | K126: =SUM('REPEX Support'!L187:L200) -> 33 | L126: =SUM('REPEX Support'!M187:M200) -> 28 | M126: =SUM('REPEX Support'!N187:N200) -> 25 | N126: =SUM('REPEX Support'!O187:O200) -> 34 | O126: =SUM('REPEX Support'!P187:P200) -> 23 | P126: =SUM('REPEX Support'!Q187:Q200) -> 30 | Q126: 0 | R126: 0 | S126: 0 | T126: 0 | U126: 0 | V126: 0
A127: ED_REP221_00140 | C127: OTHER BY: ZONE SUB STATION PRIMARY ASSETS | D127: ZONE SUBSTATION CAPACITOR BANKS | E127: ='REPEX Support'!F201 -> 450050.8747 | F127: ='REPEX Support'!G201 -> 722632.4317 | G127: ='REPEX Support'!H201 -> 1088753.13 | H127: ='REPEX Support'!I201 -> 1095944.877 | I127: ='REPEX Support'!J201 -> 1104746.027 | J127: ='REPEX Support'!K201 -> 745943.0202 | K127: ='REPEX Support'!L201 -> 0 | L127: ='REPEX Support'!M201 -> 1 | M127: ='REPEX Support'!N201 -> 1 | N127: ='REPEX Support'!O201 -> 1 | O127: ='REPEX Support'!P201 -> 1 | P127: ='REPEX Support'!Q201 -> 1 | Q127: 0 | R127: 0 | S127: 0 | T127: 0 | U127: 0 | V127: 0
A128: ED_REP221_00141 | D128: ZONE SUBSTATION INSTRUMENTATION TRANSFORMER (CT/VT) | E128: ='REPEX Support'!F202 -> 468224.3885 | F128: ='REPEX Support'!G202 -> 332398.8168 | G128: ='REPEX Support'!H202 -> 0 | H128: ='REPEX Support'!I202 -> 102871.2833 | I128: ='REPEX Support'!J202 -> 103923.2888 | J128: ='REPEX Support'!K202 -> 0 | K128: ='REPEX Support'!L202 -> 3 | L128: ='REPEX Support'!M202 -> 2 | M128: ='REPEX Support'!N202 -> 0 | N128: ='REPEX Support'!O202 -> 2 | O128: ='REPEX Support'!P202 -> 2 | P128: ='REPEX Support'!Q202 -> 0 | Q128: 0 | R128: 0 | S128: 0 | T128: 0 | U128: 0 | V128: 0
A129: ED_REP221_00142 | D129: ZONE SUBSTATION NEUTRAL EARTHING RESISTOR | E129: ='REPEX Support'!F203 -> 96059.61767 | F129: ='REPEX Support'!G203 -> 95050.82665 | G129: ='REPEX Support'!H203 -> 0 | H129: ='REPEX Support'!I203 -> 0 | I129: ='REPEX Support'!J203 -> 0 | J129: ='REPEX Support'!K203 -> 0 | K129: ='REPEX Support'!L203 -> 1 | L129: ='REPEX Support'!M203 -> 0 | M129: ='REPEX Support'!N203 -> 0 | N129: ='REPEX Support'!O203 -> 0 | O129: ='REPEX Support'!P203 -> 0 | P129: ='REPEX Support'!Q203 -> 0 | Q129: 0 | R129: 0 | S129: 0 | T129: 0 | U129: 0 | V129: 0
A130: ED_REP221_00143 | D130: ZONE SUBSTATION CONTROL BUILDING | E130: ='REPEX Support'!F204 -> 152944.0505 | F130: ='REPEX Support'!G204 -> 0 | G130: ='REPEX Support'!H204 -> 1022575.008 | H130: ='REPEX Support'!I204 -> 1896993.318 | I130: ='REPEX Support'!J204 -> 872322.1317 | J130: ='REPEX Support'!K204 -> 0 | K130: ='REPEX Support'!L204 -> 0 | L130: ='REPEX Support'!M204 -> 2 | M130: ='REPEX Support'!N204 -> 0 | N130: ='REPEX Support'!O204 -> 2 | O130: ='REPEX Support'!P204 -> 2 | P130: ='REPEX Support'!Q204 -> 0 | Q130: 0 | R130: 0 | S130: 0 | T130: 0 | U130: 0 | V130: 0
A131: ED_REP221_00144 | D131: ZONE SUBSTATION FENCE | E131: ='REPEX Support'!F205 -> 27585.0219 | F131: ='REPEX Support'!G205 -> 0 | G131: ='REPEX Support'!H205 -> 0 | H131: ='REPEX Support'!I205 -> 0 | I131: ='REPEX Support'!J205 -> 0 | J131: ='REPEX Support'!K205 -> 0 | K131: ='REPEX Support'!L205 -> 0 | L131: ='REPEX Support'!M205 -> 0 | M131: ='REPEX Support'!N205 -> 0 | N131: ='REPEX Support'!O205 -> 0 | O131: ='REPEX Support'!P205 -> 0 | P131: ='REPEX Support'!Q205 -> 0 | Q131: 0 | R131: 0 | S131: 0 | T131: 0 | U131: 0 | V131: 0
A132: ED_REP221_00145 | D132: ZONE SUBSTATION CIVIL WORKS INC EARTH GRID | E132: ='REPEX Support'!F206 -> 55987.77058 | F132: ='REPEX Support'!G206 -> 193593.4808 | G132: ='REPEX Support'!H206 -> 180572.6684 | H132: ='REPEX Support'!I206 -> 209257.6606 | I132: ='REPEX Support'!J206 -> 211075.3591 | J132: ='REPEX Support'!K206 -> 171318.8951 | K132: ='REPEX Support'!L206 -> 6 | L132: ='REPEX Support'!M206 -> 6 | M132: ='REPEX Support'!N206 -> 7 | N132: ='REPEX Support'!O206 -> 8 | O132: ='REPEX Support'!P206 -> 7 | P132: ='REPEX Support'!Q206 -> 5 | Q132: 0 | R132: 0 | S132: 0 | T132: 0 | U132: 0 | V132: 0
A133: ED_REP221_00146 | D133: Reliability Maintained | E133: ='REPEX Support'!F209 -> 0 | Q133: 0 | R133: 0 | S133: 0 | T133: 0 | U133: 0 | V133: 0
A134: ED_REP221_00147 | D134: ACR/RCGS | E134: ='REPEX Support'!F210 -> 7110011.486 | F134: ='REPEX Support'!G210 -> 4041331.2 | G134: ='REPEX Support'!H210 -> 1444859.958 | H134: ='REPEX Support'!I210 -> 1339680.256 | I134: ='REPEX Support'!J210 -> 1351170.618 | J134: ='REPEX Support'!K210 -> 1370669.466 | K134: ='REPEX Support'!L210 -> 110 | L134: ='REPEX Support'!M210 -> 60 | M134: ='REPEX Support'!N210 -> 20 | N134: ='REPEX Support'!O210 -> 20 | O134: ='REPEX Support'!P210 -> 20 | P134: ='REPEX Support'!Q210 -> 20
A135: ED_REP221_00148 | C135: OTHER PERFORMANCE BASED BUDGET | D135: Rogue | E135: ='REPEX Support'!F211 -> 1111578.144 | F135: ='REPEX Support'!G211 -> 1105957.196 | G135: ='REPEX Support'!H211 -> 1111323.579 | H135: ='REPEX Support'!I211 -> 1116400.213 | I135: ='REPEX Support'!J211 -> 1125975.515 | J135: ='REPEX Support'!K211 -> 1142224.555 | K135: ='REPEX Support'!L211 -> 10 | L135: ='REPEX Support'!M211 -> 10 | M135: ='REPEX Support'!N211 -> 10 | N135: ='REPEX Support'!O211 -> 10 | O135: ='REPEX Support'!P211 -> 10 | P135: ='REPEX Support'!Q211 -> 10
A136: ED_REP221_00149 | D136: Fuse saver | E136: ='REPEX Support'!F212 -> 333473.4431 | F136: ='REPEX Support'!G212 -> 331787.1587 | G136: ='REPEX Support'!H212 -> 333397.0737 | H136: ='REPEX Support'!I212 -> 334920.064 | I136: ='REPEX Support'!J212 -> 337792.6544 | J136: ='REPEX Support'!K212 -> 342667.3666 | K136: ='REPEX Support'!L212 -> 20 | L136: ='REPEX Support'!M212 -> 20 | M136: ='REPEX Support'!N212 -> 20 | N136: ='REPEX Support'!O212 -> 20 | O136: ='REPEX Support'!P212 -> 20 | P136: ='REPEX Support'!Q212 -> 20
A137: ED_REP221_00150 | D137: Clashing | E137: ='REPEX Support'!F213 -> 335926.6235 | F137: ='REPEX Support'!G213 -> 1328371.951 | G137: ='REPEX Support'!H213 -> 666794.1474 | H137: ='REPEX Support'!I213 -> 669840.1279 | I137: ='REPEX Support'!J213 -> 675585.3088 | J137: ='REPEX Support'!K213 -> 685334.7332 | K137: ='REPEX Support'!L213 -> 6 | L137: ='REPEX Support'!M213 -> 6 | M137: ='REPEX Support'!N213 -> 6 | N137: ='REPEX Support'!O213 -> 6 | O137: ='REPEX Support'!P213 -> 6 | P137: ='REPEX Support'!Q213 -> 6
A138: ED_REP221_00151 | D138: Animal | E138: ='REPEX Support'!F214 -> 3259293.208 | F138: ='REPEX Support'!G214 -> 2748734.377 | G138: ='REPEX Support'!H214 -> 1687721.3 | H138: ='REPEX Support'!I214 -> 1939452.649 | I138: ='REPEX Support'!J214 -> 1998858.343 | J138: ='REPEX Support'!K214 -> 2068911.742 | K138: ='REPEX Support'!L214 -> 736 | L138: ='REPEX Support'!M214 -> 696 | M138: ='REPEX Support'!N214 -> 792 | N138: ='REPEX Support'!O214 -> 908 | O138: ='REPEX Support'!P214 -> 932 | P138: ='REPEX Support'!Q214 -> 956
A139: ED_REP221_00152 | D139: Communications | E139: ='REPEX Support'!F215 -> 217959.5088 | F139: ='REPEX Support'!G215 -> 635364.701 | G139: ='REPEX Support'!H215 -> 944625.0422 | H139: ='REPEX Support'!I215 -> 948940.1813 | I139: ='REPEX Support'!J215 -> 957079.1875 | J139: ='REPEX Support'!K215 -> 970890.8721 | K139: ='REPEX Support'!L215 -> 0 | L139: ='REPEX Support'!M215 -> 0 | M139: ='REPEX Support'!N215 -> 0 | N139: ='REPEX Support'!O215 -> 0 | O139: ='REPEX Support'!P215 -> 0 | P139: ='REPEX Support'!Q215 -> 0
A140: ED_REP221_00153 | D140: Environmental | E140: ='REPEX Support'!F216 -> 0 | F140: ='REPEX Support'!G216 -> 0 | G140: ='REPEX Support'!H216 -> 0 | H140: ='REPEX Support'!I216 -> 0 | I140: ='REPEX Support'!J216 -> 0 | J140: ='REPEX Support'!K216 -> 0 | K140: ='REPEX Support'!L216 -> 0 | L140: ='REPEX Support'!M216 -> 0 | M140: ='REPEX Support'!N216 -> 0 | N140: ='REPEX Support'!O216 -> 0 | O140: ='REPEX Support'!P216 -> 0 | P140: ='REPEX Support'!Q216 -> 0
A141: ED_REP221_00154 | D141: Bunding/Noise | E141: ='REPEX Support'!F217 -> 174827.9745 | F141: ='REPEX Support'!G217 -> 1105144.586 | G141: ='REPEX Support'!H217 -> 1446724.923 | H141: ='REPEX Support'!I217 -> 767376.9119 | I141: ='REPEX Support'!J217 -> 774009.0565 | J141: ='REPEX Support'!K217 -> 553875.392 | K141: ='REPEX Support'!L217 -> 3.5 | L141: ='REPEX Support'!M217 -> 4.5 | M141: ='REPEX Support'!N217 -> 2.5 | N141: ='REPEX Support'!O217 -> 2.5 | O141: ='REPEX Support'!P217 -> 2.5 | P141: ='REPEX Support'!Q217 -> 1 | Q141: 0 | R141: 0 | S141: 0 | T141: 0 | U141: 0 | V141: 0
A142: ED_REP221_00155 | D142: Asbestos | E142: ='REPEX Support'!F218 -> 97365.30343 | F142: ='REPEX Support'!G218 -> 110595.7196 | G142: ='REPEX Support'!H218 -> 111132.3579 | H142: ='REPEX Support'!I218 -> 111640.0213 | I142: ='REPEX Support'!J218 -> 112597.5515 | J142: ='REPEX Support'!K218 -> 114222.4555 | K142: ='REPEX Support'!L218 -> 1 | L142: ='REPEX Support'!M218 -> 1 | M142: ='REPEX Support'!N218 -> 1 | N142: ='REPEX Support'!O218 -> 1 | O142: ='REPEX Support'!P218 -> 1 | P142: ='REPEX Support'!Q218 -> 1 | Q142: 0 | R142: 0 | S142: 0 | T142: 0 | U142: 0 | V142: 0
A143: ED_REP221_00156 | D143: Power Quality | E143: ='REPEX Support'!F219 -> 0 | F143: ='REPEX Support'!G219 -> 0 | G143: ='REPEX Support'!H219 -> 0 | H143: ='REPEX Support'!I219 -> 0 | I143: ='REPEX Support'!J219 -> 0 | J143: ='REPEX Support'!K219 -> 0 | K143: ='REPEX Support'!L219 -> 0 | L143: ='REPEX Support'!M219 -> 0 | M143: ='REPEX Support'!N219 -> 0 | N143: ='REPEX Support'!O219 -> 0 | O143: ='REPEX Support'!P219 -> 0 | P143: ='REPEX Support'!Q219 -> 0 | Q143: 0 | R143: 0 | S143: 0 | T143: 0 | U143: 0 | V143: 0
A144: ED_REP221_00157 | D144: PQ Meter other | E144: ='REPEX Support'!F220 -> 0 | F144: ='REPEX Support'!G220 -> 201403.7675 | G144: ='REPEX Support'!H220 -> 354123.9534 | H144: ='REPEX Support'!I220 -> 178447.5291 | I144: ='REPEX Support'!J220 -> 52128.49605 | J144: ='REPEX Support'!K220 -> 52880.76645 | K144: ='REPEX Support'!L220 -> 10 | L144: ='REPEX Support'!M220 -> 3 | M144: ='REPEX Support'!N220 -> 3 | N144: ='REPEX Support'!O220 -> 3 | O144: ='REPEX Support'!P220 -> 3 | P144: ='REPEX Support'!Q220 -> 3 | Q144: 0 | R144: 0 | S144: 0 | T144: 0 | U144: 0 | V144: 0
A145: ED_REP221_00158 | D145: LV Regulator | E145: ='REPEX Support'!F221 -> 259202.6416 | F145: ='REPEX Support'!G221 -> 512017.2203 | G145: ='REPEX Support'!H221 -> 514501.6569 | H145: ='REPEX Support'!I221 -> 516851.9506 | I145: ='REPEX Support'!J221 -> 521284.9605 | J145: ='REPEX Support'!K221 -> 528807.6645 | K145: ='REPEX Support'!L221 -> 10 | L145: ='REPEX Support'!M221 -> 10 | M145: ='REPEX Support'!N221 -> 10 | N145: ='REPEX Support'!O221 -> 10 | O145: ='REPEX Support'!P221 -> 10 | P145: ='REPEX Support'!Q221 -> 10 | Q145: 0 | R145: 0 | S145: 0 | T145: 0 | U145: 0 | V145: 0
A146: ED_REP221_00159 | D146: Harmonic Filter | E146: ='REPEX Support'!F222 -> 479140.3763 | F146: ='REPEX Support'!G222 -> 768025.8304 | G146: ='REPEX Support'!H222 -> 771752.4854 | H146: ='REPEX Support'!I222 -> 775277.9259 | I146: ='REPEX Support'!J222 -> 781927.4408 | J146: ='REPEX Support'!K222 -> 793211.4968 | K146: ='REPEX Support'!L222 -> 1 | L146: ='REPEX Support'!M222 -> 1 | M146: ='REPEX Support'!N222 -> 1 | N146: ='REPEX Support'!O222 -> 1 | O146: ='REPEX Support'!P222 -> 1 | P146: ='REPEX Support'!Q222 -> 1 | Q146: 0 | R146: 0 | S146: 0 | T146: 0 | U146: 0 | V146: 0
A147: ED_REP221_00160 | D147: Prot - BTOS | E147: ='REPEX Support'!F223 -> 0 | F147: ='REPEX Support'!G223 -> 76660.99553 | G147: ='REPEX Support'!H223 -> 154350.4971 | H147: ='REPEX Support'!I223 -> 155055.5852 | I147: ='REPEX Support'!J223 -> 156385.4882 | J147: ='REPEX Support'!K223 -> 158642.2994 | K147: ='REPEX Support'!L223 -> 0 | L147: ='REPEX Support'!M223 -> 1 | M147: ='REPEX Support'!N223 -> 1 | N147: ='REPEX Support'!O223 -> 1 | O147: ='REPEX Support'!P223 -> 1 | P147: ='REPEX Support'!Q223 -> 1
A148: ED_REP221_00161 | D148: Safety | E148: ='REPEX Support'!F224 -> 0 | F148: ='REPEX Support'!G224 -> 0 | G148: ='REPEX Support'!H224 -> 0 | H148: ='REPEX Support'!I224 -> 0 | I148: ='REPEX Support'!J224 -> 0 | J148: ='REPEX Support'!K224 -> 0 | K148: ='REPEX Support'!L224 -> 0 | L148: ='REPEX Support'!M224 -> 0 | M148: ='REPEX Support'!N224 -> 0 | N148: ='REPEX Support'!O224 -> 0 | O148: ='REPEX Support'!P224 -> 0 | P148: ='REPEX Support'!Q224 -> 0
A149: ED_REP221_00162 | D149: CCTV/Security | E149: ='REPEX Support'!F225 -> 335926.6235 | F149: ='REPEX Support'!G225 -> 994749.8181 | G149: ='REPEX Support'!H225 -> 1333588.295 | H149: ='REPEX Support'!I225 -> 1339680.256 | I149: ='REPEX Support'!J225 -> 1351170.618 | J149: ='REPEX Support'!K225 -> 1370669.466 | K149: ='REPEX Support'!L225 -> 0 | L149: ='REPEX Support'!M225 -> 4 | M149: ='REPEX Support'!N225 -> 4 | N149: ='REPEX Support'!O225 -> 4 | O149: ='REPEX Support'!P225 -> 4 | P149: ='REPEX Support'!Q225 -> 4 | Q149: 0 | R149: 0 | S149: 0 | T149: 0 | U149: 0 | V149: 0
A150: ED_REP221_00163 | D150: REFCL/GFN | E150: ='REPEX Support'!F226 -> 2589273.806 | F150: ='REPEX Support'!G226 -> 1033267.562 | G150: ='REPEX Support'!H226 -> 1747418.582 | H150: ='REPEX Support'!I226 -> 3053379.67 | I150: ='REPEX Support'!J226 -> 1663295.259 | J150: ='REPEX Support'!K226 -> 0 | K150: ='REPEX Support'!L226 -> 0 | L150: ='REPEX Support'!M226 -> 1 | M150: ='REPEX Support'!N226 -> 0 | N150: ='REPEX Support'!O226 -> 1 | O150: ='REPEX Support'!P226 -> 0 | P150: ='REPEX Support'!Q226 -> 3 | Q150: 0 | R150: 0 | S150: 0 | T150: 0 | U150: 0 | V150: 0
A151: ED_REP221_00164 | D151: Operational Technology | E151: ='REPEX Support'!F227 -> 0 | F151: ='REPEX Support'!G227 -> 0 | G151: ='REPEX Support'!H227 -> 0 | H151: ='REPEX Support'!I227 -> 0 | I151: ='REPEX Support'!J227 -> 0 | J151: ='REPEX Support'!K227 -> 0 | K151: ='REPEX Support'!L227 -> 0 | L151: ='REPEX Support'!M227 -> 0 | M151: ='REPEX Support'!N227 -> 0 | N151: ='REPEX Support'!O227 -> 0 | O151: ='REPEX Support'!P227 -> 0 | P151: ='REPEX Support'!Q227 -> 0
A152: ED_REP221_00165 | D152: Op Technology | E152: ='REPEX Support'!F228 -> 4081013.448 | F152: ='REPEX Support'!G228 -> 9666514.2 | G152: ='REPEX Support'!H228 -> 6982027.792 | H152: ='REPEX Support'!I228 -> 7834230.904 | I152: ='REPEX Support'!J228 -> 9226027.684 | J152: ='REPEX Support'!K228 -> 7735437.297 | K152: ='REPEX Support'!L228 -> 13 | L152: ='REPEX Support'!M228 -> 14 | M152: ='REPEX Support'!N228 -> 12 | N152: ='REPEX Support'!O228 -> 10 | O152: ='REPEX Support'!P228 -> 10 | P152: ='REPEX Support'!Q228 -> 11
A153: ED_REP221_00166 | D153: TS Replacement works | E153: ='REPEX Support'!F229 -> 0 | F153: ='REPEX Support'!G229 -> 0 | G153: ='REPEX Support'!H229 -> 0 | H153: ='REPEX Support'!I229 -> 0 | I153: ='REPEX Support'!J229 -> 0 | J153: ='REPEX Support'!K229 -> 0 | K153: ='REPEX Support'!L229 -> 0 | L153: ='REPEX Support'!M229 -> 0 | M153: ='REPEX Support'!N229 -> 0 | N153: ='REPEX Support'!O229 -> 0 | O153: ='REPEX Support'!P229 -> 0 | P153: ='REPEX Support'!Q229 -> 0 | Q153: 0 | R153: 0 | S153: 0 | T153: 0 | U153: 0 | V153: 0
A154: ED_REP221_00167 | D154: TS replace | E154: ='REPEX Support'!F230 -> 0 | F154: ='REPEX Support'!G230 -> 3422374.917 | G154: ='REPEX Support'!H230 -> 1008714.177 | H154: ='REPEX Support'!I230 -> 765761.085 | I154: ='REPEX Support'!J230 -> 0 | J154: ='REPEX Support'!K230 -> 0 | K154: ='REPEX Support'!L230 -> 0 | L154: ='REPEX Support'!M230 -> 0 | M154: ='REPEX Support'!N230 -> 0 | N154: ='REPEX Support'!O230 -> 0 | O154: ='REPEX Support'!P230 -> 0 | P154: ='REPEX Support'!Q230 -> 0 | Q154: 0 | R154: 0 | S154: 0 | T154: 0 | U154: 0 | V154: 0
A155: ED_REP221_00168 | Q155: 0 | R155: 0 | S155: 0 | T155: 0 | U155: 0 | V155: 0
A156: ED_REP221_00169
A157: ED_REP221_00170
A158: ED_REP221_00171
A159: ED_REP221_00172
A160: ED_REP221_00173
A161: ED_REP221_00174
A162: ED_REP221_00175
A163: ED_REP221_00176
A164: ED_REP221_00177
A165: ED_REP221_00178
A166: ED_REP221_00179
A167: ED_REP221_00180

Sheet REPEX Support
B1: EXPENDITURE ($0's, real December 2015) | F1: EXPENDITURE ($0's, real December 2015) | L1: ASSET REPLACEMENTS (0's)
A2: ASSET CATEGORY | B2: 2011 | C2: 2012 | D2: 2013 | E2: 2014 | F2: 2015 | G2: 2016 | H2: 2017 | I2: 2018 | J2: 2019 | K2: 2020 | L2: 2015 | M2: 2016 | N2: 2017 | O2: 2018 | P2: 2019 | Q2: 2020
A3: Staking of a wooden pole | B3: 419376.2834 | C3: 483776.172 | D3: 1210009.132 | E3: 1232572.79 | F3: 1329400.956 | G3: 1427273.204 | H3: 1542392.633 | I3: 1687617.851 | J3: 1844552.084 | K3: 1972425.147 | L3: 928 | M3: 1030 | N3: 1133 | O3: 1236 | P3: 1338 | Q3: 1440
A4: ˂ = 1 kV; Wood | B4: 1180437.052 | C4: 2253300.978 | D4: 2187245.94 | E4: 1776415.745 | F4: 2275983.844 | G4: 2477120.573 | H4: 2540694.814 | I4: 2612425.305 | J4: 2692633.856 | K4: 2774512.738 | L4: 345 | M4: 355 | N4: 366 | O4: 373 | P4: 381 | Q4: 390
A5: > 1 kV & < = 11 kV; Wood | B5: 558705.108 | C5: 758798.1662 | D5: 382580.8858 | E5: 1095414.103 | F5: 824619.5079 | G5: 629852.2628 | H5: 614608.3818 | I5: 600803.5724 | J5: 600124.351 | K5: 608733.6495 | L5: 66 | M5: 63 | N5: 60 | O5: 59 | P5: 58 | Q5: 58
A6: ˃ 11 kV & < = 22 kV; Wood | B6: 1247845.123 | C6: 3387198.343 | D6: 3539672.283 | E6: 3296308.126 | F6: 3171825.724 | G6: 2421364.476 | H6: 2364266.993 | I6: 2313104.418 | J6: 2312012.25 | K6: 2345737.78 | L6: 222 | M6: 210 | N6: 201 | O6: 196 | P6: 194 | Q6: 195
A7: > 22 kV & < = 66 kV; Wood | B7: 532891.1961 | C7: 796041.3882 | D7: 766434.5919 | E7: 489039.3349 | F7: 582982.2901 | G7: 419202.26 | H7: 439111.5478 | I7: 468018.4627 | J7: 497897.9534 | K7: 516177.6675 | L7: 26 | M7: 28 | N7: 30 | O7: 31 | P7: 33 | Q7: 34
A8: > 66 kV & < = 132 kV; Wood | B8: 0 | C8: 0 | D8: 0 | E8: 0 | F8: 0 | G8: 0 | H8: 0 | I8: 0 | J8: 0 | K8: 0 | L8: 0 | M8: 0 | N8: 0 | O8: 0 | P8: 0 | Q8: 0
A9: > 132 kV; Wood | B9: 0 | C9: 0 | D9: 0 | E9: 0 | F9: 0 | G9: 0 | H9: 0 | I9: 0 | J9: 0 | K9: 0 | L9: 0 | M9: 0 | N9: 0 | O9: 0 | P9: 0 | Q9: 0
A10: ˂ = 1 kV; Concrete | B10: 0 | C10: 0 | D10: 0 | E10: 0 | F10: 0 | G10: 0 | H10: 0 | I10: 0 | J10: 0 | K10: 0 | L10: 0 | M10: 0 | N10: 0 | O10: 0 | P10: 0 | Q10: 0
A11: > 1 kV & < = 11 kV; Concrete | B11: 0 | C11: 0 | D11: 0 | E11: 0 | F11: 0 | G11: 0 | H11: 0 | I11: 0 | J11: 0 | K11: 0 | L11: 0 | M11: 0 | N11: 0 | O11: 0 | P11: 0 | Q11: 0
A12: ˃ 11 kV & < = 22 kV; Concrete | B12: 0 | C12: 0 | D12: 0 | E12: 0 | F12: 0 | G12: 0 | H12: 0 | I12: 0 | J12: 0 | K12: 0 | L12: 0 | M12: 0 | N12: 0 | O12: 0 | P12: 0 | Q12: 0
A13: > 22 kV & < = 66 kV; Concrete | B13: 0 | C13: 0 | D13: 0 | E13: 0 | F13: 0 | G13: 0 | H13: 0 | I13: 0 | J13: 0 | K13: 0 | L13: 0 | M13: 0 | N13: 0 | O13: 0 | P13: 0 | Q13: 0
A14: > 66 kV & < = 132 kV; Concrete | B14: 0 | C14: 0 | D14: 0 | E14: 0 | F14: 0 | G14: 0 | H14: 0 | I14: 0 | J14: 0 | K14: 0 | L14: 0 | M14: 0 | N14: 0 | O14: 0 | P14: 0 | Q14: 0
A15: > 132 kV; Concrete | B15: 0 | C15: 0 | D15: 0 | E15: 0 | F15: 0 | G15: 0 | H15: 0 | I15: 0 | J15: 0 | K15: 0 | L15: 0 | M15: 0 | N15: 0 | O15: 0 | P15: 0 | Q15: 0
A16: ˂ = 1 kV; Steel | B16: 0 | C16: 0 | D16: 0 | E16: 0 | F16: 0 | G16: 0 | H16: 0 | I16: 0 | J16: 0 | K16: 0 | L16: 0 | M16: 0 | N16: 0 | O16: 0 | P16: 0 | Q16: 0
A17: > 1 kV & < = 11 kV; Steel | B17: 0 | C17: 0 | D17: 0 | E17: 0 | F17: 0 | G17: 0 | H17: 0 | I17: 0 | J17: 0 | K17: 0 | L17: 0 | M17: 0 | N17: 0 | O17: 0 | P17: 0 | Q17: 0
A18: ˃ 11 kV & < = 22 kV; Steel | B18: 0 | C18: 0 | D18: 0 | E18: 0 | F18: 0 | G18: 0 | H18: 0 | I18: 0 | J18: 0 | K18: 0 | L18: 0 | M18: 0 | N18: 0 | O18: 0 | P18: 0 | Q18: 0
A19: > 22 kV & < = 66 kV; Steel | B19: 0 | C19: 0 | D19: 0 | E19: 0 | F19: 0 | G19: 0 | H19: 0 | I19: 0 | J19: 0 | K19: 0 | L19: 0 | M19: 0 | N19: 0 | O19: 0 | P19: 0 | Q19: 0
A20: > 66 kV & < = 132 kV; Steel | B20: 0 | C20: 0 | D20: 0 | E20: 0 | F20: 0 | G20: 0 | H20: 0 | I20: 0 | J20: 0 | K20: 0 | L20: 0 | M20: 0 | N20: 0 | O20: 0 | P20: 0 | Q20: 0
A21: > 132 kV; Steel | B21: 0 | C21: 0 | D21: 0 | E21: 0 | F21: 0 | G21: 0 | H21: 0 | I21: 0 | J21: 0 | K21: 0 | L21: 0 | M21: 0 | N21: 0 | O21: 0 | P21: 0 | Q21: 0
A22: Staking of ˂ ≈ 1 kV ; WOOD | B22: 198268.0722 | C22: 305677.987 | D22: 686703.4471 | E22: 679325.4857 | F22: 732338.9835 | G22: 783494.7556 | H22: 841915.9229 | I22: 916025.5635 | J22: 996160.1281 | K22: 1062356.924 | L22: 535 | M22: 589 | N22: 643 | O22: 697 | P22: 751 | Q22: 805
A23: Staking ˃ 1 kV & ˂ ≈ 11 kV ; WOOD | B23: 53997.8021 | C23: 26918.59901 | D23: 166267.2311 | E23: 130126.3292 | F23: 159256.4622 | G23: 170805.1057 | H23: 185995.0555 | I23: 205055.5233 | J23: 225787.645 | K23: 242266.5335 | L23: 105 | M23: 118 | N23: 131 | O23: 144 | P23: 157 | Q23: 170
A24: STAKING ≈ 22 kV ; WOOD ; | B24: 141591.0747 | C24: 133970.1737 | D24: 299345.6604 | E24: 398104.7349 | F24: 394978.371 | G24: 424229.7821 | H24: 461858.5006 | I24: 509069.9951 | J24: 560323.5752 | K24: 601174.9939 | L24: 260 | M24: 292 | N24: 324 | O24: 357 | P24: 389 | Q24: 421
A25: Staking ≈ 66 kV ; WOOD ; | B25: 25519.33448 | C25: 17209.41231 | D25: 57692.79345 | E25: 25016.23992 | F25: 42827.1393 | G25: 48743.56054 | H25: 52623.15374 | I25: 57466.76897 | J25: 62280.7359 | K25: 66626.69487 | L25: 28 | M25: 31 | N25: 35 | O25: 38 | P25: 41 | Q25: 44
A26: Other | B26: 0 | C26: 0 | D26: 0 | E26: 0 | F26: 0 | G26: 0 | H26: 0 | I26: 0 | J26: 0 | K26: 0 | L26: 0 | M26: 0 | N26: 0 | O26: 0 | P26: 0 | Q26: 0
A27: ˂ = 1 kV | B27: 2566350.889 | C27: 6109845.444 | D27: 10415824.05 | E27: 22132532.16 | F27: 13524523.71 | G27: 6562183.583 | H27: 5793349.033 | I27: 6274377.179 | J27: 6385864.927 | K27: 6636970.661 | L27: 4617 | M27: 2702 | N27: 2786 | O27: 2867 | P27: 2941 | Q27: 3010
A28: > 1 kV & < = 11 kV | B28: 528308.4122 | C28: 733673.5411 | D28: 952838.8262 | E28: 4182576.931 | F28: 2696581.124 | G28: 1371627.01 | H28: 1385360.229 | I28: 1544576.583 | J28: 1522762.739 | K28: 1538146.009 | L28: 694 | M28: 663 | N28: 658 | O28: 651 | P28: 644 | Q28: 636
A29: ˃ 11 kV & < = 22 kV | B29: 2084852.812 | C29: 4750603.226 | D29: 4717740.71 | E29: 10502855.2 | F29: 9496789.399 | G29: 7312105.14 | H29: 7334453.473 | I29: 7252509.88 | J29: 7190677.876 | K29: 7112899.536 | L29: 2762 | M29: 2583 | N29: 2601 | O29: 2617 | P29: 2628 | Q29: 2636
A30: > 22 kV & < = 66 kV | B30: 251241.872 | C30: 376220.5823 | D30: 321778.0403 | E30: 1012236.333 | F30: 867331.9932 | G30: 676844.43 | H30: 679185.4717 | I30: 712182.9236 | J30: 712835.3258 | K30: 734003.5844 | L30: 314 | M30: 202 | N30: 205 | O30: 207 | P30: 211 | Q30: 212
A31: > 66 kV & < = 132 kV | B31: 0 | C31: 0 | D31: 0 | E31: 0 | F31: 0 | G31: 0 | H31: 0 | I31: 0 | J31: 0 | K31: 0 | L31: 0 | M31: 0 | N31: 0 | O31: 0 | P31: 0 | Q31: 0
A32: > 132 kV | B32: 0 | C32: 0 | D32: 0 | E32: 0 | F32: 0 | G32: 0 | H32: 0 | I32: 0 | J32: 0 | K32: 0 | L32: 0 | M32: 0 | N32: 0 | O32: 0 | P32: 0 | Q32: 0
A33: Other | B33: 0 | C33: 0 | D33: 0 | E33: 0 | F33: 0 | G33: 0 | H33: 0 | I33: 0 | J33: 0 | K33: 0 | L33: 0 | M33: 0 | N33: 0 | O33: 0 | P33: 0 | Q33: 0
A34: PTOP - UNMODELLED | B34: 1341011.289 | C34: 111692.2503 | D34: 21484.98513 | E34: 444734.7076 | F34: 1671455.85 | G34: 2682397.651 | H34: 3362955.466 | I34: 4068345.716 | J34: 4144018.026 | K34: 4575977.417 | L34: 460 | M34: 888 | N34: 1110 | O34: 1336 | P34: 1354 | Q34: 1487
B35: 0 | C35: 0 | D35: 0 | E35: 0 | F35: 0 | G35: 0 | H35: 0 | I35: 0 | J35: 0 | K35: 0 | L35: 0 | M35: 0 | N35: 0 | O35: 0 | P35: 0 | Q35: 0
A36: ˂ = 1 kV | B36: 3325.759686 | C36: 664.8161172 | D36: 1105.801674 | E36: 66641.31158 | F36: 31600.38577 | G36: 61701.3854 | H36: 86137.01132 | I36: 86333.59312 | J36: 62884.64654 | K36: 42432.09833 | L36: 195 | M36: 408 | N36: 629 | O36: 651 | P36: 461 | Q36: 271
A37: > 1 kV & < = 11 kV | B37: 0 | C37: 0 | D37: 0 | E37: 47548.21725 | F37: 24981.51738 | G37: 43960.51992 | H37: 53121.35223 | I37: 52476.53106 | J37: 39310.11822 | K37: 105271.8436 | L37: 170 | M37: 353 | N37: 542 | O37: 561 | P37: 397 | Q37: 254
A38: ˃ 11 kV & < = 22 kV ; SWER | B38: 0 | C38: 306707.1632 | D38: 8139.701593 | E38: 352053.9766 | F38: 0 | G38: 0 | H38: 0 | I38: 0 | J38: 0 | K38: 0 | L38: 0 | M38: 0 | N38: 0 | O38: 0 | P38: 0 | Q38: 0
A39: ˃ 11 kV & < = 22 kV ; Single-Phase | B39: 0 | C39: 0 | D39: 0 | E39: 44993.40948 | F39: 15444.90486 | G39: 30433.63066 | H39: 42486.27437 | I39: 42583.2365 | J39: 31017.26314 | K39: 20929.23522 | L39: 96 | M39: 201 | N39: 310 | O39: 321 | P39: 227 | Q39: 134
A40: ˃ 11 kV & < = 22 kV ; Multiple-Phase | B40: 1573116.625 | C40: 578016.1553 | D40: 318755.1818 | E40: 542884.5291 | F40: 322171.2475 | G40: 614244.7593 | H40: 836882.195 | I40: 836876.99 | J40: 612290.6613 | K40: 610017.0603 | L40: 3750 | M40: 7600 | N40: 9883 | O40: 8447 | P40: 4797 | Q40: 2882
A41: > 22 kV & < = 66 kV | B41: 0 | C41: 0 | D41: 0 | E41: 7228.957759 | F41: 2481.487091 | G41: 4889.681246 | H41: 6826.14379 | I41: 6841.722409 | J41: 4983.451746 | K41: 3362.638198 | L41: 15 | M41: 32 | N41: 50 | O41: 52 | P41: 36 | Q41: 21
A42: > 66 kV & < = 132 kV | B42: 0 | C42: 0 | D42: 0 | E42: 0 | F42: 0 | G42: 0 | H42: 0 | I42: 0 | J42: 0 | K42: 0 | L42: 0 | M42: 0 | N42: 0 | O42: 0 | P42: 0 | Q42: 0
A43: > 132 kV | B43: 0 | C43: 0 | D43: 0 | E43: 0 | F43: 0 | G43: 0 | H43: 0 | I43: 0 | J43: 0 | K43: 0 | L43: 0 | M43: 0 | N43: 0 | O43: 0 | P43: 0 | Q43: 0
A44: ˂ ≈ 1 kV ; COVERED / ABC | B44: 1474245.96 | C44: 707150.281 | D44: 1452399.489 | E44: 80850.12723 | F44: 225928.6819 | G44: 209484.8769 | H44: 221578.7329 | I44: 234038.3854 | J44: 273005.8948 | K44: 309677.1765 | L44: 2160 | M44: 2259 | N44: 2362 | O44: 2469 | P44: 2579 | Q44: 3522
A45: ˃ 11 kV & ˂ ≈ 22 kV ; COVERED / ABC | B45: 15358.62819 | C45: 0 | D45: 0 | E45: 20689.57845 | F45: 1010945.643 | G45: 5477480.568 | H45: 5310182.78 | I45: 7121686.762 | J45: 5531997.958 | K45: 6731307.403 | L45: 1609 | M45: 12292 | N45: 10006 | O45: 4925 | P45: 9245 | Q45: 11853
A46: Other | B46: 0 | C46: 0 | D46: 0 | E46: 0 | F46: 0 | G46: 0 | H46: 0 | I46: 0 | J46: 0 | K46: 0 | L46: 0 | M46: 0 | N46: 0 | O46: 0 | P46: 0 | Q46: 0
A47: SWER-Replace bushfire | B47: 0 | C47: 0 | D47: 0 | E47: 0 | F47: 1875706.386 | G47: 0 | H47: 0 | I47: 0 | J47: 0 | K47: 0 | L47: 4077 | M47: 0 | N47: 0 | O47: 0 | P47: 0 | Q47: 0
A48: AMPACT - UNMODELLED | B48: 469222.4456 | C48: 590659.4153 | D48: 1555324.531 | E48: 1477073.958 | F48: 1340386.774 | G48: 934712.2355 | H48: 939359.0984 | I48: 944083.2151 | J48: 951165.0079 | K48: 964907.1588 | L48: 3280 | M48: 2208 | N48: 2208 | O48: 2208 | P48: 2208 | Q48: 2208
A49: Clashing - UNMODELLED | B49: 942436.4305 | C49: 497887.2314 | D49: 62711.49308 | E49: -76427.71902 | F49: 98273.20847 | G49: 94626.96564 | H49: 95083.38407 | I49: 95601.91929 | J49: 96239.17097 | K49: 97708.82988 | L49: 368 | M49: 336 | N49: 336 | O49: 336 | P49: 336 | Q49: 336
A50: Dampers - UNMODELLED | B50: 0 | C50: 30719.12015 | D50: 1071237.085 | E50: 1442940.209 | F50: 919362.272 | G50: 952952.3855 | H50: 957667.3098 | I50: 962019.1574 | J50: 970240.826 | K50: 984207.4777 | L50: 958 | M50: 1000 | N50: 1000 | O50: 1000 | P50: 1000 | Q50: 1000
A51: LV ABC other | B51: 252514.758 | C51: 16227.19556 | D51: 1480.081876 | E51: -11097.48345 | F51: 0 | G51: 149028.9753 | H51: 300057.3663 | I51: 301428.0576 | J51: 304013.389 | K51: 308400.6299 | L51: 1759.5 | M51: 1859 | N51: 1961.5 | O51: 2068.5 | P51: 2179 | Q51: 3121.5
A52: ˂ = 1 kV | B52: 2262883.169 | C52: 1329804.798 | D52: 828371.9567 | E52: 805457.1868 | F52: 1086694.346 | G52: 1178769.949 | H52: 1221151.67 | I52: 1265068.541 | J52: 1315597.668 | K52: 1372871.765 | L52: 2928 | M52: 3072 | N52: 3220 | O52: 3370 | P52: 3414 | Q52: 3370
A53: > 1 kV & < = 11 kV | B53: 772935.5834 | C53: 1060361.76 | D53: 1547188.228 | E53: 796792.5826 | F53: 673533.3602 | G53: 531217.8955 | H53: 555450.0468 | I53: 580101.0408 | J53: 605325.5477 | K53: 635186.2806 | L53: 466 | M53: 488 | N53: 510 | O53: 533 | P53: 556 | Q53: 580
A54: > 11 kV & < = 22 kV | B54: 2111254.473 | C54: 1666488.153 | D54: 1777035.171 | E54: 1806657.93 | F54: 2813442.244 | G54: 2339842.149 | H54: 2451745.792 | I54: 2563949.502 | J54: 2683329.481 | K54: 2822211.751 | L54: 2254 | M54: 2360 | N54: 2472 | O54: 2584 | P54: 2697 | Q54: 2812
B55: 0 | C55: 0 | D55: 0 | E55: 0 | F55: 0 | G55: 0 | H55: 0 | I55: 0 | J55: 0 | K55: 0 | L55: 0 | M55: 0 | N55: 0 | O55: 0 | P55: 0 | Q55: 0
B56: 0 | C56: 0 | D56: 0 | E56: 0 | F56: 0 | G56: 0 | H56: 0 | I56: 0 | J56: 0 | K56: 0 | L56: 0 | M56: 0 | N56: 0 | O56: 0 | P56: 0 | Q56: 0
A57: > 22 kV & < = 33 kV | B57: 0 | C57: 0 | D57: 0 | E57: 0 | F57: 0 | G57: 0 | H57: 0 | I57: 0 | J57: 0 | K57: 0 | L57: 0 | M57: 0 | N57: 0 | O57: 0 | P57: 0 | Q57: 0
A58: > 33 kV & < = 66 kV | B58: 0 | C58: 0 | D58: 0 | E58: 0 | F58: 0 | G58: 0 | H58: 0 | I58: 0 | J58: 0 | K58: 0 | L58: 0 | M58: 0 | N58: 0 | O58: 0 | P58: 0 | Q58: 0
A59: > 66 kV & < = 132 kV | B59: 0 | C59: 0 | D59: 0 | E59: 0 | F59: 0 | G59: 0 | H59: 0 | I59: 0 | J59: 0 | K59: 0 | L59: 0 | M59: 0 | N59: 0 | O59: 0 | P59: 0 | Q59: 0
A60: > 132 kV | B60: 0 | C60: 0 | D60: 0 | E60: 0 | F60: 0 | G60: 0 | H60: 0 | I60: 0 | J60: 0 | K60: 0 | L60: 0 | M60: 0 | N60: 0 | O60: 0 | P60: 0 | Q60: 0
A61: LV UG SERVICE PITS | B61: 1022217.666 | C61: 1359589.151 | D61: 147138.4056 | E61: 21010.54506 | F61: 667230.7259 | G61: 611581.4088 | H61: 575883.3513 | I61: 540514.4233 | J61: 510144.9439 | K61: 476324.6596 | L61: 131 | M61: 126 | N61: 121 | O61: 116 | P61: 110 | Q61: 105
A62: Doncaster Pillar to Pit | B62: 0 | C62: 0 | D62: 1425300.016 | E62: 3690000.214 | F62: 3255514.296 | G62: 2766109.542 | H62: 2779531.403 | I62: 2792228.573 | J62: 2307866.58 | K62: 913934.3203 | L62: 275 | M62: 250 | N62: 250 | O62: 250 | P62: 200 | Q62: 80
A63: LV SERVICE PILLARS | B63: 376084.1059 | C63: 173952.5105 | D63: 279167.6464 | E63: 251945.1371 | F63: 507331.9973 | G63: 283388.228 | H63: 258909.7309 | I63: 236246.3666 | J63: 213549.993 | K63: 189893.9413 | L63: 171 | M63: 157 | N63: 144 | O63: 130 | P63: 116 | Q63: 103
A64: LIGHTNING /SURGE ARRESTORS | B64: 277871.4548 | C64: 615499.0131 | D64: 806074.6147 | E64: 891167.5013 | F64: 1298402.777 | G64: 1150173.169 | H64: 1162129.826 | I64: 1175277.596 | J64: 1194426.28 | K64: 1219336.097 | L64: 369 | M64: 372 | N64: 374 | O64: 377 | P64: 379 | Q64: 382
A65: Other | B65: 0 | C65: 0 | D65: 0 | E65: 0 | F65: 0 | G65: 0 | H65: 0 | I65: 0 | J65: 0 | K65: 0 | L65: 0 | M65: 0 | N65: 0 | O65: 0 | P65: 0 | Q65: 0
A66: ˂ = 11 kV ; Residential ; Simple Type | B66: 13479826.51 | C66: 15295651.18 | D66: 14160484.57 | E66: 8139069.786 | F66: 8854863.173 | G66: 7654715.022 | H66: 5588926.915 | I66: 4794299.636 | J66: 4877304.08 | K66: 4987522.658 | L66: 17406 | M66: 17779 | N66: 9384 | O66: 9443 | P66: 9512 | Q66: 9595
A67: ˂ = 11 kV ; Commercial & Industrial ; Simple Type | B67: 543308.9635 | C67: 419654.8216 | D67: 323020.4032 | E67: 384805.9162 | F67: 242297.2895 | G67: 212492.8754 | H67: 155931.0753 | I67: 134155.9593 | J67: 136512.0483 | K67: 139560.427 | L67: 442 | M67: 452 | N67: 224 | O67: 226 | P67: 228 | Q67: 230
A68: ˂ = 11 kV ; Residential ; Complex Type | B68: 880944.0948 | C68: 884846.23 | D68: 952535.1877 | E68: 2937330.05 | F68: 1118326.13 | G68: 1038198.348 | H68: 836755.5829 | I68: 759880.5181 | J68: 770808.3078 | K68: 785705.6367 | L68: 2171 | M68: 2206 | N68: 1417 | O68: 1423 | P68: 1429 | Q68: 1437
A69: ˂ = 11 kV ; Commercial & Industrial ; Complex Type | B69: 107456.2835 | C69: 120629.749 | D69: 141242.8554 | E69: 75785.20591 | F69: 128281.6494 | G69: 137541.4527 | H69: 135118.5832 | I69: 134479.3695 | J69: 135772.4115 | K69: 137729.4389 | L69: 286 | M69: 287 | N69: 275 | O69: 275 | P69: 275 | Q69: 275
A70: ˂ = 11 kV ; Subdivision ; Complex Type | B70: 0 | C70: 0 | D70: 0 | E70: 0 | F70: 0 | G70: 0 | H70: 0 | I70: 0 | J70: 0 | K70: 0 | L70: 0 | M70: 0 | N70: 0 | O70: 0 | P70: 0 | Q70: 0
A71: > 11 kV & < = 22 kV ; Commercial & Industrial | B71: 0 | C71: 0 | D71: 0 | E71: 0 | F71: 0 | G71: 0 | H71: 0 | I71: 0 | J71: 0 | K71: 0 | L71: 0 | M71: 0 | N71: 0 | O71: 0 | P71: 0 | Q71: 0
A72: > 11 kV & < = 22 kV ; Subdivision | B72: 0 | C72: 0 | D72: 0 | E72: 0 | F72: 0 | G72: 0 | H72: 0 | I72: 0 | J72: 0 | K72: 0 | L72: 0 | M72: 0 | N72: 0 | O72: 0 | P72: 0 | Q72: 0
A73: > 22 kV & < = 33 kV ; Commercial & Industrial | B73: 0 | C73: 0 | D73: 0 | E73: 0 | F73: 0 | G73: 0 | H73: 0 | I73: 0 | J73: 0 | K73: 0 | L73: 0 | M73: 0 | N73: 0 | O73: 0 | P73: 0 | Q73: 0
A74: > 22 kV & < = 33 kV ; Subdivision | B74: 0 | C74: 0 | D74: 0 | E74: 0 | F74: 0 | G74: 0 | H74: 0 | I74: 0 | J74: 0 | K74: 0 | L74: 0 | M74: 0 | N74: 0 | O74: 0 | P74: 0 | Q74: 0
A75: > 33 kV & < = 66 kV ; Commercial & Industrial | B75: 0 | C75: 0 | D75: 0 | E75: 0 | F75: 0 | G75: 0 | H75: 0 | I75: 0 | J75: 0 | K75: 0 | L75: 0 | M75: 0 | N75: 0 | O75: 0 | P75: 0 | Q75: 0
A76: > 33 kV & < = 66 kV ; Subdivision | B76: 0 | C76: 0 | D76: 0 | E76: 0 | F76: 0 | G76: 0 | H76: 0 | I76: 0 | J76: 0 | K76: 0 | L76: 0 | M76: 0 | N76: 0 | O76: 0 | P76: 0 | Q76: 0
A77: > 66 kV & < = 132 kV ; Commercial & Industrial | B77: 0 | C77: 0 | D77: 0 | E77: 0 | F77: 0 | G77: 0 | H77: 0 | I77: 0 | J77: 0 | K77: 0 | L77: 0 | M77: 0 | N77: 0 | O77: 0 | P77: 0 | Q77: 0
A78: > 66 kV & < = 132 kV ; Subdivision | B78: 0 | C78: 0 | D78: 0 | E78: 0 | F78: 0 | G78: 0 | H78: 0 | I78: 0 | J78: 0 | K78: 0 | L78: 0 | M78: 0 | N78: 0 | O78: 0 | P78: 0 | Q78: 0
A79: > 132 kV ; Commercial & Industrial | B79: 0 | C79: 0 | D79: 0 | E79: 0 | F79: 0 | G79: 0 | H79: 0 | I79: 0 | J79: 0 | K79: 0 | L79: 0 | M79: 0 | N79: 0 | O79: 0 | P79: 0 | Q79: 0
A80: > 132 kV ; Subdivision | B80: 0 | C80: 0 | D80: 0 | E80: 0 | F80: 0 | G80: 0 | H80: 0 | I80: 0 | J80: 0 | K80: 0 | L80: 0 | M80: 0 | N80: 0 | O80: 0 | P80: 0 | Q80: 0
A81: Other | B81: 0 | C81: 0 | D81: 0 | E81: 0 | F81: 0 | G81: 0 | H81: 0 | I81: 0 | J81: 0 | K81: 0 | L81: 0 | M81: 0 | N81: 0 | O81: 0 | P81: 0 | Q81: 0
A82: Service pole - UNMODELLED | B82: 32338.00106 | C82: 28494.47243 | D82: 29195.27047 | E82: 12203.35343 | F82: 16879.47017 | G82: 15717.29042 | H82: 15779.58915 | I82: 15841.5135 | J82: 15993.8993 | K82: 16225.26619 | L82: 6 | M82: 6 | N82: 6 | O82: 6 | P82: 6 | Q82: 6
A83: Pole Mounted ; < = 22kV ; < = 60 kVA ; Single Phase | B83: 0 | C83: 0 | D83: 0 | E83: 0 | F83: 0 | G83: 0 | H83: 0 | I83: 0 | J83: 0 | K83: 0 | L83: 0 | M83: 0 | N83: 0 | O83: 0 | P83: 0 | Q83: 0
A84: Pole Mounted ; < = 22kV ; > 60 kVA and < = 600 kVA ; Single Phase | B84: 0 | C84: 0 | D84: 0 | E84: 0 | F84: 0 | G84: 0 | H84: 0 | I84: 0 | J84: 0 | K84: 0 | L84: 0 | M84: 0 | N84: 0 | O84: 0 | P84: 0 | Q84: 0
A85: Pole Mounted ; < = 22kV ; > 600 kVA ; Single Phase | B85: 0 | C85: 0 | D85: 0 | E85: 0 | F85: 0 | G85: 0 | H85: 0 | I85: 0 | J85: 0 | K85: 0 | L85: 0 | M85: 0 | N85: 0 | O85: 0 | P85: 0 | Q85: 0
A86: Pole Mounted ; < = 22kV ; < = 60 kVA ; Multiple Phase | B86: 0 | C86: 0 | D86: 0 | E86: 0 | F86: 0 | G86: 0 | H86: 0 | I86: 0 | J86: 0 | K86: 0 | L86: 0 | M86: 0 | N86: 0 | O86: 0 | P86: 0 | Q86: 0
A87: Pole Mounted ; < = 22kV ; > 60 kVA and < = 600 kVA ; Multiple Phase | B87: 0 | C87: 0 | D87: 0 | E87: 0 | F87: 0 | G87: 0 | H87: 0 | I87: 0 | J87: 0 | K87: 0 | L87: 0 | M87: 0 | N87: 0 | O87: 0 | P87: 0 | Q87: 0
A88: Pole Mounted ; < = 22kV ; > 600 kVA ; Multiple Phase | B88: 0 | C88: 0 | D88: 0 | E88: 0 | F88: 0 | G88: 0 | H88: 0 | I88: 0 | J88: 0 | K88: 0 | L88: 0 | M88: 0 | N88: 0 | O88: 0 | P88: 0 | Q88: 0
A89: Kiosk Mounted ; < = 22kV ; < = 60 kVA ; Single Phase | B89: 0 | C89: 0 | D89: 0 | E89: 0 | F89: 0 | G89: 0 | H89: 0 | I89: 0 | J89: 0 | K89: 0 | L89: 0 | M89: 0 | N89: 0 | O89: 0 | P89: 0 | Q89: 0
A90: Kiosk Mounted ; < = 22kV ; > 60 kVA and < = 600 kVA ; Single Phase | B90: 0 | C90: 0 | D90: 0 | E90: 0 | F90: 0 | G90: 0 | H90: 0 | I90: 0 | J90: 0 | K90: 0 | L90: 0 | M90: 0 | N90: 0 | O90: 0 | P90: 0 | Q90: 0
A91: Kiosk Mounted ; < = 22kV ; > 600 kVA ; Single Phase | B91: 0 | C91: 0 | D91: 0 | E91: 0 | F91: 0 | G91: 0 | H91: 0 | I91: 0 | J91: 0 | K91: 0 | L91: 0 | M91: 0 | N91: 0 | O91: 0 | P91: 0 | Q91: 0
A92: Kiosk Mounted ; < = 22kV ; < = 60 kVA ; Multiple Phase | B92: 0 | C92: 0 | D92: 0 | E92: 0 | F92: 0 | G92: 0 | H92: 0 | I92: 0 | J92: 0 | K92: 0 | L92: 0 | M92: 0 | N92: 0 | O92: 0 | P92: 0 | Q92: 0
A93: Kiosk Mounted ; < = 22kV ; > 60 kVA and < = 600 kVA ; Multiple Phase | B93: 0 | C93: 0 | D93: 0 | E93: 0 | F93: 0 | G93: 0 | H93: 0 | I93: 0 | J93: 0 | K93: 0 | L93: 0 | M93: 0 | N93: 0 | O93: 0 | P93: 0 | Q93: 0
A94: Kiosk Mounted ; < = 22kV ; > 600 kVA ; Multiple Phase | B94: 0 | C94: 0 | D94: 0 | E94: 0 | F94: 0 | G94: 0 | H94: 0 | I94: 0 | J94: 0 | K94: 0 | L94: 0 | M94: 0 | N94: 0 | O94: 0 | P94: 0 | Q94: 0
A95: Ground Outdoor / Indoor Chamber Mounted; ˂ 22 kV ; < = 60 kVA ; Single Phase | B95: 0 | C95: 0 | D95: 0 | E95: 0 | F95: 0 | G95: 0 | H95: 0 | I95: 0 | J95: 0 | K95: 0 | L95: 0 | M95: 0 | N95: 0 | O95: 0 | P95: 0 | Q95: 0
A96: Ground Outdoor / Indoor Chamber Mounted; ˂ 22 kV ; > 60 kVA and < = 600 kVA ; Single Phase | B96: 0 | C96: 0 | D96: 0 | E96: 0 | F96: 0 | G96: 0 | H96: 0 | I96: 0 | J96: 0 | K96: 0 | L96: 0 | M96: 0 | N96: 0 | O96: 0 | P96: 0 | Q96: 0
A97: Ground Outdoor / Indoor Chamber Mounted; ˂ 22 kV ; > 600 kVA ; Single Phase | B97: 0 | C97: 0 | D97: 0 | E97: 0 | F97: 0 | G97: 0 | H97: 0 | I97: 0 | J97: 0 | K97: 0 | L97: 0 | M97: 0 | N97: 0 | O97: 0 | P97: 0 | Q97: 0
A98: Ground Outdoor / Indoor Chamber Mounted; ˂ 22 kV ; < = 60 kVA ; Multiple Phase | B98: 0 | C98: 0 | D98: 0 | E98: 0 | F98: 0 | G98: 0 | H98: 0 | I98: 0 | J98: 0 | K98: 0 | L98: 0 | M98: 0 | N98: 0 | O98: 0 | P98: 0 | Q98: 0
A99: Ground Outdoor / Indoor Chamber Mounted; ˂ 22 kV ; > 60 kVA and < = 600 kVA ; Multiple Phase | B99: 0 | C99: 0 | D99: 0 | E99: 0 | F99: 0 | G99: 0 | H99: 0 | I99: 0 | J99: 0 | K99: 0 | L99: 0 | M99: 0 | N99: 0 | O99: 0 | P99: 0 | Q99: 0
A100: Ground Outdoor / Indoor Chamber Mounted; ˂ 22 kV ; > 600 kVA ; Multiple Phase | B100: 0 | C100: 0 | D100: 0 | E100: 0 | F100: 0 | G100: 0 | H100: 0 | I100: 0 | J100: 0 | K100: 0 | L100: 0 | M100: 0 | N100: 0 | O100: 0 | P100: 0 | Q100: 0
A101: Ground Outdoor / Indoor Chamber Mounted; > = 22 kV & < = 33 kV ; < = 15 MVA | B101: 0 | C101: 0 | D101: 0 | E101: 2553466.764 | F101: 1735276.588 | G101: 1012049.485 | H101: 1000780.458 | I101: 999245.3833 | J101: 1009464.091 | K101: 0 | L101: 1 | M101: 0 | N101: 1 | O101: 0 | P101: 1 | Q101: 0
A102: Ground Outdoor / Indoor Chamber Mounted; > = 22 kV & < = 33 kV ; > 15 MVA and < = 40 MVA | B102: 0 | C102: 0 | D102: 0 | E102: 0 | F102: 0 | G102: 0 | H102: 0 | I102: 0 | J102: 0 | K102: 0 | L102: 0 | M102: 0 | N102: 0 | O102: 0 | P102: 0 | Q102: 0
A103: Ground Outdoor / Indoor Chamber Mounted; > = 22 kV & < = 33 kV ; > 40 MVA | B103: 0 | C103: 0 | D103: 0 | E103: 0 | F103: 0 | G103: 0 | H103: 0 | I103: 0 | J103: 0 | K103: 0 | L103: 0 | M103: 0 | N103: 0 | O103: 0 | P103: 0 | Q103: 0
A104: Ground Outdoor / Indoor Chamber Mounted; > 33 kV & < = 66 kV ; < = 15 MVA | B104: 0 | C104: 0 | D104: 0 | E104: 0 | F104: 0 | G104: 0 | H104: 0 | I104: 0 | J104: 0 | K104: 0 | L104: 0 | M104: 0 | N104: 0 | O104: 0 | P104: 0 | Q104: 0
A105: Ground Outdoor / Indoor Chamber Mounted; > 33 kV & < = 66 kV ; > 15 MVA and < = 40 MVA | B105: 6198751.213 | C105: 2852426.183 | D105: 2141170.264 | E105: 760252.0537 | F105: 556007.5194 | G105: 5327283.823 | H105: 10725848.4 | I105: 11424988.04 | J105: 9170644.862 | K105: 4808688.226 | L105: 0 | M105: 3 | N105: 2 | O105: 4 | P105: 3 | Q105: 3
A106: Ground Outdoor / Indoor Chamber Mounted; > 33 kV & < = 66 kV ; > 40 MVA | B106: 0 | C106: 0 | D106: 0 | E106: 0 | F106: 0 | G106: 0 | H106: 0 | I106: 0 | J106: 0 | K106: 0 | L106: 0 | M106: 0 | N106: 0 | O106: 0 | P106: 0 | Q106: 0
A107: Ground Outdoor / Indoor Chamber Mounted; > 66 kV & < = 132 kV ; < = 100 MVA | B107: 0 | C107: 0 | D107: 0 | E107: 0 | F107: 0 | G107: 0 | H107: 0 | I107: 0 | J107: 0 | K107: 0 | L107: 0 | M107: 0 | N107: 0 | O107: 0 | P107: 0 | Q107: 0
A108: Ground Outdoor / Indoor Chamber Mounted; > 66 kV & < = 132 kV ; > 100 MVA | B108: 0 | C108: 0 | D108: 0 | E108: 0 | F108: 0 | G108: 0 | H108: 0 | I108: 0 | J108: 0 | K108: 0 | L108: 0 | M108: 0 | N108: 0 | O108: 0 | P108: 0 | Q108: 0
A109: Ground Outdoor / Indoor Chamber Mounted; > 132 kV ; < = 100 MVA | B109: 0 | C109: 0 | D109: 0 | E109: 0 | F109: 0 | G109: 0 | H109: 0 | I109: 0 | J109: 0 | K109: 0 | L109: 0 | M109: 0 | N109: 0 | O109: 0 | P109: 0 | Q109: 0
A110: Ground Outdoor / Indoor Chamber Mounted; > 132 kV ; > 100 MVA | B110: 0 | C110: 0 | D110: 0 | E110: 0 | F110: 0 | G110: 0 | H110: 0 | I110: 0 | J110: 0 | K110: 0 | L110: 0 | M110: 0 | N110: 0 | O110: 0 | P110: 0 | Q110: 0
A111: POLE MOUNTED ; < = 11kV ; > 60 kVA AND < = 600 kVA ; MULTIPLE PHASE | B111: 0 | C111: 0 | D111: 0 | E111: 0 | F111: 0 | G111: 0 | H111: 0 | I111: 0 | J111: 0 | K111: 0 | L111: 0 | M111: 0 | N111: 0 | O111: 0 | P111: 0 | Q111: 0
A112: POLE MOUNTED ; < = 11kV ; > 60 kVA AND < = 600 kVA ; MULTIPLE PHASE | B112: 177098.7457 | C112: 59270.77608 | D112: 101709.1918 | E112: 174598.8801 | F112: 148697.533 | G112: 115849.2015 | H112: 126808.72 | I112: 136321.7853 | J112: 148135.6351 | K112: 162560.3559 | L112: 7 | M112: 7 | N112: 8 | O112: 8 | P112: 9 | Q112: 9
A113: POLE MOUNTED ; > 11kV AND < = 22kV ; < = 60 kVA ; MULTIPLE PHASE | B113: 0 | C113: 0 | D113: 0 | E113: 0 | F113: 0 | G113: 0 | H113: 0 | I113: 0 | J113: 0 | K113: 0 | L113: 5 | M113: 5 | N113: 6 | O113: 6 | P113: 7 | Q113: 7
A114: POLE MOUNTED ; >11kV AND < = 22kV ; > 60 kVA AND < = 600 kVA ; MULTIPLE PHASE | B114: 920805.8965 | C114: 833581.1623 | D114: 1111774.214 | E114: 563381.1697 | F114: 753501.5576 | G114: 666399.4334 | H114: 733514.1268 | I114: 796959.8227 | J114: 870738.6934 | K114: 957835.4638 | L114: 66 | M114: 72 | N114: 79 | O114: 88 | P114: 96 | Q114: 102
A115: POLE MOUNTED ; > 11kV AND < = 22kV ; < = 60 kVA ; SINGLE PHASE | B115: 49850.01294 | C115: 111496.7587 | D115: 177626.3311 | E115: 203180.8324 | F115: 135652.18 | G115: 161754.9092 | H115: 179934.5985 | I115: 199381.3387 | J115: 219990.2907 | K115: 243043.0408 | L115: 19 | M115: 21 | N115: 23 | O115: 26 | P115: 28 | Q115: 30
A116: POLE MOUNTED ; > 11kV AND < = 22kV ; < = 60 kVA ; MULTI PHASE | B116: 13221.59901 | C116: 31023.17876 | D116: 93440.53409 | E116: 95187.70237 | F116: 59380.27923 | G116: 63588.45442 | H116: 70493.16067 | I116: 77619.52096 | J116: 85375.21497 | K116: 94192.67622 | L116: 0 | M116: 0 | N116: 0 | O116: 0 | P116: 0 | Q116: 0
A117: POLE MOUNTED ; >11kV AND < = 22kV ; > 60 kVA AND < = 600 kVA ; SINGLE PHASE | B117: 0 | C117: 9325.50514 | D117: 16380.39753 | E117: 13545.38882 | F117: 10331.58451 | G117: 12724.13215 | H117: 14167.76479 | I117: 15726.55964 | J117: 17367.11339 | K117: 19194.23963 | L117: 1 | M117: 2 | N117: 2 | O117: 2 | P117: 2 | Q117: 2
A118: POLE MOUNTED ; > 11kV AND < = 22kV ; > 600 kVA ; MULTI PHASE | B118: 0 | C118: 0 | D118: 0 | E118: 0 | F118: 0 | G118: 0 | H118: 0 | I118: 0 | J118: 0 | K118: 0 | L118: 0 | M118: 0 | N118: 0 | O118: 0 | P118: 0 | Q118: 0
A119: KIOSK MOUNTED ; < = 11kV ; > 60 kVA AND < = 600 kVA ; MULTIPLE PHASE | B119: 0 | C119: 189540.1491 | D119: 11048.77552 | E119: 6893.394299 | F119: 55691.9099 | G119: 64393.54974 | H119: 70985.40016 | I119: 80660.08379 | J119: 86420.58237 | K119: 92657.97073 | L119: 4 | M119: 4 | N119: 4 | O119: 6 | P119: 6 | Q119: 5
A120: KIOSK MOUNTED ; < = 11kV ; > 600 kVA ; MULTIPLE PHASE | B120: 0 | C120: 0 | D120: 0 | E120: 0 | F120: 0 | G120: 0 | H120: 0 | I120: 0 | J120: 0 | K120: 0 | L120: 0 | M120: 0 | N120: 0 | O120: 0 | P120: 0 | Q120: 0
A121: KIOSK MOUNTED ; > 11kV AND < = 22kV ; < = 60 kVA ; MULTI PHASE | B121: 0 | C121: 0 | D121: 0 | E121: 3908.095057 | F121: 0 | G121: 0 | H121: 0 | I121: 0 | J121: 0 | K121: 0 | L121: 0 | M121: 0 | N121: 0 | O121: 0 | P121: 0 | Q121: 0
A122: KIOSK MOUNTED ; >11kV AND < = 22kV ; > 60 kVA AND < = 600 kVA ; MULTIPLE PHASE | B122: 526350.5536 | C122: 875936.2069 | D122: 157016.2672 | E122: 315583.9078 | F122: 677661.9672 | G122: 794566.7453 | H122: 867045.0473 | I122: 980466.4467 | J122: 1057021.986 | K122: 1119209.928 | L122: 18 | M122: 18 | N122: 20 | O122: 22 | P122: 24 | Q122: 25
A123: KIOSK MOUNTED ; >11kV AND < = 22kV ; > 600 kVA ; MULTIPLE PHASE | B123: 0 | C123: 0 | D123: 20872.09404 | E123: 126285.3014 | F123: 45510.94883 | G123: 49311.92179 | H123: 53386.94426 | I123: 60189.37539 | J123: 65270.46802 | K123: 68108.85622 | L123: 1 | M123: 1 | N123: 1 | O123: 1 | P123: 1 | Q123: 2
A124: GROUND OUTDOOR; <11kV AND < = 22kV ; > 600 kVA ; MULTIPLE PHASE | B124: 0 | C124: 0 | D124: 0 | E124: 0 | F124: 7.655834356e-14 | G124: 5.662555997e-14 | H124: 6.1347604e-14 | I124: 6.846890059e-14 | J124: 7.324716012e-14 | K124: 8.132244638e-14 | L124: 0 | M124: 0 | N124: 0 | O124: 0 | P124: 0 | Q124: 0
A125: GROUND OUTDOOR; >11kV AND < = 22kV ; < = 60 kVA ; MULTIPLE PHASE | B125: 0 | C125: 0 | D125: 0 | E125: 0 | F125: 0 | G125: 0 | H125: 0 | I125: 0 | J125: 0 | K125: 0 | L125: 0 | M125: 0 | N125: 0 | O125: 0 | P125: 0 | Q125: 0
A126: GROUND OUTDOOR ; >11kV AND < = 22kV ; > 60 kVA AND < = 600 kVA ; MULTIPLE PHASE | B126: 10089.83257 | C126: 0 | D126: 129518.0155 | E126: 119143.3757 | F126: 68155.34188 | G126: 50410.36965 | H126: 54614.12473 | I126: 60953.79172 | J126: 65207.59211 | K126: 72396.5394 | L126: 1 | M126: 1 | N126: 1 | O126: 2 | P126: 2 | Q126: 2
A127: GROUND OUTDOOR; >11kV AND < = 22kV ; > 600 kVA ; MULTIPLE PHASE | B127: 4569.669443 | C127: 90889.97269 | D127: 48969.16353 | E127: 0 | F127: 55033.70191 | G127: 40705.08899 | H127: 44099.5141 | I127: 49218.63366 | J127: 52653.46908 | K127: 58458.36084 | L127: 1 | M127: 1 | N127: 1 | O127: 1 | P127: 1 | Q127: 1
A128: INDOOR CHAMBER MOUNTED ; ˂ 6.6 kV ; > 600 kVA ; MULTIPLE PHASE | B128: 0 | C128: 0 | D128: 0 | E128: 0 | F128: 7.655834356e-14 | G128: 5.662555997e-14 | H128: 6.1347604e-14 | I128: 6.846890059e-14 | J128: 7.324716012e-14 | K128: 8.132244638e-14 | L128: 0 | M128: 0 | N128: 0 | O128: 0 | P128: 0 | Q128: 0
A129: INDOOR CHAMBER MOUNTED ; ˂ 11 kV ; > 600 kVA ; MULTIPLE PHASE | B129: 0 | C129: 0 | D129: 0 | E129: 3908.095057 | F129: 0 | G129: 0 | H129: 0 | I129: 0 | J129: 0 | K129: 0 | L129: 0 | M129: 0 | N129: 0 | O129: 0 | P129: 0 | Q129: 0
A130: INDOOR CHAMBER MOUNTED ; ˂ 11 kV ; > 60 kVA AND < = 600 kVA ; MULTIPLE PHASE | B130: 148126.3162 | C130: 208679.1483 | D130: 141515.8594 | E130: 70500.22341 | F130: 123868.2601 | G130: 91617.83369 | H130: 99257.90727 | I130: 110779.8731 | J130: 118510.901 | K130: 131576.383 | L130: 2 | M130: 2 | N130: 3 | O130: 3 | P130: 3 | Q130: 3
A131: INDOOR CHAMBER MOUNTED ; ˂ 11 kV ; > 600 kVA ; MULTIPLE PHASE | B131: 76144.48355 | C131: -631.6159298 | D131: 0 | E131: 97908.39294 | F131: 27120.32865 | G131: 20059.26101 | H131: 21732.01646 | I131: 24254.69256 | J131: 25947.362 | K131: 28807.98316 | L131: 1 | M131: 1 | N131: 1 | O131: 1 | P131: 1 | Q131: 1
A132: INDOOR CHAMBER MOUNTED ; >11kV AND < = 22kV; > 60 kVA AND < = 600 kVA ; MULTIPLE PHASE | B132: 68890.46528 | C132: 115427.449 | D132: 67.04115259 | E132: 23500.07447 | F132: 39199.31451 | G132: 28993.35371 | H132: 31411.12924 | I132: 35057.36728 | J132: 37503.9262 | K132: 41638.62493 | L132: 1 | M132: 1 | N132: 1 | O132: 1 | P132: 1 | Q132: 1
A133: INDOOR CHAMBER MOUNTED ; >11kV AND < = 22kV ; > 600 kVA ; MULTIPLE PHASE | B133: 202099.2399 | C133: 0 | D133: 0 | E133: 74596.9511 | F133: 272639.3642 | G133: 201654.7896 | H133: 218470.9199 | I133: 243831.2619 | J133: 260847.5867 | K133: 289605.2741 | L133: 9 | M133: 9 | N133: 10 | O133: 10 | P133: 11 | Q133: 13
A134: POWER TRANSFORMER - BUSHING | B134: 0 | C134: 0 | D134: 3054.539262 | E134: 274841.8615 | F134: 1087222.612 | G134: 1300776.926 | H134: 1120331.184 | I134: 938228.9688 | J134: 519141.113 | K134: 191893.7253 | L134: 25 | M134: 32 | N134: 25 | O134: 18 | P134: 10 | Q134: 6
A135: POWER TRANSFORMER - REFURBISHMENT | B135: 388163.9132 | C135: 307012.9789 | D135: 845257.8482 | E135: 0 | F135: 478081.7431 | G135: 549749.1307 | H135: 757516.3409 | I135: 761603.1055 | J135: 559558.8561 | K135: 568025.7286 | L135: 2 | M135: 2 | N135: 2 | O135: 2 | P135: 2 | Q135: 2
A136: POWER TRANSFORMER - ON LOAD TAP CHANGER | B136: 0 | C136: 315850.8374 | D136: 109064.4946 | E136: 0 | F136: 165854.7951 | G136: 315044.6134 | H136: 405056.9167 | I136: 508793.3332 | J136: 513157.2248 | K136: 429416.9979 | L136: 1 | M136: 1 | N136: 1 | O136: 2 | P136: 2 | Q136: 2
A137: Other | B137: 0 | C137: 0 | D137: 0 | E137: 0 | F137: 0 | G137: 0 | H137: 0 | I137: 0 | J137: 0 | K137: 0 | L137: 0 | M137: 0 | N137: 0 | O137: 0 | P137: 0 | Q137: 0
A138: Dist Transf OLTC Trial - UNMODELLED | B138: 0 | C138: 0 | D138: 0 | E138: 0 | F138: 0 | G138: 0 | H138: 0 | I138: 0 | J138: 0 | K138: 0 | L138: 0 | M138: 0 | N138: 0 | O138: 0 | P138: 0 | Q138: 0
A139: Transformer - UNMODELLED | B139: 0 | C139: 0 | D139: 0 | E139: 0 | F139: 0 | G139: 0 | H139: 0 | I139: 0 | J139: 0 | K139: 0 | L139: 0 | M139: 0 | N139: 0 | O139: 0 | P139: 0 | Q139: 0
A140: Transformer spare - UNMODELLED | B140: 0 | C140: 0 | D140: 0 | E140: 0 | F140: 0 | G140: 0 | H140: 0 | I140: 0 | J140: 0 | K140: 0 | L140: 0 | M140: 0 | N140: 0 | O140: 0 | P140: 0 | Q140: 0
A141: ˂ = 11 kV ; Fuse | B141: 5437.642874 | C141: 47700.53477 | D141: 137512.0873 | E141: 64558.2461 | F141: 102249.4993 | G141: 96958.95423 | H141: 105637.9848 | I141: 114487.3319 | J141: 123776.6042 | K141: 133939.929 | L141: 34 | M141: 37 | N141: 40 | O141: 43 | P141: 47 | Q141: 50
A142: ˂ = 11 kV ; Switch | B142: 1907.268677 | C142: 170817.3824 | D142: 299380.4284 | E142: 546306.4992 | F142: 251653.8127 | G142: 325819.9797 | H142: 412302.7213 | I142: 319406.3855 | J142: 322009.794 | K142: 270733.2387 | L142: 13 | M142: 13 | N142: 14 | O142: 21 | P142: 16 | Q142: 17
A143: ˂ = 11 kV ; Circuit Breaker | B143: 894604.7104 | C143: 3766222.686 | D143: 5968125.85 | E143: 2488818.886 | F143: 474836.0269 | G143: 657079.4378 | H143: 2313961.506 | I143: 3754411.669 | J143: 3958839.374 | K143: 2621806.403 | L143: 0 | M143: 7 | N143: 13 | O143: 12 | P143: 17 | Q143: 8
A144: > 11 kV & < = 22 kV ; Switch | B144: 807616.7546 | C144: 758842.1245 | D144: 1630819.701 | E144: 3448852.193 | F144: 2086312.249 | G144: 2817776.495 | H144: 3603117.684 | I144: 2678625.298 | J144: 2669932.824 | K144: 2141589.995 | L144: 102 | M144: 106 | N144: 108 | O144: 170 | P144: 129 | Q144: 129
A145: > 11 kV & < = 22 kV ; Circuit Breaker | B145: 665026.3882 | C145: 4399774.331 | D145: 3560444.854 | E145: 295579.4685 | F145: 0 | G145: 0 | H145: 575101.8843 | I145: 1444738.771 | J145: 872322.1317 | K145: 0 | L145: 0 | M145: 0 | N145: 0 | O145: 0 | P145: 0 | Q145: 0
A146: > 22 kV & < = 33 kV ; Switch | B146: 0 | C146: 0 | D146: 0 | E146: 0 | F146: 0 | G146: 0 | H146: 0 | I146: 0 | J146: 0 | K146: 0 | L146: 0 | M146: 0 | N146: 0 | O146: 0 | P146: 0 | Q146: 0
A147: > 22 kV & < = 33 kV ; Circuit Breaker | B147: 0 | C147: 0 | D147: 0 | E147: 0 | F147: 0 | G147: 0 | H147: 0 | I147: 0 | J147: 0 | K147: 0 | L147: 0 | M147: 0 | N147: 0 | O147: 0 | P147: 0 | Q147: 0
A148: > 33 kV & < = 66 kV ; Switch | B148: 0 | C148: 0 | D148: 0 | E148: 0 | F148: 0 | G148: 0 | H148: 0 | I148: 0 | J148: 0 | K148: 0 | L148: 0 | M148: 0 | N148: 0 | O148: 0 | P148: 0 | Q148: 0
A149: > 33 kV & < = 66 kV ; Circuit Breaker | B149: 2165.828004 | C149: 253338.0802 | D149: 265327.7603 | E149: 189641.9307 | F149: 41322.36281 | G149: 0 | H149: 0 | I149: 0 | J149: 0 | K149: 0 | L149: 0 | M149: 0 | N149: 2 | O149: 2 | P149: 0 | Q149: 0
A150: > 66 kV & < = 132 kV ; Switch | B150: 0 | C150: 0 | D150: 0 | E150: 0 | F150: 0 | G150: 0 | H150: 0 | I150: 0 | J150: 0 | K150: 0 | L150: 0 | M150: 0 | N150: 0 | O150: 0 | P150: 0 | Q150: 0
A151: > 66 kV & < = 132 kV ; Circuit Breaker | B151: 0 | C151: 0 | D151: 0 | E151: 0 | F151: 0 | G151: 0 | H151: 0 | I151: 0 | J151: 0 | K151: 0 | L151: 0 | M151: 0 | N151: 0 | O151: 0 | P151: 0 | Q151: 0
A152: > 132 kV ; Switch | B152: 0 | C152: 0 | D152: 0 | E152: 0 | F152: 0 | G152: 0 | H152: 0 | I152: 0 | J152: 0 | K152: 0 | L152: 0 | M152: 0 | N152: 0 | O152: 0 | P152: 0 | Q152: 0
A153: > 132 kV ; Circuit Breaker | B153: 0 | C153: 0 | D153: 0 | E153: 0 | F153: 0 | G153: 0 | H153: 0 | I153: 0 | J153: 0 | K153: 0 | L153: 0 | M153: 0 | N153: 0 | O153: 0 | P153: 0 | Q153: 0
A154: > 11 kV & < = 22 kV ; FUSE | B154: 60822.47782 | C154: 281304.0129 | D154: 683624.6203 | E154: 886922.0817 | F154: 727085.197 | G154: 689464.6999 | H154: 751180.3535 | I154: 814107.1095 | J154: 880162.126 | K154: 952432.4358 | L154: 245 | M154: 267 | N154: 290 | O154: 312 | P154: 334 | Q154: 357
A155: INDOOR RING MAIN UNIT; ˂ = 11 kV ; SWITCH | B155: 0 | C155: 707265.5864 | D155: 704104.5472 | E155: 981927.6674 | F155: 380632.4631 | G155: 354526.0237 | H155: 332410.0073 | I155: 334055.2387 | J155: 343853.3389 | K155: 360511.2936 | L155: 10 | M155: 10 | N155: 10 | O155: 10 | P155: 10 | Q155: 10
A156: INDOOR RING MAIN UNIT;> 11 kV & < = 22 kV ; SWITCH | B156: 798646.0211 | C156: 1706609.948 | D156: 533824.6712 | E156: 509147.6794 | F156: 1206464.015 | G156: 1123716.266 | H156: 1053616.68 | I156: 1058831.454 | J156: 1089887.805 | K156: 1142687.356 | L156: 36 | M156: 35 | N156: 35 | O156: 35 | P156: 36 | Q156: 37
A157: ˂ = 11 kV ; ISOLATOR | B157: 0 | C157: 12320.56145 | D157: 38426.61898 | E157: 66382.44536 | F157: 60120.18971 | G157: 81625.40565 | H157: 72510.56542 | I157: 64012.51945 | J157: 57707.88012 | K157: 52204.37966 | L157: 81 | M157: 72 | N157: 63 | O157: 56 | P157: 49 | Q157: 45
A158: > 11 kV & < = 22 kV ; ISOLATOR | B158: 61096.3131 | C158: 167923.8279 | D158: 926290.6416 | E158: 34733.41026 | F158: 509757.7807 | G158: 845434.0107 | H158: 1086979.023 | I158: 678699.5991 | J158: 628176.5393 | K158: 373189.5944 | L158: 13 | M158: 12 | N158: 11 | O158: 12 | P158: 12 | Q158: 9
A159: >= 11 kV & < = 22 kV ; REMOTE CONTROL GAS SWITCH | B159: 69238.60319 | C159: 199453.3338 | D159: 117749.3254 | E159: 48713.91465 | F159: 0 | G159: 0 | H159: 0 | I159: 0 | J159: 0 | K159: 0 | L159: 0 | M159: 0 | N159: 0 | O159: 0 | P159: 0 | Q159: 0
A160: >= 11 kV & < = 22 kV ; AUTOMATIC CIRCUIT RECLOSER | B160: 145646.5793 | C160: 0 | D160: 0 | E160: 158086.9926 | F160: 75379.17153 | G160: 132118.9704 | H160: 169886.8974 | I160: 110980.0852 | J160: 104892.4031 | K160: 56847.84202 | L160: 2 | M160: 2 | N160: 2 | O160: 2 | P160: 3 | Q160: 2
A161: ˂ = 1 kV ; GROUND TYPE LOAD BREAK SWITCH | B161: 380041.7301 | C161: 623230.7339 | D161: 132413.4866 | E161: 235814.3558 | F161: 315098.2359 | G161: 416813.5781 | H161: 418934.7892 | I161: 421626.2353 | J161: 423481.5307 | K161: 429775.4826 | L161: 32 | M161: 32 | N161: 32 | O161: 32 | P161: 32 | Q161: 32
A162: ˂ = 1 kV ; POLE MOUNTED SWITCH | B162: 335958.1849 | C162: 703104.1533 | D162: 1242105.015 | E162: 1580742.784 | F162: 1885833.836 | G162: 1798118.226 | H162: 1789591.937 | I162: 1780802.795 | J162: 1776915.422 | K162: 1784764.585 | L162: 1950 | M162: 1934 | N162: 1919 | O162: 1904 | P162: 1888 | Q162: 1873
A163: >= 11 kV & < = 22 kV ; LINE CAPACITORS; CONTROLLERS AND VACUUM SWITCHES | B163: 890736.3291 | C163: 490171.9479 | D163: 456395.9422 | E163: 1584593.114 | F163: 646221.846 | G163: 1136472.28 | H163: 1451815.578 | I163: 960385.5822 | J163: 909876.6954 | K163: 491910.7769 | L163: 59 | M163: 57 | N163: 77 | O163: 96 | P163: 123 | Q163: 145
A164: > 11 kV & < = 22 kV ; CIRCUIT BREAKER; OUTDOOR | B164: 130185.8 | C164: 24642.96902 | D164: 33689.77127 | E164: 395730.2171 | F164: 68083.31528 | G164: 0 | H164: 2106294.697 | I164: 3239811.136 | J164: 4799651.113 | K164: 4287927.151 | L164: 1 | M164: 3 | N164: 8 | O164: 14 | P164: 18 | Q164: 9
A165: > 33 kV & < = 66 kV ; ISOLATOR | B165: 0 | C165: 58848.36993 | D165: 142771.3271 | E165: 81441.71022 | F165: 179419.3516 | G165: 354416.9037 | H165: 356136.6239 | I165: 357763.4907 | J165: 360832.0079 | K165: 366039.2028 | L165: 0 | M165: 3 | N165: 2 | O165: 4 | P165: 3 | Q165: 3
A166: Other | B166: 0 | C166: 0 | D166: 0 | E166: 0 | F166: 0 | G166: 0 | H166: 0 | I166: 0 | J166: 0 | K166: 0 | L166: 0 | M166: 0 | N166: 0 | O166: 0 | P166: 0 | Q166: 0
A167: Prot - BTOS - UNMODELLED | B167: 0 | C167: 0 | D167: 0 | E167: 0 | F167: 36412.22891 | G167: 0 | H167: 0 | I167: 0 | J167: 0 | K167: 0 | L167: 1 | M167: 0 | N167: 0 | O167: 0 | P167: 0 | Q167: 0
A168: Switchgear spare - UNMODELLED | B168: 17480.95159 | C168: 0 | D168: 0 | E168: 0 | F168: 49653.03942 | G168: 0 | H168: 0 | I168: 0 | J168: 0 | K168: 0 | L168: 1 | M168: 0 | N168: 0 | O168: 0 | P168: 0 | Q168: 0
A169: Luminaires | B169: 0 | C169: 0 | D169: 0 | E169: 0
A170: Brackets | B170: 0 | C170: 0 | D170: 0 | E170: 0
A171: Lamps | B171: 0 | C171: 0 | D171: 0 | E171: 0
A172: Poles / Columns | B172: 0 | C172: 0 | D172: 0 | E172: 0
A173: LUMINAIRES ; MAJOR ROAD | B173: 732195.1347 | C173: 281554.8847 | D173: 500484.4752 | E173: 629691.3734
A174: LUMINAIRES ; MINOR ROAD | B174: 522791.8801 | C174: 336435.8421 | D174: 424857.1662 | E174: 428958.2199
A175: BRACKETS ; MAJOR ROAD | B175: 0 | C175: 0 | D175: 0 | E175: 0
A176: BRACKETS ; MINOR ROAD | B176: 0 | C176: 0 | D176: 0 | E176: 0
A177: POLES / COLUMNS ; MAJOR ROAD | B177: 769118.6601 | C177: 707771.5267 | D177: 345618.9445 | E177: 206942.2261
A178: POLES / COLUMNS ; MINOR ROAD | B178: 214405.011 | C178: 347488.8002 | D178: 181003.7482 | E178: 71336.26122
A179: Other | B179: 0 | C179: 0 | D179: 0 | E179: 0
A180: FIELD DEVICES | B180: 0 | C180: 0 | D180: 0 | E180: 0 | F180: 0 | G180: 0 | H180: 0 | I180: 0 | J180: 0 | K180: 0 | L180: 0 | M180: 0 | N180: 0 | O180: 0 | P180: 0 | Q180: 0
A181: RELAYS - ANALOGUE ELECTRONIC | B181: 118607.3123 | C181: 79089.48443 | D181: 14902.7435 | E181: 53330.75187 | F181: 0 | G181: 0 | H181: 0 | I181: 0 | J181: 0 | K181: 0 | L181: 0 | M181: 0 | N181: 0 | O181: 0 | P181: 0 | Q181: 0
A182: RELAYS - DIGITAL/MICROPROCESSOR | B182: 369904.1374 | C182: 3978824.9 | D182: 5075760.021 | E182: 743200.2138 | F182: 4399428.839 | G182: 6481601.333 | H182: 4413261.832 | I182: 2296706.378 | J182: 2364188.335 | K182: 4089510.521 | L182: 48 | M182: 113 | N182: 78 | O182: 46 | P182: 71 | Q182: 47
A183: SCADA | B183: 52896.84438 | C183: 914711.5667 | D183: 377002.4409 | E183: 563751.7304 | F183: 198756.5855 | G183: 991490.5016 | H183: 1142459.612 | I183: 469939.2085 | J183: 253344.4908 | K183: 865550.0892 | L183: 1 | M183: 9 | N183: 7 | O183: 4 | P183: 2 | Q183: 4
A184: OPERATION ENERGY METERS | B184: 4380.579901 | C184: 141320.7342 | D184: 283088.4809 | E184: 2865.772895 | F184: 0 | G184: 0 | H184: 0 | I184: 0 | J184: 0 | K184: 0 | L184: 0 | M184: 0 | N184: 0 | O184: 0 | P184: 0 | Q184: 0
A185: POWER QUALITY METERS | B185: 44599.37653 | C185: 142258.4382 | D185: 129657.1524 | E185: 341929.4446 | F185: 127092.2392 | G185: 240565.0592 | H185: 283322.0392 | I185: 304933.5785 | J185: 260053.492 | K185: 189578.5167 | L185: 6 | M185: 19 | N185: 17 | O185: 18 | P185: 3 | Q185: 2
A186: LOCAL NETWORK WIRING ASSETS | B186: 0 | C186: 0 | D186: 0 | E186: 0 | F186: 0 | G186: 0 | H186: 0 | I186: 0 | J186: 0 | K186: 0 | L186: 0 | M186: 0 | N186: 0 | O186: 0 | P186: 0 | Q186: 0
A187: DC DISTRIBUTION BOARDS | B187: 0 | C187: 63147.33921 | D187: 121399.665 | E187: 0 | F187: 284277.2144 | G187: 186909.5126 | H187: 148493.7137 | I187: 148665.4005 | J187: 333276.5597 | K187: 242255.0376 | L187: 3 | M187: 3 | N187: 2 | O187: 2 | P187: 4 | Q187: 4
A188: AC DISTRIBUTION BOARDS | B188: 649.7484011 | C188: 83035.01258 | D188: 131187.965 | E188: 2474.723537 | F188: 0 | G188: 0 | H188: 0 | I188: 0 | J188: 0 | K188: 0 | L188: 0 | M188: 0 | N188: 0 | O188: 0 | P188: 0 | Q188: 0
A189: ZSS BATTERY BANKS | B189: 130849.431 | C189: 59392.42074 | D189: 291110.2952 | E189: 278849.5143 | F189: 292053.0541 | G189: 224025.7271 | H189: 266972.0634 | I189: 343646.6576 | J189: 128397.2547 | K189: 186661.083 | L189: 6 | M189: 7 | N189: 7 | O189: 9 | P189: 3 | Q189: 6
A190: ZSS BATTERY CHARGERS | B190: 92818.49857 | C190: 83889.28882 | D190: 508706.1706 | E190: 307634.0566 | F190: 248898.2593 | G190: 109098.7951 | H190: 130013.3285 | I190: 195245.4727 | J190: 145899.7615 | K190: 159079.3795 | L190: 3 | M190: 2 | N190: 2 | O190: 3 | P190: 2 | Q190: 3
A191: COMMUNICATIONS NETWORK ASSETS | B191: 0 | C191: 0 | D191: 0 | E191: 0 | F191: 0 | G191: 0 | H191: 0 | I191: 0 | J191: 0 | K191: 0 | L191: 0 | M191: 0 | N191: 0 | O191: 0 | P191: 0 | Q191: 0
A192: RADIO TOWERS | B192: 0 | C192: 0 | D192: 225459.5201 | E192: 15811.68271 | F192: 78382.87881 | G192: 77559.72391 | H192: 0 | I192: 0 | J192: 0 | K192: 57140.80416 | L192: 0 | M192: 0 | N192: 0 | O192: 0 | P192: 0 | Q192: 0
A193: COMMUNICATION FIBRE OPTIC CABLE | B193: 996236.6126 | C193: 1947481.399 | D193: 119530.3899 | E193: 0 | F193: 0 | G193: 0 | H193: 0 | I193: 0 | J193: 0 | K193: 0 | L193: 0 | M193: 0 | N193: 0 | O193: 0 | P193: 0 | Q193: 0
A194: COMMUNICATION - SUPERVISORY METALLIC CABLE | B194: 0 | C194: 0 | D194: 0 | E194: 0 | F194: 0 | G194: 0 | H194: 0 | I194: 0 | J194: 0 | K194: 0 | L194: 0 | M194: 0 | N194: 0 | O194: 0 | P194: 0 | Q194: 0
A195: MASTER STATION ASSETS | B195: 0 | C195: 0 | D195: 0 | E195: 0 | F195: 0 | G195: 0 | H195: 0 | I195: 0 | J195: 0 | K195: 0 | L195: 0 | M195: 0 | N195: 0 | O195: 0 | P195: 0 | Q195: 0
A196: Other | B196: 0 | C196: 0 | D196: 0 | E196: 0 | F196: 0 | G196: 0 | H196: 0 | I196: 0 | J196: 0 | K196: 0 | L196: 0 | M196: 0 | N196: 0 | O196: 0 | P196: 0 | Q196: 0
A197: Portable Prot - UNMODELLED | B197: 0 | C197: 0 | D197: 0 | E197: 0 | F197: 82203.36527 | G197: 0 | H197: 0 | I197: 0 | J197: 0 | K197: 0 | L197: 1 | M197: 0 | N197: 0 | O197: 0 | P197: 0 | Q197: 0
B198: 0 | C198: 0 | D198: 0 | E198: 0 | F198: 0 | G198: 0 | H198: 0 | I198: 0 | J198: 0 | K198: 0 | L198: 0 | M198: 0 | N198: 0 | O198: 0 | P198: 0 | Q198: 0
A199: SCADA - MISC | B199: 122342.8044 | C199: 2879228.548 | D199: -476876.0994 | E199: -177889.7185 | F199: 343792.128 | G199: 310201.0523 | H199: 400080.4024 | I199: 88341.00712 | J199: 0 | K199: 11428.16083 | L199: 0 | M199: 0 | N199: 0 | O199: 0 | P199: 0 | Q199: 0
A200: DC -UNMODELLED | B200: 0 | C200: 10650.47263 | D200: 688815.4995 | E200: 1221918.987 | F200: 1295493.738 | G200: 1085024.563 | H200: 848664.6252 | I200: 1211992.239 | J200: 1026584.064 | K200: 1072441.035 | L200: 20 | M200: 16 | N200: 14 | O200: 20 | P200: 14 | Q200: 17
... 32 more rows

Sheet 2.3 Augex
C1: =SheetHeader -> REGULATORY REPORTING STATEMENT | G1: Worksheet navigation
C2: =dms_TradingName -> United Energy
C3: =FRCP_span -> 2016 to 2020
C4: 2.3 AUGEX PROJECT DATA
C7: TABLE 2.3.1 - AUGEX ASSET DATA - SUBTRANSMISSION SUBSTATIONS, SWITCHING STATIONS AND ZONE SUBSTATIONS
C8: NOTE: DNSP must provide expenditure information on an 'as incurred' basis.
A9: AUG231 | C9: AUG231_1 | D9: AUG231_2 | E9: AUG231_3 | F9: AUG231_4 | G9: AUG231_5 | H9: AUG231_6 | I9: ED_AUG231_00001 | J9: ED_AUG231_00002 | K9: ED_AUG231_00003 | L9: ED_AUG231_00004 | M9: ED_AUG231_00005 | N9: ED_AUG231_00006 | O9: ED_AUG231_00007 | P9: ED_AUG231_00008 | Q9: ED_AUG231_00009 | R9: ED_AUG231_00010 | S9: ED_AUG231_00011 | T9: ED_AUG231_00012 | U9: ED_AUG231_00013 | V9: ED_AUG231_00014 | W9: ED_AUG231_00015 | X9: ED_AUG231_00016 | Y9: ED_AUG231_00017 | Z9: ED_AUG231_00018 | AA9: ED_AUG231_00019 | AB9: ED_AUG231_00020 | AC9: ED_AUG231_00021 | AD9: ED_AUG231_00022 | AE9: ED_AUG231_00023
C10: PROJECT DESCRIPTION AND CHANGES | M10: PLANT AND EQUIPMENT EXPENDITURE AND VOLUME | W10: OTHER EXPENDITURE | Y10: TOTAL DIRECT EXPENDITURE ($0's) | Z10: YEARS INCURRED | AA10: ALL RELATED PARTY CONTRACTS | AC10: ALL NON RELATED PARTYCONTRACTS | AD10: LAND AND EASEMENTS
C11: SUBSTATION ID | D11: SUBSTATION TYPE | E11: PROJECT ID | F11: PROJECT TYPE | G11: PROJECT TRIGGER | H11: VOLTAGE (KV) | I11: SUBSTATION RATING NORMAL CYCLIC (MVA) | K11: SUBSTATION RATING N-1 EMERGENCY (MVA) | M11: TRANSFORMERS | P11: SWITCHGEAR | R11: CAPACITORS | T11: OTHER PLANT ITEM | U11: INSTALLATION (LABOUR) | W11: CIVIL WORKS | X11: OTHER DIRECT | AA11: RELATED PARTY MARGINS | AB11: TOTAL | AD11: LAND PURCHASE | AE11: EASEMENTS
I12: PRE | J12: POST | K12: PRE | L12: POST | M12: UNITS ADDED | N12: MVA ADDED | O12: =CONCATENATE("EXPENDITURE ($0's, real ", dms_DollarReal,")") -> EXPENDITURE ($0's, real December 2015) | P12: UNITS ADDED | Q12: =CONCATENATE("EXPENDITURE ($0's, real ", dms_DollarReal,")") -> EXPENDITURE ($0's, real December 2015) | R12: MVAR ADDED | S12: =CONCATENATE("EXPENDITURE ($0's, real ", dms_DollarReal,")") -> EXPENDITURE ($0's, real December 2015) | T12: =CONCATENATE("EXPENDITURE ($0's, real ", dms_DollarReal,")") -> EXPENDITURE ($0's, real December 2015) | U12: VOLUME | V12: =CONCATENATE("EXPENDITURE ($0's, real ", dms_DollarReal,")") -> EXPENDITURE ($0's, real December 2015) | W12: =CONCATENATE("EXPENDITURE ($0's, real ", dms_DollarReal,")") -> EXPENDITURE ($0's, real December 2015) | AA12: =CONCATENATE("EXPENDITURE ($0's, real ", dms_DollarReal,")") -> EXPENDITURE ($0's, real December 2015) | AD12: =CONCATENATE("EXPENDITURE ($0's, real ", dms_DollarReal,")") -> EXPENDITURE ($0's, real December 2015)
A13: AUG231_1 | C13: BR cap bank recommissioning | D13: Zone substation | E13: PJ0967 | F13: Other - specify | G13: Reactive power issue | H13: 11 | I13: 63 | J13: 63 | K13: 32.4 | L13: 32.4 | M13: 0 | N13: 0 | O13: 0 | P13: 0 | Q13: 0 | R13: 3 | S13: 125828.4252 | T13: 62914.2126 | U13: 1590 | V13: 127785.7562 | W13: 119303.9883 | X13: 264992.3519 | Y13: =SUM(O13,Q13,S13,T13,V13,W13,X13) -> 700824.7343 | Z13: 2020/2021 | AA13: 49057.7314 | AB13: 700824.7343 | AC13: 0 | AD13: 0 | AE13: 0
A14: AUG231_2 | C14: DC 4th transformer | D14: Zone substation | E14: PJ1422 | F14: Substation upgrade - capacity | G14: Demand growth | H14: 66/22 | I14: 110.4 | J14: 147.2 | K14: 81.4 | L14: 122.1 | M14: 1 | N14: 36.8 | O14: 897453.3038 | P14: 19 | Q14: 345174.3476 | R14: 0 | S14: 0 | T14: 532143.7859 | U14: 9280 | V14: 1374392.206 | W14: 454479.5577 | X14: 2286499.113 | Y14: 5890142.314 | Z14: 2018/2020 | AA14: 412309.962 | AB14: 5890142.314 | AC14: 0 | AD14: 0 | AE14: 0
A15: AUG231_3 | C15: DMA 2nd Transformer | D15: Zone substation | E15: PJ0986 | F15: Substation upgrade - capacity | G15: Demand growth | H15: 66/22 | I15: 44.8 | J15: 89.6 | K15: 0 | L15: 48.1 | M15: 1 | N15: 44.8 | O15: 1038304.514 | P15: 11 | Q15: 399347.8899 | R15: 0 | S15: 0 | T15: 615661.3302 | U15: 9280 | V15: 1590096.805 | W15: 525808.055 | X15: 2645354.739 | Y15: 6814573.332 | Z15: 2016/2017 | AA15: 0 | AB15: 0 | AC15: 6814573.332 | AD15: 0 | AE15: 0
A16: AUG231_4 | C16: HGS 6MVAr capacitor bank | D16: Zone substation | E16: PJ1033 | F16: Other - specify | G16: Reactive power issue | H16: 22 | I16: 79.8 | J16: 79.8 | K16: 46.9 | L16: 46.9 | M16: 0 | N16: 0 | O16: 0 | P16: 1 | Q16: 0 | R16: 3 | S16: 112407.896 | T16: 56203.94802 | U16: 1590 | V16: 114156.4633 | W16: 106579.3385 | X16: 236728.9641 | Y16: 626076.61 | Z16: 2020/2021 | AA16: 0 | AB16: 0 | AC16: 626076.61 | AD16: 0 | AE16: 0
A17: AUG231_5 | C17: LWN 6MVAr capacitor bank | D17: Zone substation | E17: PJ1044 | F17: Other - specify | G17: Reactive power issue | H17: 22 | I17: 90.8 | J17: 90.8 | K17: 48.3 | L17: 48.3 | M17: 0 | N17: 0 | O17: 0 | P17: 0 | Q17: 0 | R17: 6 | S17: 157852.1958 | T17: 125353.2143 | U17: 3020 | V17: 233806.9583 | W17: 237706.8361 | X17: 492705.0617 | Y17: 1247424.266 | Z17: 2019/2020 | AA17: 0 | AB17: 0 | AC17: 1247424.266 | AD17: 0 | AE17: 0
A18: AUG231_6 | C18: NO 3rd Transformer | D18: Zone substation | E18: PJ1144 | F18: Substation upgrade - capacity | G18: Demand growth | H18: 66/22 | I18: 74 | J18: 111 | K18: 42.4 | L18: 84.8 | M18: 1 | N18: 37 | O18: 862799.4169 | P18: 19 | Q18: 331845.9296 | R18: 0 | S18: 0 | T18: 511595.8081 | U18: 9280 | V18: 1321321.999 | W18: 436930.4739 | X18: 2198209.192 | Y18: 5662702.82 | Z18: 2016/2018 | AA18: 396389.1974 | AB18: 5662702.82 | AC18: 0 | AD18: 0 | AE18: 0
A19: AUG231_7 | Y19: 0
A20: AUG231_8 | Y20: 0
A21: AUG231_9 | Y21: 0
A22: AUG231_10 | Y22: 0
A23: AUG231_11 | Y23: 0
A24: AUG231_12 | Y24: 0
A25: AUG231_13 | Y25: 0
A26: AUG231_14 | Y26: 0
A27: AUG231_15 | Y27: 0
A28: AUG231_16 | Y28: 0
A29: AUG231_17 | Y29: 0
A30: AUG231_18 | Y30: 0
A31: AUG231_19 | Y31: 0
A32: AUG231_20 | Y32: 0
A33: AUG231_21 | Y33: 0
A34: AUG231_22 | Y34: 0
A35: AUG231_23 | Y35: 0
A36: AUG231_24 | Y36: 0
A37: AUG231_25 | Y37: 0
A38: AUG231_26 | Y38: 0
A39: AUG231_27 | Y39: 0
A40: AUG231_28 | Y40: 0
A41: AUG231_29 | Y41: 0
A42: AUG231_30 | Y42: 0
A43: AUG231_31 | Y43: 0
A44: AUG231_32 | Y44: 0
A45: AUG231_33 | Y45: =SUM(O45,Q45,S45,T45,V45,W45,X45) -> 0
A46: AUG231_34 | Y46: 0
A47: AUG231_35 | Y47: 0
A48: AUG231_36 | Y48: 0
A49: AUG231_37 | Y49: 0
A50: AUG231_38 | Y50: 0
A51: AUG231_39 | Y51: 0
A52: AUG231_40 | Y52: 0
A53: AUG231_41 | Y53: 0
A54: AUG231_42 | Y54: 0
A55: AUG231_43 | Y55: 0
A56: AUG231_44 | Y56: 0
A57: AUG231_45 | Y57: 0
A58: AUG231_46 | Y58: 0
A59: AUG231_47 | Y59: 0
A60: AUG231_48 | Y60: 0
A61: AUG231_49 | Y61: 0
A62: AUG231_50 | Y62: 0
A63: AUG231_51 | Y63: 0
A64: AUG231_52 | Y64: 0
A65: AUG231_53 | E65: Non material projects - [actual]
A66: AUG231_54 | E66: Non material projects - [forecast]
A68: AUG232 | C68: AUG232_1 | D68: AUG232_2 | E68: AUG232_3 | F68: AUG232_4 | G68: AUG232_5 | H68: AUG232_6 | I68: ED_AUG232_00001 | J68: ED_AUG232_00002 | K68: ED_AUG232_00003 | L68: ED_AUG232_00004 | M68: ED_AUG232_00005 | N68: ED_AUG232_00006 | O68: ED_AUG232_00007 | P68: ED_AUG232_00008 | Q68: ED_AUG232_00009 | R68: ED_AUG232_00010 | S68: ED_AUG232_00011 | T68: ED_AUG232_00012 | U68: ED_AUG232_00013 | V68: ED_AUG232_00014 | W68: ED_AUG232_00015 | X68: ED_AUG232_00016 | Y68: ED_AUG232_00017 | Z68: ED_AUG232_00018 | AA68: ED_AUG232_00019 | AB68: ED_AUG232_00020 | AC68: ED_AUG232_00021
C69: TABLE 2.3.2 - AUGEX ASSET DATA - SUBTRANSMISSION LINES
C70: NOTE: DNSP must provide expenditure information on an 'as incurred' basis.
C71: PROJECT DESCRIPTION AND CHANGES | I71: PLANT AND EQUIPMENT EXPENDITURE AND VOLUME | U71: OTHER EXPENDITURE | W71: TOTAL DIRECT EXPENDITURE ($0's) | X71: YEARS INCURRED | Y71: ALL RELATED PARTY CONTRACTS | AA71: ALL NON RELATED PARTY CONTRACTS | AB71: LAND AND EASEMENTS
C72: LINE ID | D72: PROJECT ID | E72: PROJECT TYPE | F72: PROJECT TRIGGER | G72: VOLTAGE (KV) | H72: ROUTE LINE LENGTH ADDED | I72: POLES/TOWERS (INCLUDING STRUCTURES, AND CIVIL WORKS) | L72: OVERHEAD LINES | O72: UNDERGROUND CABLES | R72: OTHER PLANT ITEM | S72: INSTALLATION (LABOUR) | U72: CIVIL WORKS | V72: OTHER DIRECT | Y72: RELATED PARTY MARGINS | Z72: TOTAL | AB72: LAND PURCHASE | AC72: EASEMENTS
H73: KM ADDED | I73: POLES/TOWERS ADDED | J73: POLES/TOWERS UPGRADED | K73: =CONCATENATE("EXPENDITURE ($0's, real ", dms_DollarReal,")") -> EXPENDITURE ($0's, real December 2015) | L73: CIRCUIT KM ADDED | M73: CIRCUIT KM UPGRADED | N73: =CONCATENATE("EXPENDITURE ($0's, real ", dms_DollarReal,")") -> EXPENDITURE ($0's, real December 2015) | O73: CIRCUIT KM ADDED | P73: CIRCUIT KM UPGRADED | Q73: =CONCATENATE("EXPENDITURE ($0's, real ", dms_DollarReal,")") -> EXPENDITURE ($0's, real December 2015) | R73: =CONCATENATE("EXPENDITURE ($0's, real ", dms_DollarReal,")") -> EXPENDITURE ($0's, real December 2015) | S73: VOLUME | T73: =CONCATENATE("EXPENDITURE ($0's, real ", dms_DollarReal,")") -> EXPENDITURE ($0's, real December 2015) | U73: EXPENDITURE ($0's, real December 2015) | Y73: EXPENDITURE ($0's, real December 2015) | AB73: EXPENDITURE ($0's, real December 2015)
A74: AUG232_1 | C74: BT-MR 66 kV thermal uprate | D74: PJ1069 | E74: Line upgrade - capacity | G74: 66 | H74: 0 | I74: 0 | J74: 2 | K74: 12003.27621 | L74: 0 | M74: 1.3 | N74: 24859.9604 | O74: 0 | P74: 0 | Q74: 0 | R74: 16004.36827 | S74: 450 | T74: 27154.23649 | U74: 0 | V74: 36702.76301 | W74: =SUM(K74,N74,Q74,R74,T74,U74,V74) -> 116724.6044 | X74: 2016 | Y74: 8170.722306 | Z74: 116724.6044 | AA74: 0 | AB74: 0 | AC74: 0
A75: AUG232_2 | C75: CBTS 66kV line rearrangement | D75: PJ0971 | E75: Other - specify | G75: 66 | H75: 0 | I75: 0 | J75: 0 | K75: 0 | L75: 0 | M75: 0 | N75: 18908.28543 | O75: 0 | P75: 0 | Q75: 33073.11528 | R75: 25092.22469 | S75: 1391 | T75: 69373.03796 | U75: 26569.01935 | V75: 79355.2118 | W75: 252370.8945 | X75: 2020 | Y75: 0 | Z75: 0 | AA75: 252370.8945 | AB75: 0 | AC75: 0
A76: AUG232_3 | C76: CDA OE Transfer to Bus34 SVTS | D76: PJ1075 | E76: Other - specify | F76: Demand growth | G76: 66 | H76: 0 | I76: 0 | J76: 4 | K76: 54083.13146 | L76: 0 | M76: 0 | N76: 40139.51952 | O76: 0 | P76: 0 | Q76: 0 | R76: 32634.06554 | S76: 450 | T76: 55369.45402 | U76: 0 | V76: 74839.59086 | W76: 257065.7614 | X76: 2020 | Y76: 0 | Z76: 0 | AA76: 257065.7614 | AB76: 0 | AC76: 0
A77: AUG232_4 | C77: EW RTS-EW Upgrade Droppers at EW | D77: PJ1151 | E77: Other - specify | G77: 66 | H77: 0 | I77: 0 | J77: 0 | K77: 0 | L77: 0 | M77: 0 | N77: 11744.61948 | O77: 0 | P77: 0 | Q77: 0 | R77: 0 | S77: 0 | T77: 5894.139888 | U77: 0 | V77: 8343.482463 | W77: 25982.24183 | X77: 2016 | Y77: 1818.756928 | Z77: 25982.24183 | AA77: 0 | AB77: 0 | AC77: 0
A78: AUG232_5 | C78: HGS-RBD new 66kV line | D78: PJ1561 | E78: New line on new route - single circuit | G78: 66 | H78: 54 | I78: 650 | J78: 0 | K78: 2247594.331 | L78: 52 | M78: 0 | N78: 4465165.355 | O78: 0 | P78: 2 | Q78: 765940.8655 | R78: 2230851.585 | S78: 83013 | T78: 5993584.89 | U78: 308217.7704 | V78: 6416096.368 | W78: 22427451.16 | X78: 2016/2019 | Y78: 0 | Z78: 0 | AA78: 22427451.16 | AB78: 0 | AC78: 0
A79: AUG232_6 | C79: MTS-OR Upgrade | D79: PJ1141 | E79: Line upgrade - capacity | F79: Demand growth | G79: 66 | H79: 0 | I79: 0 | J79: 0 | K79: 0 | L79: 0 | M79: 0.105 | N79: 10935.83471 | O79: 0 | P79: 0 | Q79: 0 | R79: 2733.958678 | S79: 101 | T79: 12302.81405 | U79: 0 | V79: 1366.979339 | W79: 27339.58678 | X79: 2018/2019 | Y79: 1913.771074 | Z79: 27339.58678 | AA79: 0 | AB79: 0 | AC79: 0
A80: AUG232_7 | C80: RTS 66kV Line works associated with RTS Redevelopment | D80: PJ1228 | E80: Line upgrade - capacity | F80: Demand growth | G80: 66 | H80: 0 | I80: 0 | J80: 2 | K80: 27199.06759 | L80: 0 | M80: 0.1 | N80: 10935.80872 | O80: 0.9 | P80: 0 | Q80: 262181.1761 | R80: 22294.3177 | S80: 3540 | T80: 338873.629 | U80: 249609.8563 | V80: 271990.6759 | W80: 1183084.531 | X80: 2016/2017 | Y80: 82815.9172 | Z80: 1183084.531 | AA80: 0 | AB80: 0 | AC80: 0
A81: AUG232_8 | C81: SVTS-EB Reconductor | D81: PJ1157 | E81: Reconductor - Single circuit | G81: 66 | H81: 0 | I81: 0 | J81: 14 | K81: 19698.53663 | L81: 0 | M81: 0.75 | N81: 57339.81848 | O81: 0 | P81: 0 | Q81: 0 | R81: 0 | S81: 1656 | T81: 59095.6099 | U81: 0 | V81: 56143.91504 | W81: 192277.8801 | X81: 2016 | Y81: 13459.4516 | Z81: 192277.8801 | AA81: 0 | AB81: 0 | AC81: 0
A82: AUG232_9 | C82: TBTS-HGS line upgrade | D82: PJ1065 | E82: Line upgrade - capacity | G82: 66 | H82: 0 | I82: 0 | J82: 10 | K82: 0 | L82: 0 | M82: 7 | N82: 74569.08055 | O82: 0 | P82: 0 | Q82: 0 | R82: 37284.54027 | S82: 2855 | T82: 74569.08055 | U82: 0 | V82: 78194.42508 | W82: 264617.1264 | X82: 2018/2019 | Y82: 0 | Z82: 0 | AA82: 264617.1264 | AB82: 0 | AC82: 0
A83: AUG232_10 | C83: TSTS-DC Subtrans Augmentation | D83: PJ1163 PJ1164 PJ1089 | E83: Reconductor - Single circuit | G83: 66 | H83: 0 | I83: 0 | J83: 38 | K83: 135481.7343 | L83: 0 | M83: 1.99 | N83: 321212.5624 | O83: 0 | P83: 0 | Q83: 0 | R83: 149687.1743 | S83: 5168 | T83: 392239.7627 | U83: 0 | V83: 416573.5184 | W83: 1415194.752 | X83: 2019/2020 | Y83: 99063.63265 | Z83: 1415194.752 | AA83: 0 | AB83: 0 | AC83: 0
A84: AUG232_11 | C84: TSTS-DC TSTS-WD Survey Uprate | D84: PJ1165 | E84: Line upgrade - capacity | G84: 66 | H84: 0 | I84: 0 | J84: 0 | K84: 0 | L84: 0 | M84: 0 | N84: 0 | O84: 0 | P84: 0 | Q84: 0 | R84: 0 | S84: 0 | T84: 137041.5645 | U84: 0 | V84: 0 | W84: 137041.5645 | X84: 2016 | Y84: 9592.909513 | Z84: 137041.5645 | AA84: 0 | AB84: 0 | AC84: 0
A85: AUG232_12 | C85: TSTS-WD Reconductor | D85: PJ1166 | E85: Reconductor - Single circuit | G85: 66 | H85: 0 | I85: 0 | J85: 6 | K85: 16411.66549 | L85: 0 | M85: 0.252 | N85: 55487.05952 | O85: 0 | P85: 0 | Q85: 0 | R85: 21882.22066 | S85: 637 | T85: 43764.44131 | U85: 0 | V85: 59787.13912 | W85: 197332.5261 | X85: 2018/2019 | Y85: 13813.27683 | Z85: 197332.5261 | AA85: 0 | AB85: 0 | AC85: 0
A86: AUG232_13 | W86: 0
A87: AUG232_14 | W87: 0
A88: AUG232_15 | W88: 0
A89: AUG232_16 | W89: 0
A90: AUG232_17 | W90: 0
A91: AUG232_18 | W91: 0
A92: AUG232_19 | W92: 0
A93: AUG232_20 | W93: 0
A94: AUG232_21 | W94: 0
A95: AUG232_22 | W95: 0
A96: AUG232_23 | W96: 0
A97: AUG232_24 | W97: 0
A98: AUG232_25 | W98: 0
A99: AUG232_26 | W99: 0
A100: AUG232_27 | W100: 0
A101: AUG232_28 | W101: 0
A102: AUG232_29 | W102: 0
A103: AUG232_30 | W103: 0
A104: AUG232_31 | W104: 0
A105: AUG232_32 | W105: 0
A106: AUG232_33 | W106: =SUM(K106,N106,Q106,R106,T106,U106,V106) -> 0
A107: AUG232_34 | W107: 0
A108: AUG232_35 | W108: 0
A109: AUG232_36 | W109: 0
A110: AUG232_37 | W110: 0
A111: AUG232_38 | W111: 0
A112: AUG232_39 | W112: 0
A113: AUG232_40 | W113: 0
A114: AUG232_41 | W114: 0
A115: AUG232_42 | W115: 0
A116: AUG232_43 | W116: 0
A117: AUG232_44 | W117: 0
A118: AUG232_45 | W118: 0
A119: AUG232_46 | W119: 0
A120: AUG232_47 | W120: 0
A121: AUG232_48 | W121: 0
A122: AUG232_49 | W122: 0
A123: AUG232_50 | W123: 0
A124: AUG232_51 | W124: 0
A125: AUG232_52 | W125: 0
A126: AUG232_53 | W126: 0
A127: AUG232_54 | W127: 0
A128: AUG232_55 | D128: Non material projects - [actual]
A129: AUG232_56 | D129: Non material projects - [forecast]
C132: TABLE 2.3.3 - AUGEX DATA - HV/LV FEEDERS AND DISTRIBUTION SUBSTATIONS
C133: NOTE: DNSP must provide expenditure information on an 'as incurred' basis.
C134: Table 2.3.3.1 - Descriptor metrics
C137: PROJECT TYPE | D137: Unit of Measure | E137: UNITS ADDED (0's) | L137: UNITS UPGRADED (0's)
A138: AUG2331 | E138: =CRCP_y5 -> 2015 | F138: =FRCP -> 2016 | G138: 2017 | H138: 2018 | I138: 2019 | J138: 2020 | L138: =CRCP_y5 -> 2015 | M138: =FRCP -> 2016 | N138: 2017 | O138: 2018 | P138: 2019 | Q138: 2020
C139: HV Feeder Augmentations - Overhead Lines | D139: Circuit Line Length in KM | E139: 1.99 | F139: 1.99 | G139: 0 | H139: 1.475 | I139: 1.49 | J139: 0 | K139: ED_AUG2333_00001 | L139: 5.173 | M139: 6.033 | N139: 1.51 | O139: 11.385 | P139: 3.31 | Q139: 0
A140: ED_AUG2331_00002 | C140: HV Feeder Augmentations - Underground Cables | D140: Circuit Line Length in KM | E140: 9.47 | F140: 11.62 | G140: 3.45 | H140: 5.785 | I140: 7.25 | J140: 0 | K140: ED_AUG2333_00002 | L140: 0.556 | M140: 0.616 | N140: 0 | O140: 1.217 | P140: 0 | Q140: 0
A141: ED_AUG2331_00003 | C141: LV Feeder Augmentations - Overhead Lines | D141: Circuit Line Length in KM | E141: 4.435131148 | F141: 0.4548852459 | G141: 1.023491803 | H141: 0.6823278689 | I141: 1.023491803 | J141: 1.137213115 | K141: ED_AUG2333_00003 | L141: 0 | M141: 0 | N141: 0 | O141: 0 | P141: 0 | Q141: 0
A142: ED_AUG2331_00004 | C142: LV Feeder Augmentations - Underground Cables | D142: Circuit Line Length in KM | E142: 0.716704918 | F142: 0.07350819672 | G142: 0.1653934426 | H142: 0.1102622951 | I142: 0.1653934426 | J142: 0.1837704918 | K142: ED_AUG2333_00004 | L142: 0 | M142: 0 | N142: 0 | O142: 0 | P142: 0 | Q142: 0
A143: ED_AUG2331_00005 | C143: Distribution Substation Augmentations - Pole Mounted | D143: Number | E143: 6 | F143: 1 | G143: 3 | H143: 0 | I143: 4 | J143: 0 | K143: ED_AUG2333_00005 | L143: 136 | M143: 62 | N143: 53 | O143: 58 | P143: 46 | Q143: 39
A144: ED_AUG2331_00006 | C144: Distribution Substation Augmentations - Ground Mounted | D144: Number | E144: 0 | F144: 0 | G144: 0 | H144: 0 | I144: 0 | J144: 1 | K144: ED_AUG2333_00006 | L144: 0 | M144: 0 | N144: 0 | O144: 0 | P144: 0 | Q144: 0
A145: ED_AUG2331_00007 | C145: Distribution Substation Augmentations - Indoor | D145: Number | E145: 25 | F145: 18 | G145: 16 | H145: 3 | I145: 5 | J145: 3 | K145: ED_AUG2333_00007 | L145: 25 | M145: 0 | N145: 0 | O145: 0 | P145: 0 | Q145: 0
C147: Table 2.3.3.2 - Cost metrics
C150: PROJECT TYPE | E150: =CONCATENATE("TOTAL DIRECT EXPENDITURE ($0's, real ", dms_DollarReal,")") -> TOTAL DIRECT EXPENDITURE ($0's, real December 2015)
A151: AUG2332 | E151: =CRCP_y5 -> 2015 | F151: =FRCP -> 2016 | G151: 2017 | H151: 2018 | I151: 2019 | J151: 2020
A152: ED_AUG2332_00001 | C152: HV Feeder Augmentations - Overhead Lines | E152: 0 | F152: 2265008.673 | G152: 1877484.504 | H152: 1162448.224 | I152: 191304.114 | J152: 0
A153: ED_AUG2332_00002 | C153: HV Feeder Augmentations - Underground Cables | E153: 0 | F153: 5307608.287 | G153: 1613606.267 | H153: 1978215.767 | I153: 526421.6483 | J153: 0
A154: ED_AUG2332_00003 | C154: HV Feeder Non-Material Projects | E154: 4565971.424 | F154: 2501034.222 | G154: 1653989.428 | H154: 1280701.047 | I154: 1071240.819 | J154: 354440.2595
A155: ED_AUG2332_00004 | C155: LV Feeder Augmentations - Overhead Lines | E155: 0 | F155: 0 | G155: 0 | H155: 0 | I155: 0 | J155: 0
A156: ED_AUG2332_00005 | C156: LV Feeder Augmentations - Underground Cables | E156: 0 | F156: 0 | G156: 0 | H156: 0 | I156: 0 | J156: 0
A157: ED_AUG2332_00006 | C157: LV Feeder Non-Material Projects | E157: 646062.1148 | F157: 892579.8131 | G157: 915877.8495 | H157: 855787.8028 | I157: 601326.8413 | J157: 515877.7767
A158: ED_AUG2332_00007 | C158: Distribution Substation Augmentations - Pole Mounted | E158: 5896596.5 | F158: 8033218.318 | G158: 8242900.646 | H158: 7702090.225 | I158: 5411941.572 | J158: 4642899.99
A159: ED_AUG2332_00008 | C159: Distribution Substation Augmentations - Ground Mounted | E159: 341063.7589 | F159: 495877.6739 | G159: 508821.0275 | H159: 475437.6682 | I159: 334070.4674 | J159: 286598.7648
A160: ED_AUG2332_00009 | C160: Distribution Substation Augmentations - Indoor | E160: 343990.0884 | F160: 495877.6739 | G160: 508821.0275 | H160: 475437.6682 | I160: 334070.4674 | J160: 286598.7648
C165: TABLE 2.3.4 - AUGEX DATA - TOTAL AUGMENTATION EXPENDITURE
E166: =CONCATENATE("TOTAL DIRECT EXPENDITURE ($0's, real ", dms_DollarReal,")") -> TOTAL DIRECT EXPENDITURE ($0's, real December 2015)
A167: AUG234 | E167: =CRCP_y5 -> 2015 | F167: =FRCP -> 2016 | G167: 2017 | H167: 2018 | I167: 2019 | J167: 2020
A168: ED_AUG234_00001 | C168: Subtransmission Substations, Switching Stations, Zone Substations | E168: 6978818.244 | F168: 7700363.307 | G168: 5942015.639 | H168: 3193060.397 | I168: 4067460.632 | J168: 2761806.531
A169: ED_AUG234_00002 | C169: Subtransmission Lines | E169: 1016144.229 | F169: 4112907.564 | G169: 7845913.752 | H169: 10844309.18 | I169: 5783924.94 | J169: 1375154.06
A170: ED_AUG234_00003 | C170: HV Feeders | E170: 5177811.595 | F170: 11096529.72 | G170: 5684490.408 | H170: 4905960.509 | I170: 1998614.088 | J170: 397720.9596
A171: ED_AUG234_00004 | C171: HV Feeders - Land Purchases and Easements | E171: 0 | F171: 0 | G171: 0 | H171: 0 | I171: 0 | J171: 0
A172: ED_AUG234_00005 | C172: Distribution Substations | E172: 7463591.494 | F172: 9941369.492 | G172: 10231418 | H172: 9601357.718 | I172: 6792602.319 | J172: 5853035.188
A173: ED_AUG234_00006 | C173: Distribution Substations - Land Purchases and Easements | E173: 0 | F173: 0 | G173: 0 | H173: 0 | I173: 0 | J173: 0
A174: ED_AUG234_00007 | C174: LV Feeders | E174: 732634.4382 | F174: 983212.3673 | G174: 1011898.483 | H174: 949584.8293 | I174: 671795.8338 | J174: 578871.612
A175: ED_AUG234_00008 | C175: LV Feeders - Land Purchases and Easements | E175: 0 | F175: 0 | G175: 0 | H175: 0 | I175: 0 | J175: 0
A176: ED_AUG234_00009 | C176: Other Assets | E176: 0 | F176: 0 | G176: 0 | H176: 0 | I176: 0 | J176: 0
A181: PROJECT TYPE FOR TBL 2.3.2
A182: New line on new route - single circuit
A183: New line on new route - dual circuit
A184: New line on new route - other
A185: Line rebuild over existing route - single circuit
A186: Line rebuild over existing route - dual circuit
A187: Reconductor - Single circuit
A188: Reconductor - Dual circuit
A189: Reconductor - Other
A190: Line upgrade - raising/retensoring
A191: Line upgrade - voltage upgrade
A192: Line upgrade - capacity
A193: String spare circuit
A194: Other - specify

Sheet 2.4 Augex model
C1: =SheetHeader -> REGULATORY REPORTING STATEMENT | J1: Worksheet navigation
C2: =dms_TradingName -> United Energy
C3: =FRCP_span -> 2016 to 2020
C4: 2.4 AUGEX MODEL
A6: ED_AUG241 | H6: ED_AUG241_00001 | I6: ED_AUG241_00002 | J6: ED_AUG241_00003 | K6: ED_AUG241_00004 | L6: ED_AUG241_00005 | M6: ED_AUG241_00006 | N6: ED_AUG241_00007 | O6: ED_AUG241_00008 | P6: ED_AUG241_00009 | Q6: ED_AUG241_00010 | R6: ED_AUG241_00011 | S6: ED_AUG241_00012
C7: TABLE 2.4.1 - AUGEX MODEL INPUTS - ASSET STATUS - SUBTRANSMISSION LINES
C9: Line ID | D9: Primary type of area supplied by line | E9: Line voltage | F9: Originating substation | G9: Terminating substation | H9: =CRCP_y4 -> 2014 | M9: =PRCP_y5 -> 2010 | R9: =CONCATENATE("Average per annum growth rate in annual line maximum demand (50% PoE) from ", CRCP_y4, " to ", FRCP_y5) -> Average per annum growth rate in annual line maximum demand (50% PoE) from 2014 to 2020 | S9: Network Segment ID
H10: =CONCATENATE(IF('1.0 Business & other details'!C48="Financial","Route line length as at 30 June ","Route line length as at 31 December ")) -> Route line length as at 31 December | I10: Maximum demand (weather corrected at 50% PoE) | K10: Line rating | M10: =CONCATENATE(IF('1.0 Business & other details'!H48="Financial","Route line length as at 30 June ","Route line length as at 31 December ")) -> Route line length as at 31 December | N10: Maximum demand (weather corrected at 50% PoE) | P10: Line rating
K11: Thermal | L11: N-1 emergency | P11: Thermal | Q11: N-1 emergency
D12: CBD, urban, long rural, or short rural | E12: kV | F12: name | G12: name | H12: km | I12: MVA | J12: MW | K12: MVA | L12: MVA | M12: km | N12: MVA | O12: MW | P12: MVA | Q12: MVA | R12: %
A13: AUG241_1 | C13: CBTS-CRM | D13: Urban | E13: 66 | F13: CBTS | G13: CRM | H13: 12.755 | I13: 94.49796236 | J13: 91.15892418 | K13: 128.0331957 | L13: 128.0331957 | M13: 12.755 | N13: 89.69459776 | O13: 84.83227691 | P13: 128.0331957 | Q13: 128.0331957 | R13: 0.01919847489 | S13: 1
A14: AUG241_2 | C14: BR-MC | D14: Urban | E14: 66 | F14: BR | G14: MC | H14: 6.813 | I14: 11.95320288 | J14: 11.65144973 | K14: 90.30912911 | L14: 90.30912911 | M14: 6.813 | N14: 16.33485668 | O14: 15.89653319 | P14: 90.30912911 | Q14: 90.30912911 | R14: 0.01325323084 | S14: 1
A15: AUG241_3 | C15: BT-MR | D15: Urban | E15: 66 | F15: BT | G15: MR | H15: 3.419 | I15: 32.36386062 | J15: 31.54684974 | K15: 75.44813318 | L15: 75.44813318 | M15: 3.419 | N15: 19.83280135 | O15: 19.3006153 | P15: 75.44813318 | Q15: 75.44813318 | R15: 0.01231256284 | S15: 1
A16: AUG241_4 | C16: BT-NB | D16: Urban | E16: 66 | F16: BT | G16: NB | H16: 2.879 | I16: 8.908519125 | J16: 8.683627628 | K16: 70.87551905 | L16: 70.87551905 | M16: 2.879 | N16: 3.96656027 | O16: 3.860123061 | P16: 70.87551905 | Q16: 70.87551905 | R16: 0.01231256284 | S16: 1
A17: AUG241_5 | C17: BU-WD | D17: Urban | E17: 66 | F17: BU | G17: WD | H17: 3.416 | I17: 14.20852417 | J17: 13.67721183 | K17: 100.0259341 | L17: 100.0259341 | M17: 3.416 | N17: 20.65506796 | O17: 19.40550336 | P17: 100.0259341 | Q17: 100.0259341 | R17: 0.0104219833 | S17: 1
A18: AUG241_6 | C18: BW-tee | D18: Urban | E18: 22 | F18: BW | G18: tee | H18: 0.418 | I18: 7.329794217 | J18: 7.117149009 | K18: 20.57676359 | L18: 20.57676359 | M18: 0.418 | N18: 8.595897458 | O18: 8.252322911 | P18: 20.57676359 | Q18: 20.57676359 | R18: 0.01330447895 | S18: 1
A19: AUG241_7 | C19: CBTS-FTS (1) | D19: Urban | E19: 66 | F19: CBTS | G19: FTS | H19: 19.87 | I19: 43.9787653 | J19: 42.42479765 | K19: 94.31016647 | L19: 94.31016647 | M19: 19.87 | N19: 41.77113036 | O19: 39.50672823 | P19: 94.31016647 | Q19: 94.31016647 | R19: 0.01919847489 | S19: 1
A20: AUG241_8 | C20: CBTS-FTS (2) | D20: Urban | E20: 66 | F20: CBTS | G20: FTS | H20: 19.35 | I20: 44.88089382 | J20: 43.29504991 | K20: 94.31016647 | L20: 94.31016647 | M20: 19.35 | N20: 42.63461626 | O20: 40.32340479 | P20: 94.31016647 | Q20: 94.31016647 | R20: 0.01919847489 | S20: 1
A21: AUG241_9 | C21: CDA-OE | D21: Urban | E21: 66 | F21: CDA | G21: OE | H21: 2.805 | I21: 6.540431763 | J21: 6.433434639 | K21: 84.02178468 | L21: 84.02178468 | M21: 2.805 | N21: 5.819397602 | O21: 5.727851953 | P21: 84.02178468 | Q21: 84.02178468 | R21: 0.02487412209 | S21: 1
A22: AUG241_10 | C22: CFD-EL | D22: Urban | E22: 66 | F22: CFD | G22: EL | H22: 5.637 | I22: 11.38937255 | J22: 11.05895461 | K22: 94.88174324 | L22: 94.88174324 | M22: 5.637 | N22: 5.207168469 | O22: 4.99904005 | P22: 94.88174324 | Q22: 94.88174324 | R22: 0.0196568688 | S22: 1
A23: AUG241_11 | C23: CM-HT | D23: Urban | E23: 66 | F23: CM | G23: HT | H23: 4.507 | I23: 26.9510895 | J23: 26.27072156 | K23: 97.1680503 | L23: 97.1680503 | M23: 4.507 | N23: 22.66313448 | O23: 22.05500032 | P23: 97.1680503 | Q23: 97.1680503 | R23: 0.01408754705 | S23: 1
A24: AUG241_12 | C24: CM-SR | D24: Urban | E24: 66 | F24: CM | G24: SR | H24: 2.953 | I24: 2.142555233 | J24: 2.088467404 | K24: 94.88174324 | L24: 94.88174324 | M24: 2.953 | N24: 5.306490025 | O24: 5.164097637 | P24: 94.88174324 | Q24: 94.88174324 | R24: 0.01408754705 | S24: 1
A25: AUG241_13 | C25: CRM-tee | D25: Urban | E25: 66 | F25: CRM | G25: tee | H25: 6.315 | I25: 10.82554223 | J25: 10.44302711 | K25: 84.02178468 | L25: 84.02178468 | M25: 6.315 | N25: 10.2754822 | O25: 9.718450976 | P25: 84.02178468 | Q25: 84.02178468 | R25: 0.01919847489 | S25: 1
A26: AUG241_14 | C26: DMA-RBD No. 2 | D26: Urban | E26: 66 | F26: DMA | G26: RBD | H26: 11.563 | I26: 45.21919201 | J26: 43.62066117 | K26: 70.30394228 | L26: 70.30394228 | M26: 11.563 | N26: 29.95630139 | O26: 28.72825275 | P26: 70.30394228 | Q26: 70.30394228 | R26: 0.01960052431 | S26: 1
A27: AUG241_15 | C27: DMA-RBD No.1 | D27: Urban | E27: 66 | F27: DMA | G27: RBD | H27: 11.948 | I27: 47.13621512 | J27: 45.46991614 | K27: 70.30394228 | L27: 70.30394228 | M27: 11.948 | N27: 31.1748628 | O27: 29.89685964 | P27: 70.30394228 | Q27: 70.30394228 | R27: 0.01960052431 | S27: 1
A28: AUG241_16 | C28: DN-tee(1) | D28: Urban | E28: 66 | F28: DN | G28: tee | H28: 4.675 | I28: 22.89151117 | J28: 22.03251321 | K28: 91.45228264 | L28: 91.45228264 | M28: 0 | N28: 0 | O28: 0 | P28: 0 | Q28: 0 | R28: 0.02590438099 | S28: 1
A29: AUG241_17 | C29: DN-tee(2) | D29: Urban | E29: 66 | F29: DN | G29: tee | H29: 4.513 | I29: 31.1234339 | J29: 29.9555352 | K29: 108.5995856 | L29: 108.5995856 | M29: 0 | N29: 0 | O29: 0 | P29: 0 | Q29: 0 | R29: 0.02590438099 | S29: 1
A30: AUG241_18 | C30: DSH-DVY | D30: Urban | E30: 66 | F30: DSH | G30: DVY | H30: 0 | I30: 0 | J30: 0 | K30: 0 | L30: 0 | M30: 3.01 | N30: 24.58722185 | O30: 23.10551283 | P30: 128.0331957 | Q30: 128.0331957 | R30: NA | S30: 1
A31: AUG241_19 | C31: DSH-tee(2) | D31: Urban | E31: 66 | F31: DSH | G31: tee | H31: 0.11 | I31: 12.8553314 | J31: 12.37293845 | K31: 128.0331957 | L31: 128.0331957 | M31: 0 | N31: 0 | O31: 0 | P31: 0 | Q31: 0 | R31: 0.02590438099 | S31: 1
A32: AUG241_20 | C32: DVY-tee(2) | D32: Urban | E32: 66 | F32: DVY | G32: tee | H32: 2.9 | I32: 31.91279636 | J32: 30.71527703 | K32: 128.0331957 | L32: 128.0331957 | M32: 0 | N32: 0 | O32: 0 | P32: 0 | Q32: 0 | R32: 0.02590438099 | S32: 1
A33: AUG241_21 | C33: EB-RD | D33: Urban | E33: 66 | F33: EB | G33: RD | H33: 6.067 | I33: 7.329794217 | J33: 7.209883647 | K33: 65.15975138 | L33: 65.15975138 | M33: 6.067 | N33: 18.66326999 | O33: 18.36967583 | P33: 65.15975138 | Q33: 65.15975138 | R33: 0.02368784481 | S33: 1
A34: AUG241_22 | C34: EL-EM | D34: Urban | E34: 66 | F34: EL | G34: EM | H34: 0 | I34: 0 | J34: 0 | K34: 0 | L34: 0 | M34: 7.794 | N34: 24.21333338 | O34: 23.24553623 | P34: 94.88174324 | Q34: 94.88174324 | R34: NA | S34: 1
A35: AUG241_23 | C35: EL-tee | D35: Urban | E35: 66 | F35: EL | G35: tee | H35: 7.164 | I35: 41.83621007 | J35: 40.62249665 | K35: 94.88174324 | L35: 94.88174324 | M35: 0 | N35: 0 | O35: 0 | P35: 0 | Q35: 0 | R35: 0.0196568688 | S35: 1
A36: AUG241_24 | C36: EM-tee | D36: Urban | E36: 66 | F36: EM | G36: tee | H36: 0.63 | I36: 4.961706854 | J36: 4.817762406 | K36: 94.88174324 | L36: 94.88174324 | M36: 0 | N36: 0 | O36: 0 | P36: 0 | Q36: 0 | R36: 0.0196568688 | S36: 1
A37: AUG241_25 | C37: ERTS-DN | D37: Urban | E37: 66 | F37: ERTS | G37: DN | H37: 7.137 | I37: 78.71071328 | J37: 75.75711437 | K37: 128.0331957 | L37: 128.0331957 | M37: 7.137 | N37: 55.26586179 | O37: 51.93535432 | P37: 118.3163907 | Q37: 118.3163907 | R37: 0.02590438099 | S37: 1
A38: AUG241_26 | C38: ERTS-DSH | D38: Urban | E38: 66 | F38: ERTS | G38: DSH | H38: 11.538 | I38: 60.78090897 | J38: 58.50012127 | K38: 128.0331957 | L38: 128.0331957 | M38: 11.538 | N38: 57.51088373 | O38: 54.04508366 | P38: 128.0331957 | Q38: 128.0331957 | R38: 0.02590438099 | S38: 1
A39: AUG241_27 | C39: ERTS-DVY | D39: Urban | E39: 66 | F39: ERTS | G39: DVY | H39: 12.697 | I39: 60.44261077 | J39: 58.17451763 | K39: 128.0331957 | L39: 128.0331957 | M39: 12.697 | N39: 46.00870699 | O39: 43.23606693 | P39: 128.0331957 | Q39: 128.0331957 | R39: 0.02590438099 | S39: 1
A40: AUG241_28 | C40: ERTS-LD | D40: Urban | E40: 66 | F40: ERTS | G40: LD | H40: 4.049 | I40: 76.56815805 | J40: 73.69495797 | K40: 128.0331957 | L40: 128.0331957 | M40: 4.049 | N40: 57.3435682 | O40: 53.88785113 | P40: 128.0331957 | Q40: 128.0331957 | R40: 0.02154818294 | S40: 1
A41: AUG241_29 | C41: ERTS-MGE | D41: Urban | E41: 66 | F41: ERTS | G41: MGE | H41: 5.776 | I41: 66.30644614 | J41: 63.81831411 | K41: 128.0331957 | L41: 128.0331957 | M41: 5.776 | N41: 61.58740628 | O41: 57.87594119 | P41: 128.0331957 | Q41: 128.0331957 | R41: 0.02154818294 | S41: 1
A42: AUG241_30 | C42: EW-SK | D42: Urban | E42: 66 | F42: EW | G42: SK | H42: 2.56 | I42: 5.976601438 | J42: 5.651431276 | K42: 86.30809174 | L42: 86.30809174 | M42: 2.56 | N42: 5.876322249 | O42: 5.285309291 | P42: 86.30809174 | Q42: 86.30809174 | R42: 0.01965330644 | S42: 1
A43: AUG241_31 | C43: FSH-FTS | D43: Urban | E43: 66 | F43: FSH | G43: FTS | H43: 4.149 | I43: 58.86388586 | J43: 56.78300532 | K43: 108.5995856 | L43: 108.5995856 | M43: 4.149 | N43: 50.91092411 | O43: 48.82384766 | P43: 108.5995856 | Q43: 108.5995856 | R43: 0.01685277635 | S43: 1
A44: AUG241_32 | C44: FSH-MTN | D44: Urban | E44: 66 | F44: FSH | G44: MTN | H44: 10.125 | I44: 12.8553314 | J44: 12.40088622 | K44: 98.08257313 | L44: 98.08257313 | M44: 10.125 | N44: 20.53470359 | O44: 19.69289023 | P44: 98.08257313 | Q44: 98.08257313 | R44: 0.01685277635 | S44: 1
A45: AUG241_33 | C45: FTN-tee | D45: Urban | E45: 66 | F45: FTN | G45: tee | H45: 0.09 | I45: 29.43194293 | J45: 28.39197996 | K45: 100.5975109 | L45: 100.5975109 | M45: 0.09 | N45: 27.95535598 | O45: 26.43990339 | P45: 100.5975109 | Q45: 100.5975109 | R45: 0.01919847489 | S45: 1
A46: AUG241_34 | C46: FTS-FTN | D46: Urban | E46: 66 | F46: FTS | G46: FTN | H46: 10.956 | I46: 27.62768589 | J46: 26.65147545 | K46: 76.59128671 | L46: 76.59128671 | M46: 10.956 | N46: 26.22838418 | O46: 24.80655029 | P46: 76.59128671 | Q46: 76.59128671 | R46: 0.01919847489 | S46: 1
A47: AUG241_35 | C47: FTS-LWN | D47: Urban | E47: 66 | F47: FTS | G47: LWN | H47: 2.683 | I47: 61.68303748 | J47: 59.50349824 | K47: 128.0331957 | L47: 128.0331957 | M47: 2.683 | N47: 58.6091054 | O47: 55.43192101 | P47: 128.0331957 | Q47: 128.0331957 | R47: 0.01919847489 | S47: 1
A48: AUG241_36 | C48: GW-NO | D48: Urban | E48: 66 | F48: GW | G48: NO | H48: 3.606 | I48: 14.88512056 | J48: 14.64160987 | K48: 94.88174324 | L48: 94.88174324 | M48: 3.606 | N48: 16.37443883 | O48: 16.11685055 | P48: 94.88174324 | Q48: 94.88174324 | R48: 0.03232380593 | S48: 1
A49: AUG241_37 | C49: HPK-DN | D49: Urban | E49: 66 | F49: HPK | G49: DN | H49: 0 | I49: 0 | J49: 0 | K49: 0 | L49: 0 | M49: 6.936 | N49: 13.7635288 | O49: 12.93409207 | P49: 91.45228264 | Q49: 91.45228264 | R49: NA | S49: 1
A50: AUG241_38 | C50: HPK-tee(1) | D50: Urban | E50: 66 | F50: HPK | G50: tee | H50: 2.423 | I50: 15.90001515 | J50: 15.30337124 | K50: 94.31016647 | L50: 94.31016647 | M50: 0 | N50: 0 | O50: 0 | P50: 0 | Q50: 0 | R50: 0.02590438099 | S50: 1
A51: AUG241_39 | C51: HTS-BR | D51: Urban | E51: 66 | F51: HTS | G51: BR | H51: 8.526 | I51: 32.36386062 | J51: 31.54684974 | K51: 85.73651497 | L51: 85.73651497 | M51: 8.526 | N51: 32.55934271 | O51: 31.68565737 | P51: 85.73651497 | Q51: 85.73651497 | R51: 0.01325323084 | S51: 1
A52: AUG241_40 | C52: HTS-HT | D52: Urban | E52: 66 | F52: HTS | G52: HT | H52: 1.377 | I52: 86.99901905 | J52: 84.80276854 | K52: 118.3163907 | L52: 118.3163907 | M52: 1.377 | N52: 99.16503234 | O52: 96.50407459 | P52: 118.3163907 | Q52: 118.3163907 | R52: 0.01408754705 | S52: 1
A53: AUG241_41 | C53: HTS-M | D53: Urban | E53: 66 | F53: HTS | G53: M | H53: 4.67 | I53: 74.76390101 | J53: 72.87652047 | K53: 97.1680503 | L53: 97.1680503 | M53: 4.67 | N53: 51.76383637 | O53: 50.37482476 | P53: 97.1680503 | Q53: 97.1680503 | R53: 0.01325323084 | S53: 1
A54: AUG241_42 | C54: HTS-MR | D54: Urban | E54: 66 | F54: HTS | G54: MR | H54: 4.828 | I54: 76.34262592 | J54: 74.41539119 | K54: 128.0331957 | L54: 128.0331957 | M54: 4.828 | N54: 50.16532106 | O54: 48.81920342 | P54: 92.59543617 | Q54: 92.59543617 | R54: 0.01231256284 | S54: 1
A55: AUG241_43 | C55: HTS-NB | D55: Urban | E55: 66 | F55: HTS | G55: NB | H55: 10.839 | I55: 46.00855447 | J55: 44.84708952 | K55: 128.0331957 | L55: 128.0331957 | M55: 10.839 | N55: 36.74901427 | O55: 35.76290483 | P55: 92.59543617 | Q55: 92.59543617 | R55: 0.01231256284 | S55: 1
A56: AUG241_44 | C56: HTS-SR | D56: Urban | E56: 66 | F56: HTS | G56: SR | H56: 6.816 | I56: 36.47982199 | J56: 35.55890554 | K56: 128.0331957 | L56: 128.0331957 | M56: 6.816 | N56: 30.18066202 | O56: 29.37080531 | P56: 128.0331957 | Q56: 128.0331957 | R56: 0.01408754705 | S56: 1
A57: AUG241_45 | C57: HTS-tee | D57: Urban | E57: 66 | F57: HTS | G57: tee | H57: 20.093 | I57: 24.80853427 | J57: 24.18225415 | K57: 78.30601701 | L57: 78.30601701 | M57: 20.093 | N57: 20.74968281 | O57: 20.19289351 | P57: 84.02178468 | Q57: 84.02178468 | R57: 0.01325323084 | S57: 1
A58: AUG241_46 | C58: LD-MGE | D58: Urban | E58: 66 | F58: LD | G58: MGE | H58: 5.9 | I58: 13.19362959 | J58: 12.69854209 | K58: 84.02178468 | L58: 84.02178468 | M58: 5.9 | N58: 20.80515742 | O58: 19.55136837 | P58: 128.0331957 | Q58: 128.0331957 | R58: 0.02154818294 | S58: 1
A59: AUG241_47 | C59: LWN-tee | D59: Urban | E59: 66 | F59: LWN | G59: tee | H59: 5.608 | I59: 19.84682742 | J59: 19.14554971 | K59: 84.02178468 | L59: 84.02178468 | M59: 5.608 | N59: 18.88875404 | O59: 17.86479959 | P59: 84.02178468 | Q59: 84.02178468 | R59: 0.01919847489 | S59: 1
A60: AUG241_48 | C60: MC-tee | D60: Urban | E60: 66 | F60: MC | G60: tee | H60: 0.007 | I60: 65.51708369 | J60: 63.86313483 | K60: 96.02489677 | L60: 96.02489677 | M60: 0.007 | N60: 47.01789828 | O60: 45.75623742 | P60: 96.02489677 | Q60: 96.02489677 | R60: 0.01325323084 | S60: 1
A61: AUG241_49 | C61: M-tee | D61: Urban | E61: 66 | F61: M | G61: tee | H61: 2.979 | I61: 41.27237974 | J61: 40.23047736 | K61: 81.73547761 | L61: 81.73547761 | M61: 2.979 | N61: 26.15784482 | O61: 25.4559349 | P61: 81.73547761 | Q61: 81.73547761 | R61: 0.01325323084 | S61: 1
A62: AUG241_50 | C62: MTN-DMA | D62: Urban | E62: 66 | F62: MTN | G62: DMA | H62: 14.451 | I62: 65.74261582 | J62: 63.41856724 | K62: 128.0331957 | L62: 128.0331957 | M62: 0 | N62: 0 | O62: 0 | P62: 0 | Q62: 0 | R62: 0.01685277635 | S62: 1
A63: AUG241_51 | C63: MTS-BW (1) | D63: Urban | E63: 22 | F63: MTS | G63: BW | H63: 3.54 | I63: 8.043979294 | J63: 7.81061481 | K63: 13.52731681 | L63: 13.52731681 | M63: 3.54 | N63: 7.019982924 | O63: 6.739397044 | P63: 13.52731681 | Q63: 13.52731681 | R63: 0.01330447895 | S63: 1
A64: AUG241_52 | C64: MTS-BW (2) | D64: Urban | E64: 22 | F64: MTS | G64: BW | H64: 3.505 | I64: 8.156745359 | J64: 7.92010941 | K64: 13.52731681 | L64: 13.52731681 | M64: 3.505 | N64: 7.019982924 | O64: 6.739397044 | P64: 13.52731681 | Q64: 13.52731681 | R64: 0.01330447895 | S64: 1
A65: AUG241_53 | C65: MTS-CFD | D65: Urban | E65: 66 | F65: MTS | G65: CFD | H65: 10.413 | I65: 41.27237974 | J65: 40.07502365 | K65: 94.88174324 | L65: 94.88174324 | M65: 10.413 | N65: 29.42050185 | O65: 28.24457628 | P65: 94.88174324 | Q65: 94.88174324 | R65: 0.0196568688 | S65: 1
A66: AUG241_54 | C66: MTS-EM | D66: Urban | E66: 66 | F66: MTS | G66: EM | H66: 1.459 | I66: 38.79152632 | J66: 37.66614245 | K66: 100.5975109 | L66: 100.5975109 | M66: 1.459 | N66: 62.87655926 | O66: 60.36340861 | P66: 100.5975109 | Q66: 100.5975109 | R66: 0.0196568688 | S66: 1
A67: AUG241_55 | C67: MTS-OAK | D67: Urban | E67: 66 | F67: MTS | G67: OAK | H67: 2.379 | I67: 46.34685266 | J67: 45.00228066 | K67: 94.88174324 | L67: 94.88174324 | M67: 2.379 | N67: 37.90889628 | O67: 36.39369302 | P67: 94.88174324 | Q67: 94.88174324 | R67: 0.01855610268 | S67: 1
A68: AUG241_56 | C68: MTS-OR | D68: Urban | E68: 66 | F68: MTS | G68: OR | H68: 4.93 | I68: 30.89790177 | J68: 30.00152044 | K68: 81.73547761 | L68: 81.73547761 | M68: 4.93 | N68: 26.47790602 | O68: 25.41959482 | P68: 81.73547761 | Q68: 81.73547761 | R68: 0.01855610268 | S68: 1
A69: AUG241_57 | C69: MTS-SH | D69: Urban | E69: 22 | F69: MTS | G69: SH | H69: 6.412 | I69: 5.450359802 | J69: 5.292239006 | K69: 14.28941916 | L69: 14.28941916 | M69: 6.412 | N69: 5.730598305 | O69: 5.501548608 | P69: 14.28941916 | Q69: 14.28941916 | R69: 0.01330447895 | S69: 1
A70: AUG241_58 | C70: MTS-tee(1) | D70: Urban | E70: 22 | F70: MTS | G70: tee | H70: 4.449 | I70: 9.397172073 | J70: 9.124550011 | K70: 15.24204711 | L70: 15.24204711 | M70: 4.449 | N70: 11.06721798 | O70: 10.62486575 | P70: 15.24204711 | Q70: 15.24204711 | R70: 0.01330447895 | S70: 1
A71: AUG241_59 | C71: MTS-tee(2) | D71: Urban | E71: 66 | F71: MTS | G71: tee | H71: 1.991 | I71: 38.90429238 | J71: 37.77563705 | K71: 128.0331957 | L71: 128.0331957 | M71: 0 | N71: 0 | O71: 0 | P71: 0 | Q71: 0 | R71: 0.0196568688 | S71: 1
A72: AUG241_60 | C72: NP-SS | D72: Urban | E72: 66 | F72: NP | G72: SS | H72: 5.05 | I72: 17.47874006 | J72: 17.19279947 | K72: 84.02178468 | L72: 84.02178468 | M72: 5.05 | N72: 17.29531953 | O72: 17.02324476 | P72: 84.02178468 | Q72: 84.02178468 | R72: 0.01586554035 | S72: 1
A73: AUG241_61 | C73: NW-BH | D73: Urban | E73: 66 | F73: NW | G73: BH | H73: 6.017 | I73: 4.62340866 | J73: 4.530019659 | K73: 102.3122412 | L73: 102.3122412 | M73: 6.017 | N73: 5.765151075 | O73: 5.563633047 | P73: 65.15975138 | Q73: 65.15975138 | R73: 0.01940667597 | S73: 1
A74: AUG241_62 | C74: OR-OAK | D74: Urban | E74: 66 | F74: OR | G74: OAK | H74: 5.282 | I74: 7.555326346 | J74: 7.336138209 | K74: 84.02178468 | L74: 84.02178468 | M74: 5.282 | N74: 7.698422014 | O74: 7.390719198 | P74: 84.02178468 | Q74: 84.02178468 | R74: 0.01855610268 | S74: 1
A75: AUG241_63 | C75: RBD-STO No. 2 | D75: Urban | E75: 66 | F75: RBD | G75: STO | H75: 15.241 | I75: 21.76385052 | J75: 20.99448281 | K75: 57.15767665 | L75: 57.15767665 | M75: 15.241 | N75: 16.63476799 | O75: 15.9528312 | P75: 57.15767665 | Q75: 57.15767665 | R75: 0.0253636928 | S75: 1
A76: AUG241_64 | C76: RBD-STO No.1 | D76: Urban | E76: 66 | F76: RBD | G76: STO | H76: 17.683 | I76: 21.98938265 | J76: 21.21204222 | K76: 57.15767665 | L76: 57.15767665 | M76: 17.683 | N76: 17.81529991 | O76: 17.0849676 | P76: 57.15767665 | Q76: 57.15767665 | R76: 0.0253636928 | S76: 1
A77: AUG241_65 | C77: RTS-EW | D77: Urban | E77: 66 | F77: RTS | G77: EW | H77: 7.311 | I77: 30.55960358 | J77: 28.89694105 | K77: 85.73651497 | L77: 85.73651497 | M77: 7.311 | N77: 22.14921463 | O77: 19.9215504 | P77: 85.73651497 | Q77: 85.73651497 | R77: 0.01965330644 | S77: 1
A78: AUG241_66 | C78: RTS-K | D78: Urban | E78: 66 | F78: RTS | G78: K | H78: 5.988 | I78: 49.50430248 | J78: 46.81091189 | K78: 96.02489677 | L78: 96.02489677 | M78: 5.988 | N78: 37.00680713 | O78: 33.28483586 | P78: 88.02282204 | Q78: 88.02282204 | R78: 0.01461064376 | S78: 1
A79: AUG241_67 | C79: RWTS-BH | D79: Urban | E79: 66 | F79: RWTS | G79: BH | H79: 8.484 | I79: 43.9787653 | J79: 43.0904309 | K79: 120.031121 | L79: 120.031121 | M79: 8.484 | N79: 36.80827225 | O79: 35.52165715 | P79: 108.5995856 | Q79: 108.5995856 | R79: 0.01940667597 | S79: 1
A80: AUG241_68 | C80: RWTS-NW | D80: Urban | E80: 66 | F80: RWTS | G80: NW | H80: 5.053 | I80: 69.80219416 | J80: 68.39224802 | K80: 128.0331957 | L80: 128.0331957 | M80: 5.053 | N80: 52.55156941 | O80: 50.71465509 | P80: 108.5995856 | Q80: 108.5995856 | R80: 0.01940667597 | S80: 1
A81: AUG241_69 | C81: SH-tee | D81: Urban | E81: 22 | F81: SH | G81: tee | H81: 3.183 | I81: 2.104966544 | J81: 2.043899203 | K81: 17.52835417 | L81: 17.52835417 | M81: 3.183 | N81: 2.578769237 | O81: 2.475696873 | P81: 17.52835417 | Q81: 17.52835417 | R81: 0.01330447895 | S81: 1
A82: AUG241_70 | C82: SV-SVW | D82: Urban | E82: 66 | F82: SV | G82: SVW | H82: 0.13 | I82: 4.510642595 | J82: 4.436851475 | K82: 228.6307066 | L82: 228.6307066 | M82: 0.13 | N82: 3.634914454 | O82: 3.577733175 | P82: 228.6307066 | Q82: 228.6307066 | R82: 0.03116875226 | S82: 1
A83: AUG241_71 | C83: SVTS-CDA | D83: Urban | E83: 66 | F83: SVTS | G83: CDA | H83: 5.567 | I83: 23.79363969 | J83: 23.40439153 | K83: 65.15975138 | L83: 65.15975138 | M83: 5.567 | N83: 20.42079522 | O83: 20.09955322 | P83: 65.15975138 | Q83: 65.15975138 | R83: 0.02487412209 | S83: 1
A84: AUG241_72 | C84: SVTS-EB | D84: Urban | E84: 66 | F84: SVTS | G84: EB | H84: 11.553 | I84: 57.28516095 | J84: 56.34801374 | K84: 94.88174324 | L84: 94.88174324 | M84: 11.553 | N84: 33.93321816 | O84: 33.3994106 | P84: 94.88174324 | Q84: 94.88174324 | R84: 0.02368784481 | S84: 1
A85: AUG241_73 | C85: SVTS-GW | D85: Urban | E85: 66 | F85: SVTS | G85: GW | H85: 5.827 | I85: 53.67664688 | J85: 52.79853256 | K85: 128.0331957 | L85: 128.0331957 | M85: 5.827 | N85: 46.17388342 | O85: 45.44751647 | P85: 128.0331957 | Q85: 128.0331957 | R85: 0.03232380593 | S85: 1
A86: AUG241_74 | C86: SVTS-NO | D86: Urban | E86: 66 | F86: SVTS | G86: NO | H86: 4.468 | I86: 61.23197323 | J86: 60.23025878 | K86: 128.0331957 | L86: 128.0331957 | M86: 4.468 | N86: 52.07274958 | O86: 51.25358685 | P86: 128.0331957 | Q86: 128.0331957 | R86: 0.03232380593 | S86: 1
A87: AUG241_75 | C87: SVTS-NP | D87: Urban | E87: 66 | F87: SVTS | G87: NP | H87: 7.01 | I87: 52.88728442 | J87: 52.02208355 | K87: 108.5995856 | L87: 108.5995856 | M87: 7.01 | N87: 52.96691606 | O87: 52.13368709 | P87: 108.5995856 | Q87: 108.5995856 | R87: 0.01586554035 | S87: 1
A88: AUG241_76 | C88: SVTS-OE | D88: Urban | E88: 66 | F88: SVTS | G88: OE | H88: 6.744 | I88: 18.04257038 | J88: 17.7474059 | K88: 65.15975138 | L88: 65.15975138 | M88: 6.744 | N88: 15.13043376 | O88: 14.89241508 | P88: 65.15975138 | Q88: 65.15975138 | R88: 0.02487412209 | S88: 1
A89: AUG241_77 | C89: SVTS-SS | D89: Urban | E89: 66 | F89: SVTS | G89: SS | H89: 4.886 | I89: 58.86388586 | J89: 57.90091175 | K89: 108.5995856 | L89: 108.5995856 | M89: 4.886 | N89: 61.39838433 | O89: 60.43251891 | P89: 108.5995856 | Q89: 108.5995856 | R89: 0.01586554035 | S89: 1
A90: AUG241_78 | C90: SVTS-SV | D90: Urban | E90: 66 | F90: SVTS | G90: SV | H90: 0.061 | I90: 48.1511097 | J90: 47.3633895 | K90: 128.0331957 | L90: 128.0331957 | M90: 0.062 | N90: 59.37026942 | O90: 58.43630852 | P90: 128.0331957 | Q90: 128.0331957 | R90: 0.03116875226 | S90: 1
A91: AUG241_79 | C91: SVTS-SVW | D91: Urban | E91: 66 | F91: SVTS | G91: SVW | H91: 0.15 | I91: 47.36174725 | J91: 46.58694049 | K91: 128.0331957 | L91: 128.0331957 | M91: 0.136 | N91: 29.68513471 | O91: 29.21815426 | P91: 128.0331957 | Q91: 128.0331957 | R91: 0.03116875226 | S91: 1
A92: AUG241_80 | C92: TBTS-MTN No2 | D92: Urban | E92: 66 | F92: TBTS | G92: MTN | H92: 19.488 | I92: 58.86388586 | J92: 56.78300532 | K92: 128.0331957 | L92: 128.0331957 | M92: 0 | N92: 0 | O92: 0 | P92: 0 | Q92: 0 | R92: 0.01685277635 | S92: 1
A93: AUG241_81 | C93: TBTS-DMA | D93: Urban | E93: 66 | F93: TBTS | G93: DMA | H93: 33.881 | I93: 72.84687791 | J93: 70.27168858 | K93: 128.0331957 | L93: 128.0331957 | M93: 33.881 | N93: 47.08737878 | O93: 45.15704731 | P93: 128.0331957 | Q93: 128.0331957 | R93: 0.01685277635 | S93: 1
A94: AUG241_82 | C94: TBTS-DMA No. 2 | D94: Urban | E94: 66 | F94: TBTS | G94: DMA | H94: 0 | I94: 0 | J94: 0 | K94: 0 | L94: 0 | M94: 33.881 | N94: 38.74007073 | O94: 37.15193438 | P94: 128.0331957 | Q94: 128.0331957 | R94: NA | S94: 1
A95: AUG241_83 | C95: TBTS-FTS | D95: Urban | E95: 66 | F95: TBTS | G95: FTS | H95: 17.497 | I95: 58.7511198 | J95: 56.67422562 | K95: 108.5995856 | L95: 108.5995856 | M95: 17.497 | N95: 50.91092411 | O95: 48.82384766 | P95: 108.5995856 | Q95: 108.5995856 | R95: 0.01685277635 | S95: 1
A96: AUG241_84 | C96: TBTS-HGS No. 2 | D96: Rural Short | E96: 66 | F96: TBTS | G96: HGS | H96: 3.76 | I96: 22.66597904 | J96: 21.86472044 | K96: 91.45228264 | L96: 91.45228264 | M96: 3.76 | N96: 42.23848926 | O96: 40.50693641 | P96: 91.45228264 | Q96: 91.45228264 | R96: 0.01400719383 | S96: 2
A97: AUG241_85 | C97: TBTS-HGS No.1 | D97: Rural Short | E97: 66 | F97: TBTS | G97: HGS | H97: 3.28 | I97: 26.16172705 | J97: 25.23689125 | K97: 91.45228264 | L97: 91.45228264 | M97: 3.28 | N97: 51.33960021 | O97: 49.23495033 | P97: 91.45228264 | Q97: 91.45228264 | R97: 0.01400719383 | S97: 2
A98: AUG241_86 | C98: TBTS-MTN No1 | D98: Urban | E98: 66 | F98: TBTS | G98: MTN | H98: 16.117 | I98: 69.0128317 | J98: 66.57317865 | K98: 108.5995856 | L98: 108.5995856 | M98: 16.117 | N98: 55.35853272 | O98: 53.08912803 | P98: 108.5995856 | Q98: 108.5995856 | R98: 0.01685277635 | S98: 1
A99: AUG241_87 | C99: TSTS-BU | D99: Urban | E99: 66 | F99: TSTS | G99: BU | H99: 8.266 | I99: 45.33195808 | J99: 43.63681869 | K99: 100.5975109 | L99: 100.5975109 | M99: 8.431 | N99: 48.85480146 | O99: 45.89924447 | P99: 100.5975109 | Q99: 100.5975109 | R99: 0.0104219833 | S99: 1
A100: AUG241_88 | C100: TSTS-DC No. 2 | D100: Urban | E100: 66 | F100: TSTS | G100: DC | H100: 9.929 | I100: 43.9787653 | J100: 42.33422709 | K100: 100.5975109 | L100: 100.5975109 | M100: 9.929 | N100: 42.38220539 | O100: 39.81821946 | P100: 103.6459203 | Q100: 103.6459203 | R100: 0.01689946802 | S100: 1
A101: AUG241_89 | C101: TSTS-DC No.1 | D101: Urban | E101: 66 | F101: TSTS | G101: DC | H101: 7.848 | I101: 40.59578335 | J101: 39.07774808 | K101: 93.16701294 | L101: 93.16701294 | M101: 7.848 | N101: 44.78494763 | O101: 42.0756036 | P101: 94.57863435 | Q101: 94.57863435 | R101: 0.01689946802 | S101: 1
A102: AUG241_90 | C102: TSTS-WD | D102: Urban | E102: 66 | F102: TSTS | G102: WD | H102: 11.128 | I102: 31.34896603 | J102: 30.17670546 | K102: 93.16701294 | L102: 93.16701294 | M102: 11.128 | N102: 31.66285867 | O102: 29.74735844 | P102: 93.16701294 | Q102: 93.16701294 | R102: 0.0104219833 | S102: 1
A103: AUG241_91 | C103: MTS - VR Caul. FDR 20 | D103: Urban | E103: 22 | F103: MTS | G103: Caul. | H103: 5.156 | I103: 6.261407906 | J103: 6.079757733 | K103: 14.28941916 | L103: 14.28941916 | M103: 5.156 | N103: 6.046792692 | O103: 5.805104832 | P103: 14.28941916 | Q103: 14.28941916 | R103: 0.02127405402 | S103: 1
A104: AUG241_92 | C104: MTS - VR Ash. FDR 22 | D104: Urban | E104: 22 | F104: MTS | G104: Ash. | H104: 0.847 | I104: 2.405765239 | J104: 2.335971404 | K104: 10.2883818 | L104: 10.2883818 | M104: 0.847 | N104: 2.791927529 | O104: 2.680335314 | P104: 10.2883818 | Q104: 10.2883818 | R104: 0.0195041924 | S104: 1
A105: AUG241_93 | C105: MTS - VR Caul. FDR 38 | D105: Urban | E105: 22 | F105: MTS | G105: Caul. | H105: 4.908 | I105: 8.792421262 | J105: 8.537343672 | K105: 10.70753809 | L105: 10.70753809 | M105: 4.908 | N105: 8.483745774 | O105: 8.144653885 | P105: 10.70753809 | Q105: 10.70753809 | R105: 0.02127405402 | S105: 1
A106: AUG241_94 | C106: MTS - VR Gard. FDR 126 | D106: Urban | E106: 22 | F106: MTS | G106: Gard. | H106: 5.497 | I106: 4.006955548 | J106: 3.890709461 | K106: 4.191562954 | L106: 4.191562954 | M106: 5.497 | N106: 3.885084029 | O106: 3.729798792 | P106: 4.191562954 | Q106: 4.191562954 | R106: 0.01461064376 | S106: 1
A107: AUG241_95
A108: AUG241_96
A109: AUG241_97
A110: AUG241_98
A111: AUG241_99
A112: AUG241_100
A113: AUG241_101
A114: AUG241_102
A115: AUG241_103
A116: AUG241_104
A117: AUG241_105
A118: AUG241_106
A119: AUG241_107
A120: AUG241_108
A121: AUG241_109
A122: AUG241_110
A123: AUG241_111
A124: AUG241_112
A125: AUG241_113
A126: AUG241_114
A127: AUG241_115
A128: AUG241_116
A129: AUG241_117
A130: AUG241_118
A131: AUG241_119
A132: AUG241_120
A133: AUG241_121
A134: AUG241_122
A135: AUG241_123
A136: AUG241_124
A137: AUG241_125
A138: AUG241_126
A139: AUG241_127
A140: AUG241_128
A141: AUG241_129
A142: AUG241_130
A143: AUG241_131
A144: AUG241_132
A145: AUG241_133
A146: AUG241_134
A147: AUG241_135
A148: AUG241_136
A149: AUG241_137
A150: AUG241_138
A151: AUG241_139
A152: AUG241_140
A153: AUG241_141
A154: AUG241_142
A155: AUG241_143
A156: AUG241_144
A157: AUG241_145
A158: AUG241_146
A159: AUG241_147
A160: AUG241_148
A161: AUG241_149
A162: AUG241_150
A163: AUG241_151
A164: AUG241_152
A165: AUG241_153
A166: AUG241_154
A167: AUG241_155
A168: AUG241_156
A169: AUG241_157
A170: AUG241_158
A171: AUG241_159
A172: AUG241_160
A173: AUG241_161
A174: AUG241_162
A175: AUG241_163
A176: AUG241_164
A177: AUG241_165
A178: AUG241_166
A179: AUG241_167
A180: AUG241_168
A181: AUG241_169
A182: AUG241_170
A183: AUG241_171
A184: AUG241_172
A185: AUG241_173
A186: AUG241_174
A187: AUG241_175
A188: AUG241_176
A189: AUG241_177
A190: AUG241_178
A191: AUG241_179
A192: AUG241_180
A193: AUG241_181
A194: AUG241_182
A195: AUG241_183
A196: AUG241_184
A197: AUG241_185
A198: AUG241_186
A199: AUG241_187
A200: AUG241_188
A201: AUG241_189
A202: AUG241_190
... 7642 more rows

Sheet 2.5 Connections
C1: =SheetHeader -> REGULATORY REPORTING STATEMENT
C2: =dms_TradingName -> United Energy
C3: =FRCP_span -> 2016 to 2020
C4: 2.5 CONNECTIONS
C9: 2.5.1 DESCRIPTOR METRICS
C12: CONNECTION SUBCATEGORY | D12: DESCRIPTOR METRIC | E12: Unit of Measure | F12: =CONCATENATE("VOLUMES and EXPENDITURE (0's, real ", dms_DollarReal, ")") -> VOLUMES and EXPENDITURE (0's, real December 2015)
F13: =CRCP_y5 -> 2015 | G13: =FRCP -> 2016 | H13: 2017 | I13: 2018 | J13: 2019 | K13: 2020
A14: ED_CON251_00001 | C14: RESIDENTIAL | D14: Underground connections | E14: 0's | F14: 8310 | G14: 8464 | H14: 8689 | I14: 8597 | J14: 8634 | K14: 8582
A15: ED_CON251_00002 | D15: Overhead connections | E15: 0's | F15: 1583 | G15: 1612 | H15: 1654 | I15: 1636 | J15: 1643 | K15: 1633
A16: ED_CON251_00003 | D16: Distribution substations installed | E16: MVA added | F16: 0 | G16: 0 | H16: 0 | I16: 0 | J16: 0 | K16: 0
A17: ED_CON251_00004 | D17: Distribution substations installed | E17: 0's | F17: 0 | G17: 0 | H17: 0 | I17: 0 | J17: 0 | K17: 0
A18: ED_CON251_00005 | D18: Distribution substations installed | E18: total spend $0's | F18: 0 | G18: 0 | H18: 0 | I18: 0 | J18: 0 | K18: 0
A19: ED_CON251_00006 | D19: Augmentation HV | E19: net circuit KM added | F19: 0 | G19: 0 | H19: 0 | I19: 0 | J19: 0 | K19: 0
A20: ED_CON251_00007 | D20: Augmentation HV | E20: total spend $0's | F20: 0 | G20: 0 | H20: 0 | I20: 0 | J20: 0 | K20: 0
A21: ED_CON251_00008 | D21: Augmentation LV | E21: net circuit KM added | F21: 0 | G21: 0 | H21: 0 | I21: 0 | J21: 0 | K21: 0
A22: ED_CON251_00009 | D22: Augmentation LV | E22: total spend $0's | F22: 0 | G22: 0 | H22: 0 | I22: 0 | J22: 0 | K22: 0
A23: ED_CON251_00010 | D23: Mean days to connect residential customer with LV single phase connection | E23: 0's | F23: 9.18170759 | G23: 9.18170759 | H23: 9.18170759 | I23: 9.18170759 | J23: 9.18170759 | K23: 9.18170759
A24: ED_CON251_00011 | D24: Volume of GSL breaches for residential customers | E24: 0's | F24: 108.823 | G24: 110.836 | H24: 113.773 | I24: 112.563 | J24: 113.047 | K24: 112.365
A25: ED_CON251_00012 | D25: Volume of customer complaints relating to connection services | E25: 0's | F25: 132.8177842 | G25: 135.274638 | H25: 138.859228 | I25: 137.3824306 | J25: 137.9731495 | K25: 137.1407728
A26: ED_CON251_00013 | D26: GSL payments | E26: $0's | F26: 18598.84 | G26: 18942.88 | H26: 19444.84 | I26: 19238.04 | J26: 19320.76 | K26: 19204.2
A27: ED_CON251_00014 | C27: COMMERCIAL/INDUSTRIAL | D27: Underground connections | E27: 0's | F27: 2613 | G27: 2651 | H27: 2723 | I27: 2776 | J27: 2850 | K27: 2902
A28: ED_CON251_00015 | D28: Overhead connections | E28: 0's | F28: 497 | G28: 504 | H28: 511 | I28: 518 | J28: 525 | K28: 532
A29: ED_CON251_00016 | D29: Distribution substations installed | E29: MVA added | F29: 148 | G29: 150.1414791 | H29: 153.9009646 | I29: 156.7562701 | J29: 160.6109325 | K29: 163.4186495
A30: ED_CON251_00017 | D30: Distribution substations installed | E30: 0's | F30: 213 | G30: 216.1713283 | H30: 219.3898741 | I30: 222.6563404 | J30: 225.9714406 | K30: 229.3358989
A31: ED_CON251_00018 | D31: Distribution substations installed | E31: total spend $0's | F31: 23411990 | G31: 23268890 | H31: 23472169.92 | I31: 23296711.9 | J31: 23325050.39 | K31: 23672328.25
A32: ED_CON251_00019 | D32: Augmentation HV | E32: net circuit KM added | F32: 40.5 | G32: 41.08601286 | H32: 42.114791 | I32: 42.89614148 | J32: 43.95096463 | K32: 44.7192926
A33: ED_CON251_00020 | D33: Augmentation HV | E33: total spend $0's | F33: 11976966 | G33: 11903759.76 | H33: 12007752.48 | I33: 11917992.72 | J33: 11932489.96 | K33: 12110148.28
A34: ED_CON251_00021 | D34: Augmentation LV | E34: net circuit KM added | F34: 26.56 | G34: 26.94430868 | H34: 27.61898392 | I34: 28.1313955 | J34: 28.82315113 | K34: 29.32702251
A35: ED_CON251_00022 | D35: Augmentation LV | E35: total spend $0's | F35: 9971119 | G35: 9910173 | H35: 9996749.505 | I35: 9922022.29 | J35: 9934091.598 | K35: 10081996.53
A36: ED_CON251_00023 | C36: SUBDIVISION | D36: Underground connections | E36: 0's | F36: 155 | G36: 157 | H36: 159 | I36: 161 | J36: 163 | K36: 166
A37: ED_CON251_00024 | D37: Overhead connections | E37: 0's | F37: 29 | G37: 29 | H37: 29 | I37: 29 | J37: 29 | K37: 29
A38: ED_CON251_00025 | D38: Distribution substations installed | E38: MVA added | F38: 6.5 | G38: 6.570652174 | H38: 6.641304348 | I38: 6.711956522 | J38: 6.782608696 | K38: 6.888586957
A39: ED_CON251_00026 | D39: Distribution substations installed | E39: 0's | F39: 28 | G39: 28.52059308 | H39: 29.05086535 | I39: 29.59099676 | J39: 30.14117062 | K39: 30.70157365
A40: ED_CON251_00027 | D40: Distribution substations installed | E40: total spend $0's | F40: 2105940 | G40: 2278749.889 | H40: 2384519.671 | I40: 2419057.335 | J40: 2481457.9 | K40: 2513240.659
A41: ED_CON251_00028 | D41: Augmentation HV | E41: net circuit KM added | F41: 9.4 | G41: 9.502173913 | H41: 9.604347826 | I41: 9.706521739 | J41: 9.808695652 | K41: 9.961956522
A42: ED_CON251_00029 | D42: Augmentation HV | E42: total spend $0's | F42: 1191464 | G42: 1289233.529 | H42: 1349074.212 | I42: 1368614.362 | J42: 1403918.324 | K42: 1421899.849
A43: ED_CON251_00030 | D43: Augmentation LV | E43: net circuit KM added | F43: 55.9 | G43: 56.5076087 | H43: 57.11521739 | I43: 57.72282609 | J43: 58.33043478 | K43: 59.24184783
A44: ED_CON251_00031 | D44: Augmentation LV | E44: total spend $0's | F44: 12411048 | G44: 13075709.69 | H44: 14015985.36 | I44: 14256337.01 | J44: 14795594.57 | K44: 15024280.59
A45: ED_CON251_00032 | D45: Cost per lot | E45: $0's | F45: 3414.88087 | G45: 3655.367981 | H45: 3784.342605 | I45: 3798.743307 | J45: 3856.142458 | K45: 3845.4472
A46: ED_CON251_00033 | C46: EMBEDDED GENERATION | D46: Underground connections | E46: 0's | F46: 7596.96 | G46: 7596.96 | H46: 3604.39708 | I46: 7282.730511 | J46: 7430.603212 | K46: 7578.475912
A47: ED_CON251_00034 | D47: Overhead connections | E47: 0's | F47: 1447.04 | G47: 1447.04 | H47: 686.5518248 | I47: 1387.186764 | J47: 1415.352993 | K47: 1443.519221
A48: ED_CON251_00035 | D48: Distribution substations installed | E48: MVA added | F48: 0 | G48: 0 | H48: 0 | I48: 0 | J48: 0 | K48: 0
A49: ED_CON251_00036 | D49: Distribution substations installed | E49: 0's | F49: 0 | G49: 0 | H49: 0 | I49: 0 | J49: 0 | K49: 0
A50: ED_CON251_00037 | D50: Distribution substations installed | E50: total spend $0's | F50: 0 | G50: 0 | H50: 0 | I50: 0 | J50: 0 | K50: 0
A51: ED_CON251_00038 | D51: Augmentation HV | E51: net circuit KM added | F51: 0 | G51: 0 | H51: 0 | I51: 0 | J51: 0 | K51: 0
A52: ED_CON251_00039 | D52: Augmentation HV | E52: total spend $0's | F52: 0 | G52: 0 | H52: 0 | I52: 0 | J52: 0 | K52: 0
A53: ED_CON251_00040 | D53: Augmentation LV | E53: net circuit KM added | F53: 0 | G53: 0 | H53: 0 | I53: 0 | J53: 0 | K53: 0
A54: ED_CON251_00041 | D54: Augmentation LV | E54: total spend $0's | F54: 0 | G54: 0 | H54: 0 | I54: 0 | J54: 0 | K54: 0
A62: NB: Codes also in hidden Column L | C62: 2.5.2 COST METRICS BY CONNECTION CLASSIFICATION
C65: CONNECTION SUBCATEGORY | D65: CONNECTION CLASSICIATION | F65: =CONCATENATE("EXPENDITURE ($'0s, real ", dms_DollarReal,")") -> EXPENDITURE ($'0s, real December 2015) | M65: VOLUMES (0's)
F66: =CRCP_y5 -> 2015 | G66: =FRCP -> 2016 | H66: 2017 | I66: 2018 | J66: 2019 | K66: 2020 | M66: =CRCP_y5 -> 2015 | N66: =FRCP -> 2016 | O66: 2017 | P66: 2018 | Q66: 2019 | R66: 2020
A67: ED_CON252_00001 | C67: RESIDENTIAL | D67: Simple connection LV | F67: 0 | G67: 0 | H67: 0 | I67: 0 | J67: 0 | K67: 0 | L67: ED_CON252_00001 | M67: 9894 | N67: 10077.95528 | O67: 10346.204 | P67: 10237.69367 | Q67: 10281.93608 | R67: 10220.46241
A68: ED_CON252_00002 | D68: Complex connection LV | F68: 0 | G68: 0 | H68: 0 | I68: 0 | J68: 0 | K68: 0 | L68: ED_CON252_00002 | M68: 0 | N68: 0 | O68: 0 | P68: 0 | Q68: 0 | R68: 0
A69: ED_CON252_00003 | D69: Complex connection HV | F69: 0 | G69: 0 | H69: 0 | I69: 0 | J69: 0 | K69: 0 | L69: ED_CON252_00003 | M69: 0 | N69: 0 | O69: 0 | P69: 0 | Q69: 0 | R69: 0
A70: ED_CON252_00004 | C70: COMMERCIAL/INDUSTRIAL | D70: Simple connection LV | F70: 3105529.607 | G70: 3086547.781 | H70: 3113512.246 | I70: 3090238.271 | J70: 3093997.287 | K70: 3140062.642 | L70: ED_CON252_00004 | M70: 2450.524142 | N70: 2487.009666 | O70: 2524.038418 | P70: 2561.618486 | Q70: 2599.758078 | R70: 2638.465526
A71: ED_CON252_00005 | D71: Complex connection HV (customer connected at LV, minor HV works) | F71: 27629023.87 | G71: 27460147.89 | H71: 27700043.17 | I71: 27492981.15 | J71: 27526424.06 | K71: 27936254.57 | L71: ED_CON252_00005 | M71: 589.8558098 | N71: 598.6380934 | O71: 607.5511354 | P71: 616.5968823 | Q71: 625.7773102 | R71: 635.0944243
A72: ED_CON252_00006 | D72: Complex connection HV (customer connected at LV, upstream asset works) | F72: 6605.968696 | G72: 6565.591251 | H72: 6622.949073 | I72: 6573.441527 | J72: 6581.437567 | K72: 6679.426102 | L72: ED_CON252_00006 | M72: 5.034075058 | N72: 5.109026723 | O72: 5.185094334 | P72: 5.262294504 | Q72: 5.340644098 | R72: 5.420160229
A73: ED_CON252_00007 | D73: Complex connection HV (customer connected at HV) | F73: 14618916.21 | G73: 14529561.49 | H73: 14656493.55 | I73: 14546934.04 | J73: 14564629.16 | K73: 14781476.42 | L73: ED_CON252_00007 | M73: 64.585973 | N73: 65.54758485 | O73: 66.523514 | P73: 67.51397364 | Q73: 68.5191801 | R73: 69.53935294
A74: ED_CON252_00008 | D74: Complex connection sub-transmission | F74: 0 | G74: 0 | H74: 0 | I74: 0 | J74: 0 | K74: 0 | L74: ED_CON252_00008 | M74: 0 | N74: 0 | O74: 0 | P74: 0 | Q74: 0 | R74: 0
A75: ED_CON252_00009 | C75: SUBDIVISION | D75: Complex connection LV | F75: 14085250.39 | G75: 14887293.85 | H75: 15911655.47 | I75: 16179464.23 | J75: 16768329.64 | K75: 17022282.64 | L75: ED_CON252_00009 | M75: 140.8677422 | N75: 143.4868412 | O75: 146.154636 | P75: 148.8720322 | Q75: 151.6399518 | R75: 154.4593343
A76: ED_CON252_00010 | D76: Complex connection HV (no upstream asset works) | F76: 1623202.09 | G76: 1756399.266 | H76: 1837923.775 | I76: 1864544.48 | J76: 1912641.161 | K76: 1937138.458 | L76: ED_CON252_00010 | M76: 43.13225783 | N76: 43.93419908 | O76: 44.75105051 | P76: 45.58308934 | Q76: 46.43059794 | R76: 47.29386394
A77: ED_CON252_00011 | D77: Complex connection HV (with upstream asset works) | F77: 0 | G77: 0 | H77: 0 | I77: 0 | J77: 0 | K77: 0 | L77: ED_CON252_00011 | M77: 0 | N77: 0 | O77: 0 | P77: 0 | Q77: 0 | R77: 0
A78: ED_CON252_00012 | C78: EMBEDDED GENERATION | D78: Simple connection LV | F78: 0 | G78: 0 | H78: 0 | I78: 0 | J78: 0 | K78: 0 | L78: ED_CON252_00012 | M78: 9044 | N78: 9044 | O78: 4290.948905 | P78: 8669.917275 | Q78: 8845.956204 | R78: 9021.995134
A79: ED_CON252_00013 | D79: Complex connection HV (small capacity) | F79: 0 | G79: 0 | H79: 0 | I79: 0 | J79: 0 | K79: 0 | L79: ED_CON252_00013 | M79: 0 | N79: 0 | O79: 0 | P79: 0 | Q79: 0 | R79: 0
A80: ED_CON252_00014 | D80: Complex connection HV (large capacity) | F80: 0 | G80: 0 | H80: 0 | I80: 0 | J80: 0 | K80: 0 | L80: ED_CON252_00014 | M80: 0 | N80: 0 | O80: 0 | P80: 0 | Q80: 0 | R80: 0

Sheet 2.6 Non-network
C1: =SheetHeader -> REGULATORY REPORTING STATEMENT
C2: =dms_TradingName -> United Energy
C3: =FRCP_span -> 2016 to 2020
C4: 2.6 NON NETWORK EXPENDITURE
A9: NB: Codes also in hidden column N | C9: TABLE 2.6.1 NON-NETWORK EXPENDITURE | O9: TABLE 2.6.2 ANNUAL DESCRIPTOR METRICS - IT & COMMUNICATIONS EXPENDITURE
F11: =CONCATENATE("EXPENDITURE ($'0s, real ", dms_DollarReal,")") -> EXPENDITURE ($'0s, real December 2015) | O11: NON-NETWORK CATEGORY | P11: DESCRIPTOR METRIC | S11: VOLUMES (0's)
C12: SERVICE SUBCATEGORY | D12: ASSET CATEGORY | E12: ASSET REPORTING CATEGORY | F12: =CRCP_y5 -> 2015 | G12: =FRCP -> 2016 | H12: 2017 | I12: 2018 | J12: 2019 | K12: 2020 | N12: NON-NETWORK CATEGORY | S12: =CRCP_y5 -> 2015 | T12: =FRCP -> 2016 | U12: 2017 | V12: 2018 | W12: 2019 | X12: 2020
A13: ED_NON261_00001 | C13: IT & COMMUNICATIONS | D13: Client device expenditure | E13: Opex | O13: IT & COMMUNICATIONS | P13: Employee numbers | S13: 370 | T13: 370 | U13: 370 | V13: 370 | W13: 370 | X13: 370
A14: ED_NON261_00002 | E14: Capex | F14: 132266 | G14: 454860 | H14: 454860 | I14: 454860 | J14: 454860 | K14: 454860 | M14: ED_NON262_00001 | N14: IT & COMMUNICATIONS | P14: User numbers | S14: 1248 | T14: 1248 | U14: 1248 | V14: 1248 | W14: 1248 | X14: 1248
A15: ED_NON261_00003 | D15: Recurrent expenditure | E15: Opex | F15: 14127467.72 | G15: 28190630.41 | H15: 29383722.43 | I15: 30191855.23 | J15: 31903535.75 | K15: 32308342.47 | M15: ED_NON262_00002 | P15: Number of devices | S15: 1000 | T15: 1024 | U15: 1048 | V15: 1055 | W15: 1064 | X15: 1084
A16: ED_NON261_00004 | E16: Capex | F16: 14664776.78 | G16: 3620969.567 | H16: 15731538.01 | I16: 6198346.567 | J16: 12178170.11 | K16: 20683791.57 | M16: ED_NON262_00003
A17: ED_NON261_00005 | D17: Non-recurrent expenditure | E17: Opex | G17: 0 | H17: 0 | I17: 0 | J17: 0 | K17: 0
A18: ED_NON261_00006 | E18: Capex | F18: 9547928.3 | G18: =26619191+169254 -> 26788445 | H18: =28728287.77+3945151 -> 32673438.77 | I18: =30373515.3333333-14826556 -> 15546959.33 | J18: =9097813.33333333+642975 -> 9740788.333 | K18: =8187727.33333333-240481 -> 7947246.333
A19: ED_NON261_00007 | C19: MOTOR VEHICLES | D19: Car | E19: Opex | F19: 75095 | G19: 68565 | H19: 68565 | I19: 68565 | J19: 68565 | K19: 68565
A20: ED_NON261_00008 | E20: Capex | F20: 0 | G20: 0 | H20: 0 | I20: 0 | J20: 50000 | K20: 0
A21: ED_NON261_00009 | D21: Light commercial vehicle | E21: Opex | F21: 100234 | G21: 104592 | H21: 104592 | I21: 104592 | J21: 104592 | K21: 104592
A22: ED_NON261_00010 | E22: Capex | F22: 333000 | G22: 524000 | H22: 0 | I22: 130000 | J22: 799000 | K22: 333000
A23: ED_NON261_00011 | D23: Elevated work platform (LCV) | E23: Opex | F23: 1534 | G23: 1534 | H23: 1534 | I23: 1534 | J23: 1534 | K23: 1534 | O23: TABLE 2.6.3 ANNUAL DESCRIPTOR METRICS - MOTOR VEHICLES
A24: ED_NON261_00012 | E24: Capex | F24: 0 | G24: 0 | H24: 0 | I24: 0 | J24: 0 | K24: 0
A25: ED_NON261_00013 | D25: Elevated work platform (HCV) | E25: Opex | F25: 684774 | G25: 684774 | H25: 684774 | I25: 684774 | J25: 684774 | K25: 684774 | N25: TABLE 2.6.3 ANNUAL DESCRIPTOR METRICS - MOTOR VEHICLES | O25: NON-NETWORK CATEGORY | P25: DESCRIPTOR METRIC | R25: Unit of Measure | S25: VOLUMES (0's or %)
A26: ED_NON261_00014 | E26: Capex | F26: 2072924.041 | G26: 4682821.484 | H26: 2298758.748 | I26: 2426615.387 | J26: 2549716.16 | K26: 1795981.255 | S26: =CRCP_y5 -> 2015 | T26: =FRCP -> 2016 | U26: 2017 | V26: 2018 | W26: 2019 | X26: 2020
A27: ED_NON261_00015 | D27: Heavy commercial vehicle | E27: Opex | F27: 212580 | G27: 212580 | H27: 212580 | I27: 212580 | J27: 212580 | K27: 212580 | N27: NON-NETWORK CATEGORY | O27: MOTOR VEHICLES | P27: CAR | Q27: Average kilometres travelled | R27: 0's | S27: 25 | T27: 25 | U27: 25 | V27: 25 | W27: 25 | X27: 25
A28: ED_NON261_00016 | E28: Capex | F28: 165000 | G28: 830000 | H28: 695000 | I28: 0 | J28: 80000 | K28: 1060000 | Q28: Number purchased | R28: 0's | S28: 0 | T28: 0 | U28: 0 | V28: 0 | W28: 1 | X28: 0
A29: ED_NON261_00017 | C29: BUILDINGS AND PROPERTY | D29: Total buildings and property expenditure | E29: Opex | M29: ED_NON263_00001 | N29: MOTOR VEHICLES | Q29: Number leased | R29: 0's | S29: 0 | T29: 0 | U29: 0 | V29: 0 | W29: 0 | X29: 0
A30: ED_NON261_00018 | E30: Capex | F30: 532473.4431 | G30: 7448792.789 | H30: 446082.6205 | I30: 413132.4502 | J30: 372239.6732 | K30: 1563515.803 | M30: ED_NON263_00002 | Q30: Number in fleet | R30: 0's | S30: 23 | T30: 21 | U30: 21 | V30: 21 | W30: 21 | X30: 21
A31: ED_NON261_00019 | C31: OTHER | D31: Other expenditure | E31: Opex | F31: ='2.16 Opex Summary'!M17-SUM('2.6 Non-network'!F13,'2.6 Non-network'!F15,'2.6 Non-network'!F17,'2.6 Non-network'!F19,'2.6 Non-network'!F21,'2.6 Non-network'!F23,'2.6 Non-network'!F25,'2.6 Non-network'!F27,'2.6 Non-network'!F29,F33,F35,F37,F39,F41,F43,F45,F47) -> 7745121.022 | G31: ='2.16 Opex Summary'!N17-SUM('2.6 Non-network'!G13,'2.6 Non-network'!G15,'2.6 Non-network'!G17,'2.6 Non-network'!G19,'2.6 Non-network'!G21,'2.6 Non-network'!G23,'2.6 Non-network'!G25,'2.6 Non-network'!G27,'2.6 Non-network'!G29,G33,G35,G37,G39,G41,G43,G45,G47) -> 7101406.789 | H31: ='2.16 Opex Summary'!O17-SUM('2.6 Non-network'!H13,'2.6 Non-network'!H15,'2.6 Non-network'!H17,'2.6 Non-network'!H19,'2.6 Non-network'!H21,'2.6 Non-network'!H23,'2.6 Non-network'!H25,'2.6 Non-network'!H27,'2.6 Non-network'!H29,H33,H35,H37,H39,H41,H43,H45,H47) -> 8112000.896 | I31: ='2.16 Opex Summary'!P17-SUM('2.6 Non-network'!I13,'2.6 Non-network'!I15,'2.6 Non-network'!I17,'2.6 Non-network'!I19,'2.6 Non-network'!I21,'2.6 Non-network'!I23,'2.6 Non-network'!I25,'2.6 Non-network'!I27,'2.6 Non-network'!I29,I33,I35,I37,I39,I41,I43,I45,I47) -> 11925423.67 | J31: ='2.16 Opex Summary'!Q17-SUM('2.6 Non-network'!J13,'2.6 Non-network'!J15,'2.6 Non-network'!J17,'2.6 Non-network'!J19,'2.6 Non-network'!J21,'2.6 Non-network'!J23,'2.6 Non-network'!J25,'2.6 Non-network'!J27,'2.6 Non-network'!J29,J33,J35,J37,J39,J41,J43,J45,J47) -> 10062404.47 | K31: ='2.16 Opex Summary'!R17-SUM('2.6 Non-network'!K13,'2.6 Non-network'!K15,'2.6 Non-network'!K17,'2.6 Non-network'!K19,'2.6 Non-network'!K21,'2.6 Non-network'!K23,'2.6 Non-network'!K25,'2.6 Non-network'!K27,'2.6 Non-network'!K29,K33,K35,K37,K39,K41,K43,K45,K47) -> 13327508.37 | M31: ED_NON263_00003 | Q31: Proportion of total fleet expenditure allocated as regulatory expenditure | R31: % | S31: 1 | T31: 1 | U31: 1 | V31: 1 | W31: 1 | X31: 1
A32: ED_NON261_00020 | E32: Capex | F32: 482964.6141 | G32: 552205.5102 | H32: 553227.5881 | I32: 553111.481 | J32: 443422.8065 | K32: 335915.4657 | M32: ED_NON263_00004 | P32: LIGHT COMMERCIAL VEHICLE | Q32: Average kilometres travelled | R32: 0's | S32: 43 | T32: 43 | U32: 43 | V32: 43 | W32: 43 | X32: 43
A33: ED_NON261_00021 | C33: OTHER - DNSP nominated | D33: Office furniture and equipment | E33: Opex | M33: ED_NON263_00005 | Q33: Number purchased | R33: 0's | S33: 7 | T33: 10 | U33: 0 | V33: 2 | W33: 13 | X33: 16
A34: ED_NON261_00022 | E34: Capex | M34: ED_NON263_00006 | Q34: Number leased | R34: 0's | S34: 0 | T34: 0 | U34: 0 | V34: 0 | W34: 0 | X34: 0
A35: ED_NON261_00023 | D35: Plant and equipment | E35: Opex | M35: ED_NON263_00007 | Q35: Number in fleet | R35: 0's | S35: 46 | T35: 48 | U35: 48 | V35: 48 | W35: 48 | X35: 48
A36: ED_NON261_00024 | E36: Capex | M36: ED_NON263_00008 | Q36: Proportion of total fleet expenditure allocated as regulatory expenditure | R36: % | S36: 1 | T36: 1 | U36: 1 | V36: 1 | W36: 1 | X36: 1
A37: ED_NON261_00025 | D37: Crane borer plant HCV | E37: Opex | M37: ED_NON263_00009 | P37: ELEVATED WORK PLATFORM (LCV) | Q37: Average kilometres travelled | R37: 0's | S37: 39 | T37: 39 | U37: 39 | V37: 39 | W37: 39 | X37: 39
A38: ED_NON261_00026 | E38: Capex | M38: ED_NON263_00010 | Q38: Number purchased | R38: 0's | S38: 0 | T38: 0 | U38: 0 | V38: 0 | W38: 0 | X38: 0
A39: ED_NON261_00027 | D39: Other fleet assets | E39: Opex | M39: ED_NON263_00011 | Q39: Number leased | R39: 0's | S39: 0 | T39: 0 | U39: 0 | V39: 0 | W39: 0 | X39: 0
A40: ED_NON261_00028 | E40: Capex | M40: ED_NON263_00012 | Q40: Number in fleet | R40: 0's | S40: 1 | T40: 1 | U40: 1 | V40: 1 | W40: 1 | X40: 1
A41: ED_NON261_00029 | D41: EWP Hired | E41: Opex | M41: ED_NON263_00013 | Q41: Proportion of total fleet expenditure allocated as regulatory expenditure | R41: % | S41: 1 | T41: 1 | U41: 1 | V41: 1 | W41: 1 | X41: 1
A42: ED_NON261_00030 | E42: Capex | M42: ED_NON263_00014 | P42: ELEVATED WORK PLATFORM (HCV) | Q42: Average kilometres travelled | R42: 0's | S42: 39 | T42: 39 | U42: 39 | V42: 39 | W42: 39 | X42: 39
A43: ED_NON261_00031 | D43: Car Hired | E43: Opex | M43: ED_NON263_00015 | Q43: Number purchased | R43: 0's | S43: 3 | T43: 2 | U43: 2 | V43: 0 | W43: 6 | X43: 8
A44: ED_NON261_00032 | E44: Capex | M44: ED_NON263_00016 | Q44: Number leased | R44: 0's | S44: 0 | T44: 0 | U44: 0 | V44: 0 | W44: 0 | X44: 0
A45: ED_NON261_00033 | D45: LCV Hired | E45: Opex | M45: ED_NON263_00017 | Q45: Number in fleet | R45: 0's | S45: 54 | T45: 54 | U45: 54 | V45: 54 | W45: 54 | X45: 54
A46: ED_NON261_00034 | E46: Capex | M46: ED_NON263_00018 | Q46: Proportion of total fleet expenditure allocated as regulatory expenditure | R46: % | S46: 1 | T46: 1 | U46: 1 | V46: 1 | W46: 1 | X46: 1
A47: ED_NON261_00035 | D47: Other Hire | E47: Opex | M47: ED_NON263_00019 | P47: HEAVY COMMERCIAL VEHICLE | Q47: Average kilometres travelled | R47: 0's | S47: 12 | T47: 12 | U47: 12 | V47: 12 | W47: 12 | X47: 12
A48: ED_NON261_00036 | E48: Capex | M48: ED_NON263_00020 | Q48: Number purchased | R48: 0's | S48: 1 | T48: 4 | U48: 3 | V48: 0 | W48: 1 | X48: 5
A49: ED_NON261_00037 | E49: Opex | M49: ED_NON263_00021 | Q49: Number leased | R49: 0's | S49: 0 | T49: 0 | U49: 0 | V49: 0 | W49: 0 | X49: 0
A50: ED_NON261_00038 | E50: Capex | M50: ED_NON263_00022 | Q50: Number in fleet | R50: 0's | S50: 20 | T50: 20 | U50: 20 | V50: 20 | W50: 20 | X50: 20
A51: ED_NON261_00039 | E51: Opex | M51: ED_NON263_00023 | Q51: Proportion of total fleet expenditure allocated as regulatory expenditure | R51: % | S51: 1 | T51: 1 | U51: 1 | V51: 1 | W51: 1 | X51: 1
A52: ED_NON261_00040 | E52: Capex | M52: ED_NON263_00024
A53: ED_NON261_00041 | E53: Opex | M53: ED_NON263_00025
A54: ED_NON261_00042 | E54: Capex

Sheet 2.10 Overheads
C1: =SheetHeader -> REGULATORY REPORTING STATEMENT | E1: Worksheet navigation
C2: =dms_TradingName -> United Energy
C3: =FRCP_span -> 2016 to 2020
C4: 2.10 OVERHEADS
C8: TABLE 2.10.1 - NETWORK OVERHEADS EXPENDITURE
E11: Expenditure categories currently reported under annual RIN | F11: =CONCATENATE("EXPENDITURE ($0's, real ", dms_DollarReal,")") -> EXPENDITURE ($0's, real December 2015)
A12: OVE2102 | F12: =CRCP_y5 -> 2015 | G12: =FRCP -> 2016 | H12: 2017 | I12: 2018 | J12: 2019 | K12: 2020
A13: ED_OVE2102_00001 | C13: NETWORK OVERHEADS | D13: Total Overhead Expenditure - Standard Control Services | E13: Network management | F13: 1890082.12 | G13: 2144663.737 | H13: 2050264.139 | I13: 2049695.158 | J13: 2041402.48 | K13: 2006785.729
A14: ED_OVE2102_00002 | E14: Network planning | F14: 7749336.691 | G14: 8793121.321 | H14: 8406082.969 | I14: 8403750.149 | J14: 8369750.169 | K14: 8227821.487
A15: ED_OVE2102_00003 | E15: Network control and operational switching | F15: 4140795.929 | G15: 4698533.877 | H15: 4491723.037 | I15: 4490476.513 | J15: 4472308.896 | K15: 4396470.443
A16: ED_OVE2102_00004 | E16: Quality and standard functions | F16: 3402147.816 | G16: 3860394.726 | H16: 3690475.45 | I16: 3689451.285 | J16: 3674524.464 | K16: 3612214.312
A17: ED_OVE2102_00005 | E17: Project governance and related functions | F17: 2329221.966 | G17: 2642952.828 | H17: 2526620.519 | I17: 2525919.343 | J17: 2515699.952 | K17: 2473040.378
A18: ED_OVE2102_00006
A19: ED_OVE2102_00007
A20: ED_OVE2102_00008
A21: ED_OVE2102_00009
A22: ED_OVE2102_00010
A23: ED_OVE2102_00011
A24: ED_OVE2102_00012
A25: ED_OVE2102_00013
A26: ED_OVE2102_00014
A27: ED_OVE2102_00015
A28: ED_OVE2102_00016
A29: ED_OVE2102_00017
A30: ED_OVE2102_00018
A31: ED_OVE2102_00019
A32: ED_OVE2102_00020
A33: ED_OVE2102_00021
A34: ED_OVE2102_00022
A35: ED_OVE2102_00023
A36: ED_OVE2102_00024
A37: ED_OVE2102_00025
A38: ED_OVE2102_00026
A39: ED_OVE2102_00027
A40: ED_OVE2102_00028 | C40: NETWORK OVERHEADS | D40: Total Overhead Expenditure - Alternative Control Services | E40: Network management | F40: 0 | G40: 0 | H40: 0 | I40: 0 | J40: 0 | K40: 0
A41: ED_OVE2102_00013 | E41: Network planning | F41: 0 | G41: 0 | H41: 0 | I41: 0 | J41: 0 | K41: 0
A42: ED_OVE2102_00014 | E42: Network control and operational switching | F42: 0 | G42: 0 | H42: 0 | I42: 0 | J42: 0 | K42: 0
A43: ED_OVE2102_00015 | E43: Quality and standard functions | F43: 0 | G43: 0 | H43: 0 | I43: 0 | J43: 0 | K43: 0
A44: ED_OVE2102_00016 | E44: Project governance and related functions | F44: 0 | G44: 0 | H44: 0 | I44: 0 | J44: 0 | K44: 0
A45: ED_OVE2102_00017
A46: ED_OVE2102_00018
A47: ED_OVE2102_00019
A48: ED_OVE2102_00020
A49: ED_OVE2102_00021
A50: ED_OVE2102_00022
A51: ED_OVE2102_00023
A52: ED_OVE2102_00024
A53: ED_OVE2102_00025
A54: ED_OVE2102_00026
A55: ED_OVE2102_00027
A56: ED_OVE2102_00028
A57: ED_OVE2102_00029
A58: ED_OVE2102_00030
A59: ED_OVE2102_00031
A60: ED_OVE2102_00032
A61: ED_OVE2102_00033
A62: ED_OVE2102_00034
A63: ED_OVE2102_00035
A64: ED_OVE2102_00036
A65: ED_OVE2102_00037
A66: ED_OVE2102_00038
A67: ED_OVE2102_00039 | C67: NETWORK OVERHEADS | D67: Total Overhead Expenditure - Negotiated Services | E67: Total
A68: ED_OVE2102_00040 | C68: NETWORK OVERHEADS | D68: Total Overhead Expenditure - Unregulated Services | E68: Total
A69: ED_OVE2102_00041 | C69: NETWORK OVERHEADS | D69: Capitalised Overheads - Standard Control Services | E69: Network management | F69: 0 | G69: 0 | H69: 0 | I69: 0 | J69: 0 | K69: 0
A70: ED_OVE2102_00042 | E70: Network planning | F70: 0 | G70: 0 | H70: 0 | I70: 0 | J70: 0 | K70: 0
A71: ED_OVE2102_00043 | E71: Network control and operational switching | F71: 0 | G71: 0 | H71: 0 | I71: 0 | J71: 0 | K71: 0
A72: ED_OVE2102_00044 | E72: Quality and standard functions | F72: 0 | G72: 0 | H72: 0 | I72: 0 | J72: 0 | K72: 0
A73: ED_OVE2102_00045 | E73: Project governance and related functions | F73: 0 | G73: 0 | H73: 0 | I73: 0 | J73: 0 | K73: 0
A74: ED_OVE2102_00046
A75: ED_OVE2102_00047
A76: ED_OVE2102_00048
A77: ED_OVE2102_00049
A78: ED_OVE2102_00050
A79: ED_OVE2102_00051
A80: ED_OVE2102_00052
A81: ED_OVE2102_00053
A82: ED_OVE2102_00054
A83: ED_OVE2102_00055
A84: ED_OVE2102_00056
A85: ED_OVE2102_00057
A86: ED_OVE2102_00058
A87: ED_OVE2102_00059
A88: ED_OVE2102_00060
A89: ED_OVE2102_00061
A90: ED_OVE2102_00062
A91: ED_OVE2102_00063
A92: ED_OVE2102_00064
A93: ED_OVE2102_00065
A94: ED_OVE2102_00066
A95: ED_OVE2102_00067
A96: ED_OVE2102_00068
A97: ED_OVE2102_00069
A98: ED_OVE2102_00070
C103: TABLE 2.10.2 - CORPORATE OVERHEADS EXPENDITURE
E104: Expenditure categories currently reported under annual RIN | F104: =CONCATENATE("EXPENDITURE ($0's, real ", dms_DollarReal,")") -> EXPENDITURE ($0's, real December 2015)
F105: =CRCP_y5 -> 2015 | G105: =FRCP -> 2016 | H105: 2017 | I105: 2018 | J105: 2019 | K105: 2020
C106: CORPORATE OVERHEADS | D106: Total Overhead Expenditure - Standard Control Services | E106: OFFICE OF THE CEO | F106: 1162012.101 | G106: 1191683.933 | H106: 1200483.7 | I106: 1213743.012 | J106: 1216769.128 | K106: 1218792.452
A107: OVE2102 | E107: LEGAL AND SECRETARIAT | F107: 5118612.059 | G107: 5249315.173 | H107: 5288077.759 | I107: 5346484.443 | J107: 5359814.35 | K107: 5368727.004
A108: ED_OVE2102_00001 | E108: HUMAN RESOURCES | F108: 1647464.239 | G108: 1689532.031 | H108: 1702008.064 | I108: 1720806.7 | J108: 1725097.032 | K108: 1727965.637
A109: ED_OVE2102_00002 | E109: FINANCE | F109: 8685739.994 | G109: 8907529.27 | H109: 8973305.253 | I109: 9072415.181 | J109: 9095034.615 | K109: 9110158.44
A110: ED_OVE2102_00003 | E110: REGULATORY | F110: 3238528.881 | G110: 1763039.343 | H110: 2166825.144 | I110: 2181598.264 | J110: 3700112.259 | K110: 2984292.652
A111: ED_OVE2102_00004 | E111: INSURANCE | F111: 0 | G111: 0 | H111: 0 | I111: 0 | J111: 0 | K111: 0
A112: ED_OVE2102_00005 | E112: SELF-INSURANCE | F112: 0 | G112: 0 | H112: 0 | I112: 0 | J112: 0 | K112: 0
A113: ED_OVE2102_00006 | E113: LICENCE FEES | F113: 0 | G113: 0 | H113: 0 | I113: 0 | J113: 0 | K113: 0
A114: ED_OVE2102_00007 | E114: DEBT RAISING COSTS / DEBT MANAGEMENT | F114: 0 | G114: 0 | H114: 0 | I114: 0 | J114: 0 | K114: 0
A115: ED_OVE2102_00008 | E115: EQUITY RAISING COSTS | F115: 0 | G115: 0 | H115: 0 | I115: 0 | J115: 0 | K115: 0
A116: ED_OVE2102_00009 | E116: Other | F116: 8885114.424 | G116: 9111994.701 | H116: 9179280.52 | I116: 9280665.441 | J116: 9303804.086 | K116: 9319275.067
A117: ED_OVE2102_00010 | E117: Billing & Revenue Collection | F117: 578371.1818 | G117: 586525.2854 | H117: 589059.7039 | I117: 593569.1012 | J117: 592987.9169 | K117: 591495.3124
A118: ED_OVE2102_00011 | E118: Advertising/Marketing | F118: 177123.5888 | G118: 179620.7466 | H118: 180396.9009 | I118: 181777.8837 | J118: 181599.8986 | K118: 181142.7952
A119: ED_OVE2102_00012 | E119: Customer Service | F119: 8002463.417 | G119: 11760512.78 | H119: 12383195.96 | I119: 11401943.62 | J119: 12230445.07 | K119: 12202401.45
A120: ED_OVE2102_00013
A121: ED_OVE2102_00014
A122: ED_OVE2102_00015
A123: ED_OVE2102_00016
A124: ED_OVE2102_00017
A125: ED_OVE2102_00018
A126: ED_OVE2102_00019 | C126: CORPORATE OVERHEADS | D126: Total Overhead Expenditure - Alternative Control Services | E126: OFFICE OF THE CEO | F126: 0 | G126: 0 | H126: 0 | I126: 0 | J126: 0 | K126: 0
A127: ED_OVE2102_00020 | E127: LEGAL AND SECRETARIAT | F127: 0 | G127: 0 | H127: 0 | I127: 0 | J127: 0 | K127: 0
A128: ED_OVE2102_00021 | E128: HUMAN RESOURCES | F128: 0 | G128: 0 | H128: 0 | I128: 0 | J128: 0 | K128: 0
A129: ED_OVE2102_00022 | E129: FINANCE | F129: 0 | G129: 0 | H129: 0 | I129: 0 | J129: 0 | K129: 0
A130: ED_OVE2102_00023 | E130: REGULATORY | F130: 0 | G130: 0 | H130: 0 | I130: 0 | J130: 0 | K130: 0
A131: ED_OVE2102_00024 | E131: INSURANCE | F131: 0 | G131: 0 | H131: 0 | I131: 0 | J131: 0 | K131: 0
A132: ED_OVE2102_00025 | E132: SELF-INSURANCE | F132: 0 | G132: 0 | H132: 0 | I132: 0 | J132: 0 | K132: 0
A133: ED_OVE2102_00026 | E133: LICENCE FEES | F133: 0 | G133: 0 | H133: 0 | I133: 0 | J133: 0 | K133: 0
A134: ED_OVE2102_00027 | E134: DEBT RAISING COSTS / DEBT MANAGEMENT | F134: 0 | G134: 0 | H134: 0 | I134: 0 | J134: 0 | K134: 0
A135: ED_OVE2102_00028 | E135: EQUITY RAISING COSTS | F135: 0 | G135: 0 | H135: 0 | I135: 0 | J135: 0 | K135: 0
A136: ED_OVE2102_00029 | E136: Other | F136: 0 | G136: 0 | H136: 0 | I136: 0 | J136: 0 | K136: 0
A137: ED_OVE2102_00030 | E137: Billing & Revenue Collection | F137: 0 | G137: 0 | H137: 0 | I137: 0 | J137: 0 | K137: 0
A138: ED_OVE2102_00031 | E138: Advertising/Marketing | F138: 0 | G138: 0 | H138: 0 | I138: 0 | J138: 0 | K138: 0
A139: ED_OVE2102_00032 | E139: Customer Service | F139: 0 | G139: 0 | H139: 0 | I139: 0 | J139: 0 | K139: 0
A140: ED_OVE2102_00033
A141: ED_OVE2102_00034
A142: ED_OVE2102_00035
A143: ED_OVE2102_00036
A144: ED_OVE2102_00037
A145: ED_OVE2102_00038
A146: ED_OVE2102_00039 | C146: CORPORATE OVERHEADS | D146: Total Overhead Expenditure - Negotiated Services | E146: Total
A147: ED_OVE2102_00040 | C147: CORPORATE OVERHEADS | D147: Total Overhead Expenditure - Unregulated Services | E147: Total
A148: ED_OVE2102_00041 | C148: CORPORATE OVERHEADS | D148: Capitalised Overheads - Standard Control Services | E148: LEGAL AND SECRETARIAT | F148: 0 | G148: 0 | H148: 0 | I148: 0 | J148: 0 | K148: 0
A149: ED_OVE2102_00042 | E149: HUMAN RESOURCES | F149: 0 | G149: 0 | H149: 0 | I149: 0 | J149: 0 | K149: 0
A150: ED_OVE2102_00043 | E150: FINANCE | F150: 0 | G150: 0 | H150: 0 | I150: 0 | J150: 0 | K150: 0
A151: ED_OVE2102_00044 | E151: REGULATORY | F151: 0 | G151: 0 | H151: 0 | I151: 0 | J151: 0 | K151: 0
A152: ED_OVE2102_00045 | E152: INSURANCE | F152: 0 | G152: 0 | H152: 0 | I152: 0 | J152: 0 | K152: 0
A153: ED_OVE2102_00046 | E153: SELF-INSURANCE | F153: 0 | G153: 0 | H153: 0 | I153: 0 | J153: 0 | K153: 0
A154: ED_OVE2102_00047 | E154: LICENCE FEES | F154: 0 | G154: 0 | H154: 0 | I154: 0 | J154: 0 | K154: 0
A155: ED_OVE2102_00048 | E155: DEBT RAISING COSTS / DEBT MANAGEMENT | F155: 0 | G155: 0 | H155: 0 | I155: 0 | J155: 0 | K155: 0
A156: ED_OVE2102_00049 | E156: EQUITY RAISING COSTS | F156: 0 | G156: 0 | H156: 0 | I156: 0 | J156: 0 | K156: 0
A157: ED_OVE2102_00050 | E157: Other | F157: 0 | G157: 0 | H157: 0 | I157: 0 | J157: 0 | K157: 0
A158: ED_OVE2102_00051 | E158: Billing & Revenue Collection | F158: 0 | G158: 0 | H158: 0 | I158: 0 | J158: 0 | K158: 0
A159: ED_OVE2102_00052 | E159: Advertising/Marketing | F159: 0 | G159: 0 | H159: 0 | I159: 0 | J159: 0 | K159: 0
A160: ED_OVE2102_00053 | E160: Customer Service | F160: 0 | G160: 0 | H160: 0 | I160: 0 | J160: 0 | K160: 0
A161: ED_OVE2102_00054
A162: ED_OVE2102_00055
A163: ED_OVE2102_00056
A164: ED_OVE2102_00057
A165: ED_OVE2102_00058
A166: ED_OVE2102_00059
A167: ED_OVE2102_00060

Sheet 2.11 Labour
C1: =SheetHeader -> REGULATORY REPORTING STATEMENT
C2: =dms_TradingName -> United Energy
C3: =FRCP_span -> 2016 to 2020
C4: 2.11 LABOUR
C6: TABLE 2.11.1 - COST METRICS PER ANNUM
F9: ASL (0's) | L9: =CONCATENATE("TOTAL LABOUR EXPENDITURE ($0's, real ", dms_DollarReal,")") -> TOTAL LABOUR EXPENDITURE ($0's, real December 2015) | R9: AVERAGE PRODUCTIVE WORK HOURS PER ASL (0's) | X9: STAND-DOWN OCCURENCES PER ASL (0's)
F11: =CRCP_y5 -> 2015 | G11: =FRCP -> 2016 | H11: 2017 | I11: 2018 | J11: 2019 | K11: 2020 | L11: =CRCP_y5 -> 2015 | M11: =FRCP -> 2016 | N11: 2017 | O11: 2018 | P11: 2019 | Q11: 2020 | R11: =CRCP_y5 -> 2015 | S11: =FRCP -> 2016 | T11: 2017 | U11: 2018 | V11: 2019 | W11: 2020 | X11: =CRCP_y5 -> 2015 | Y11: =FRCP -> 2016 | Z11: 2017 | AA11: 2018 | AB11: 2019 | AC11: 2020
A12: ED_LAB2111_00001 | C12: CORPORATE OVERHEADS INTERNAL LABOUR COSTS | D12: LABOUR CLASSIFICATION LEVEL | E12: Executive manager
A13: ED_LAB2111_00002 | E13: Employee (optional) | F13: 4.3 | G13: 4.3 | H13: 4.3 | I13: 4.3 | J13: 4.3 | K13: 4.3 | L13: 1814467.882 | M13: 1840048.962 | N13: 1847999.947 | O13: 1862146.843 | P13: 1860323.55 | Q13: 1855640.946 | R13: 1976 | S13: 1976 | T13: 1976 | U13: 1976 | V13: 1976 | W13: 1976
A14: ED_LAB2111_00003 | E14: Labour hire (optional)
A15: ED_LAB2111_00004 | E15: Senior manager
A16: ED_LAB2111_00005 | E16: Employee (optional) | F16: 14.15 | G16: 14.15 | H16: 14.15 | I16: 14.15 | J16: 14.15 | K16: 14.15 | L16: 3327628.285 | M16: 3374542.493 | N16: 3389124.136 | O16: 3415068.718 | P16: 3411724.904 | Q16: 3403137.282 | R16: 1782 | S16: 1782 | T16: 1782 | U16: 1782 | V16: 1782 | W16: 1782
A17: ED_LAB2111_00006 | E17: Labour hire (optional)
A18: ED_LAB2111_00007 | E18: Manager
A19: ED_LAB2111_00008 | E19: Employee (optional) | F19: 16.39 | G19: 16.39 | H19: 16.39 | I19: 16.39 | J19: 16.39 | K19: 16.39 | L19: 2484409.817 | M19: 2519436 | N19: 2530322.667 | O19: 2549692.911 | P19: 2547196.417 | Q19: 2540784.892 | R19: 1321 | S19: 1321 | T19: 1321 | U19: 1321 | V19: 1321 | W19: 1321
A20: ED_LAB2111_00009 | E20: Labour hire (optional)
A21: ED_LAB2111_00010 | E21: Professional
A22: ED_LAB2111_00011 | E22: Employee (optional) | F22: 120.33 | G22: 124.83 | H22: 124.83 | I22: 124.83 | J22: 124.83 | K22: 124.83 | L22: 12347084.09 | M22: 13215815.52 | N22: 13272922.02 | O22: 13374529.51 | P22: 13361434.04 | Q22: 13327802.09 | R22: 1542 | S22: 1542 | T22: 1542 | U22: 1542 | V22: 1542 | W22: 1542
A23: ED_LAB2111_00012 | E23: Labour hire (optional)
A24: ED_LAB2111_00013 | E24: Semi professional
A25: ED_LAB2111_00014 | E25: Employee (optional) | G25: 0 | H25: 0 | I25: 0 | J25: 0 | K25: 0 | L25: 0 | M25: 0 | N25: 0 | O25: 0 | P25: 0 | Q25: 0 | R25: 0 | S25: 0 | T25: 0 | U25: 0 | V25: 0 | W25: 0
A26: ED_LAB2111_00015 | E26: Labour hire (optional)
A27: ED_LAB2111_00016 | E27: Support staff
A28: ED_LAB2111_00017 | E28: Employee (optional) | F28: 9.44 | G28: 9.44 | H28: 9.44 | I28: 9.44 | J28: 9.44 | K28: 9.44 | L28: 590590.7847 | M28: 598917.1651 | N28: 601505.1297 | O28: 606109.7999 | P28: 605516.3365 | Q28: 603992.1969 | R28: 1572 | S28: 1572 | T28: 1572 | U28: 1572 | V28: 1572 | W28: 1572
A29: ED_LAB2111_00018 | E29: Labour hire (optional)
A30: ED_LAB2111_00019 | E30: Intern, junior staff, apprentice
A31: ED_LAB2111_00020 | E31: Employee (optional) | G31: 0 | H31: 0 | I31: 0 | J31: 0 | K31: 0 | L31: 0 | M31: 0 | N31: 0 | O31: 0 | P31: 0 | Q31: 0 | R31: 0 | S31: 0 | T31: 0 | U31: 0 | V31: 0 | W31: 0
A32: ED_LAB2111_00021 | E32: Labour hire (optional)
A33: ED_LAB2111_00022 | C33: NETWORK OVERHEADS INTERNAL LABOUR COSTS | D33: LABOUR CLASSIFICATION LEVEL | E33: Executive manager
A34: ED_LAB2111_00023 | E34: Employee (optional) | F34: 1.75 | G34: 1.75 | H34: 1.75 | I34: 1.75 | J34: 1.75 | K34: 1.75 | L34: 487501.2692 | M34: 494374.2532 | N34: 495593.498 | O34: 497117.5539 | P34: 498031.9875 | Q34: 497117.5539 | R34: 1584 | S34: 1584 | T34: 1584 | U34: 1584 | V34: 1584 | W34: 1584
A35: ED_LAB2111_00024 | E35: Labour hire (optional)
A36: ED_LAB2111_00025 | E36: Senior manager
A37: ED_LAB2111_00026 | E37: Employee (optional) | F37: 2.74 | G37: 2.74 | H37: 2.74 | I37: 2.74 | J37: 2.74 | K37: 2.74 | L37: 752830.1308 | M37: 763443.8251 | N37: 765326.6595 | O37: 767680.2026 | P37: 769092.3285 | Q37: 767680.2026 | R37: 1976 | S37: 1976 | T37: 1976 | U37: 1976 | V37: 1976 | W37: 1976
A38: ED_LAB2111_00027 | E38: Labour hire (optional)
A39: ED_LAB2111_00028 | E39: Manager
A40: ED_LAB2111_00029 | E40: Employee (optional) | F40: 16.8 | G40: 16.8 | H40: 16.8 | I40: 16.8 | J40: 16.8 | K40: 16.8 | L40: 3345748.306 | M40: 3392917.977 | N40: 3401285.722 | O40: 3411745.403 | P40: 3418021.211 | Q40: 3411745.403 | R40: 1571 | S40: 1571 | T40: 1571 | U40: 1571 | V40: 1571 | W40: 1571
A41: ED_LAB2111_00030 | E41: Labour hire (optional)
A42: ED_LAB2111_00031 | E42: Professional
A43: ED_LAB2111_00032 | E43: Employee (optional) | F43: 91.7 | G43: 112.7 | H43: 113.7 | I43: 113.7 | J43: 113.7 | K43: 113.7 | L43: 9673858.831 | M43: 12962727.74 | N43: 13151143.08 | O43: 13251818.32 | P43: 13238843 | Q43: 13205519.63 | R43: 1485 | S43: 1485 | T43: 1485 | U43: 1485 | V43: 1485 | W43: 1485
A44: ED_LAB2111_00033 | E44: Labour hire (optional)
A45: ED_LAB2111_00034 | E45: Semi professional
A46: ED_LAB2111_00035 | E46: Employee (optional) | F46: 0 | G46: 0 | H46: 0 | I46: 0 | J46: 0 | K46: 0 | L46: 0 | M46: 0 | N46: 0 | O46: 0 | P46: 0 | Q46: 0 | R46: 0 | S46: 0 | T46: 0 | U46: 0 | V46: 0 | W46: 0
A47: ED_LAB2111_00036 | E47: Labour hire (optional)
A48: ED_LAB2111_00037 | E48: Support staff
A49: ED_LAB2111_00038 | E49: Employee (optional) | F49: 2.75 | G49: 2.75 | H49: 2.75 | I49: 2.75 | J49: 2.75 | K49: 2.75 | L49: 195806.1245 | M49: 198566.676 | N49: 199056.3888 | O49: 199668.5297 | P49: 200035.8143 | Q49: 199668.5297 | R49: 1976 | S49: 1976 | T49: 1976 | U49: 1976 | V49: 1976 | W49: 1976
A50: ED_LAB2111_00039 | E50: Labour hire (optional)
A51: ED_LAB2111_00040 | E51: Intern, junior staff, apprentice
A52: ED_LAB2111_00041 | E52: Employee (optional) | F52: 0 | G52: 0 | H52: 0 | I52: 0 | J52: 0 | K52: 0 | L52: 0 | M52: 0 | N52: 0 | O52: 0 | P52: 0 | Q52: 0 | R52: 0 | S52: 0 | T52: 0 | U52: 0 | V52: 0 | W52: 0
A53: ED_LAB2111_00042 | E53: Labour hire (optional)
A54: ED_LAB2111_00043 | C54: TOTAL DIRECT NETWORK LABOUR INTERNAL LABOUR COSTS | D54: LABOUR CLASSIFICATION LEVEL | E54: Skilled electrical worker
A55: ED_LAB2111_00044 | E55: Employee (optional)
A56: ED_LAB2111_00045 | E56: Labour hire (optional)
A57: ED_LAB2111_00046 | E57: Skilled non electical worker
A58: ED_LAB2111_00047 | E58: Employee (optional)
A59: ED_LAB2111_00048 | E59: Labour hire (optional)
A60: ED_LAB2111_00049 | E60: Apprentice
A61: ED_LAB2111_00050 | E61: Employee (optional)
A62: ED_LAB2111_00051 | E62: Labour hire (optional)
A63: ED_LAB2111_00052 | E63: Unskilled worker
A64: ED_LAB2111_00053 | E64: Employee (optional)
A65: ED_LAB2111_00054 | E65: Labour hire (optional)

Sheet 2.12 Input tables
C1: =SheetHeader -> REGULATORY REPORTING STATEMENT
C2: =dms_TradingName -> United Energy
C3: =FRCP_span -> 2016 to 2020
C4: 2.12 INPUT TABLES
E7: =CONCATENATE("DIRECT MATERIAL EXPENDITURE ($0's, real ", dms_DollarReal,")") -> DIRECT MATERIAL EXPENDITURE ($0's, real December 2015) | K7: =CONCATENATE("DIRECT LABOUR EXPENDITURE ($0's, real ", dms_DollarReal,")") -> DIRECT LABOUR EXPENDITURE ($0's, real December 2015) | Q7: =CONCATENATE("CONTRACT EXPENDITURE ($0's, real ", dms_DollarReal,")") -> CONTRACT EXPENDITURE ($0's, real December 2015) | W7: =CONCATENATE("OTHER EXPENDITURE ($0's, real ", dms_DollarReal,")") -> OTHER EXPENDITURE ($0's, real December 2015) | AC7: =CONCATENATE("RELATED PARTY CONTRACT EXPENDITURE ($0's, real ", dms_DollarReal,")") -> RELATED PARTY CONTRACT EXPENDITURE ($0's, real December 2015) | AI7: =CONCATENATE("RELATED PARTY CONTRACT MARGIN EXPENDITURE ($0's, real ", dms_DollarReal,")") -> RELATED PARTY CONTRACT MARGIN EXPENDITURE ($0's, real December 2015)
E8: =CRCP_y5 -> 2015 | F8: =FRCP -> 2016 | G8: 2017 | H8: 2018 | I8: 2019 | J8: 2020 | K8: =CRCP_y5 -> 2015 | L8: =FRCP -> 2016 | M8: 2017 | N8: 2018 | O8: 2019 | P8: 2020 | Q8: =CRCP_y5 -> 2015 | R8: =FRCP -> 2016 | S8: 2017 | T8: 2018 | U8: 2019 | V8: 2020 | W8: =CRCP_y5 -> 2015 | X8: =FRCP -> 2016 | Y8: 2017 | Z8: 2018 | AA8: 2019 | AB8: 2020 | AC8: =CRCP_y5 -> 2015 | AD8: =FRCP -> 2016 | AE8: 2017 | AF8: 2018 | AG8: 2019 | AH8: 2020 | AI8: =CRCP_y5 -> 2015 | AJ8: =FRCP -> 2016 | AK8: 2017 | AL8: 2018 | AM8: 2019 | AN8: 2020
A9: ED_INP212_00001 | C9: VEGETATION MANAGEMENT | D9: Zone - North | Q9: 5675254.154 | R9: 5755266.112 | S9: 5780135.035 | T9: 5824383.395 | U9: 5818680.537 | V9: 5804034.389 | W9: 0 | X9: 0 | Y9: 0 | Z9: 0 | AA9: 0 | AB9: 0 | AC9: 5303976.084 | AD9: 5378753.618 | AE9: 5401995.604 | AF9: 5443349.213 | AG9: 5438019.438 | AH9: 5424331.449 | AI9: 371277.8553 | AJ9: 376512.276 | AK9: 378139.2129 | AL9: 381033.9619 | AM9: 380660.8782 | AN9: 379702.7202
A10: ED_INP212_00002 | D10: Zone - South | Q10: 5155370.206 | R10: 5228052.636 | S10: 5250643.431 | T10: 5290838.402 | U10: 5285657.957 | V10: 5272353.475 | W10: 1121983.333 | X10: 1137801.494 | Y10: 1142718.017 | Z10: 1151465.805 | AA10: 1150338.365 | AB10: 1147442.858 | AC10: 0 | AD10: 0 | AE10: 0 | AF10: 0 | AG10: 0 | AH10: 0 | AI10: 0 | AJ10: 0 | AK10: 0 | AL10: 0 | AM10: 0 | AN10: 0
A11: ED_INP212_00003
A12: ED_INP212_00004
A13: ED_INP212_00005
A14: ED_INP212_00006
A15: ED_INP212_00007
A16: ED_INP212_00008
A17: ED_INP212_00009
A18: ED_INP212_00010
A19: ED_INP212_00011
A20: ED_INP212_00012
A21: ED_INP212_00013
A22: ED_INP212_00014
A23: ED_INP212_00015
A24: ED_INP212_00016
A25: ED_INP212_00017
A26: ED_INP212_00018
A27: ED_INP212_00019
A28: ED_INP212_00020
A29: ED_INP212_00021
A30: ED_INP212_00022
A31: ED_INP212_00023 | C31: ROUTINE MAINTENANCE | D31: Pole top, overhead line & service line maintenance | Q31: 1805978.762 | R31: 1831440.158 | S31: 1865285.877 | T31: 1914300.187 | U31: 1962678.841 | V31: 2007215.039 | W31: 0 | X31: 0 | Y31: 0 | Z31: 0 | AA31: 0 | AB31: 0 | AC31: 491036.7704 | AD31: 497959.5993 | AE31: 507162.0843 | AF31: 520488.8349 | AG31: 533642.7535 | AH31: 545751.9274 | AI31: 32116.7825 | AJ31: 32569.57749 | AK31: 33171.47582 | AL31: 34043.12613 | AM31: 34903.47217 | AN31: 35695.48557
A32: ED_INP212_00024 | D32: Pole inspection and treatment | Q32: 3556279.971 | R32: 3606417.801 | S32: 3673065.79 | T32: 3769583.32 | U32: 3864849.133 | V32: 3952548.497 | W32: 0 | X32: 0 | Y32: 0 | Z32: 0 | AA32: 0 | AB32: 0 | AC32: 1774548.694 | AD32: 1799566.977 | AE32: 1832823.668 | AF32: 1880984.965 | AG32: 1928521.668 | AH32: 1972282.787 | AI32: 115900.1593 | AJ32: 117534.1652 | AK32: 119706.2418 | AL32: 122851.7751 | AM32: 125956.5146 | AN32: 128814.6614
A33: ED_INP212_00025 | D33: Overhead asset inspection | Q33: 124279.323 | R33: 126031.4616 | S33: 128360.5715 | T33: 131733.5156 | U33: 135062.7165 | V33: 138127.4971 | W33: 0 | X33: 0 | Y33: 0 | Z33: 0 | AA33: 0 | AB33: 0 | AC33: 86745.83292 | AD33: 87968.80968 | AE33: 89594.50715 | AF33: 91948.79129 | AG33: 94272.54318 | AH33: 96411.732 | AI33: 5674.966769 | AJ33: 5754.974675 | AK33: 5861.328823 | AL33: 6015.347567 | AM33: 6167.368872 | AN33: 6307.315947
A34: ED_INP212_00026 | D34: Network underground cable maintenance | Q34: 357632.9936 | R34: 362675.0438 | S34: 369377.4182 | T34: 379083.5869 | U34: 388663.8781 | V34: 397483.2586 | W34: 0 | X34: 0 | Y34: 0 | Z34: 0 | AA34: 0 | AB34: 0 | AC34: 224433.6823 | AD34: 227597.8363 | AE34: 231803.9319 | AF34: 237895.0679 | AG34: 243907.209 | AH34: 249441.8383 | AI34: 14623.55462 | AJ34: 14829.72322 | AK34: 15103.78221 | AL34: 15500.66586 | AM34: 15892.40241 | AN34: 16253.02543
A35: ED_INP212_00027 | D35: Distribution substation equipment & property maintenance | Q35: 1607320.801 | R35: 1629981.44 | S35: 1660104.124 | T35: 1703726.852 | U35: 1746783.845 | V35: 1786421.054 | W35: 0 | X35: 0 | Y35: 0 | Z35: 0 | AA35: 0 | AB35: 0 | AC35: 816261.5071 | AD35: 827769.4818 | AE35: 843066.9805 | AF35: 865220.3388 | AG35: 887086.3945 | AH35: 907215.7476 | AI35: 53399.11389 | AJ35: 54151.95553 | AK35: 55152.70451 | AL35: 56601.95784 | AM35: 58032.41608 | AN35: 59349.26076
A36: ED_INP212_00028 | D36: Zone substation equipment maintenance | Q36: 2073907.933 | R36: 2103146.7 | S36: 2142013.661 | T36: 2198299.576 | U36: 2253855.529 | V36: 2304998.974 | W36: 0 | X36: 0 | Y36: 0 | Z36: 0 | AA36: 0 | AB36: 0 | AC36: 1218931.068 | AD36: 1236116.036 | AE36: 1258959.936 | AF36: 1292041.757 | AG36: 1324694.546 | AH36: 1354753.9 | AI36: 79607.6688 | AJ36: 80730.00892 | AK36: 82221.93057 | AL36: 84382.48475 | AM36: 86515.01912 | AN36: 88478.17781
A37: ED_INP212_00029 | D37: Zone substation property maintenance | Q37: 1216633.662 | R37: 1233786.24 | S37: 1256587.085 | T37: 1289606.554 | U37: 1322197.8 | V37: 1352200.499 | W37: 0 | X37: 0 | Y37: 0 | Z37: 0 | AA37: 0 | AB37: 0 | AC37: 760619.481 | AD37: 771342.9926 | AE37: 785597.708 | AF37: 806240.9404 | AG37: 826616.4546 | AH37: 845373.6518 | AI37: 49747.52257 | AJ37: 50448.88264 | AK37: 51381.19742 | AL37: 52731.34646 | AM37: 54063.98568 | AN37: 55290.78057
A38: ED_INP212_00031 | D38: Scada & network control maintenance | Q38: 46857.0793 | R38: 47517.68877 | S38: 48395.83395 | T38: 49667.53629 | U38: 50922.74617 | V38: 52078.26151 | W38: 0 | X38: 0 | Y38: 0 | Z38: 0 | AA38: 0 | AB38: 0 | AC38: 26829.63729 | AD38: 27207.89203 | AE38: 27710.70435 | AF38: 28438.8614 | AG38: 29157.57512 | AH38: 29819.20529 | AI38: 1755.028202 | AJ38: 1779.771278 | AK38: 1812.662136 | AL38: 1860.293647 | AM38: 1907.307434 | AN38: 1950.587169
A39: ED_INP212_00032 | D39: Protection systems maintenance | Q39: 792022.7528 | R39: 803189 | S39: 818032.2419 | T39: 839527.7599 | U39: 860744.5066 | V39: 880276.1217 | W39: 0 | X39: 0 | Y39: 0 | Z39: 0 | AA39: 0 | AB39: 0 | AC39: 409120.681 | AD39: 414888.6248 | AE39: 422555.9263 | AF39: 433659.4721 | AG39: 444619.0182 | AH39: 454708.1068 | AI39: 26762.03226 | AJ39: 27139.33388 | AK39: 27640.87922 | AL39: 28367.20147 | AM39: 29084.10418 | AN39: 29744.06718
A40: ED_INP212_00033 | D40: Subtransmission asset maintenance - for DNSP with dual function assets | Q40: 0 | R40: 0 | S40: 0 | T40: 0 | U40: 0 | V40: 0 | W40: 0 | X40: 0 | Y40: 0 | Z40: 0 | AA40: 0 | AB40: 0 | AC40: 0 | AD40: 0 | AE40: 0 | AF40: 0 | AG40: 0 | AH40: 0 | AI40: 0 | AJ40: 0 | AK40: 0 | AL40: 0 | AM40: 0 | AN40: 0
A41: ED_INP212_00035 | D41: Other | Q41: 700765.4085 | R41: 710645.074 | S41: 723778.0685 | T41: 742796.8598 | U41: 761569 | V41: 778850.1705 | W41: 0 | X41: 0 | Y41: 0 | Z41: 0 | AA41: 0 | AB41: 0 | AC41: 0 | AD41: 0 | AE41: 0 | AF41: 0 | AG41: 0 | AH41: 0 | AI41: 0 | AJ41: 0 | AK41: 0 | AL41: 0 | AM41: 0 | AN41: 0
A42: ED_INP212_00036 | C42: NON-ROUTINE MAINTENANCE | D42: Pole top, overhead line & service line maintenance | Q42: 2301321.178 | R42: 2333766.106 | S42: 2376895.002 | T42: 2439352.919 | U42: 2501000.83 | V42: 2557752.381 | W42: 0 | X42: 0 | Y42: 0 | Z42: 0 | AA42: 0 | AB42: 0 | AC42: 1188855.974 | AD42: 1205616.932 | AE42: 1227897.197 | AF42: 1260162.779 | AG42: 1292009.914 | AH42: 1321327.604 | AI42: 77737.25573 | AJ42: 78833.22604 | AK42: 80290.0944 | AL42: 82399.88553 | AM42: 84482.31518 | AN42: 86399.3487
A43: ED_INP212_00037 | D43: Pole inspection and treatment | Q43: 0 | R43: 0 | S43: 0 | T43: 0 | U43: 0 | V43: 0 | W43: 0 | X43: 0 | Y43: 0 | Z43: 0 | AA43: 0 | AB43: 0 | AC43: 0 | AD43: 0 | AE43: 0 | AF43: 0 | AG43: 0 | AH43: 0 | AI43: 0 | AJ43: 0 | AK43: 0 | AL43: 0 | AM43: 0 | AN43: 0
A44: ED_INP212_00038 | D44: Overhead asset inspection | Q44: 0 | R44: 0 | S44: 0 | T44: 0 | U44: 0 | V44: 0 | W44: 0 | X44: 0 | Y44: 0 | Z44: 0 | AA44: 0 | AB44: 0 | AC44: 0 | AD44: 0 | AE44: 0 | AF44: 0 | AG44: 0 | AH44: 0 | AI44: 0 | AJ44: 0 | AK44: 0 | AL44: 0 | AM44: 0 | AN44: 0
A45: ED_INP212_00039 | D45: Network underground cable maintenance | Q45: 664473.2351 | R45: 673841.2392 | S45: 686294.0847 | T45: 704327.9054 | U45: 722127.849 | V45: 738514.0393 | W45: 0 | X45: 0 | Y45: 0 | Z45: 0 | AA45: 0 | AB45: 0 | AC45: 363527.0601 | AD45: 368652.2071 | AE45: 375465.0418 | AF45: 385331.1756 | AG45: 395069.3574 | AH45: 404034.088 | AI45: 23782.14523 | AJ45: 24117.43523 | AK45: 24563.13472 | AL45: 25208.58276 | AM45: 25845.6601 | AN45: 26432.13783
A46: ED_INP212_00040 | D46: Distribution substation equipment & property maintenance | Q46: 926282.4593 | R46: 939341.5525 | S46: 956700.946 | T46: 981840.2759 | U46: 1006653.579 | V46: 1029496.095 | W46: 0 | X46: 0 | Y46: 0 | Z46: 0 | AA46: 0 | AB46: 0 | AC46: 210861.7278 | AD46: 213834.5391 | AE46: 217786.2837 | AF46: 223509.0764 | AG46: 229157.6513 | AH46: 234357.5905 | AI46: 13745.33489 | AJ46: 13939.12201 | AK46: 14196.72235 | AL46: 14569.77109 | AM46: 14937.98184 | AN46: 15276.94759
A47: ED_INP212_00041 | D47: Zone substation equipment maintenance | Q47: 68684.93351 | R47: 69653.28063 | S47: 70940.50007 | T47: 72804.61094 | U47: 74644.54651 | V47: 76338.34594 | W47: 0 | X47: 0 | Y47: 0 | Z47: 0 | AA47: 0 | AB47: 0 | AC47: 28764.34133 | AD47: 29169.87229 | AE47: 29708.94276 | AF47: 30489.60772 | AG47: 31260.1484 | AH47: 31969.48919 | AI47: 1881.394162 | AJ47: 1907.918795 | AK47: 1943.177868 | AL47: 1994.238955 | AM47: 2044.637839 | AN47: 2091.033813
A48: ED_INP212_00042 | D48: Zone substation property maintenance | Q48: 108608.8555 | R48: 110140.0657 | S48: 112175.4965 | T48: 115123.1437 | U48: 118032.5634 | V48: 120710.9035 | W48: 0 | X48: 0 | Y48: 0 | Z48: 0 | AA48: 0 | AB48: 0 | AC48: 26466.12476 | AD48: 26839.25456 | AE48: 27335.25432 | AF48: 28053.54562 | AG48: 28762.52155 | AH48: 29415.18735 | AI48: 1719.644882 | AJ48: 1743.88911 | AK48: 1776.116852 | AL48: 1822.788058 | AM48: 1868.853995 | AN48: 1911.261163
A49: ED_INP212_00044 | D49: SCADA & network control maintenance | Q49: 42793.38901 | R49: 43396.70699 | S49: 44198.69484 | T49: 45360.10852 | U49: 46506.46005 | V49: 47561.76307 | W49: 0 | X49: 0 | Y49: 0 | Z49: 0 | AA49: 0 | AB49: 0 | AC49: 10360.85448 | AD49: 10506.92587 | AE49: 10701.09791 | AF49: 10982.29177 | AG49: 11259.83887 | AH49: 11515.34192 | AI49: 677.81322 | AJ49: 687.3692965 | AK49: 700.0721457 | AL49: 718.468014 | AM49: 736.6253098 | AN49: 753.3404697
A50: ED_INP212_00045 | D50: Protection systems maintenance | Q50: 4754.821002 | R50: 4821.856332 | S50: 4910.966093 | T50: 5040.012058 | U50: 5167.38445 | V50: 5284.640342 | W50: 0 | X50: 0 | Y50: 0 | Z50: 0 | AA50: 0 | AB50: 0 | AC50: 1151.206054 | AD50: 1167.436208 | AE50: 1189.010879 | AF50: 1220.254641 | AG50: 1251.093208 | AH50: 1279.482435 | AI50: 75.31258 | AJ50: 76.37436628 | AK50: 77.78579396 | AL50: 79.82977933 | AM50: 81.84725664 | AN50: 83.70449663
A51: ED_INP212_00046 | D51: Subtransmission asset maintenance - for DNSP with dual function assets | Q51: 0 | R51: 0 | S51: 0 | T51: 0 | U51: 0 | V51: 0 | W51: 0 | X51: 0 | Y51: 0 | Z51: 0 | AA51: 0 | AB51: 0 | AC51: 0 | AD51: 0 | AE51: 0 | AF51: 0 | AG51: 0 | AH51: 0 | AI51: 0 | AJ51: 0 | AK51: 0 | AL51: 0 | AM51: 0 | AN51: 0
A52: ED_INP212_00048 | D52: Other | Q52: 2907113.703 | R52: 2948099.332 | S52: 3002581.342 | T52: 3081480.483 | U52: 3159356.396 | V52: 3231047.047 | W52: 0 | X52: 0 | Y52: 0 | Z52: 0 | AA52: 0 | AB52: 0 | AC52: 0 | AD52: 0 | AE52: 0 | AF52: 0 | AG52: 0 | AH52: 0 | AI52: 0 | AJ52: 0 | AK52: 0 | AL52: 0 | AM52: 0 | AN52: 0
A53: ED_INP212_00049 | C53: OVERHEADS | D53: Network overheads | Q53: 0 | R53: 0 | S53: 0 | T53: 0 | U53: 0 | V53: 0 | W53: =SUM('2.10 Overheads'!F13:F17) -> 19511584.52 | X53: =SUM('2.10 Overheads'!G13:G17) -> 22139666.49 | Y53: =SUM('2.10 Overheads'!H13:H17) -> 21165166.11 | Z53: =SUM('2.10 Overheads'!I13:I17) -> 21159292.45 | AA53: =SUM('2.10 Overheads'!J13:J17) -> 21073685.96 | AB53: =SUM('2.10 Overheads'!K13:K17) -> 20716332.35 | AC53: 0 | AD53: 0 | AE53: 0 | AF53: 0 | AG53: 0 | AH53: 0 | AI53: 0 | AJ53: 0 | AK53: 0 | AL53: 0 | AM53: 0 | AN53: 0
A54: ED_INP212_00050 | D54: Corporate overheads | Q54: 0 | R54: 0 | S54: 0 | T54: 0 | U54: 0 | V54: 0 | W54: =SUM('2.10 Overheads'!F106:F119) -> 37495429.89 | X54: =SUM('2.10 Overheads'!G106:G119) -> 40439753.27 | Y54: =SUM('2.10 Overheads'!H106:H119) -> 41662633.01 | Z54: =SUM('2.10 Overheads'!I106:I119) -> 40993003.64 | AA54: =SUM('2.10 Overheads'!J106:J119) -> 43405664.36 | AB54: =SUM('2.10 Overheads'!K106:K119) -> 42704250.81 | AC54: 0 | AD54: 0 | AE54: 0 | AF54: 0 | AG54: 0 | AH54: 0 | AI54: 0 | AJ54: 0 | AK54: 0 | AL54: 0 | AM54: 0 | AN54: 0
A55: ED_INP212_00051 | C55: AUGMENTATION | D55: Subtransmission substations, switching stations, zone substations | Q55: 5317857.195 | R55: 5823822.414 | S55: 4358909.771 | T55: 3203277.326 | U55: 7107566.391 | V55: 6733827.8 | W55: 1660961.049 | X55: 1818992.468 | Y55: 1361446.74 | Z55: 1000500.516 | AA55: 2219952.603 | AB55: 2103220.39 | AC55: 396424.6881 | AD55: 434142.3433 | AE55: 324939.0465 | AF55: 238791.3343 | AG55: 529840.2508 | AH55: 501979.5544 | AI55: 30927.05596 | AJ55: 33869.5973 | AK55: 25350.10653 | AL55: 18629.29625 | AM55: 41335.46567 | AN55: 39161.91457
A56: ED_INP212_00052 | D56: Subtransmission lines | Q56: 816040.2989 | R56: 3632299.729 | S56: 6947386.103 | T56: 10132725.71 | U56: 8718007.545 | V56: 4503939.586 | W56: 200103.9299 | X56: 890688.182 | Y56: 1703591.432 | Z56: 2484679.05 | AA56: 2137771.349 | AB56: 1104425.863 | AC56: 92856.08495 | AD56: 413314.3089 | AE56: 790533.3536 | AF56: 1152988.695 | AG56: 992009.8925 | AH56: 512496.9899 | AI56: 6074.6923 | AJ56: 27039.23228 | AK56: 51717.09403 | AL56: 75429.10677 | AM56: 64897.79166 | AN56: 33527.81371
A57: ED_INP212_00053 | D57: HV feeders | Q57: 3979700.726 | R57: 6315130.69 | S57: 4538816.882 | T57: 6088881.156 | U57: 3662740.503 | V57: 2657003.165 | W57: 1198110.869 | X57: 1901204.95 | Y57: 1366435.874 | Z57: 1833091.279 | AA57: 1102688.244 | AB57: 799905.4678 | AC57: 677985.9109 | AD57: 1075852.163 | AE57: 773237.5146 | AF57: 1037308.059 | AG57: 623988.2411 | AH57: 452649.7933 | AI57: 53047.75924 | AJ57: 84178.07153 | AK57: 60500.54558 | AL57: 81162.25912 | AM57: 48822.81099 | AN57: 35416.74962
A58: ED_INP212_00054 | D58: Distribution substations | Q58: 5649265.517 | R58: 9846447.195 | S58: 8272176.11 | T58: 9024922.861 | U58: 8243043.323 | V58: 4789329.533 | W58: 1814325.977 | X58: 3162298.687 | Y58: 2656703.594 | Z58: 2898456.789 | AA58: 2647347.268 | AB58: 1538147.739 | AC58: 2782325.414 | AD58: 4849483.563 | AE58: 4074137.736 | AF58: 4444873.792 | AG58: 4059789.518 | AH58: 2358797.482 | AI58: 182010.52 | AJ58: 317237.1646 | AK58: 266516.6067 | AL58: 290768.9324 | AM58: 265577.9937 | AN58: 154304.7244
A59: ED_INP212_00055 | D59: LV feeders | Q59: 662750.3398 | R59: 1155147.728 | S59: 970460.2327 | T59: 1058769.618 | U59: 967042.485 | V59: 561865.9215 | W59: 69884.09838 | X59: 121805.2298 | Y59: 102330.7485 | Z59: 111642.5835 | AA59: 101970.3621 | AB59: 59246.2817 | AC59: 351853.0524 | AD59: 613266.0061 | AE59: 515215.7224 | AF59: 562099.0281 | AG59: 513401.2459 | AH59: 298293.6826 | AI59: 22330.112 | AJ59: 38920.50532 | AK59: 32697.8115 | AL59: 35673.22825 | AM59: 32582.65699 | AN59: 18931.00342
A60: ED_INP212_00056 | D60: Other assets | Q60: 0 | R60: 0 | S60: 0 | T60: 0 | U60: 0 | V60: 0 | W60: 0 | X60: 0 | Y60: 0 | Z60: 0 | AA60: 0 | AB60: 0 | AC60: 0 | AD60: 0 | AE60: 0 | AF60: 0 | AG60: 0 | AH60: 0 | AI60: 0 | AJ60: 0 | AK60: 0 | AL60: 0 | AM60: 0 | AN60: 0
A61: ED_INP212_00057 | C61: CONNECTIONS | D61: Simple and complex customer connections | Q61: 35074953.61 | R61: 36215132.15 | S61: 37082328.26 | T61: 38013073.3 | U61: 37630467.26 | V61: 38264603.91 | W61: 11589394.43 | X61: 11966129.89 | Y61: 12252667.05 | Z61: 12560201.92 | AA61: 12433782.02 | AB61: 12643312.15 | AC61: 18916631.1 | AD61: 19531552.42 | AE61: 19999248.81 | AF61: 20501218.41 | AG61: 20294871.24 | AH61: 20636873.95 | AI61: 1263897.948 | AJ61: 1304983.371 | AK61: 1336232.09 | AL61: 1369770.745 | AM61: 1355983.842 | AN61: 1378834.449
A62: ED_INP212_00058 | C62: EMERGENCY RESPONSE | D62: Major storms | Q62: 0 | R62: 0 | S62: 0 | T62: 0 | U62: 0 | V62: 0 | W62: 0 | X62: 0 | Y62: 0 | Z62: 0 | AA62: 0 | AB62: 0 | AC62: 0 | AD62: 0 | AE62: 0 | AF62: 0 | AG62: 0 | AH62: 0 | AI62: 0 | AJ62: 0 | AK62: 0 | AL62: 0 | AM62: 0 | AN62: 0
A63: ED_INP212_00059 | D63: Major event days | Q63: 61760.58601 | R63: 62631.31096 | S63: 62901.94541 | T63: 63383.47533 | U63: 63321.41434 | V63: 63162.02859 | W63: 176657.7508 | X63: 179148.341 | Y63: 179922.454 | Z63: 181299.8048 | AA63: 181122.2878 | AB63: 180666.3865 | AC63: 0 | AD63: 0 | AE63: 0 | AF63: 0 | AG63: 0 | AH63: 0 | AI63: 0 | AJ63: 0 | AK63: 0 | AL63: 0 | AM63: 0 | AN63: 0
A64: ED_INP212_00064 | C64: REPLACEMENT | D64: Poles | Q64: 7888591.141 | R64: 7176765.027 | S64: 7401626.144 | T64: 7649138.793 | U64: 7785719.209 | V64: 7990327.972 | W64: 296221.1801 | X64: 269491.696 | Y64: 277935.3616 | Z64: 287229.6053 | AA64: 292358.2793 | AB64: 300041.4572 | AC64: 2535036.795 | AD64: 2306288.042 | AE64: 2378548.246 | AF64: 2458087.629 | AG64: 2501978.404 | AH64: 2567730.416 | AI64: 244112.8296 | AJ64: 222085.3365 | AK64: 229043.6745 | AL64: 236702.9652 | AM64: 240929.4527 | AN64: 247261.0807
A65: ED_INP212_00065 | D65: Pole top structures | Q65: 27290624.45 | R65: 18143149.2 | S65: 18347349.16 | T65: 19808228.63 | U65: 19591243.98 | V65: 20069977.09 | W65: 966057.6211 | X65: 642247.2152 | Y65: 649475.6658 | Z65: 701189.1671 | AA65: 693508.153 | AB65: 710454.7703 | AC65: 14831710.32 | AD65: 9860306.922 | AE65: 9971284.035 | AF65: 10765232.19 | AG65: 10647306.96 | AH65: 10907485.35 | AI65: 1155608.807 | AJ65: 768263.2193 | AK65: 776909.9719 | AL65: 838770.2339 | AM65: 829582.1199 | AN65: 849853.8508
A66: ED_INP212_00066 | D66: Overhead conductors | Q66: 5522508.71 | R66: 8638027.593 | S66: 12304401.2 | T66: 13133558.49 | U66: 10201342.9 | V66: 7727252.69 | W66: 344773.7975 | X66: 539277.6604 | Y66: 768171.7409 | Z66: 819936.5675 | AA66: 636876.448 | AB66: 482417.393 | AC66: 418332.2631 | AD66: 654334.0757 | AE66: 932063.3561 | AF66: 994872.355 | AG66: 772755.8409 | AH66: 585342.5093 | AI66: 56583.16706 | AJ66: 88504.51561 | AK66: 126069.8761 | AL66: 134565.353 | AM66: 104522.1148 | AN66: 79172.79136
A67: ED_INP212_00067 | D67: Underground cables | Q67: 9607613.44 | R67: 8343753.033 | S67: 8597551.257 | T67: 8818986.47 | U67: 8370529.799 | V67: 7178406.473 | W67: 694536.3056 | X67: 603171.5828 | Y67: 621518.7075 | Z67: 637526.3035 | AA67: 605107.2806 | AB67: 518928.446 | AC67: 4575447.96 | AD67: 3973557.849 | AE67: 4094424.553 | AF67: 4199878.971 | AG67: 3986309.788 | AH67: 3418583.133 | AI67: 484804.1618 | AJ67: 421029.2411 | AK67: 433836.0048 | AL67: 445009.7176 | AM67: 422380.4078 | AN67: 362225.37
A68: ED_INP212_00068 | D68: Service lines | Q68: 9929227.489 | R68: 8765561.854 | S68: 6605696.645 | T68: 5780837.362 | U68: 5782874.744 | V68: 5865617.734 | W68: 431420.2227 | X68: 380859.5031 | Y68: 287014.3846 | Z68: 251174.6402 | AA68: 251263.1635 | AB68: 254858.3071 | AC68: 3281141.362 | AD68: 2896604.756 | AE68: 2182871.176 | AF68: 1910294.089 | AG68: 1910967.348 | AH68: 1938310.003 | AI68: 310386.4908 | AJ68: 274010.4391 | AK68: 206493.3051 | AL68: 180708.3003 | AM68: 180771.9886 | AN68: 183358.5248
A69: ED_INP212_00069 | D69: Transformers | Q69: 5509541.861 | R69: 9054754.456 | S69: 13605035.08 | T69: 14565851.36 | U69: 12198362.87 | V69: 7575397.45 | W69: 1370925.331 | X69: 2253071.591 | Y69: 3385306.382 | Z69: 3624383.86 | AA69: 3035287.701 | AB69: 1884966.939 | AC69: 1945822.747 | AD69: 3197896.964 | AE69: 4804934.314 | AF69: 5144268.912 | AG69: 4308135.331 | AH69: 2675427.658 | AI69: 247877.4608 | AJ69: 407378.6168 | AK69: 612098.3624 | AL69: 655326.04 | AM69: 548811.3694 | AN69: 340821.4933
A70: ED_INP212_00070 | D70: Switchgear | Q70: 7745494.119 | R70: 9311128.017 | S70: 14470400.75 | T70: 15950927.21 | U70: 16723420.89 | V70: 13285895.46 | W70: 1351040.502 | X70: 1624132.802 | Y70: 2524060.725 | Z70: 2782307.8 | AA70: 2917053.27 | AB70: 2317448.39 | AC70: 2588906.405 | AD70: 3112214.481 | AE70: 4836684.739 | AF70: 5331545.926 | AG70: 5589749.444 | AH70: 4440767.669 | AI70: 289933.5603 | AJ70: 348539.2222 | AK70: 541663.9332 | AL70: 597083.8069 | AM70: 626000.2116 | AN70: 497324.8852
A71: ED_INP212_00072 | D71: SCADA network control and protections systems | Q71: 6658792.683 | R71: 8878393.817 | S71: 7079608.508 | T71: 4735218.86 | U71: 4154540.525 | V71: 6282065.368 | W71: 691585.6188 | X71: 922114.5295 | Y71: 735291.766 | Z71: 491802.2563 | AA71: 431492.707 | AB71: 652458.5269 | AC71: 2044885.292 | AD71: 2726514.821 | AE71: 2174115.94 | AF71: 1454164.421 | AG71: 1275840.715 | AH71: 1929194.028 | AI71: 287406.1147 | AJ71: 383208.3072 | AK71: 305569.3235 | AL71: 204381.0222 | AM71: 179317.8445 | AN71: 271145.8497
A72: ED_INP212_00073 | D72: Other | Q72: 16150637.8 | R72: 25373370.85 | S72: 21260891.62 | T72: 18813190.28 | U72: 15320316.1 | V72: 14303646.46 | W72: 5099626.847 | X72: 8011740.761 | Y72: 6713209.412 | Z72: 5940338.171 | AA72: 4837449.533 | AB72: 4516432.132 | AC72: 6344140.37 | AD72: 9966926.898 | AE72: 8351501.809 | AF72: 7390018.982 | AG72: 6017981.274 | AH72: 5618622.75 | AI72: 864855.8966 | AJ72: 1358727.108 | AK72: 1138506.585 | AL72: 1007433.808 | AM72: 820392.7225 | AN72: 765950.7408
A73: ED_INP212_00074 | C73: NON-NETWORK EXPENDITURE | D73: IT and communications | Q73: 4535923.579 | R73: 6942653.521 | S73: 8759826.831 | T73: 7925110.505 | U73: 6323525.432 | V73: 7266770.567 | W73: 33936515.23 | X73: 51942997.46 | Y73: 65538581.38 | Z73: 59293466.62 | AA73: 47310853.76 | AB73: 54367950.81 | AC73: 0 | AD73: 0 | AE73: 0 | AF73: 0 | AG73: 0 | AH73: 0 | AI73: 0 | AJ73: 0 | AK73: 0 | AL73: 0 | AM73: 0 | AN73: 0
A74: ED_INP212_00075 | D74: Motor vehicles | Q74: 0 | R74: 0 | S74: 0 | T74: 0 | U74: 0 | V74: 0 | W74: 3645141.041 | X74: 7108866.484 | Y74: 4065803.748 | Z74: 3628660.387 | AA74: 4550761.16 | AB74: 4261026.255 | AC74: 0 | AD74: 0 | AE74: 0 | AF74: 0 | AG74: 0 | AH74: 0 | AI74: 0 | AJ74: 0 | AK74: 0 | AL74: 0 | AM74: 0 | AN74: 0
A75: ED_INP212_00076 | D75: Buildings and property | Q75: 0 | R75: 0 | S75: 0 | T75: 0 | U75: 0 | V75: 0 | W75: 532473.4431 | X75: 7448792.789 | Y75: 446082.6205 | Z75: 413132.4502 | AA75: 372239.6732 | AB75: 1565515.803 | AC75: 0 | AD75: 0 | AE75: 0 | AF75: 0 | AG75: 0 | AH75: 0 | AI75: 0 | AJ75: 0 | AK75: 0 | AL75: 0 | AM75: 0 | AN75: 0
A76: ED_INP212_00077 | D76: Other | Q76: 0 | R76: 0 | S76: 0 | T76: 0 | U76: 0 | V76: 0 | W76: 7087018.387 | X76: 17352939.19 | Y76: 16618938.43 | Z76: 16444792.33 | AA76: 14430829.12 | AB76: 12942931.46 | AC76: 0 | AD76: 0 | AE76: 0 | AF76: 0 | AG76: 0 | AH76: 0 | AI76: 0 | AJ76: 0 | AK76: 0 | AL76: 0 | AM76: 0 | AN76: 0

Sheet 2.13 Provisions
C1: =SheetHeader -> REGULATORY REPORTING STATEMENT
C2: =dms_TradingName -> United Energy
C3: =FRCP_span -> 2016 to 2020
C4: 2.13 PROVISIONS
C6: Instructions
C7: In Table 2.13.1 provide, for each provision, the name and a brief description of the nature of the obligation in the spaces provided. Provision amounts must be inclusive of related party margins (RPMs) if the DNSP incurs RPMs. Provision amounts must only relate to standard control services. In Table 2.13.2 allocate, by provision, the total movements in provisions from Table 2.13.1 opex, as-incurred capex by asset class and other. 'Other' refers to movements in provisions that are recognised in equity, revenue, etc rather than as an expense. The total 'movement' (the sum of the movements allocated to opex, capex and other) is equal to the difference between the carrying amount at the end of the period and the carrying amount at the beginning of the period in Table 2.13.1. The DNSP must insert their Roll Forward Model asset classes in the as-incurred capex section of Table 2.13.2.
C12: TABLE 2.13.1 - CHANGES IN TOTAL PROVISIONS incl. RPM
D15: Historical ($0's, nominal)
A16: PRO2131 | D16: =PRCP_y4 -> 2009 | E16: =PRCP_y5 -> 2010 | F16: =CRCP -> 2011 | G16: 2012 | H16: 2013 | I16: 2014
A19: ED_PRO2131_00100 | C19: Provision name
C20: Annual leave
A21: ED_PRO2131_00003 | C21: Opening balance (the carrying amount at the beginning of the period) | D21: 6000 | E21: =D38 -> 28000 | F21: =E38 -> 64850 | G21: =F38 -> 50 | H21: =G38 -> 50 | I21: =H38 -> 50
C22: Additional provisions made in the period, including increases to existing provisions
A23: ED_PRO2131_00005 | C23: Opex component | D23: 22000 | E23: 36850
A24: ED_PRO2131_00006 | C24: Capex component
A25: ED_PRO2131_00007 | C25: Other component
C26: Amounts used (that is, incurred and charged against the provision) during the period
A27: ED_PRO2131_00009 | C27: Opex component
A28: ED_PRO2131_00010 | C28: Capex component
A29: ED_PRO2131_00011 | C29: Other component
C30: Unused amounts reversed during the period
A31: ED_PRO2131_00013 | C31: Opex component | F31: -64800
A32: ED_PRO2131_00014 | C32: Capex component
A33: ED_PRO2131_00015 | C33: Other component
C34: The increase during the period in the discounted amount arising from the passage of time and the effect of any change in the discount rate
A35: ED_PRO2131_00017 | C35: Opex component
A36: ED_PRO2131_00018 | C36: Capex component
A37: ED_PRO2131_00019 | C37: Other component
C38: Closing balance (carrying amount at the end of the period) | D38: =D21+SUM(D23:D37) -> 28000 | E38: 64850 | F38: 50 | G38: 50 | H38: 50 | I38: 50
A39: ED_PRO2131_00020 | C39: Provision name
C40: Long service
A41: ED_PRO2131_00003 | C41: Opening balance (the carrying amount at the beginning of the period) | E41: =D58 -> 1000 | F41: =E58 -> 6200 | G41: =F58 -> 50 | H41: =G58 -> 50 | I41: =H58 -> 50
C42: Additional provisions made in the period, including increases to existing provisions
A43: ED_PRO2131_00005 | C43: Opex component | D43: 1000 | E43: 5200
A44: ED_PRO2131_00006 | C44: Capex component
A45: ED_PRO2131_00007 | C45: Other component
C46: Amounts used (that is, incurred and charged against the provision) during the period
A47: ED_PRO2131_00009 | C47: Opex component | F47: -6150
A48: ED_PRO2131_00010 | C48: Capex component
A49: ED_PRO2131_00011 | C49: Other component
C50: Unused amounts reversed during the period
A51: ED_PRO2131_00013 | C51: Opex component
A52: ED_PRO2131_00014 | C52: Capex component
A53: ED_PRO2131_00015 | C53: Other component
C54: The increase during the period in the discounted amount arising from the passage of time and the effect of any change in the discount rate
A55: ED_PRO2131_00017 | C55: Opex component
A56: ED_PRO2131_00018 | C56: Capex component
A57: ED_PRO2131_00019 | C57: Other component
C58: Closing balance (carrying amount at the end of the period) | D58: =D41+SUM(D43:D57) -> 1000 | E58: 6200 | F58: 50 | G58: 50 | H58: 50 | I58: 50
A59: ED_PRO2131_00030 | C59: Provision name
C60: Work cover
A61: ED_PRO2131_00003 | C61: Opening balance (the carrying amount at the beginning of the period) | D61: 146000 | E61: =D78 -> 143000 | F61: =E78 -> 108420 | G61: =F78 -> 115420 | H61: =G78 -> 115420 | I61: =H78 -> 115420
C62: Additional provisions made in the period, including increases to existing provisions
A63: ED_PRO2131_00005 | C63: Opex component | F63: 7000
A64: ED_PRO2131_00006 | C64: Capex component
A65: ED_PRO2131_00007 | C65: Other component
C66: Amounts used (that is, incurred and charged against the provision) during the period
A67: ED_PRO2131_00009 | C67: Opex component | D67: -3000 | E67: -34580
A68: ED_PRO2131_00010 | C68: Capex component
A69: ED_PRO2131_00011 | C69: Other component
C70: Unused amounts reversed during the period
A71: ED_PRO2131_00013 | C71: Opex component
A72: ED_PRO2131_00014 | C72: Capex component
A73: ED_PRO2131_00015 | C73: Other component
C74: The increase during the period in the discounted amount arising from the passage of time and the effect of any change in the discount rate
A75: ED_PRO2131_00017 | C75: Opex component
A76: ED_PRO2131_00018 | C76: Capex component
A77: ED_PRO2131_00019 | C77: Other component
C78: Closing balance (carrying amount at the end of the period) | D78: =D61+SUM(D63:D77) -> 143000 | E78: 108420 | F78: 115420 | G78: 115420 | H78: 115420 | I78: 115420
A79: ED_PRO2131_00040 | C79: Provision name
C80: Environmental
A81: ED_PRO2131_00003 | C81: Opening balance (the carrying amount at the beginning of the period) | D81: 5277000 | E81: =D98 -> 5271000 | F81: =E98 -> 2268010 | G81: =F98 -> 2268010 | H81: =G98 -> 2268010 | I81: =H98 -> 3268010
C82: Additional provisions made in the period, including increases to existing provisions
A83: ED_PRO2131_00005 | C83: Opex component | H83: 1000000
A84: ED_PRO2131_00006 | C84: Capex component
A85: ED_PRO2131_00007 | C85: Other component
C86: Amounts used (that is, incurred and charged against the provision) during the period
A87: ED_PRO2131_00009 | C87: Opex component | D87: -6000 | E87: -3002990
A88: ED_PRO2131_00010 | C88: Capex component
A89: ED_PRO2131_00011 | C89: Other component
C90: Unused amounts reversed during the period
A91: ED_PRO2131_00013 | C91: Opex component
A92: ED_PRO2131_00014 | C92: Capex component
A93: ED_PRO2131_00015 | C93: Other component
C94: The increase during the period in the discounted amount arising from the passage of time and the effect of any change in the discount rate
A95: ED_PRO2131_00017 | C95: Opex component
A96: ED_PRO2131_00018 | C96: Capex component
A97: ED_PRO2131_00019 | C97: Other component
C98: Closing balance (carrying amount at the end of the period) | D98: =D81+SUM(D83:D97) -> 5271000 | E98: 2268010 | F98: 2268010 | G98: 2268010 | H98: 3268010 | I98: 3268010
A99: ED_PRO2131_00050 | C99: Provision name
C100: Transition
A101: ED_PRO2131_00003 | C101: Opening balance (the carrying amount at the beginning of the period) | D101: 0 | E101: =D118 -> 0 | F101: =E118 -> 0 | G101: =F118 -> 0 | H101: =G118 -> 8266000 | I101: =H118 -> 0
C102: Additional provisions made in the period, including increases to existing provisions
A103: ED_PRO2131_00005 | C103: Opex component | G103: 8299000
A104: ED_PRO2131_00006 | C104: Capex component
A105: ED_PRO2131_00007 | C105: Other component
C106: Amounts used (that is, incurred and charged against the provision) during the period
A107: ED_PRO2131_00009 | C107: Opex component | G107: -33000 | H107: -8266000
A108: ED_PRO2131_00010 | C108: Capex component
A109: ED_PRO2131_00011 | C109: Other component
C110: Unused amounts reversed during the period
A111: ED_PRO2131_00013 | C111: Opex component
A112: ED_PRO2131_00014 | C112: Capex component
A113: ED_PRO2131_00015 | C113: Other component
C114: The increase during the period in the discounted amount arising from the passage of time and the effect of any change in the discount rate
A115: ED_PRO2131_00017 | C115: Opex component
A116: ED_PRO2131_00018 | C116: Capex component
A117: ED_PRO2131_00019 | C117: Other component
C118: Closing balance (carrying amount at the end of the period) | D118: =D101+SUM(D103:D117) -> 0 | E118: 0 | F118: 0 | G118: 8266000 | H118: 0 | I118: 0
A119: ED_PRO2131_00060 | C119: Provision name
C120: Employee separation cost
A121: ED_PRO2131_00003 | C121: Opening balance (the carrying amount at the beginning of the period) | D121: 0 | E121: =D138 -> 0 | F121: =E138 -> 0 | G121: =F138 -> 0 | H121: =G138 -> 3016000 | I121: =H138 -> 4290000
C122: Additional provisions made in the period, including increases to existing provisions
A123: ED_PRO2131_00005 | C123: Opex component | G123: 3016000 | H123: 1274000 | I123: 2668476
A124: ED_PRO2131_00006 | C124: Capex component | I124: 1122629
A125: ED_PRO2131_00007 | C125: Other component
C126: Amounts used (that is, incurred and charged against the provision) during the period
A127: ED_PRO2131_00009 | C127: Opex component | I127: -1813153
A128: ED_PRO2131_00010 | C128: Capex component | I128: -699493
A129: ED_PRO2131_00011 | C129: Other component | I129: 0
C130: Unused amounts reversed during the period
A131: ED_PRO2131_00013 | C131: Opex component | I131: -595186
A132: ED_PRO2131_00014 | C132: Capex component | I132: -226663
A133: ED_PRO2131_00015 | C133: Other component | I133: 0
C134: The increase during the period in the discounted amount arising from the passage of time and the effect of any change in the discount rate
A135: ED_PRO2131_00017 | C135: Opex component
A136: ED_PRO2131_00018 | C136: Capex component
A137: ED_PRO2131_00019 | C137: Other component
C138: Closing balance (carrying amount at the end of the period) | D138: =D121+SUM(D123:D137) -> 0 | E138: 0 | F138: 0 | G138: 3016000 | H138: 4290000 | I138: 4746610
A139: ED_PRO2131_00070 | C139: Provision name
C140: Provision for claims not processed
A141: ED_PRO2131_00003 | C141: Opening balance (the carrying amount at the beginning of the period) | E141: =D158 -> 0 | F141: =E158 -> 0 | G141: =F158 -> 0 | H141: =G158 -> 0 | I141: =H158 -> 0
C142: Additional provisions made in the period, including increases to existing provisions
A143: ED_PRO2131_00005 | C143: Opex component | I143: 500000
A144: ED_PRO2131_00006 | C144: Capex component
A145: ED_PRO2131_00007 | C145: Other component
C146: Amounts used (that is, incurred and charged against the provision) during the period
A147: ED_PRO2131_00009 | C147: Opex component
A148: ED_PRO2131_00010 | C148: Capex component
A149: ED_PRO2131_00011 | C149: Other component
C150: Unused amounts reversed during the period
A151: ED_PRO2131_00013 | C151: Opex component
A152: ED_PRO2131_00014 | C152: Capex component
A153: ED_PRO2131_00015 | C153: Other component
C154: The increase during the period in the discounted amount arising from the passage of time and the effect of any change in the discount rate
A155: ED_PRO2131_00017 | C155: Opex component
A156: ED_PRO2131_00018 | C156: Capex component
A157: ED_PRO2131_00019 | C157: Other component
C158: Closing balance (carrying amount at the end of the period) | D158: =D141+SUM(D143:D157) -> 0 | E158: 0 | F158: 0 | G158: 0 | H158: 0 | I158: 500000
A159: ED_PRO2131_00080 | C159: Provision name
C160: Brief description of provision
A161: ED_PRO2131_00003 | C161: Opening balance (the carrying amount at the beginning of the period) | E161: =D178 -> 0 | F161: =E178 -> 0 | G161: =F178 -> 0 | H161: =G178 -> 0 | I161: =H178 -> 0
C162: Additional provisions made in the period, including increases to existing provisions
A163: ED_PRO2131_00005 | C163: Opex component
A164: ED_PRO2131_00006 | C164: Capex component
A165: ED_PRO2131_00007 | C165: Other component
C166: Amounts used (that is, incurred and charged against the provision) during the period
A167: ED_PRO2131_00009 | C167: Opex component
A168: ED_PRO2131_00010 | C168: Capex component
A169: ED_PRO2131_00011 | C169: Other component
C170: Unused amounts reversed during the period
A171: ED_PRO2131_00013 | C171: Opex component
A172: ED_PRO2131_00014 | C172: Capex component
A173: ED_PRO2131_00015 | C173: Other component
C174: The increase during the period in the discounted amount arising from the passage of time and the effect of any change in the discount rate
A175: ED_PRO2131_00017 | C175: Opex component
A176: ED_PRO2131_00018 | C176: Capex component
A177: ED_PRO2131_00019 | C177: Other component
C178: Closing balance (carrying amount at the end of the period) | D178: =D161+SUM(D163:D177) -> 0 | E178: 0 | F178: 0 | G178: 0 | H178: 0 | I178: 0
A179: ED_PRO2131_00090 | C179: Provision name
C180: Brief description of provision
A181: ED_PRO2131_00003 | C181: Opening balance (the carrying amount at the beginning of the period) | E181: =D198 -> 0 | F181: =E198 -> 0 | G181: =F198 -> 0 | H181: =G198 -> 0 | I181: =H198 -> 0
C182: Additional provisions made in the period, including increases to existing provisions
A183: ED_PRO2131_00005 | C183: Opex component
A184: ED_PRO2131_00006 | C184: Capex component
A185: ED_PRO2131_00007 | C185: Other component
C186: Amounts used (that is, incurred and charged against the provision) during the period
A187: ED_PRO2131_00009 | C187: Opex component
A188: ED_PRO2131_00010 | C188: Capex component
A189: ED_PRO2131_00011 | C189: Other component
C190: Unused amounts reversed during the period
A191: ED_PRO2131_00013 | C191: Opex component
A192: ED_PRO2131_00014 | C192: Capex component
A193: ED_PRO2131_00015 | C193: Other component
C194: The increase during the period in the discounted amount arising from the passage of time and the effect of any change in the discount rate
A195: ED_PRO2131_00017 | C195: Opex component
A196: ED_PRO2131_00018 | C196: Capex component
A197: ED_PRO2131_00019 | C197: Other component
C198: Closing balance (carrying amount at the end of the period) | D198: =D181+SUM(D183:D197) -> 0 | E198: 0 | F198: 0 | G198: 0 | H198: 0 | I198: 0
A199: ED_PRO2131_00100 | C199: Provision name
C200: Brief description of provision
A201: ED_PRO2131_00003 | C201: Opening balance (the carrying amount at the beginning of the period) | E201: =D218 -> 0 | F201: =E218 -> 0 | G201: =F218 -> 0 | H201: =G218 -> 0 | I201: =H218 -> 0
C202: Additional provisions made in the period, including increases to existing provisions
A203: ED_PRO2131_00005 | C203: Opex component
A204: ED_PRO2131_00006 | C204: Capex component
A205: ED_PRO2131_00007 | C205: Other component
C206: Amounts used (that is, incurred and charged against the provision) during the period
A207: ED_PRO2131_00009 | C207: Opex component
A208: ED_PRO2131_00010 | C208: Capex component
A209: ED_PRO2131_00011 | C209: Other component
... 462 more rows

Sheet 2.14 Forecast price changes
C1: =SheetHeader -> REGULATORY REPORTING STATEMENT
C2: =dms_TradingName -> United Energy
C3: =FRCP_span -> 2016 to 2020
C4: 2.14 FORECAST PRICE CHANGES
C6: Instructions
C7: The DNSP must provide all forecast price changes used to forecast opex and capex, including forecast changes in CPI. Forecast price changes must be expressed in real terms, except for CPI. If the same escalators are not used for capex and opex, report capex and opex escalators separately. Add additional rows as required. If price changes for a given year were not used to forecast either opex or capex enter '0' for that year.
C9: TABLE 2.14.1 - FORECAST LABOUR AND MATERIALS PRICE CHANGES
D11: Price changes (% YoY real) Current regulatory period | I11: Price changes (%YoY real) Forthcoming regulatory period
D12: Historical | H12: Forecast
D13: =CRCP -> 2011 | E13: 2012 | F13: 2013 | G13: 2014 | H13: 2015 | I13: =FRCP -> 2016 | J13: 2017 | K13: 2018 | L13: 2019 | M13: 2020
C14: Materials price changes
A15: ED_FOR21411_00001 | C15: Copper | D15: 0 | E15: 0 | F15: 0 | G15: 0 | H15: 0 | I15: 0.04 | J15: 0.08 | K15: 0.02 | L15: -0.1 | M15: -0.06
A16: ED_FOR21411_00002 | C16: Aluminium | D16: 0 | E16: 0 | F16: 0 | G16: 0 | H16: 0.1 | I16: 0.08 | J16: 0.08 | K16: 0.05 | L16: -0.07 | M16: -0.05
A17: ED_FOR21411_00003 | C17: Steel | D17: 0 | E17: 0 | F17: 0 | G17: 0 | H17: 0.05 | I17: 0.05 | J17: 0.03 | K17: 0.03 | L17: -0.11 | M17: -0.03
A18: ED_FOR21411_00004 | C18: Oil | D18: 0 | E18: 0 | F18: 0 | G18: 0 | H18: -0.02 | I18: -0.01 | J18: 0.04 | K18: 0.03 | L18: -0.08 | M18: -0.05
A19: ED_FOR21411_00005 | C19: Concrete | D19: 0 | E19: 0 | F19: 0 | G19: 0 | H19: -0.01 | I19: -0.01 | J19: -0.02 | K19: -0.05 | L19: -0.03 | M19: 0.01
A20: ED_FOR21411_00006 | C20: Wood | D20: 0 | E20: 0 | F20: 0 | G20: 0 | H20: 0.03 | I20: 0.02 | J20: 0.02 | K20: 0.01 | L20: 0.02 | M20: 0.04
A21: ED_FOR21411_00007
A22: ED_FOR21411_00008
A23: ED_FOR21411_00009
A24: ED_FOR21411_00010
A25: ED_FOR21411_00011
A26: ED_FOR21411_00012
A27: ED_FOR21411_00013
A28: ED_FOR21411_00014
A29: ED_FOR21411_00015
A30: ED_FOR21411_00016
A31: ED_FOR21411_00017
A32: ED_FOR21411_00018
A33: ED_FOR21411_00019
A34: ED_FOR21411_00020
A35: ED_FOR21411_00021
A36: ED_FOR21411_00022
A37: ED_FOR21411_00023
A38: ED_FOR21411_00024
A39: ED_FOR21411_00025
A40: ED_FOR21411_00026
A41: ED_FOR21411_00027
A42: ED_FOR21411_00028
A43: ED_FOR21411_00029
A44: ED_FOR21411_00030
A45: ED_FOR21411_00031
A46: ED_FOR21411_00032
A47: ED_FOR21411_00033
A48: ED_FOR21411_00034
A49: ED_FOR21411_00035
A50: ED_FOR21411_00036
A51: ED_FOR21411_00037
A52: ED_FOR21411_00038
A53: ED_FOR21411_00039
A54: ED_FOR21411_00040
A55: ED_FOR21411_00041
A56: ED_FOR21411_00042
A57: ED_FOR21411_00043
A58: ED_FOR21411_00044
A59: ED_FOR21411_00045
A60: ED_FOR21411_00046
A61: ED_FOR21411_00047
A62: ED_FOR21411_00048
A63: ED_FOR21411_00049
A64: ED_FOR21411_00050
C65: Labour and Other price changes
A66: ED_FOR21412_00001 | C66: Labour | D66: 0 | E66: 0 | F66: 0 | G66: 0 | H66: 0.01 | I66: 0.01 | J66: 0.01 | K66: 0.02 | L66: 0.02 | M66: 0.02
A67: ED_FOR21412_00002 | C67: Other | D67: 0 | E67: 0 | F67: 0 | G67: 0 | H67: 0 | I67: 0 | J67: 0 | K67: 0 | L67: 0 | M67: 0
A68: ED_FOR21412_00003
A69: ED_FOR21412_00004
A70: ED_FOR21412_00005
A71: ED_FOR21412_00006
A72: ED_FOR21412_00007
A73: ED_FOR21412_00008
A74: ED_FOR21412_00009
A75: ED_FOR21412_00010
A76: ED_FOR21412_00011
A77: ED_FOR21412_00012
A78: ED_FOR21412_00013
A79: ED_FOR21412_00014
A80: ED_FOR21412_00015
A81: ED_FOR21412_00016
A82: ED_FOR21412_00017
A83: ED_FOR21412_00018
A84: ED_FOR21412_00019
A85: ED_FOR21412_00020
A86: ED_FOR21412_00021
A87: ED_FOR21412_00022
A88: ED_FOR21412_00023
A89: ED_FOR21412_00024
A90: ED_FOR21412_00025
A91: ED_FOR21412_99999 | C91: CPI | H91: =1.02307692307692-1 -> 0.02307692308 | I91: 0.025 | J91: 0.025 | K91: 0.025 | L91: 0.025 | M91: 0.025

Sheet 2.15 Insurance & Self-insurance
C1: =SheetHeader -> REGULATORY REPORTING STATEMENT
C2: =dms_TradingName -> United Energy
C3: =FRCP_span -> 2016 to 2020
C4: 2.15 COMMERCIAL INSURANCE AND SELF-INSURANCE
C7: TABLE 2.15.1 - FORECAST COMMERCIAL INSURANCE PREMIUMS BY RISK CATEGORY
C9: Instructions
C10: This table removed from final RIN.
C12: Risk class [drop down] | D12: Risk category | E12: Deductables | F12: Policy limit | G12: Premiums Historical ($0's, nominal) | I12: =CONCATENATE("Forecast Premiums ($0's, real ", dms_DollarReal,")") -> Forecast Premiums ($0's, real December 2015)
A13: INS2151 | G13: =CRCP_y4 -> 2014 | H13: =CRCP_y5 -> 2015 | I13: =FRCP -> 2016 | J13: 2017 | K13: 2018 | L13: 2019 | M13: 2020 | N13: Total
A14: ED_INS2151_00001 | N14: =SUM(G14:M14) -> 0
A15: ED_INS2151_00002 | N15: =SUM(G15:M15) -> 0
A16: ED_INS2151_00003 | N16: 0
A17: ED_INS2151_00004 | N17: 0
A18: ED_INS2151_00005 | N18: 0
A19: ED_INS2151_00006 | N19: 0
A20: ED_INS2151_00007 | N20: 0
A21: ED_INS2151_00008 | N21: 0
A22: ED_INS2151_00009 | N22: 0
A23: ED_INS2151_00010 | N23: 0
A24: ED_INS2151_00011 | N24: 0
A25: ED_INS2151_00012 | N25: 0
A26: ED_INS2151_00013 | N26: 0
A27: ED_INS2151_00014 | N27: 0
A28: ED_INS2151_00015 | N28: 0
A29: ED_INS2151_00016 | N29: 0
A30: ED_INS2151_00017 | N30: 0
A31: ED_INS2151_00018 | N31: 0
A32: ED_INS2151_00019 | N32: 0
A33: ED_INS2151_00020 | N33: 0
A34: ED_INS2151_00021 | N34: 0
A35: ED_INS2151_00022 | N35: 0
A36: ED_INS2151_00023 | N36: 0
A37: ED_INS2151_00024 | N37: 0
A38: ED_INS2151_00025 | N38: 0
A39: ED_INS2151_00026 | N39: 0
A40: ED_INS2151_00027 | N40: 0
A41: ED_INS2151_00028 | N41: 0
A42: ED_INS2151_00029 | N42: 0
A43: ED_INS2151_00030 | N43: =SUM(G43:M43) -> 0
A44: ED_INS2151_00031 | N44: 0
A45: ED_INS2151_00032 | N45: 0
A46: ED_INS2151_00033 | N46: 0
A47: ED_INS2151_00034 | N47: 0
A48: ED_INS2151_00035 | N48: 0
A49: ED_INS2151_00036 | N49: 0
A50: ED_INS2151_00037 | N50: 0
A51: ED_INS2151_00038 | N51: 0
A52: ED_INS2151_00039 | N52: 0
A53: ED_INS2151_00040 | N53: 0
A54: ED_INS2151_00041 | N54: 0
A55: ED_INS2151_00042 | N55: 0
A56: ED_INS2151_00043 | N56: 0
A57: ED_INS2151_00044 | N57: 0
A58: ED_INS2151_00045 | N58: 0
A59: ED_INS2151_00046 | N59: 0
A60: ED_INS2151_00047 | N60: 0
A61: ED_INS2151_00048 | N61: 0
A62: ED_INS2151_00049 | N62: 0
A63: ED_INS2151_00050 | N63: 0
C64: Total forecast premiums | G64: =SUM(G14:G63) -> 0 | H64: 0 | I64: 0 | J64: 0 | K64: 0 | L64: 0 | M64: 0 | N64: 0
C67: TABLE 2.15.2 - INSURANCE PREMIUM - TOTAL PROPERTY
C69: Instructions
C70: This table removed from final RIN.
D73: Historical ($0's, nominal) | I73: =CONCATENATE("Forecast ($0's, real ", dms_DollarReal,")") -> Forecast ($0's, real December 2015)
A74: INS2152 | D74: =CRCP -> 2011 | E74: 2012 | F74: 2013 | G74: 2014 | H74: 2015 | I74: =FRCP -> 2016 | J74: 2017 | K74: 2018 | L74: 2019 | M74: 2020
C75: Base premium
A76: ED_INS21521_00001 | C76: Value of insured assets
A77: ED_INS21521_00002 | C77: Premium rate (%) | I77: =I78/I76 ->  | J77: =J78/J76 ->  | K77: =K78/K76 ->  | L77: =L78/L76 ->  | M77: =M78/M76 -> 
A78: ED_INS21521_00003 | C78: Premium (exposure x unit rate)
C79: Statutory charges
A80: ED_INS21522_00001 | C80: Stamp duty ($nominal)
A81: ED_INS21522_00002 | C81: FSL
A82: ED_INS21522_00003 | C82: Insert additional items if any
A83: ED_INS21522_00004
A84: ED_INS21522_00005
A85: ED_INS21522_00006
A86: ED_INS21522_00007
C87: Total premium (excludes GST) | I87: =I78+SUM(I80:I86) -> 0 | J87: =J78+SUM(J80:J86) -> 0 | K87: =K78+SUM(K80:K86) -> 0 | L87: =L78+SUM(L80:L86) -> 0 | M87: =M78+SUM(M80:M86) -> 0
A89: ED_INS2152_A9999 | C89: Change to exposure (%) | H89: =(I76-H76)/H76 -> 
A90: ED_INS2152_B9999 | C90: Change to premium rates (%, real) | H90: =(I87-H87)/H87 -> 
C93: TABLE 2.15.3 - INSURANCE PREMIUM - TOTAL LIABILITY
C95: Instruction
C96: This table removed from final RIN.
D99: Historical ($0's, nominal) | I99: =CONCATENATE("Forecast ($0's, real ", dms_DollarReal,")") -> Forecast ($0's, real December 2015)
A100: INS2153 | D100: =CRCP -> 2011 | E100: 2012 | F100: 2013 | G100: 2014 | H100: 2015 | I100: =FRCP -> 2016 | J100: 2017 | K100: 2018 | L100: 2019 | M100: 2020
A101: ED_INS2153_00001 | C101: Change to premium rates (per cent, real) | E101: =(E114-D114)/D114 ->  | F101: =(F114-E114)/E114 -> 
C102: Base premium
A103: ED_INS21531_00001 | C103: Liability cap
A104: ED_INS21531_00002 | C104: Premium
C105: Statutory charges
A106: ED_INS21532_00001 | C106: Stamp duty
A107: ED_INS21532_00002 | C107: <Insert additional items if any>
A108: ED_INS21532_00003
A109: ED_INS21532_00004
A110: ED_INS21532_00005
A111: ED_INS21532_00006
A112: ED_INS21532_00007
A113: ED_INS21532_00008
C114: Total premium (excludes GST) | I114: =SUM(I106:I113)+I104 -> 0 | J114: =SUM(J106:J113)+J104 -> 0 | K114: =SUM(K106:K113)+K104 -> 0 | L114: =SUM(L106:L113)+L104 -> 0 | M114: =SUM(M106:M113)+M104 -> 0
C117: TABLE 2.15.4 - PROPOSED SELF-INSURANCE ALLOWANCES BY RISK CATEGORY
C119: Instruction
C120: The DNSP is required to provide a list of proposed self insurance allowances by risk category including a description of the risk and the proposed self-insurance allowance in table 2.15.4 below.
C122: Risk class [drop down] | D122: Risk category | E122: Commercially insured (Yes/No) | F122: Commercial insurance deductable ($0's) | G122: Commercial insurance limit ($0's) | H122: Self insurance limit ($0's) | I122: =CONCATENATE("Proposed self insurance allowance ($0's, real ", dms_DollarReal, ")") -> Proposed self insurance allowance ($0's, real December 2015)
A123: INS2154 | I123: =FRCP -> 2016 | J123: 2017 | K123: 2018 | L123: 2019 | M123: 2020 | N123: Total
A124: INS2154_00001 | D124: Not applicable | N124: =+SUM(I124:M124) -> 0
A125: INS2154_00002 | N125: =+SUM(I125:M125) -> 0
A126: INS2154_00003 | N126: 0
A127: INS2154_00004 | N127: 0
A128: INS2154_00005 | N128: 0
A129: INS2154_00006 | N129: 0
A130: INS2154_00007 | N130: 0
A131: INS2154_00008 | N131: 0
A132: INS2154_00009 | N132: =+SUM(I132:M132) -> 0
A133: INS2154_00010 | N133: =+SUM(I133:M133) -> 0
A134: INS2154_00011 | N134: =+SUM(I134:M134) -> 0
A135: INS2154_00012 | N135: 0
A136: INS2154_00013 | N136: 0
A137: INS2154_00014 | N137: 0
A138: INS2154_00015 | N138: 0
C139: Total | I139: =+SUM(I124:I138) -> 0 | J139: 0 | K139: 0 | L139: 0 | M139: 0 | N139: 0

Sheet 2.16 Opex Summary
C1: =SheetHeader -> REGULATORY REPORTING STATEMENT
C2: =dms_TradingName -> United Energy
C3: =FRCP_span -> 2016 to 2020
C4: 2.16 OPEX SUMMARY
C6: Instructions
C7: Complete the tables below in accordance with the regulatory information notice. The DNSP must input forecast opex by category in Table 2.16.2 and Table 2.16.4 if it did not forecast its total opex using a Base Year approach. Otherwise input '0'. The DNSP's total forecast opex must reconcile to Table 2.16.1 (and if the DNSP owns and dual function assets) Table 2.16.3. If the DNSP did not forecast its total opex using a Base Year approach, total forecast opex must, in addition, reconcile to Table 2.16.2 (and if the DNSP owns any dual function assets) Table 2.16.4. If the DNSP does not own any dual function assets,Table 2.16.3 and 2.16.4 may be left blank. The total step changes in Table 2.16.1 and Table 2.16.3 must reconcile (in each year) to the total step changes for each year in Table 2.17.1 and Table 2.17.3 of worksheet '2.17 Step Changes', respectively.
A9: NB: Codes in hidden column K | C9: TABLE 2.16.1 - STANDARD CONTROL SERVICES - OPEX BY DRIVER (excludes gsl dmis and debt raising) | L9: TABLE 2.16.2 - STANDARD CONTROL SERVICES - OPEX BY CATEGORY
D11: Current regulatory period | E11: Forthcoming regulatory period | M11: Current regulatory period | N11: Forthcoming regulatory period
D12: =CONCATENATE("Forecast ($0's, real ", dms_DollarReal,")") -> Forecast ($0's, real December 2015) | M12: =CONCATENATE("Forecast ($0's, real ", dms_DollarReal,")") -> Forecast ($0's, real December 2015)
D13: =CRCP_y5 -> 2015 | E13: =FRCP -> 2016 | F13: 2017 | G13: 2018 | H13: 2019 | I13: 2020 | M13: =CRCP_y5 -> 2015 | N13: =FRCP -> 2016 | O13: 2017 | P13: 2018 | Q13: 2019 | R13: 2020
C14: Driver | K14: ED_OPX2162_00001 | L14: Vegetation management | M14: 11952607.69 | N14: 12121120.24 | O14: 12173496.48 | P14: 12266687.6 | Q14: 12254676.86 | R14: 12223830.72
A15: ED_OPX2161_00001 | C15: Efficient historic opex | D15: ='[2]Opex summary'!$C$15*1000000 -> 125928390.9 | E15: ='[2]Opex summary'!D21*1000000 -> 138313070.6 | F15: ='[2]Opex summary'!E21*1000000 -> 138313070.6 | G15: ='[2]Opex summary'!F21*1000000 -> 138313070.6 | H15: ='[2]Opex summary'!G21*1000000 -> 138313070.6 | I15: ='[2]Opex summary'!H21*1000000 -> 138313070.6 | K15: ED_OPX2162_00002 | L15: Maintenance | M15: 19305711.26 | N15: 19577890.75 | O15: 19939697.7 | P15: 20463655.21 | Q15: 20980817.6 | R15: 21456904.59
A16: ED_OPX2161_00002 | C16: Real price changes | D16: 0 | E16: ='[2]Opex summary'!D75*1000000 -> 324089.824 | F16: ='[2]Opex summary'!E75*1000000 -> 1051098.094 | G16: ='[2]Opex summary'!F75*1000000 -> 2246503.467 | H16: ='[2]Opex summary'!G75*1000000 -> 3626146.435 | I16: ='[2]Opex summary'!H75*1000000 -> 4931692.739 | K16: ED_OPX2162_00003 | L16: Emergency response | M16: 14716251.82 | N16: 14923727.31 | O16: 14988213.82 | P16: 15102952.3 | Q16: 15088164.47 | R16: 15050186.19
A17: ED_OPX2161_00003 | C17: Output growth | D17: 0 | E17: ='[2]Opex summary'!D76*1000000 -> 1107079.866 | F17: ='[2]Opex summary'!E76*1000000 -> 2140806.797 | G17: ='[2]Opex summary'!F76*1000000 -> 3373341.065 | H17: ='[2]Opex summary'!G76*1000000 -> 4439777.456 | I17: ='[2]Opex summary'!H76*1000000 -> 5512637.181 | K17: ED_OPX2162_00004 | L17: Non-network | M17: =D20-SUM(M14,M15,M16,M18,M19) -> 22946805.75 | N17: =E20-SUM(N14,N15,N16,N18,N19) -> 36364082.2 | O17: 38567768.33 | P17: 43189323.9 | Q17: 43037985.21 | R17: 46707895.84
A18: ED_OPX2161_00004 | C18: Productivity growth | D18: 0 | E18: 0 | F18: 0 | G18: 0 | H18: 0 | I18: 0 | K18: ED_OPX2162_00005 | L18: Network overheads | M18: =SUM('2.10 Overheads'!F13:F17) -> 19511584.52 | N18: =SUM('2.10 Overheads'!G13:G17) -> 22139666.49 | O18: =SUM('2.10 Overheads'!H13:H17) -> 21165166.11 | P18: =SUM('2.10 Overheads'!I13:I17) -> 21159292.45 | Q18: =SUM('2.10 Overheads'!J13:J17) -> 21073685.96 | R18: =SUM('2.10 Overheads'!K13:K17) -> 20716332.35
A19: ED_OPX2161_00005 | C19: Step changes | D19: 0 | E19: ='2.17 Step Changes'!J51 -> 5822000 | F19: ='2.17 Step Changes'!K51 -> 6992000 | G19: ='2.17 Step Changes'!L51 -> 9242000 | H19: ='2.17 Step Changes'!M51 -> 9462000 | I19: ='2.17 Step Changes'!N51 -> 10102000 | K19: ED_OPX2162_00006 | L19: Corporate overheads | M19: =SUM('2.10 Overheads'!F106:F119) -> 37495429.89 | N19: =SUM('2.10 Overheads'!G106:G119) -> 40439753.27 | O19: =SUM('2.10 Overheads'!H106:H119) -> 41662633.01 | P19: =SUM('2.10 Overheads'!I106:I119) -> 40993003.64 | Q19: =SUM('2.10 Overheads'!J106:J119) -> 43405664.36 | R19: =SUM('2.10 Overheads'!K106:K119) -> 42704250.81
C20: Total opex | D20: =SUM(D15:D19) -> 125928390.9 | E20: 145566240.3 | F20: 148496975.5 | G20: 153174915.1 | H20: 155840994.5 | I20: 158859400.5 | L20: Total opex | M20: =SUM(M14:M19) -> 125928390.9 | N20: 145566240.3 | O20: 148496975.5 | P20: 153174915.1 | Q20: 155840994.5 | R20: 158859400.5
C23: TABLE 2.16.3 - DUAL FUNCTION ASSETS - OPEX BY DRIVER | L23: TABLE 2.16.4 - DUAL FUNCTION ASSETS - OPEX BY CATEGORY
D25: Current regulatory period | E25: Forthcoming regulatory period | M25: Current regulatory period | N25: Forthcoming regulatory period
D26: =CONCATENATE("Forecast ($0's, real ", dms_DollarReal,")") -> Forecast ($0's, real December 2015) | M26: =CONCATENATE("Forecast ($0's, real ", dms_DollarReal,")") -> Forecast ($0's, real December 2015)
D27: =CRCP_y5 -> 2015 | E27: =FRCP -> 2016 | F27: 2017 | G27: 2018 | H27: 2019 | I27: 2020 | M27: =CRCP_y5 -> 2015 | N27: =FRCP -> 2016 | O27: 2017 | P27: 2018 | Q27: 2019 | R27: 2020
C28: Driver | K28: ED_OPX2164_00001 | L28: Vegetation management | M28: 0 | N28: 0 | O28: 0 | P28: 0 | Q28: 0 | R28: 0
A29: ED_OPX2163_00001 | C29: Efficent recurrent opex | D29: 0 | E29: 0 | F29: 0 | G29: 0 | H29: 0 | I29: 0 | K29: ED_OPX2164_00002 | L29: Maintenance | M29: 0 | N29: 0 | O29: 0 | P29: 0 | Q29: 0 | R29: 0
A30: ED_OPX2163_00002 | C30: Real price changes | D30: 0 | E30: 0 | F30: 0 | G30: 0 | H30: 0 | I30: 0 | K30: ED_OPX2164_00003 | L30: Emergency response | M30: 0 | N30: 0 | O30: 0 | P30: 0 | Q30: 0 | R30: 0
A31: ED_OPX2163_00003 | C31: Output growth | D31: 0 | E31: 0 | F31: 0 | G31: 0 | H31: 0 | I31: 0 | K31: ED_OPX2164_00004 | L31: Non-network | M31: 0 | N31: 0 | O31: 0 | P31: 0 | Q31: 0 | R31: 0
A32: ED_OPX2163_00004 | C32: Productivity growth | D32: 0 | E32: 0 | F32: 0 | G32: 0 | H32: 0 | I32: 0 | K32: ED_OPX2164_00005 | L32: Network overheads | M32: 0 | N32: 0 | O32: 0 | P32: 0 | Q32: 0 | R32: 0
A33: ED_OPX2163_00005 | C33: Step changes | D33: 0 | E33: 0 | F33: 0 | G33: 0 | H33: 0 | I33: 0 | K33: ED_OPX2164_00006 | L33: Corporate overheads | M33: 0 | N33: 0 | O33: 0 | P33: 0 | Q33: 0 | R33: 0
C34: Total opex | D34: =SUM(D29:D33) -> 0 | E34: 0 | F34: 0 | G34: 0 | H34: 0 | I34: 0 | L34: Total opex | M34: =SUM(M28:M33) -> 0 | N34: 0 | O34: 0 | P34: 0 | Q34: 0 | R34: 0

Sheet 2.17 Step Changes
C1: =SheetHeader -> REGULATORY REPORTING STATEMENT
C2: =dms_TradingName -> United Energy
C3: =FRCP_span -> 2016 to 2020
C4: 2.17 STEP CHANGES
C7: Instructions
C8: Complete the Tables below in accordance with the regulatory information notice. If the DNSP does not own any dual function assets,Table 2.17.3 and 2.17.4 may be left blank. The total step changes in Table 2.17.1 and Table 2.17.3 must reconcile (in each year) to the total step changes for each year in Table 2.16.1 and Table 2.16.3 of worksheet '2.16 Opex Summary', respectively.
C12: TABLE 2.17.1 - FORECAST OPEX STEP CHANGES FOR STANDARD CONTROL SERVICES
E14: Current regulatory period | J14: Forthcoming regulatory period
E15: Historical ($0's, nominal) | I15: =CONCATENATE("Forecast ($0's, real ", dms_DollarReal, ")") -> Forecast ($0's, real December 2015)
A16: STE2171 | C16: Step change | D16: Description | E16: =CRCP -> 2011 | F16: 2012 | G16: 2013 | H16: 2014 | I16: 2015 | J16: =FRCP -> 2016 | K16: 2017 | L16: 2018 | M16: 2019 | N16: 2020
A17: ED_STE2171_00001 | C17: New regulatory obligations – annual | D17: Power of Choice - Metering Competition | E17: 0 | F17: 0 | G17: 0 | H17: 0 | I17: 0 | J17: ='[2]Opex summary'!D25*1000000 -> 0 | K17: ='[2]Opex summary'!E25*1000000 -> 200000 | L17: ='[2]Opex summary'!F25*1000000 -> 1500000 | M17: ='[2]Opex summary'!G25*1000000 -> 1600000 | N17: ='[2]Opex summary'!H25*1000000 -> 1600000
A18: ED_STE2171_00002 | C18: New regulatory obligations – annual | D18: Power of Choice - Customer Access to Data | E18: 0 | F18: 0 | G18: 0 | H18: 0 | I18: 0 | J18: ='[2]Opex summary'!D26*1000000 -> 350000 | K18: ='[2]Opex summary'!E26*1000000 -> 350000 | L18: ='[2]Opex summary'!F26*1000000 -> 350000 | M18: ='[2]Opex summary'!G26*1000000 -> 350000 | N18: ='[2]Opex summary'!H26*1000000 -> 350000
A19: ED_STE2171_00003 | C19: New regulatory obligations – annual | D19: Power of Choice - Embedded Network | E19: 0 | F19: 0 | G19: 0 | H19: 0 | I19: 0 | J19: ='[2]Opex summary'!D27*1000000 -> 0 | K19: ='[2]Opex summary'!E27*1000000 -> 0 | L19: ='[2]Opex summary'!F27*1000000 -> 0 | M19: ='[2]Opex summary'!G27*1000000 -> 0 | N19: ='[2]Opex summary'!H27*1000000 -> 0
A20: ED_STE2171_00004 | C20: New regulatory obligations – annual | D20: Power of Choice - Demand Management IT Platform | E20: 0 | F20: 0 | G20: 0 | H20: 0 | I20: 0 | J20: ='[2]Opex summary'!D28*1000000 -> 0 | K20: ='[2]Opex summary'!E28*1000000 -> 0 | L20: ='[2]Opex summary'!F28*1000000 -> 0 | M20: ='[2]Opex summary'!G28*1000000 -> 800000 | N20: ='[2]Opex summary'!H28*1000000 -> 800000
A21: ED_STE2171_00005 | C21: New regulatory obligations – annual | D21: Power of Choice - Network (Chapter 5 and Chapter 5A - Embedded Generation Connection, including Solar) | E21: 0 | F21: 0 | G21: 0 | H21: 0 | I21: 0 | J21: ='[2]Opex summary'!D29*1000000 -> 0 | K21: ='[2]Opex summary'!E29*1000000 -> 0 | L21: ='[2]Opex summary'!F29*1000000 -> 0 | M21: ='[2]Opex summary'!G29*1000000 -> 0 | N21: ='[2]Opex summary'!H29*1000000 -> 0
A22: ED_STE2171_00006 | C22: New regulatory obligations – annual | D22: Regulatory Information Notice reporting | E22: 0 | F22: 0 | G22: 0 | H22: 0 | I22: 0 | J22: ='[2]Opex summary'!D30*1000000 -> 200000 | K22: ='[2]Opex summary'!E30*1000000 -> 1300000 | L22: ='[2]Opex summary'!F30*1000000 -> 1700000 | M22: ='[2]Opex summary'!G30*1000000 -> 700000 | N22: ='[2]Opex summary'!H30*1000000 -> 700000
A23: ED_STE2171_00007 | C23: New regulatory obligations – annual | D23: Energy Safe Victoria safety obligations | E23: 0 | F23: 0 | G23: 0 | H23: 0 | I23: 0 | J23: ='[2]Opex summary'!D31*1000000 -> 0 | K23: ='[2]Opex summary'!E31*1000000 -> 0 | L23: ='[2]Opex summary'!F31*1000000 -> 0 | M23: ='[2]Opex summary'!G31*1000000 -> 0 | N23: ='[2]Opex summary'!H31*1000000 -> 0
A24: ED_STE2171_00008 | C24: New regulatory obligations – annual | D24: Energy Safe Victoria rule changes | E24: 0 | F24: 0 | G24: 0 | H24: 0 | I24: 0 | J24: ='[2]Opex summary'!D32*1000000 -> 2242000 | K24: ='[2]Opex summary'!E32*1000000 -> 2242000 | L24: ='[2]Opex summary'!F32*1000000 -> 2242000 | M24: ='[2]Opex summary'!G32*1000000 -> 2242000 | N24: ='[2]Opex summary'!H32*1000000 -> 2242000
A25: ED_STE2171_00009 | C25: Customer response / initiated | D25: Effortless Customer Experience Program | E25: 0 | F25: 0 | G25: 0 | H25: 0 | I25: 0 | J25: ='[2]Opex summary'!D33*1000000 -> 0 | K25: ='[2]Opex summary'!E33*1000000 -> 0 | L25: ='[2]Opex summary'!F33*1000000 -> 0 | M25: ='[2]Opex summary'!G33*1000000 -> 0 | N25: ='[2]Opex summary'!H33*1000000 -> 0
A26: ED_STE2171_00010 | C26: Customer response / initiated | D26: Stakeholder engagement | E26: 0 | F26: 0 | G26: 0 | H26: 0 | I26: 0 | J26: ='[2]Opex summary'!D34*1000000 -> 350000 | K26: ='[2]Opex summary'!E34*1000000 -> 350000 | L26: ='[2]Opex summary'!F34*1000000 -> 350000 | M26: ='[2]Opex summary'!G34*1000000 -> 350000 | N26: ='[2]Opex summary'!H34*1000000 -> 350000
A27: ED_STE2171_00011 | C27: Customer response / initiated | D27: Council trees | E27: 0 | F27: 0 | G27: 0 | H27: 0 | I27: 0 | J27: ='[2]Opex summary'!D35*1000000 -> 0 | K27: ='[2]Opex summary'!E35*1000000 -> 0 | L27: ='[2]Opex summary'!F35*1000000 -> 0 | M27: ='[2]Opex summary'!G35*1000000 -> 0 | N27: ='[2]Opex summary'!H35*1000000 -> 0
A28: ED_STE2171_00012 | C28: Existing regulatory obligations – recurrent but non-annual | D28: Customer charter | E28: 0 | F28: 0 | G28: 0 | H28: 0 | I28: 0 | J28: ='[2]Opex summary'!D36*1000000 -> 0 | K28: ='[2]Opex summary'!E36*1000000 -> 0 | L28: ='[2]Opex summary'!F36*1000000 -> 0 | M28: ='[2]Opex summary'!G36*1000000 -> 0 | N28: ='[2]Opex summary'!H36*1000000 -> 0
A29: ED_STE2171_00013 | C29: Existing regulatory obligations – recurrent but non-annual | D29: Regulatory submission cost | E29: 0 | F29: 0 | G29: 0 | H29: 0 | I29: 0 | J29: ='[2]Opex summary'!D37*1000000 -> 0 | K29: ='[2]Opex summary'!E37*1000000 -> 0 | L29: ='[2]Opex summary'!F37*1000000 -> 0 | M29: ='[2]Opex summary'!G37*1000000 -> 0 | N29: ='[2]Opex summary'!H37*1000000 -> 0
A30: ED_STE2171_00014 | C30: Existing regulatory obligations – recurrent but non-annual | D30: Neutral Testing | E30: 0 | F30: 0 | G30: 0 | H30: 0 | I30: 0 | J30: ='[2]Opex summary'!D38*1000000 -> 0 | K30: ='[2]Opex summary'!E38*1000000 -> 570000 | L30: ='[2]Opex summary'!F38*1000000 -> 570000 | M30: ='[2]Opex summary'!G38*1000000 -> 570000 | N30: ='[2]Opex summary'!H38*1000000 -> 570000
A31: ED_STE2171_00015 | C31: Existing regulatory obligations – recurrent but non-annual | D31: Network Planning and Analytics - IT Capital Program | E31: 0 | F31: 0 | G31: 0 | H31: 0 | I31: 0 | J31: ='[2]Opex summary'!D39*1000000 -> 0 | K31: ='[2]Opex summary'!E39*1000000 -> 0 | L31: ='[2]Opex summary'!F39*1000000 -> 800000 | M31: ='[2]Opex summary'!G39*1000000 -> 1200000 | N31: ='[2]Opex summary'!H39*1000000 -> 2100000
A32: ED_STE2171_00016 | C32: Existing regulatory obligations – recurrent but non-annual | D32: Guideline 11 EWOV Direction | E32: 0 | F32: 0 | G32: 0 | H32: 0 | I32: 0 | J32: ='[2]Opex summary'!D40*1000000 -> 0 | K32: ='[2]Opex summary'!E40*1000000 -> 0 | L32: ='[2]Opex summary'!F40*1000000 -> 0 | M32: ='[2]Opex summary'!G40*1000000 -> 0 | N32: ='[2]Opex summary'!H40*1000000 -> 0
A33: ED_STE2171_00017 | C33: Change in external environment – annual | D33: IT security costs | E33: 0 | F33: 0 | G33: 0 | H33: 0 | I33: 0 | J33: ='[2]Opex summary'!D41*1000000 -> 700000 | K33: ='[2]Opex summary'!E41*1000000 -> 800000 | L33: ='[2]Opex summary'!F41*1000000 -> 800000 | M33: ='[2]Opex summary'!G41*1000000 -> 800000 | N33: ='[2]Opex summary'!H41*1000000 -> 800000
A34: ED_STE2171_00018 | C34: Change in external environment – annual | D34: Insurance premiums | E34: 0 | F34: 0 | G34: 0 | H34: 0 | I34: 0 | J34: ='[2]Opex summary'!D42*1000000 -> 0 | K34: ='[2]Opex summary'!E42*1000000 -> 0 | L34: ='[2]Opex summary'!F42*1000000 -> 0 | M34: ='[2]Opex summary'!G42*1000000 -> 0 | N34: ='[2]Opex summary'!H42*1000000 -> 0
A35: ED_STE2171_00019 | C35: Capex-Opex trade-off | D35: Pole top inspection | E35: 0 | F35: 0 | G35: 0 | H35: 0 | I35: 0 | J35: ='[2]Opex summary'!D43*1000000 -> 560000 | K35: ='[2]Opex summary'!E43*1000000 -> 580000 | L35: ='[2]Opex summary'!F43*1000000 -> 550000 | M35: ='[2]Opex summary'!G43*1000000 -> 470000 | N35: ='[2]Opex summary'!H43*1000000 -> 210000
A36: ED_STE2171_00020 | D36: New pricing obligations | J36: ='[2]Opex summary'!D44*1000000 -> 1230000 | K36: ='[2]Opex summary'!E44*1000000 -> 470000 | L36: ='[2]Opex summary'!F44*1000000 -> 250000 | M36: ='[2]Opex summary'!G44*1000000 -> 250000 | N36: ='[2]Opex summary'!H44*1000000 -> 250000
A37: ED_STE2171_00021 | D37: National Energy Customer Framework (NECF) | J37: ='[2]Opex summary'!D45*1000000 -> 190000 | K37: ='[2]Opex summary'!E45*1000000 -> 130000 | L37: ='[2]Opex summary'!F45*1000000 -> 130000 | M37: ='[2]Opex summary'!G45*1000000 -> 130000 | N37: ='[2]Opex summary'!H45*1000000 -> 130000
A38: ED_STE2171_00022
A39: ED_STE2171_00023
A40: ED_STE2171_00024
A41: ED_STE2171_00025
A42: ED_STE2171_00026
A43: ED_STE2171_00027
A44: ED_STE2171_00028
A45: ED_STE2171_00029
A46: ED_STE2171_00030
A47: ED_STE2171_00031
A48: ED_STE2171_00032
A49: ED_STE2171_00033
A50: ED_STE2171_00034
C51: Total | E51: =SUM(E17:E50) -> 0 | F51: 0 | G51: 0 | H51: 0 | I51: 0 | J51: 5822000 | K51: 6992000 | L51: 9242000 | M51: 9462000 | N51: 10102000
C52: Check | J52: =IF(J$51-'2.16 Opex Summary'!E$19=0,"OK","Error") -> OK | K52: =IF(K$51-'2.16 Opex Summary'!F$19=0,"OK","Error") -> OK | L52: =IF(L$51-'2.16 Opex Summary'!G$19=0,"OK","Error") -> OK | M52: =IF(M$51-'2.16 Opex Summary'!H$19=0,"OK","Error") -> OK | N52: =IF(N$51-'2.16 Opex Summary'!I$19=0,"OK","Error") -> OK
C54: TABLE 2.17.2 - FORECAST CAPEX STEP CHANGES FOR STANDARD CONTROL SERVICES
E56: Current regulatory period | J56: Forthcoming regulatory period
E57: Historical ($0's, nominal) | I57: =CONCATENATE("Forecast ($0's, real ", dms_DollarReal, ")") -> Forecast ($0's, real December 2015)
A58: STE2172 | C58: Step change | D58: Description | E58: =CRCP -> 2011 | F58: 2012 | G58: 2013 | H58: 2014 | I58: 2015 | J58: =FRCP -> 2016 | K58: 2017 | L58: 2018 | M58: 2019 | N58: 2020
A59: ED_STE2172_00001 | C59: Not applicable | D59: Not applicable | E59: 0 | F59: 0 | G59: 0 | H59: 0 | I59: 0 | J59: 0 | K59: 0 | L59: 0 | M59: 0 | N59: 0
A60: ED_STE2172_00002
A61: ED_STE2172_00003
A62: ED_STE2172_00004
A63: ED_STE2172_00005
A64: ED_STE2172_00006
A65: ED_STE2172_00007
A66: ED_STE2172_00008
A67: ED_STE2172_00009
A68: ED_STE2172_00010
A69: ED_STE2172_00011
A70: ED_STE2172_00012
A71: ED_STE2172_00013
A72: ED_STE2172_00014
A73: ED_STE2172_00015
A74: ED_STE2172_00016
C75: Total | E75: =SUM(E59:E74) -> 0 | F75: 0 | G75: 0 | H75: 0 | I75: 0 | J75: 0 | K75: 0 | L75: 0 | M75: 0 | N75: 0
C77: TABLE 2.17.3 - FORECAST OPEX STEP CHANGES FOR DUAL FUNCTION ASSETS
E79: Current regulatory period | J79: Forthcoming regulatory period
E80: Historical ($0's, nominal) | I80: =CONCATENATE("Forecast ($0's, real ", dms_DollarReal, ")") -> Forecast ($0's, real December 2015)
A81: STE2173 | C81: Step change | D81: Description | E81: =CRCP -> 2011 | F81: 2012 | G81: 2013 | H81: 2014 | I81: 2015 | J81: =FRCP -> 2016 | K81: 2017 | L81: 2018 | M81: 2019 | N81: 2020
A82: ED_STE2173_00001 | C82: Not applicable | D82: Not applicable | E82: 0 | F82: 0 | G82: 0 | H82: 0 | I82: 0 | J82: 0 | K82: 0 | L82: 0 | M82: 0 | N82: 0
A83: ED_STE2173_00002
A84: ED_STE2173_00003
A85: ED_STE2173_00004
A86: ED_STE2173_00005
A87: ED_STE2173_00006
A88: ED_STE2173_00007
A89: ED_STE2173_00008
A90: ED_STE2173_00009
A91: ED_STE2173_00010
A92: ED_STE2173_00011
A93: ED_STE2173_00012
C94: Total | E94: =SUM(E82:E93) -> 0 | F94: 0 | G94: 0 | H94: 0 | I94: 0 | J94: 0 | K94: 0 | L94: 0 | M94: 0 | N94: 0
C95: Check | J95: =IF(J$51-'2.16 Opex Summary'!E$33=0,"OK","Error") -> Error | K95: =IF(K$51-'2.16 Opex Summary'!F$33=0,"OK","Error") -> Error | L95: =IF(L$51-'2.16 Opex Summary'!G$33=0,"OK","Error") -> Error | M95: =IF(M$51-'2.16 Opex Summary'!H$33=0,"OK","Error") -> Error | N95: =IF(N$51-'2.16 Opex Summary'!I$33=0,"OK","Error") -> Error
C97: TABLE 2.17.4 - FORECAST CAPEX STEP CHANGES FOR DUAL FUNCTION ASSETS
E99: Current regulatory period | J99: Forthcoming regulatory period
E100: Historical ($0's, nominal) | I100: =CONCATENATE("Forecast ($0's, real ", dms_DollarReal, ")") -> Forecast ($0's, real December 2015)
A101: STE2174 | C101: Step change | D101: Description | E101: =CRCP -> 2011 | F101: 2012 | G101: 2013 | H101: 2014 | I101: 2015 | J101: =FRCP -> 2016 | K101: 2017 | L101: 2018 | M101: 2019 | N101: 2020
A102: ED_STE2174_00001 | C102: Not applicable | D102: Not applicable | E102: 0 | F102: 0 | G102: 0 | H102: 0 | I102: 0 | J102: 0 | K102: 0 | L102: 0 | M102: 0 | N102: 0
A103: ED_STE2174_00002
A104: ED_STE2174_00003
A105: ED_STE2174_00004
A106: ED_STE2174_00005
A107: ED_STE2174_00006
A108: ED_STE2174_00007
A109: ED_STE2174_00008
A110: ED_STE2174_00009
A111: ED_STE2174_00010
A112: ED_STE2174_00011
A113: ED_STE2174_00012
C114: Total | E114: =SUM(E102:E113) -> 0 | F114: 0 | G114: 0 | H114: 0 | I114: 0 | J114: 0 | K114: 0 | L114: 0 | M114: 0 | N114: 0

Sheet 3.1 Revenue
C1: =SheetHeader -> REGULATORY REPORTING STATEMENT
C2: =dms_TradingName -> United Energy
C3: =FRCP_span -> 2016 to 2020
C4: 3.1 REVENUE
E7: Standard control services | L7: Alternative control services
E8: =CONCATENATE("Forecast ($0's, real ", dms_DollarReal,")") -> Forecast ($0's, real December 2015) | L8: =CONCATENATE("Forecast ($0's, real ", dms_DollarReal,")") -> Forecast ($0's, real December 2015)
